{"text_format":"1","workbook":"xlsx","n_sheets":30,"sheets":["Error01","Instructions","Report Cover","Start Page","Area Calc 1","Area Calc 2","Area Calc 3","Fertilizer","Lime","Lab Analysis Summary","Nutrient Rates","Mulch","Seed Lists","Roadside Summary","Roadside Notes","Seed Mix Selection","Seed Rate Selection","Example Lab Report","References","00_Blank","01_VA Tech","02_Waters(GA)","03_Waypoint","04_Agri-Analysis","05_AgroLab","06_Brookside","07_Logan","08_Midwest","09_Spectrum","10_Waters(NC)"],"not_rendered":{"charts":0,"images":15,"macros":1,"external_links":1,"defined_names":184,"comments":10,"pivot_tables":0},"unopened":[],"bounds":{"document_bytes":16777216,"sheet_cells":100000,"rows_first":2000,"rows_last":500,"rows_between":2000,"halvings":0,"cell_chars":16384,"cell_head_chars":4096},"cells_cut":0,"cells_raw":0,"read":"whole","date_system":"1900"}

{"sheet":"Error01","index":0,"n_rows":17,"n_cols":2,"rows_kept":17,"cut":false,"hidden":false,"merged":[[0,1,9,8],[10,1,12,8],[13,1,15,8],[16,0,18,1]]}
[null,"MACROS ARE DISABLED!\nIf the Security Warning bar appears above, or a Warning box opens, enable Macros by pressing Enable Content or Options."]
[]
[]
[]
[]
[]
[]
[]
[]
[]
[null,"Looks like this: "]
[]
[]
[null,"          or this: "]
[]
[]
["or one of these:"]

{"sheet":"Instructions","index":1,"n_rows":71,"n_cols":26,"rows_kept":71,"cut":false,"hidden":false,"merged":[[0,0,0,1],[20,0,20,1],[30,0,30,1],[41,0,41,1],[45,0,45,1]]}
["Start Page"]
[1,"Enter Project Information in colored boxes at top of page.",null,null,null,null,null,null,null,null,null,null,null,null,null,null,null,null,null,null,null,null,null,null,null,{"$f":"B2","v":"Enter Project Information in colored boxes at top of page."}]
[null,"It is recommended that you save your inputs at this point using the green Save Button at the top of the page so as to avoid accidentally saving your changes to the template file."]
[2,"Answer all questions in the Project Questionnaire section that have colored boxes for the answer.\n  (You can navigate directly to each entry by pressing the Tab key on your keyboard)",null,null,null,null,null,null,null,null,null,null,null,null,null,null,null,null,null,null,null,null,null,null,null,{"$f":"B4","v":"Answer all questions in the Project Questionnaire section that have colored boxes for the answer.\n  (You can navigate directly to each entry by pressing the Tab key on your keyboard)"}]
[null,"Please Note that questions 6 & 7 require 2 entries - the numeric value and appropriate units."]
[null,"If unsure how to answer the question, please click on the blue button to \"Show Input Hints\" at the top of the page.  These hints can be toggled on and off by clicking the button again."]
[3,"For each Core Mix to be used (up to 3), answer all questions that have colored boxes for the answer."]
[null,"Please Note that questions 2a-2e & 3a-3b require 2 entries - the numeric value and appropriate units & watch for any warning messages that may pop-up or be displayed in red to the right of the questions"]
[null,"The number of mixes to be used is entered under the Project Questionnaire section & should be discussed with the District Roadside Manager if you are unsure of the answer."]
[null,"When answering questions 2c or 2e about the steepest gradients, the default \"units\" are set to be entered as a slope ratio (i.e. 4:1 h:v), but only the first part of the ratio should be entered.  For example, to enter a 3:1 slope, type in just 3, and the program will automatically show 3.0:1.  Fractional slopes (such as 7:2) may be entered as a formula (=7/2) or a decimal (3.5) and will automatically be converted to a \":1\" ratio.  Alternatively, the units can be changed to \"Grade\" and entered as a percentage (i.e. 40% or 0.4)"]
[null,"For any question in these sections that require direct entry of areas with units, an area calculator tool is provided in case you do not already know the size of the area in either square feet or acres. \nIt can be used for unit conversions (metric to imperial, yards or miles to feet, etc.) \nor combining multiple sub-areas into one total area for each core mix.  "]
[null,"To use the area calculator tool, click on the button beside question 2a to open it and:"]
[null,"a) Fill out either Length & Width or Area and select the proper units for each entry.  "]
[null,"If sub areas are repeated (for example, 3 areas with the same length/width), they can be entered once by setting the multiplier at the bottom of the sub-area to the number of times the shape is repeated. "]
[null,"b) Answer the question about the maximum slope of each area."]
[null,"Note: areas should be subdivided based on a break point of 3:1 slopes (33.33% grade) in order to assign the areas as Mow or Non-Mow correctly."]
[null,"c) Once all sub-areas are entered, press the green button to \"Use Results on Start Page.\""]
[4,"It is recommended that you save your work after answering the questions for each section using the green Save Button at the top of the page prior to continuing."]
[5,"Once all colored boxes in each section have been filled in, click the green \"Show Results\" button.",null,null,null,null,null,null,null,null,null,null,null,null,null,null,null,null,null,null,null,null,null,null,null,{"$f":"B19","v":"Once all colored boxes in each section have been filled in, click the green \"Show Results\" button."}]
[]
["Fertilizer Page (if necessary, i.e. not using default fertilizer rates)"]
[1,"Confirm that the Laboratory used was entered correctly on the Start Page \n  (The Lab Info is at the bottom of the Project Information Section on the Fertilizer Page).",null,null,null,null,null,null,null,null,null,null,null,null,null,null,null,null,null,null,null,null,null,null,null,{"$f":"B22","v":"Confirm that the Laboratory used was entered correctly on the Start Page \n  (The Lab Info is at the bottom of the Project Information Section on the Fertilizer Page)."}]
[2,"Enter the Sample No./Name, Description, and Phosphorus value from the lab results \n  (see the Example Lab Results tab for where to find this information for each Laboratory).",null,null,null,null,null,null,null,null,null,null,null,null,null,null,null,null,null,null,null,null,null,null,null,{"$f":"B23","v":"Enter the Sample No./Name, Description, and Phosphorus value from the lab results \n  (see the Example Lab Results tab for where to find this information for each Laboratory)."}]
[null,"└» If more rows are needed for additional samples, press the \"Add More Rows\" button at right."]
[3,"Check that the selected Lab Units match the results given by the Testing Laboratory.",null,null,null,null,null,null,null,null,null,null,null,null,null,null,null,null,null,null,null,null,null,null,null,{"$f":"B25","v":"Check that the selected Lab Units match the results given by the Testing Laboratory."}]
[4,"If so desired, use the Statistical Analysis information and your knowledge of the soil sample locations to group soil samples together into two or three subgroups to provide a more accurate representation of varying soil types in the project area.  Each subgroup will be averaged independently and assigned its own soil rating with associated fertilizer(s) & application rate(s).",null,null,null,null,null,null,null,null,null,null,null,null,null,null,null,null,null,null,null,null,null,null,null,{"$f":"B26","v":"If so desired, use the Statistical Analysis information and your knowledge of the soil sample locations to group soil samples together into two or three subgroups to provide a more accurate representation of varying soil types in the project area.  Each subgroup will be averaged independently and assigned its own soil rating with associated fertilizer(s) & application rate(s)."}]
[null,"└» To group the soils, enter a 1, 2, or 3 in the Group column at left.  "]
[null,"If no subgroups are desired, leave the Group column blank."]
[null,"Hover over the Statistical Analysis column headers for more information & Use \"Filter by Color\" from the dropdown menu to show only certain rows that match one of the statistical groups."]
[]
["Lime Page (if necessary, i.e. not using default lime rates)"]
[1,"Ensure that the Testing Laboratory selected & it's corresponding Test Method is correct.",null,null,null,null,null,null,null,null,null,null,null,null,null,null,null,null,null,null,null,null,null,null,null,{"$f":"B32","v":"Ensure that the Testing Laboratory selected & it's corresponding Test Method is correct."}]
[2,"Answer the question about recommendations provided by the testing lab (below the Project Info section)"]
[null,"└» If the answer is yes, enter the recommended application rate in tons/ac based on Agricultural Lime"]
[null,"Note: if the rate provided was not in tons/acre, you can use excel to convert the rate.  \nThe following conversion factors may be useful: "]
[null,"1 acre = 43,560 square feet;  1 sq. yd. = 9 sq. ft.; 1 sq. mile = 27,878,400 sq. ft.\n1 sq. km = 100 hectares; 1 hectare = 107,639 sq. ft.;  1 sq. meter = 10.76 sq. ft.\n1 ton [US] = 2,000 lbs;  1 kg = 2.205 lbs;  1 metric ton = 2,204.6 lbs"]
[3,"Select the Type (Group) of Lime to be used",null,null,null,null,null,null,null,null,null,null,null,null,null,null,null,null,null,null,null,null,null,null,null,{"$f":"B37","v":"Select the Type (Group) of Lime to be used"}]
[null,"└» For Groups B & C, select the % CCE that is closest to your specific product."]
[4,"Enter the pH Buffer for each sample.  Please note that the pH range allowed by each test varies, and the program will only allow values within this range to be entered.",null,null,null,null,null,null,null,null,null,null,null,null,null,null,null,null,null,null,null,null,null,null,null,{"$f":"B39","v":"Enter the pH Buffer for each sample.  Please note that the pH range allowed by each test varies, and the program will only allow values within this range to be entered."}]
[null,"You can skip this step if the answer from step #2 above is yes (the lab provided a Lime application rate recommendation either based on an average of all the samples analyzed, or the recommendations for each sample were the same)"]
[]
["Lab Analysis Summary Page (only visible if not using default nutrient rates)"]
[1,"Confirm that there are no errors and all summaries match the information from the previous pages."]
[2,"If subdividing the areas to be permanently seeded into groups based on similar soil sample results, enter the approx. areas of each subgroup in the Fertilizer Summary area.\nOtherwise, leave those fields blank or enter 0.",null,null,null,null,null,null,null,null,null,null,null,null,null,null,null,null,null,null,null,null,null,null,null,{"$f":"B44","v":"If subdividing the areas to be permanently seeded into groups based on similar soil sample results, enter the approx. areas of each subgroup in the Fertilizer Summary area.\nOtherwise, leave those fields blank or enter 0."}]
[]
["Nutrient Rates, Mulch, and Roadside Summary "]
[1,"Confirm that there are no errors and all summaries match the information from the previous pages."]
[]
["Roadside Notes"]
[1,"Choose whether or not to include each note by entering \"Yes\" or \"No\" in the box to the left of the note."]
[2,"Enter any project specific Custom Notes at the bottom of the page as desired."]
[]
["Seed Selection"]
["Note: Seed selection is to be performed by the VDOT District Roadside Manager or his/her delegate!"]
[1,"On the Start Page click the blue button at the bottom of the page to open the Seed Rate Selection Page."]
[2,"Answer the questions at the top regarding the use of custom seed mixes, & if they are to be used on this project, fill out the sections for each custom seed mix at the bottom of the page. \n(There can be up to 3 custom seed blends to use in place of core seed mixes on each project)"]
[null,"Hyperlinks are provided to the right of the questions to navigate directly to the entry for each blend.\nInstructions can be found beside the input area for the first custom mix."]
[3,"Adjust Application Rate for Core Mixes & Additives as desired."]
[4,"If additional additives that are not already on the list are to be used, enter a Description, Application Rate (in lbs/ac) and whether or not the additive is a Legume.  If the additive is restricted from use in mowed areas, please indicate that with two asterisks (**) at the end of the description."]
[5,"Click on the blue button at the top of the page to Open the Seed Mix Selection Page.\n(This button can also be found at the bottom of the start page)."]
[6,"On the Seed Mix Selection page, use the drop down lists to select a Core Mixture for each Season for both Mow & Non-Mow areas (Slopes).  The entire top row of each Core Mix used must be filled out."]
[null,"The drop down list can be opened by clicking on the gray button at the right of each colored cell when it is selected"]
[7,"Use the drop down lists to include additives as desired for each season for both Mow & Non-Mow areas"]
[8,"Navigate to the Seed Used page to review the list of seeds & additives and their application rates."]
[null,"If so desired, use the blue button at the top of the page to toggle between showing all seeds available and just the seeds that have been selected for use on this project."]
[9,"Review the Custom Seed Mix lists at the bottom of the page to ensure that there are no warnings."]
[null,"NOTE: The seed lists and seed mix selection tabs are set to automatically be hidden each time the spreadsheet is closed (so long as the user saves changes after closing the program)."]
[]
["Printing the Report"]
[1,"The report can be printed from any page that has the green \"Print Report\" button.  "]
[null,"NOTE: The results should be printed to PDF so that the Nutrient Summary, Mulch, Seed Lists, Roadside Summary, and Roadside Notes pages can be imported into the Roadside Development sheets in MicroStation."]

{"sheet":"Report Cover","index":2,"n_rows":10,"n_cols":3,"rows_kept":10,"cut":false,"hidden":true,"merged":[[7,2,7,4],[8,2,8,4],[9,2,9,4]]}
[]
[]
[]
[]
[null,null,"ROADSIDE DEVELOPMENT REPORT (RDR)"]
[null,null,"(From VDOT Roadside Development Spreadsheet, ver. 2.0, Feb. 1, 2017) "]
[]
[null,"Project Name/No.",{"$f":"IFERROR('Start Page'!D3,\"\")","v":0}]
[null,"PPMS (UPC) #",{"$f":"IFERROR('Start Page'!D4,\"\")","v":0}]
[null,"Date Entered",{"$f":"IFERROR('Start Page'!G5,\"\")","v":0}]

{"sheet":"Start Page","index":3,"n_rows":78,"n_cols":42,"rows_kept":78,"cut":false,"hidden":false,"merged":[[25,6,25,7],[25,0,34,0],[38,0,47,0],[26,2,26,3],[51,0,60,0],[34,2,34,5],[32,2,32,5],[42,2,42,5],[43,2,43,5],[44,2,44,5],[45,2,45,5],[47,2,47,5],[51,2,51,5],[33,2,33,5],[46,2,46,5],[59,2,59,5],[9,2,9,5],[0,1,0,3],[5,3,5,7],[15,2,15,5],[6,3,6,7],[10,2,10,5],[11,2,11,5],[12,2,12,5],[13,2,13,5],[14,2,14,7],[2,6,2,7],[3,6,3,7],[4,6,4,7],[6,1,6,2],[2,1,2,2],[3,1,3,2],[38,2,38,5],[62,2,62,5],[13,6,13,7],[27,2,27,5],[28,2,28,5],[29,2,29,5],[30,2,30,5],[16,2,16,5],[38,6,38,7],[39,2,39,3],[40,2,40,5],[41,2,41,5],[17,2,17,5],[25,2,25,5],[31,2,31,5],[22,2,22,5],[4,1,4,2],[5,1,5,2],[2,4,2,5],[3,4,3,5],[4,4,4,5],[20,2,20,5],[21,2,21,5],[18,2,18,5],[67,2,67,7],[51,6,51,7],[52,2,52,3],[53,2,53,5],[60,2,60,5],[54,2,54,5],[55,2,55,5],[56,2,56,5],[57,2,57,5],[58,2,58,5],[66,2,66,7],[65,2,65,7],[19,2,19,5]]}
[null,"Fill in ALL fields with highlighting\nYellow: L&D; Blue: Roadside; Green: Both; Gray: Default Value that can be changed",null,null,null,null,null,null,null,null,null,null,null,null,null,null,null,null,null,null,null,null,null,null,"Column","Width","Merged Widths:\nArea (ac)","D:H (used: 71)","C:F (used 58)","C:H (used 84)","C:D (used 34)","G:H (used 26)",null,null,null,null,"Lists:","GradeSlope","YorN","Units","Regions","Topsoil Class"]
[null,"Project Information:",null,null,null,null,null,null,null,null,null,null,null,null,null,null,null,null,null,null,null,null,null,null,"A",{"$f":"CELL(\"width\",A:A)","v":3},"RH",{"$f":"SUM(Z5:Z9)","v":68},{"$f":"SUM(Z4:Z7)","v":54},{"$f":"SUM(Z4:Z9)","v":80},{"$f":"SUM(Z4:Z5)","v":34},{"$f":"SUM(Z8:Z9)","v":26},null,null,null,null,null,"Grade \n(Percent: 33%)","Yes","SF","Coastal","A"]
[null,"Project Name/No.:",null,null,"Roadside Data From:",null,null,null,null,null,null,null,null,null,null,null,null,null,null,null,null,null,null,null,"B",{"$f":"CELL(\"width\",B:B)","v":5},null,{"$f":"CELL(\"width\",AB1)","v":0},{"$f":"CELL(\"width\",AC1)","v":0},{"$f":"CELL(\"width\",AD1)","v":0},{"$f":"CELL(\"width\",AE1)","v":0},{"$f":"CELL(\"width\",AF1)","v":0},null,null,null,null,null,"Slope (Ratio: 3:1)","No","Ac","Piedmont","B"]
[null,"PPMS (UPC) #:",null,null,"L&D Data From:",null,null,null,null,null,null,null,null,null,null,null,null,null,null,null,null,null,null,null,"C",{"$f":"CELL(\"width\",C:C)","v":12},null,null,null,null,null,null,null,null,null,null,null,null,"Y","Square Feet","Mountain"]
[null,"Planting Date:",null,null,"Date Entered:",null,null,null,null,null,null,null,null,null,null,null,null,null,null,null,null,null,null,null,"D",{"$f":"CELL(\"width\",D:D)","v":22},null,null,null,null,null,null,null,null,null,null,null,null,"N","acres"]
[null,"Proj. Description:",null,null,null,null,null,null,null,null,null,null,null,null,null,null,null,null,null,null,null,null,null,null,"E",{"$f":"CELL(\"width\",E:E)","v":7},null,{"$f":"D6","v":0},null,null,null,null,null,null,null,null,null,null,null,"acre"]
[null,"File Location:",null,{"$f":"FilePath","v":"G:\\Projects\\2013 Projects\\13-144 VDOT_MS4_MNT#301_NMP_Spreadsheet_Program\\09_Deliverables\\Final\\"},null,null,null,null,null,null,null,null,null,null,null,null,null,null,null,null,null,null,null,null,"F",{"$f":"CELL(\"width\",F:F)","v":13},null,{"$f":"D7","v":"G:\\Projects\\2013 Projects\\13-144 VDOT_MS4_MNT#301_NMP_Spreadsheet_Program\\09_Deliverables\\Final\\"},null,null,null,null,null,null,null,null,null,null,null,"s.f."]
[null,null,null,null,null,null,null,null,null,null,null,null,null,null,null,null,null,null,null,null,null,null,null,null,"G",{"$f":"CELL(\"width\",G:G)","v":13},null,null,null,null,null,null,null,null,null,null,null,null,null,"ac."]
[null,"Project Questionnaire: ",null,null,null,null,null,null,null,null,null,null,null,null,null,null,null,null,null,null,null,null,null,null,"H",{"$f":"CELL(\"width\",H:H)","v":13},"RH"]
[null,"1.","Which region is this project located in?",null,null,null,null,null,null,null,null,null,null,null,null,null,null,null,null,null,null,null,null,null,null,null,null,null,{"$f":"C10","v":"Which region is this project located in?"}]
[null,"2.","For the area to be fertilized, have the existing vegetation and topsoil layers been disturbed by grading or other earth moving activity?",null,null,null,"Yes",null,null,null,null,null,null,null,null,null,null,null,null,null,null,null,null,null,null,null,null,null,{"$f":"C11","v":"For the area to be fertilized, have the existing vegetation and topsoil layers been disturbed by grading or other earth moving activity?"}]
[null,"2a.","└» Is the subsoil exposed?",null,null,null,"Yes",{"$f":"IF(AND(LEFT(ansDisturbed,1)=\"n\",LEFT(ansExposed,1)=\"y\"),\"Please Check Answers to Questions 2 & 2a!\",\"\")","v":""}]
[null,"3.","Is the fertilized being applied to repair or re-vegetate an area that failed to achieve stabilization after both regular and overseeding?",null,null,null,"No",null,null,null,null,null,null,null,null,null,null,null,null,null,null,null,null,null,null,null,null,null,{"$f":"C13","v":"Is the fertilized being applied to repair or re-vegetate an area that failed to achieve stabilization after both regular and overseeding?"},{"$f":"IF(OR(LEFT(ansExposed,1)=\"n\",LEFT(ansDisturbed,1)=\"n\"),\"Not Applicable\",\"Is the area being fertilized to repair or re-vegetate an area that failed on a construction project after both regular and overseeding?\")","v":"Is the area being fertilized to repair or re-vegetate an area that failed on a construction project after both regular and overseeding?"}]
[null,"4a.",{"$f":"IF(LEFT(ansFailed,1)=\"y\",\"Which laboratory (lab) was used to analyze the soil samples?\",\"If soil samples were analyzed, which laboratory (lab) was used?\")","v":"If soil samples were analyzed, which laboratory (lab) was used?"},null,null,null,null,null,null,null,null,null,null,null,null,null,null,null,null,null,null,null,null,null,null,null,{"$f":"IF(nLabUsed=\"\",0,VLOOKUP(nLabUsed,tLabConversions[],7,FALSE))","v":0}]
[null,null,{"$f":"IF(RIGHT($G$14,1)=\"*\",\"*: \"& VLOOKUP($G$14,tLabConversions[],4,FALSE),\"\")","v":""}]
[null,"4b.",{"$f":"IF(LEFT(ansFailed,1)=\"y\",\"How many samples were analyzed by this lab?\",\"If soil samples were analyzed, how many will be entered here?\")","v":"If soil samples were analyzed, how many will be entered here?"}]
[null,"5.","How many core seed mixes will be used on this project?",null,null,null,null,null,{"$f":"IF(OR(AND(iNumMixes<3,SUM(G53:G61)>0),AND(iNumMixes<2,SUM(G53:G61,G40:G48)>0)),\"Please check your answer to this question or clear entries from unused Core Mixes below.\",\"\")","v":""}]
[null,"6.","How large is the area that will receive temporary seed?",null,null,null,null,"ac",{"$f":"IF(H18=\"\",\"Please Select Units!\",IF(OR(AND(LEFT(H18,1)=\"s\",G18>0,G18<50),AND(LEFT(H18,1)=\"a\",G18>500)),\"Please confirm that the correct units are selected\",\"\"))","v":""},null,null,null,null,null,null,null,null,null,null,null,null,null,null,null,null,null,{"$f":"fAreaConv_hidden","v":0}]
[null,"7.","Will topsoil be used on this project?"]
[null,"7a.",{"$f":"IF(LEFT($G$19,1)=\"n\",\"Not Applicable (leave blank)\",\"Which class of Topsoil should be used (A or B)?\")","v":"Which class of Topsoil should be used (A or B)?"}]
[null,"7b.",{"$f":"IF(LEFT($G$19,1)=\"n\",\"Not Applicable (leave blank)\",\"How deep should the layer of topsoil be (in inches)?\")","v":"How deep should the layer of topsoil be (in inches)?"},null,null,null,null,"inches"]
[null,"7c.",{"$f":"IF(LEFT($G$19,1)=\"n\",\"Not Applicable (leave blank)\",\"How large is the area that will receive Topsoil?\")","v":"How large is the area that will receive Topsoil?"},null,null,null,null,"ac",{"$f":"IF(H22=\"\",\"Please Select Units!\",IF(OR(AND(LEFT(H22,1)=\"s\",G22>0,G22<50),AND(LEFT(H22,1)=\"a\",G22>500)),\"Please confirm that the correct units are selected\",\"\"))","v":""},null,null,null,null,null,null,null,null,null,null,null,null,null,null,null,null,null,{"$f":"fAreaConv_hidden","v":0}]
[null,"8.","Total area of regular seed (based on entries below):",null,null,null,{"$f":"IF(SUM(AA27,AA40,AA53)>0.5,SUM(AA27,AA40,AA53),ROUND(SUM(AA27,AA40,AA53)*43560,0))","v":0},{"$f":"IF(SUM(AA27,AA40,AA53)>0.5,\"acres\",\"sf\")","v":"sf"},null,null,null,null,null,null,null,null,null,null,null,null,null,null,null,null,null,null,{"$f":"fAreaConv_hidden","v":0}]
[null,null,null,null,null,null,null,"Slope (Ratio: 3:1)"]
[null,"Core Mix #1",null,null,null,{"$f":"IF(AND(Area_PS1>0,AA27=rAC1_TotalAcres),\"See Area Calculation Worksheet\",\"\")","v":""},null,"Units:",null,null,null,null,null,null,null,null,null,null,null,null,null,null,null,null,null,null,"RH"]
["Core Mix 1","1.",{"$f":"\"Please enter a description of the area receiving \"&rSP_Mix1&\" \n(e.g. Urban, Rural, Project 1, Smith Parcel, National Park Land, etc.)\"","v":"Please enter a description of the area receiving Core Mix #1 \n(e.g. Urban, Rural, Project 1, Smith Parcel, National Park Land, etc.)"},null,null,null,null,null,null,null,null,null,null,null,null,null,null,null,null,null,null,null,null,null,null,null,null,null,{"$f":"C26","v":"Please enter a description of the area receiving Core Mix #1 \n(e.g. Urban, Rural, Project 1, Smith Parcel, National Park Land, etc.)"},null,null,{"$f":"G26","v":0}]
[null,"2a.","How large is the area that will receive regular seed?",null,null,null,null,"ac",{"$f":"IF(H27=\"\",\"Please Select Units!\",IF(OR(AND(LEFT(H27,1)=\"s\",G27>0,G27<50),AND(LEFT(H27,1)=\"a\",G27>500)),\"Please confirm that the correct units are selected\",IF(AA27<>SUM(AA28,AA30),\"Please Check Answers to Questions 2a, 2b, & 2d\",\"\")))","v":""},null,null,null,null,null,null,null,null,null,null,null,null,null,null,null,null,null,{"$f":"fAreaConv_hidden","v":0},null,null,null,{"$f":"C27","v":"How large is the area that will receive regular seed?"}]
[null,"2b.","How much of the area receiving Regular Seed has slopes equal to or flatter than 3:1? (This area is the \"Mowed Area\") ",null,null,null,null,"ac",{"$f":"IF(H28=\"\",\"Please Select Units!\",IF(OR(AND(LEFT(H28,1)=\"s\",G28>0,G28<50),AND(LEFT(H28,1)=\"a\",G28>500)),\"Please confirm that the correct units are selected\",\"\"))","v":""},null,null,null,null,null,null,null,null,null,null,null,null,null,null,null,null,null,{"$f":"fAreaConv_hidden","v":0},null,{"$f":"C28","v":"How much of the area receiving Regular Seed has slopes equal to or flatter than 3:1? (This area is the \"Mowed Area\") "}]
[null,"2c.","What is the steepest gradient of the area with slopes equal to or flatter than 3:1? (\"Mowed Area\")",null,null,null,null,"Slope (Ratio: 3:1)",{"$f":"IF(H29=\"\",\"Please Select Input Method!\",IF(OR(AND(LEFT(H29,1)=\"s\",OR(G29<1,G29>25)),AND(LEFT(H29,1)=\"G\",G29>50%)),\"Please confirm that the correct entry method is selected\",IF(OR(AND(LEFT(H29,1)=\"s\",G29<3),AND(LEFT(H29,1)=\"G\",G29>33%)),\"The Max. Slope for this area should be FLATTER than 3:1 (33%)\",\"\")))","v":"Please confirm that the correct entry method is selected"},null,null,null,null,null,null,null,null,null,null,null,null,null,null,null,null,null,{"$f":"IF(LEFT(H29,1)=\"g\",1/G29,G29)","v":0},null,"What is the steepest gradient of the area with slopes equal to or flatter than 3:1? (\"Mowed Area\")"]
[null,"2d.","How much of the area receiving Regular Seed has slopes that steeper than 3:1? (This area is the \"Non-Mowed Area\", aka \"Slopes\")",null,null,null,null,"ac",{"$f":"IF(H30=\"\",\"Please Select Units!\",IF(OR(AND(LEFT(H30,1)=\"s\",G30>0,G30<50),AND(LEFT(H30,1)=\"a\",G30>500)),\"Please confirm that the correct units are selected\",\"\"))","v":""},null,null,null,null,null,null,null,null,null,null,null,null,null,null,null,null,null,{"$f":"fAreaConv_hidden","v":0},null,"How much of the area receiving Regular Seed has slopes that steeper than 3:1? (This area is the \"Non-Mowed Area\", aka \"Slopes\")"]
[null,"2e.","What is the steepest gradient of the area with slopes steeper than 3:1? (\"Non-Mowed Area\" aka \"Slopes\")",null,null,null,null,"Slope (Ratio: 3:1)",{"$f":"IF(H31=\"\",\"Please Select Input Method!\",IF(OR(AND(LEFT(H31,1)=\"s\",OR(G31<1,G31>25)),AND(LEFT(H31,1)=\"G\",G31>50%)),\"Please confirm that the correct entry method is selected\",IF(OR(AND(LEFT(H31,1)=\"s\",G31>=3),AND(LEFT(H31,1)=\"G\",G31<=33%)),\"The Max. Slope for this area should be STEEPER than 3:1 (33%)\",\"\")))","v":"Please confirm that the correct entry method is selected"},null,null,null,null,null,null,null,null,null,null,null,null,null,null,null,null,null,{"$f":"IF(LEFT(H31,1)=\"g\",1/G31,G31)","v":0},null,"What is the steepest gradient of the area with slopes steeper than 3:1? (\"Non-Mowed Area\" aka \"Slopes\")"]
[null,"3.","Does this area include both Urban and Rural sections?  <OR> Does this area contain sections with an adjusted seed application rate?",null,null,null,null,null,null,null,null,null,null,null,null,null,null,null,null,null,null,null,null,null,null,null,null,null,"Does this area include both Urban and Rural sections?  <OR> Does this area contain sections with an adjusted seed application rate?"]
[null,"3a.",{"$f":"IF(LEFT(G32,1)=\"n\",\"Not Applicable (Leave Blank)\",\"How much of the area with adjusted rates (urban) is mowed? (≤ 3:1)\")","v":"How much of the area with adjusted rates (urban) is mowed? (≤ 3:1)"},null,null,null,null,"ac",{"$f":"IF(AND(LEFT(G32,1)=\"n\",G33>0),\"Please confirm that this area is intended to receive an adjusted seed application rate\",IF(AND(LEFT(G32,1)=\"y\",H33=\"\"),\"Please Select Units!\",IF(OR(AND(LEFT(H33,1)=\"s\",G33>0,G33<50),AND(LEFT(H33,1)=\"a\",G33>500)),\"Please confirm that the correct units are selected\",\"\")))","v":""},null,null,null,null,null,null,null,null,null,null,null,null,null,null,null,null,null,{"$f":"fAreaConv_hidden","v":0},null,"How much of the area with adjusted rates (urban) is mowed? (≤ 3:1)"]
[null,"3b.",{"$f":"IF(LEFT(G32,1)=\"n\",\"Not Applicable (Leave Blank)\",\"How much of the area with adjusted rates is NOT mowed? (> 3:1)\")","v":"How much of the area with adjusted rates is NOT mowed? (> 3:1)"},null,null,null,null,"ac",{"$f":"IF(AND(LEFT(G32,1)=\"n\",G34>0),\"Please confirm that this area is intended to receive an adjusted seed application rate\",IF(AND(LEFT(G32,1)=\"y\",H34=\"\"),\"Please Select Units!\",IF(OR(AND(LEFT(H34,1)=\"s\",G34>0,G34<50),AND(LEFT(H34,1)=\"a\",G34>500)),\"Please confirm that the correct units are selected\",\"\")))","v":""},null,null,null,null,null,null,null,null,null,null,null,null,null,null,null,null,null,{"$f":"fAreaConv_hidden","v":0},null,"How much of the area with adjusted rates is NOT mowed? (> 3:1)"]
[null,"3c.",{"$f":"IF(LEFT(G32,1)=\"n\",\"Not Applicable (Leave Blank)\",\"What adjustment factor should be applied? (Typ. 2x for Urban Areas)\")","v":"What adjustment factor should be applied? (Typ. 2x for Urban Areas)"},null,null,null,null,{"$f":"IF(LEFT(G32,1)=\"n\",\"\",\"x Normal Rate\")","v":"x Normal Rate"},null,null,null,null,null,null,null,null,null,null,null,null,null,null,null,null,null,null,null,null,"(no formula here b/c font size used to keep at 1 row)"]
[{"$f":"IF(fRowHeight=0,\"Click on the Plus Sign (+) on the left to show the \"&B25&\" Questionnaire\",\"Click on the Minus Sign (-) on the left to hide the \"&B25&\" Questionnaire\")","v":"Click on the Minus Sign (-) on the left to hide the Core Mix #1 Questionnaire"}]
[]
[null,"Core Mix #2",null,null,null,{"$f":"IF(AND(Area_PS2>0,AA40=rAC2_TotalAcres),\"See Area Calculation Worksheet\",\"\")","v":""},null,"Units:",null,null,null,null,null,null,null,null,null,null,null,null,null,null,null,null,null,null,"RH"]
["Core Mix 2","1.",{"$f":"\"Please enter a description of the area receiving \"&rSP_Mix2&\" \n(e.g. Urban, Rural, Project 1, Smith Parcel, National Park Land, etc.)\"","v":"Please enter a description of the area receiving Core Mix #2 \n(e.g. Urban, Rural, Project 1, Smith Parcel, National Park Land, etc.)"},null,null,null,null,null,null,null,null,null,null,null,null,null,null,null,null,null,null,null,null,null,null,null,null,null,{"$f":"C39","v":"Please enter a description of the area receiving Core Mix #2 \n(e.g. Urban, Rural, Project 1, Smith Parcel, National Park Land, etc.)"},null,null,{"$f":"G39","v":0}]
[null,"2a.","How large is the area that will receive regular seed?",null,null,null,null,"ac",{"$f":"IF(H40=\"\",\"Please Select Units!\",IF(OR(AND(LEFT(H40,1)=\"s\",G40>0,G40<50),AND(LEFT(H40,1)=\"a\",G40>500)),\"Please confirm that the correct units are selected\",IF(AA40<>SUM(AA41,AA43),\"Please Check Answers to Questions 2a, 2b, & 2d\",\"\")))","v":""},null,null,null,null,null,null,null,null,null,null,null,null,null,null,null,null,null,{"$f":"fAreaConv_hidden","v":0},null,null,null,{"$f":"C40","v":"How large is the area that will receive regular seed?"}]
[null,"2b.","How much of the area receiving Regular Seed has slopes equal to or flatter than 3:1? (This area is considered the \"Mowed Area\") ",null,null,null,null,"ac",{"$f":"IF(H41=\"\",\"Please Select Units!\",IF(OR(AND(LEFT(H41,1)=\"s\",G41>0,G41<50),AND(LEFT(H41,1)=\"a\",G41>500)),\"Please confirm that the correct units are selected\",\"\"))","v":""},null,null,null,null,null,null,null,null,null,null,null,null,null,null,null,null,null,{"$f":"fAreaConv_hidden","v":0},null,{"$f":"C41","v":"How much of the area receiving Regular Seed has slopes equal to or flatter than 3:1? (This area is considered the \"Mowed Area\") "}]
[null,"2c.","What is the steepest gradient of the area with slopes equal to or flatter than 3:1? (\"Mowed Area\")",null,null,null,null,"Slope (Ratio: 3:1)",{"$f":"IF(H42=\"\",\"Please Select Input Method!\",IF(OR(AND(LEFT(H42,1)=\"s\",OR(G42<1,G42>25)),AND(LEFT(H42,1)=\"G\",G42>50%)),\"Please confirm that the correct entry method is selected\",IF(OR(AND(LEFT(H42,1)=\"s\",G42<3),AND(LEFT(H42,1)=\"G\",G42>33%)),\"The Max. Slope for this area should be FLATTER than 3:1 (33%)\",\"\")))","v":"Please confirm that the correct entry method is selected"},null,null,null,null,null,null,null,null,null,null,null,null,null,null,null,null,null,{"$f":"IF(LEFT(H42,1)=\"g\",1/G42,G42)","v":0},null,"What is the steepest gradient of the area with slopes equal to or flatter than 3:1? (\"Mowed Area\")"]
[null,"2d.","How much of the area receiving Regular Seed has slopes that steeper than 3:1? (This area is considered the \"Non-Mowed Area\")",null,null,null,null,"ac",{"$f":"IF(H43=\"\",\"Please Select Units!\",IF(OR(AND(LEFT(H43,1)=\"s\",G43>0,G43<50),AND(LEFT(H43,1)=\"a\",G43>500)),\"Please confirm that the correct units are selected\",\"\"))","v":""},null,null,null,null,null,null,null,null,null,null,null,null,null,null,null,null,null,{"$f":"fAreaConv_hidden","v":0},null,"How much of the area receiving Regular Seed has slopes that steeper than 3:1? (This area is considered the \"Non-Mowed Area\")"]
[null,"2e.","What is the steepest gradient of the area with slopes steeper than 3:1? (\"Non-Mowed Area\" aka \"Slopes\")",null,null,null,null,"Slope (Ratio: 3:1)",{"$f":"IF(H44=\"\",\"Please Select Input Method!\",IF(OR(AND(LEFT(H44,1)=\"s\",OR(G44<1,G44>25)),AND(LEFT(H44,1)=\"G\",G44>50%)),\"Please confirm that the correct entry method is selected\",IF(OR(AND(LEFT(H44,1)=\"s\",G44>=3),AND(LEFT(H44,1)=\"G\",G44<=33%)),\"The Max. Slope for this area should be STEEPER than 3:1 (33%)\",\"\")))","v":"Please confirm that the correct entry method is selected"},null,null,null,null,null,null,null,null,null,null,null,null,null,null,null,null,null,{"$f":"IF(LEFT(H44,1)=\"g\",1/G44,G44)","v":0},null,"What is the steepest gradient of the area with slopes steeper than 3:1? (\"Non-Mowed Area\" aka \"Slopes\")"]
[null,"3.","Does this area include both Urban and Rural sections?  <OR> Does this area contain sections with an adjusted seed application rate?",null,null,null,null,null,null,null,null,null,null,null,null,null,null,null,null,null,null,null,null,null,null,null,null,null,"Does this area include both Urban and Rural sections?  <OR> Does this area contain sections with an adjusted seed application rate?"]
[null,"3a.",{"$f":"IF(LEFT(G45,1)=\"n\",\"Not Applicable (Leave Blank)\",\"How much of the area with adjusted rates (urban) is mowed? (≤ 3:1)\")","v":"How much of the area with adjusted rates (urban) is mowed? (≤ 3:1)"},null,null,null,null,"ac",{"$f":"IF(AND(LEFT(G45,1)=\"n\",G46>0),\"Please confirm that this area is intended to receive an adjusted seed application rate\",IF(AND(LEFT(G45,1)=\"y\",H46=\"\"),\"Please Select Units!\",IF(OR(AND(LEFT(H46,1)=\"s\",G46>0,G46<50),AND(LEFT(H46,1)=\"a\",G46>500)),\"Please confirm that the correct units are selected\",\"\")))","v":""},null,null,null,null,null,null,null,null,null,null,null,null,null,null,null,null,null,{"$f":"fAreaConv_hidden","v":0},null,"How much of the area with adjusted rates (urban) is mowed? (≤ 3:1)"]
[null,"3b.",{"$f":"IF(LEFT(G45,1)=\"n\",\"Not Applicable (Leave Blank)\",\"How much of the area with adjusted rates is NOT mowed? (> 3:1)\")","v":"How much of the area with adjusted rates is NOT mowed? (> 3:1)"},null,null,null,null,"ac",{"$f":"IF(AND(LEFT(G45,1)=\"n\",G47>0),\"Please confirm that this area is intended to receive an adjusted seed application rate\",IF(AND(LEFT(G45,1)=\"y\",H47=\"\"),\"Please Select Units!\",IF(OR(AND(LEFT(H47,1)=\"s\",G47>0,G47<50),AND(LEFT(H47,1)=\"a\",G47>500)),\"Please confirm that the correct units are selected\",\"\")))","v":""},null,null,null,null,null,null,null,null,null,null,null,null,null,null,null,null,null,{"$f":"fAreaConv_hidden","v":0},null,"How much of the area with adjusted rates is NOT mowed? (> 3:1)"]
[null,"3c.",{"$f":"IF(LEFT(G45,1)=\"n\",\"Not Applicable (Leave Blank)\",\"What adjustment factor should be applied? (Typ. 2x for Urban Areas)\")","v":"What adjustment factor should be applied? (Typ. 2x for Urban Areas)"},null,null,null,null,{"$f":"IF(LEFT(G45,1)=\"n\",\"\",\"x Normal Rate\")","v":"x Normal Rate"},null,null,null,null,null,null,null,null,null,null,null,null,null,null,null,null,null,null,null,null,"(no formula here b/c font size used to keep at 1 row)"]
[{"$f":"IF(fRowHeight=0,\"Click on the Plus Sign (+) on the left to show the \"&B38&\" Questionnaire\",\"Click on the Minus Sign (-) on the left to hide the \"&B38&\" Questionnaire\")","v":"Click on the Plus Sign (+) on the left to show the Core Mix #2 Questionnaire"}]
[]
[null,"Core Mix #3",null,null,null,{"$f":"IF(AND(Area_PS3>0,AA53=rAC3_TotalAcres),\"See Area Calculation Worksheet\",\"\")","v":""},null,"Units:",null,null,null,null,null,null,null,null,null,null,null,null,null,null,null,null,null,null,"RH"]
["Core Mix 3","1.",{"$f":"\"Please enter a description of the area receiving \"&rSP_Mix3&\" \n(e.g. Urban, Rural, Project 1, Smith Parcel, National Park Land, etc.)\"","v":"Please enter a description of the area receiving Core Mix #3 \n(e.g. Urban, Rural, Project 1, Smith Parcel, National Park Land, etc.)"},null,null,null,null,null,null,null,null,null,null,null,null,null,null,null,null,null,null,null,null,null,null,null,null,null,{"$f":"C52","v":"Please enter a description of the area receiving Core Mix #3 \n(e.g. Urban, Rural, Project 1, Smith Parcel, National Park Land, etc.)"},null,null,{"$f":"G52","v":0}]
[null,"2a.","How large is the area that will receive regular seed?",null,null,null,null,"ac",{"$f":"IF(H53=\"\",\"Please Select Units!\",IF(OR(AND(LEFT(H53,1)=\"s\",G53>0,G53<50),AND(LEFT(H53,1)=\"a\",G53>500)),\"Please confirm that the correct units are selected\",IF(AA53<>SUM(AA54,AA56),\"Please Check Answers to Questions 2a, 2b, & 2d\",\"\")))","v":""},null,null,null,null,null,null,null,null,null,null,null,null,null,null,null,null,null,{"$f":"fAreaConv_hidden","v":0},null,null,null,{"$f":"C53","v":"How large is the area that will receive regular seed?"}]
[null,"2b.","How much of the area receiving Regular Seed has slopes equal to or flatter than 3:1? (This area is considered the \"Mowed Area\") ",null,null,null,null,"ac",{"$f":"IF(H54=\"\",\"Please Select Units!\",IF(OR(AND(LEFT(H54,1)=\"s\",G54>0,G54<50),AND(LEFT(H54,1)=\"a\",G54>500)),\"Please confirm that the correct units are selected\",\"\"))","v":""},null,null,null,null,null,null,null,null,null,null,null,null,null,null,null,null,null,{"$f":"fAreaConv_hidden","v":0},null,{"$f":"C54","v":"How much of the area receiving Regular Seed has slopes equal to or flatter than 3:1? (This area is considered the \"Mowed Area\") "}]
[null,"2c.","What is the steepest gradient of the area with slopes equal to or flatter than 3:1? (\"Mowed Area\")",null,null,null,null,"Slope (Ratio: 3:1)",{"$f":"IF(H55=\"\",\"Please Select Input Method!\",IF(OR(AND(LEFT(H55,1)=\"s\",OR(G55<1,G55>25)),AND(LEFT(H55,1)=\"G\",G55>50%)),\"Please confirm that the correct entry method is selected\",IF(OR(AND(LEFT(H55,1)=\"s\",G55<3),AND(LEFT(H55,1)=\"G\",G55>33%)),\"The Max. Slope for this area should be FLATTER than 3:1 (33%)\",\"\")))","v":"Please confirm that the correct entry method is selected"},null,null,null,null,null,null,null,null,null,null,null,null,null,null,null,null,null,{"$f":"IF(LEFT(H55,1)=\"g\",1/G55,G55)","v":0},null,"What is the steepest gradient of the area with slopes equal to or flatter than 3:1? (\"Mowed Area\")"]
[null,"2d.","How much of the area receiving Regular Seed has slopes that steeper than 3:1? (This area is considered the \"Non-Mowed Area\")",null,null,null,null,"ac",{"$f":"IF(H56=\"\",\"Please Select Units!\",IF(OR(AND(LEFT(H56,1)=\"s\",G56>0,G56<50),AND(LEFT(H56,1)=\"a\",G56>500)),\"Please confirm that the correct units are selected\",\"\"))","v":""},null,null,null,null,null,null,null,null,null,null,null,null,null,null,null,null,null,{"$f":"fAreaConv_hidden","v":0},null,"How much of the area receiving Regular Seed has slopes that steeper than 3:1? (This area is considered the \"Non-Mowed Area\")"]
[null,"2e.","What is the steepest gradient of the area with slopes steeper than 3:1? (\"Non-Mowed Area\" aka \"Slopes\")",null,null,null,null,"Slope (Ratio: 3:1)",{"$f":"IF(H57=\"\",\"Please Select Input Method!\",IF(OR(AND(LEFT(H57,1)=\"s\",OR(G57<1,G57>25)),AND(LEFT(H57,1)=\"G\",G57>50%)),\"Please confirm that the correct entry method is selected\",IF(OR(AND(LEFT(H57,1)=\"s\",G57>=3),AND(LEFT(H57,1)=\"G\",G57<=33%)),\"The Max. Slope for this area should be STEEPER than 3:1 (33%)\",\"\")))","v":"Please confirm that the correct entry method is selected"},null,null,null,null,null,null,null,null,null,null,null,null,null,null,null,null,null,{"$f":"IF(LEFT(H57,1)=\"g\",1/G57,G57)","v":0},null,"What is the steepest gradient of the area with slopes steeper than 3:1? (\"Non-Mowed Area\" aka \"Slopes\")"]
[null,"3.","Does this area include both Urban and Rural sections?  <OR> Does this area contain sections with an adjusted seed application rate?",null,null,null,null,null,null,null,null,null,null,null,null,null,null,null,null,null,null,null,null,null,null,null,null,null,"Does this area include both Urban and Rural sections?  <OR> Does this area contain sections with an adjusted seed application rate?"]
[null,"3a.",{"$f":"IF(LEFT(G58,1)=\"n\",\"Not Applicable (Leave Blank)\",\"How much of the area with adjusted rates (urban) is mowed? (≤ 3:1)\")","v":"How much of the area with adjusted rates (urban) is mowed? (≤ 3:1)"},null,null,null,null,"ac",{"$f":"IF(AND(LEFT(G58,1)=\"n\",G59>0),\"Please confirm that this area is intended to receive an adjusted seed application rate\",IF(AND(LEFT(G58,1)=\"y\",H59=\"\"),\"Please Select Units!\",IF(OR(AND(LEFT(H59,1)=\"s\",G59>0,G59<50),AND(LEFT(H59,1)=\"a\",G59>500)),\"Please confirm that the correct units are selected\",\"\")))","v":""},null,null,null,null,null,null,null,null,null,null,null,null,null,null,null,null,null,{"$f":"fAreaConv_hidden","v":0},null,"How much of the area with adjusted rates (urban) is mowed? (≤ 3:1)"]
[null,"3b.",{"$f":"IF(LEFT(G58,1)=\"n\",\"Not Applicable (Leave Blank)\",\"How much of the area with adjusted rates is NOT mowed? (> 3:1)\")","v":"How much of the area with adjusted rates is NOT mowed? (> 3:1)"},null,null,null,null,"ac",{"$f":"IF(AND(LEFT(G58,1)=\"n\",G60>0),\"Please confirm that this area is intended to receive an adjusted seed application rate\",IF(AND(LEFT(G58,1)=\"y\",H60=\"\"),\"Please Select Units!\",IF(OR(AND(LEFT(H60,1)=\"s\",G60>0,G60<50),AND(LEFT(H60,1)=\"a\",G60>500)),\"Please confirm that the correct units are selected\",\"\")))","v":""},null,null,null,null,null,null,null,null,null,null,null,null,null,null,null,null,null,{"$f":"fAreaConv_hidden","v":0},null,"How much of the area with adjusted rates is NOT mowed? (> 3:1)"]
[null,"3c.",{"$f":"IF(LEFT(G58,1)=\"n\",\"Not Applicable (Leave Blank)\",\"What adjustment factor should be applied? (Typ. 2x for Urban Areas)\")","v":"What adjustment factor should be applied? (Typ. 2x for Urban Areas)"},null,null,null,null,{"$f":"IF(LEFT(G58,1)=\"n\",\"\",\"x Normal Rate\")","v":"x Normal Rate"},null,null,null,null,null,null,null,null,null,null,null,null,null,null,null,null,null,null,null,null,"(no formula here b/c font size used to keep at 1 row)"]
[{"$f":"IF(fRowHeight=0,\"Click on the Plus Sign (+) on the left to show the \"&B51&\" Questionnaire\",\"Click on the Minus Sign (-) on the left to hide the \"&B51&\" Questionnaire\")","v":"Click on the Plus Sign (+) on the left to show the Core Mix #3 Questionnaire"}]
[]
[null,{"$f":"IF(rSP_Results=0,\"\",\"Once all yellow fields are filled out, press the green Show Results button to continue…\")","v":"Once all yellow fields are filled out, press the green Show Results button to continue…"}]
[null,"Results:",null,null,null,null,null,null,null,null,null,null,null,null,null,null,null,null,null,null,null,null,null,null,null,null,"RH",{"$f":"IF(AA66=0,\"Show Results\",IF(OR(LEFT(ansFailed,1)=\"y\",AA69>0),\"Custom\",\"Default\"))","v":"Show Results"}]
[null,"1.",{"$f":"\"This project will follow the VDOT Nutrient Management Plan (NMP) for \"&NMPresults","v":"This project will follow the VDOT Nutrient Management Plan (NMP) for Turf Establishment on Construction Projects"},null,null,null,null,null,null,null,null,null,null,null,null,null,null,null,null,null,null,null,null,null,null,null,{"$f":"fRowHeight","v":0},"← if >0, results section is shown.  If 0, prompts user to show results on start page.",null,{"$f":"C66","v":"This project will follow the VDOT Nutrient Management Plan (NMP) for Turf Establishment on Construction Projects"}]
[null,"2.",{"$f":"IF(LEFT(ansFailed,1)=\"y\", \"Please enter your soil test results on the Fertilizer & Lime Worksheets to determine the type and application rate of fertilizer(s) to use as well as how much lime to apply.\",\"This project may use the default rates of Fertilizer and Lime listed below:\")","v":"This project may use the default rates of Fertilizer and Lime listed below:"},null,null,null,null,null,null,null,null,null,null,null,null,null,null,null,null,null,null,null,null,null,null,null,null,null,null,{"$f":"C67","v":"This project may use the default rates of Fertilizer and Lime listed below:"}]
[null,"2.","Although this project qualifies for use of the default application rates for Fertilizer and Lime, \nthe user has opted to analyze soil samples and adjust the rates accordingly.\nPlease see Lab Analysis Summary for the adjusted application rates.",null,null,null,null,null,null,null,null,null,null,null,null,null,null,null,null,null,null,null,null,null,null,null,{"$f":"fRowHeight","v":0},"← if 0, either User has opted to analyze soil samples rather than use default rates OR Results Section is not shown",null,{"$f":"C68","v":"Although this project qualifies for use of the default application rates for Fertilizer and Lime, \nthe user has opted to analyze soil samples and adjust the rates accordingly.\nPlease see Lab Analysis Summary for the adjusted application rates."}]
[null,"Fertilizer(s):",null,null,null,null,null,null,null,null,null,null,null,null,null,null,null,null,null,null,null,null,null,null,null,null,{"$f":"fRowHeight","v":0},"← if 0, Fertilizer/Lime rates based on ansFailed"]
[null,null,"Temporary Seed: ",{"$f":"IF(NMPresults=\"Roadside Management\",\"150 lbs. per acre (3.4 lbs. per 1,000 SF) of 10-10-10\",\"125 lbs. per acre (2.9 lbs per 1,000 SF) of 15-30-15\")","v":"125 lbs. per acre (2.9 lbs per 1,000 SF) of 15-30-15"}]
[null,null,"Regular Seed: ",{"$f":"IF(NMPresults=\"Roadside Management\",\"300 lbs. per acre (6.9 lbs. per 1,000 SF) of 10-10-10\",\"250 lbs. per acre (5.7 lbs. per 1,000 SF) of 15-30-15\")","v":"250 lbs. per acre (5.7 lbs. per 1,000 SF) of 15-30-15"}]
[null,null,"Overseeding: ","65 lbs. per acre (1.5 lbs. per 1,000 SF) of 46-0-0"]
[null,"Lime:"]
[null,null,"Temporary Seed: ","1 Ton per Acre of Agricultural Lime"]
[null,null,"Regular Seed: ",{"$f":"IF(NMPresults=\"Roadside Management\",\"1 Ton per Acre of Agricultural Lime\",\"2 Tons per Acre of Agricultural Lime\")","v":"2 Tons per Acre of Agricultural Lime"}]
[null,null,"Overseeding: ","1 Ton per Acre of Agricultural Lime"]
[]
[null,"BUTTONS FOR \nVDOT USE ONLY:"]

{"sheet":"Area Calc 1","index":4,"n_rows":60,"n_cols":15,"rows_kept":60,"cut":false,"hidden":true,"merged":[[58,2,58,3],[59,2,59,3],[56,2,56,3],[57,2,57,3],[32,1,40,1],[42,1,50,1],[52,2,52,3],[53,2,53,3],[54,2,54,3],[55,2,55,3],[39,2,39,5],[49,2,49,5],[40,4,40,6],[50,4,50,6],[22,1,30,1],[0,2,0,3],[0,10,0,15],[2,1,10,1],[3,10,3,14],[12,1,20,1],[9,2,9,5],[19,2,19,5],[29,2,29,5],[10,4,10,6],[20,4,20,6],[30,4,30,6]]}
[null,null,"Use Yellow Fields to\nCalculate the Seeded Area\nfor Each Core-Mix:",null,"foot (feet)",null,null,null,null,null,"WARNING: Pressing the Clear Entries Button\n can NOT be undone! Press it only if you intend to delete ALL input on this worksheet."]
[null,"Core Mix #1: ",null,{"$f":"IF(ISBLANK('Start Page'!G26),\"\",'Start Page'!G26)","v":""}]
[null,"Area 1","Measurement","Value","Units","Conv. Factor","Value in ft"]
[null,null,"Length",null,null,{"$f":"IF(E4=\"\",\"\",VLOOKUP(E4,conv_Table,3,FALSE))","v":""},{"$f":"IF(COUNTA(D4:E4)=2,D4*F4,\"\")","v":""},null,null,null,"Conversion Factors"]
[null,null,"Width",null,null,{"$f":"IF(E5=\"\",\"\",VLOOKUP(E5,conv_Table,3,FALSE))","v":""},{"$f":"IF(COUNTA(D5:E5)=2,D5*F5,\"\")","v":""},null,null,null,null,null,"Units of Length/Width"]
[null,null,null,null,"OR",null,null,null,null,null,1,"foot (feet)",null,1,"foot"]
[null,null,"Area",null,null,{"$f":"IF(E7=\"\",\"\",VLOOKUP(E7,conv_Table,3,FALSE))","v":""},{"$f":"IF(COUNTA(D7:E7)=2,D7*F7,\"\")","v":""},null,null,null,1,"mile(s)","=",5280,"feet"]
[null,null,null,null,"AND",null,null,null,null,null,1,"kilometer(s)","=",3280.84,"feet"]
[null,null,"Multiplier",1,null,null,null,null,null,null,1,"meter(s)","=",3.28084,"feet"]
[null,null,"Is the slope of this area steeper than 3:1 (33.3% grade)?",null,null,null,null,null,null,null,1,"yard(s)","=",3,"feet"]
[null,null,"Area 1 Total:",{"$f":"IF(AND(COUNTA(D4:D5)>0,COUNTA(D7)>0),\"Please enter either length & width or area, not both.\",IF(D7<>\"\",IF(E7=\"\",\"Please select units.\",D7*F7*D9),IF(COUNTA(E4:E5)<2,\"Please select units.\",(D4*F4)*(D5*F5)*D9)))","v":"Please select units."},{"$f":"IF(LEFT(G10,1)=\"Y\",\"Non-Mow Area\",IF(LEFT(G10,1)=\"N\",\"Mow Area\",\"Please answer question about slopes\"))","v":"Please answer question about slopes"}]
[null,null,null,null,"foot (feet)"]
[null,"Area 2","Measurement","Value","Units","Conv. Factor","Value in ft",null,null,null,null,null,"Units of Area"]
[null,null,"Length",null,null,{"$f":"IF(E14=\"\",\"\",VLOOKUP(E14,conv_Table,3,FALSE))","v":""},{"$f":"IF(COUNTA(D14:E14)=2,D14*F14,\"\")","v":""},null,null,null,1,"sq. ft.","=",1,"sq. ft."]
[null,null,"Width",null,null,{"$f":"IF(E15=\"\",\"\",VLOOKUP(E15,conv_Table,3,FALSE))","v":""},{"$f":"IF(COUNTA(D15:E15)=2,D15*F15,\"\")","v":""},null,null,null,1,"acre(s)","=",43560,"sq. ft."]
[null,null,null,null,"OR",null,null,null,null,null,1,"hectare(s)","=",{"$f":"N17/100","v":107639.11105600001},"sq. ft."]
[null,null,"Area",null,null,{"$f":"IF(E17=\"\",\"\",VLOOKUP(E17,conv_Table,3,FALSE))","v":""},{"$f":"IF(COUNTA(D17:E17)=2,D17*F17,\"\")","v":""},null,null,null,1,"sq. kilometer(s)","=",{"$f":"N8^2","v":10763911.105600001},"sq. ft."]
[null,null,null,null,"AND",null,null,null,null,null,1,"sq. meter(s)","=",{"$f":"N9^2","v":10.7639111056},"sq. ft."]
[null,null,"Multiplier",1,null,null,null,null,null,null,1,"sq. mile(s)","=",{"$f":"N7^2","v":27878400},"sq. ft."]
[null,null,"Is the slope of this area steeper than 3:1 (33.3% grade)?",null,null,null,null,null,null,null,1,"sq. yard(s)","=",9,"sq. ft."]
[null,null,"Area 2 Total:",{"$f":"IF(AND(COUNTA(D14:D15)>0,COUNTA(D17)>0),\"Please enter either length & width or area, not both.\",IF(D17<>\"\",IF(E17=\"\",\"Please select units.\",D17*F17*D19),IF(COUNTA(E14:E15)<2,\"Please select units.\",(D14*F14)*(D15*F15)*D19)))","v":"Please select units."},{"$f":"IF(LEFT(G20,1)=\"Y\",\"Non-Mow Area\",IF(LEFT(G20,1)=\"N\",\"Mow Area\",\"Please answer question about slopes\"))","v":"Please answer question about slopes"}]
[null,null,null,null,"foot (feet)"]
[null,"Area 3","Measurement","Value","Units","Conv. Factor","Value in ft"]
[null,null,"Length",null,null,{"$f":"IF(E24=\"\",\"\",VLOOKUP(E24,conv_Table,3,FALSE))","v":""},{"$f":"IF(COUNTA(D24:E24)=2,D24*F24,\"\")","v":""}]
[null,null,"Width",null,null,{"$f":"IF(E25=\"\",\"\",VLOOKUP(E25,conv_Table,3,FALSE))","v":""},{"$f":"IF(COUNTA(D25:E25)=2,D25*F25,\"\")","v":""}]
[null,null,null,null,"OR"]
[null,null,"Area",null,null,{"$f":"IF(E27=\"\",\"\",VLOOKUP(E27,conv_Table,3,FALSE))","v":""},{"$f":"IF(COUNTA(D27:E27)=2,D27*F27,\"\")","v":""}]
[null,null,null,null,"AND"]
[null,null,"Multiplier",1]
[null,null,"Is the slope of this area steeper than 3:1 (33.3% grade)?"]
[null,null,"Area 3 Total:",{"$f":"IF(AND(COUNTA(D24:D25)>0,COUNTA(D27)>0),\"Please enter either length & width or area, not both.\",IF(D27<>\"\",IF(E27=\"\",\"Please select units.\",D27*F27*D29),IF(COUNTA(E24:E25)<2,\"Please select units.\",(D24*F24)*(D25*F25)*D29)))","v":"Please select units."},{"$f":"IF(LEFT(G30,1)=\"Y\",\"Non-Mow Area\",IF(LEFT(G30,1)=\"N\",\"Mow Area\",\"Please answer question about slopes\"))","v":"Please answer question about slopes"}]
[null,null,null,null,"foot (feet)"]
[null,"Area 4","Measurement","Value","Units","Conv. Factor","Value in ft"]
[null,null,"Length",null,null,{"$f":"IF(E34=\"\",\"\",VLOOKUP(E34,conv_Table,3,FALSE))","v":""},{"$f":"IF(COUNTA(D34:E34)=2,D34*F34,\"\")","v":""}]
[null,null,"Width",null,null,{"$f":"IF(E35=\"\",\"\",VLOOKUP(E35,conv_Table,3,FALSE))","v":""},{"$f":"IF(COUNTA(D35:E35)=2,D35*F35,\"\")","v":""}]
[null,null,null,null,"OR"]
[null,null,"Area",null,null,{"$f":"IF(E37=\"\",\"\",VLOOKUP(E37,conv_Table,3,FALSE))","v":""},{"$f":"IF(COUNTA(D37:E37)=2,D37*F37,\"\")","v":""}]
[null,null,null,null,"AND"]
[null,null,"Multiplier",1]
[null,null,"Is the slope of this area steeper than 3:1 (33.3% grade)?"]
[null,null,"Area 4 Total:",{"$f":"IF(AND(COUNTA(D34:D35)>0,COUNTA(D37)>0),\"Please enter either length & width or area, not both.\",IF(D37<>\"\",IF(E37=\"\",\"Please select units.\",D37*F37*D39),IF(COUNTA(E34:E35)<2,\"Please select units.\",(D34*F34)*(D35*F35)*D39)))","v":"Please select units."},{"$f":"IF(LEFT(G40,1)=\"Y\",\"Non-Mow Area\",IF(LEFT(G40,1)=\"N\",\"Mow Area\",\"Please answer question about slopes\"))","v":"Please answer question about slopes"}]
[null,null,null,null,"foot (feet)"]
[null,"Area 5","Measurement","Value","Units","Conv. Factor","Value in ft"]
[null,null,"Length",null,null,{"$f":"IF(E44=\"\",\"\",VLOOKUP(E44,conv_Table,3,FALSE))","v":""},{"$f":"IF(COUNTA(D44:E44)=2,D44*F44,\"\")","v":""}]
[null,null,"Width",null,null,{"$f":"IF(E45=\"\",\"\",VLOOKUP(E45,conv_Table,3,FALSE))","v":""},{"$f":"IF(COUNTA(D45:E45)=2,D45*F45,\"\")","v":""}]
[null,null,null,null,"OR"]
[null,null,"Area",null,null,{"$f":"IF(E47=\"\",\"\",VLOOKUP(E47,conv_Table,3,FALSE))","v":""},{"$f":"IF(COUNTA(D47:E47)=2,D47*F47,\"\")","v":""}]
[null,null,null,null,"AND"]
[null,null,"Multiplier",1]
[null,null,"Is the slope of this area steeper than 3:1 (33.3% grade)?"]
[null,null,"Area 5 Total:",{"$f":"IF(AND(COUNTA(D44:D45)>0,COUNTA(D47)>0),\"Please enter either length & width or area, not both.\",IF(D47<>\"\",IF(E47=\"\",\"Please select units.\",D47*F47*D49),IF(COUNTA(E44:E45)<2,\"Please select units.\",(D44*F44)*(D45*F45)*D49)))","v":"Please select units."},{"$f":"IF(LEFT(G50,1)=\"Y\",\"Non-Mow Area\",IF(LEFT(G50,1)=\"N\",\"Mow Area\",\"Please answer question about slopes\"))","v":"Please answer question about slopes"}]
[]
[null,null,"Area 1 Total:",null,{"$f":"IF(ISNUMBER(D11),D11,IF(SUM(D4:D7)>0,\"Check Entry\",0))","v":0},{"$f":"IF(ISNUMBER(E53),ROUND(E53/43560,2),\"Check Entry\")","v":0},{"$f":"IF(F53>0,IF(LEFT(G10,1)=\"Y\",\"Non-Mow Area\",IF(LEFT(G10,1)=\"N\",\"Mow Area\",\"Check slopes\")),\"\")","v":""}]
[null,null,"Area 2 Total:",null,{"$f":"IF(ISNUMBER(D21),D21,IF(SUM(D14:D17)>0,\"Check Entry\",0))","v":0},{"$f":"IF(ISNUMBER(E54),ROUND(E54/43560,2),\"Check Entry\")","v":0},{"$f":"IF(E54>0,IF(LEFT(G20,1)=\"Y\",\"Non-Mow Area\",IF(LEFT(G20,1)=\"N\",\"Mow Area\",\"Check slopes\")),\"\")","v":""}]
[null,null,"Area 3 Total:",null,{"$f":"IF(ISNUMBER(D31),D31,IF(SUM(D24:D27)>0,\"Check Entry\",0))","v":0},{"$f":"IF(ISNUMBER(E55),ROUND(E55/43560,2),\"Check Entry\")","v":0},{"$f":"IF(E55>0,IF(LEFT(G30,1)=\"Y\",\"Non-Mow Area\",IF(LEFT(G30,1)=\"N\",\"Mow Area\",\"Check slopes\")),\"\")","v":""}]
[null,null,"Area 4 Total:",null,{"$f":"IF(ISNUMBER(D41),D41,IF(SUM(D34:D37)>0,\"Check Entry\",0))","v":0},{"$f":"IF(ISNUMBER(E56),ROUND(E56/43560,2),\"Check Entry\")","v":0},{"$f":"IF(E56>0,IF(LEFT(G40,1)=\"Y\",\"Non-Mow Area\",IF(LEFT(G40,1)=\"N\",\"Mow Area\",\"Check slopes\")),\"\")","v":""}]
[null,null,"Area 5 Total:",null,{"$f":"IF(ISNUMBER(D51),D51,IF(SUM(D44:D47)>0,\"Check Entry\",0))","v":0},{"$f":"IF(ISNUMBER(E57),ROUND(E57/43560,2),\"Check Entry\")","v":0},{"$f":"IF(E57>0,IF(LEFT(G50,1)=\"Y\",\"Non-Mow Area\",IF(LEFT(G50,1)=\"N\",\"Mow Area\",\"Check slopes\")),\"\")","v":""}]
[null,null,"Total Area Calculated:",null,{"$f":"IF(COUNTIF(E53:E57,\"Check Entry\")>0,\"Check Entries\",SUM(E53:E57))","v":0},{"$f":"IF(COUNTIF(F53:F57,\"Check Entry\")>0,\"Check Entries\",SUM(F53:F57))","v":0}]
[null,null,"Total Mow Area:",null,{"$f":"IF(COUNTIF(E53:E57,\"Check Entry\")>0,\"Check Entries\",IF(COUNTIF(G53:G57,\"Check Slopes\")>0,\"Check Slopes\",SUMIF(G53:G57,\"Mow Area\",E53:E57)))","v":0},{"$f":"IF(COUNTIF(F53:F57,\"Check Entry\")>0,\"Check Entries\",IF(COUNTIF(G53:G57,\"Check Slopes\")>0,\"Check Slopes\",SUMIF(G53:G57,\"Mow Area\",F53:F57)))","v":0}]
[null,null,"Total Non-Mow Area:",null,{"$f":"IF(COUNTIF(E53:E57,\"Check Entry\")>0,\"Check Entries\",IF(COUNTIF(G53:G57,\"Check Slopes\")>0,\"Check Slopes\",SUMIF(G53:G57,\"Non-Mow Area\",E53:E57)))","v":0},{"$f":"IF(COUNTIF(F53:F57,\"Check Entry\")>0,\"Check Entries\",IF(COUNTIF(G53:G57,\"Check Slopes\")>0,\"Check Slopes\",SUMIF(G53:G57,\"Non-Mow Area\",F53:F57)))","v":0}]

{"sheet":"Area Calc 2","index":5,"n_rows":60,"n_cols":15,"rows_kept":60,"cut":false,"hidden":true,"merged":[[12,1,20,1],[19,2,19,5],[0,2,0,3],[0,10,0,15],[2,1,10,1],[3,10,3,14],[9,2,9,5],[20,4,20,6],[10,4,10,6],[22,1,30,1],[29,2,29,5],[32,1,40,1],[39,2,39,5],[42,1,50,1],[49,2,49,5],[50,4,50,6],[40,4,40,6],[30,4,30,6],[58,2,58,3],[59,2,59,3],[52,2,52,3],[53,2,53,3],[54,2,54,3],[55,2,55,3],[56,2,56,3],[57,2,57,3]]}
[null,null,"Use Yellow Fields to\nCalculate the Seeded Area\nfor Each Core-Mix:",null,"foot (feet)",null,null,null,null,null,"WARNING: Pressing the Clear Entries Button\n can NOT be undone! Press it only if you intend to delete ALL input on this worksheet."]
[null,"Core Mix #2: ",null,{"$f":"IF(ISBLANK('Start Page'!G39),\"\",'Start Page'!G39)","v":""}]
[null,"Area 1","Measurement","Value","Units","Conv. Factor","Value in ft"]
[null,null,"Length",null,null,{"$f":"IF(E4=\"\",\"\",VLOOKUP(E4,conv_Table,3,FALSE))","v":""},{"$f":"IF(COUNTA(D4:E4)=2,D4*F4,\"\")","v":""},null,null,null,"Conversion Factors"]
[null,null,"Width",null,null,{"$f":"IF(E5=\"\",\"\",VLOOKUP(E5,conv_Table,3,FALSE))","v":""},{"$f":"IF(COUNTA(D5:E5)=2,D5*F5,\"\")","v":""},null,null,null,null,null,"Units of Length/Width"]
[null,null,null,null,"OR",null,null,null,null,null,1,"foot (feet)",null,1,"foot"]
[null,null,"Area",null,null,{"$f":"IF(E7=\"\",\"\",VLOOKUP(E7,conv_Table,3,FALSE))","v":""},{"$f":"IF(COUNTA(D7:E7)=2,D7*F7,\"\")","v":""},null,null,null,1,"mile(s)","=",5280,"feet"]
[null,null,null,null,"AND",null,null,null,null,null,1,"kilometer(s)","=",3280.84,"feet"]
[null,null,"Multiplier",1,null,null,null,null,null,null,1,"meter(s)","=",3.28084,"feet"]
[null,null,"Is the slope of this area steeper than 3:1 (33.3% grade)?",null,null,null,null,null,null,null,1,"yard(s)","=",3,"feet"]
[null,null,"Area 1 Total:",{"$f":"IF(AND(COUNTA(D4:D5)>0,COUNTA(D7)>0),\"Please enter either length & width or area, not both.\",IF(D7<>\"\",IF(E7=\"\",\"Please select units.\",D7*F7*D9),IF(COUNTA(E4:E5)<2,\"Please select units.\",(D4*F4)*(D5*F5)*D9)))","v":"Please select units."},{"$f":"IF(LEFT(G10,1)=\"Y\",\"Non-Mow Area\",IF(LEFT(G10,1)=\"N\",\"Mow Area\",\"Please answer question about slopes\"))","v":"Please answer question about slopes"}]
[null,null,null,null,"foot (feet)"]
[null,"Area 2","Measurement","Value","Units","Conv. Factor","Value in ft",null,null,null,null,null,"Units of Area"]
[null,null,"Length",null,null,{"$f":"IF(E14=\"\",\"\",VLOOKUP(E14,conv_Table,3,FALSE))","v":""},{"$f":"IF(COUNTA(D14:E14)=2,D14*F14,\"\")","v":""},null,null,null,1,"sq. ft.","=",1,"sq. ft."]
[null,null,"Width",null,null,{"$f":"IF(E15=\"\",\"\",VLOOKUP(E15,conv_Table,3,FALSE))","v":""},{"$f":"IF(COUNTA(D15:E15)=2,D15*F15,\"\")","v":""},null,null,null,1,"acre(s)","=",43560,"sq. ft."]
[null,null,null,null,"OR",null,null,null,null,null,1,"hectare(s)","=",{"$f":"N17/100","v":107639.11105600001},"sq. ft."]
[null,null,"Area",null,null,{"$f":"IF(E17=\"\",\"\",VLOOKUP(E17,conv_Table,3,FALSE))","v":""},{"$f":"IF(COUNTA(D17:E17)=2,D17*F17,\"\")","v":""},null,null,null,1,"sq. kilometer(s)","=",{"$f":"N8^2","v":10763911.105600001},"sq. ft."]
[null,null,null,null,"AND",null,null,null,null,null,1,"sq. meter(s)","=",{"$f":"N9^2","v":10.7639111056},"sq. ft."]
[null,null,"Multiplier",1,null,null,null,null,null,null,1,"sq. mile(s)","=",{"$f":"N7^2","v":27878400},"sq. ft."]
[null,null,"Is the slope of this area steeper than 3:1 (33.3% grade)?",null,null,null,null,null,null,null,1,"sq. yard(s)","=",9,"sq. ft."]
[null,null,"Area 2 Total:",{"$f":"IF(AND(COUNTA(D14:D15)>0,COUNTA(D17)>0),\"Please enter either length & width or area, not both.\",IF(D17<>\"\",IF(E17=\"\",\"Please select units.\",D17*F17*D19),IF(COUNTA(E14:E15)<2,\"Please select units.\",(D14*F14)*(D15*F15)*D19)))","v":"Please select units."},{"$f":"IF(LEFT(G20,1)=\"Y\",\"Non-Mow Area\",IF(LEFT(G20,1)=\"N\",\"Mow Area\",\"Please answer question about slopes\"))","v":"Please answer question about slopes"}]
[null,null,null,null,"foot (feet)"]
[null,"Area 3","Measurement","Value","Units","Conv. Factor","Value in ft"]
[null,null,"Length",null,null,{"$f":"IF(E24=\"\",\"\",VLOOKUP(E24,conv_Table,3,FALSE))","v":""},{"$f":"IF(COUNTA(D24:E24)=2,D24*F24,\"\")","v":""}]
[null,null,"Width",null,null,{"$f":"IF(E25=\"\",\"\",VLOOKUP(E25,conv_Table,3,FALSE))","v":""},{"$f":"IF(COUNTA(D25:E25)=2,D25*F25,\"\")","v":""}]
[null,null,null,null,"OR"]
[null,null,"Area",null,null,{"$f":"IF(E27=\"\",\"\",VLOOKUP(E27,conv_Table,3,FALSE))","v":""},{"$f":"IF(COUNTA(D27:E27)=2,D27*F27,\"\")","v":""}]
[null,null,null,null,"AND"]
[null,null,"Multiplier",1]
[null,null,"Is the slope of this area steeper than 3:1 (33.3% grade)?"]
[null,null,"Area 3 Total:",{"$f":"IF(AND(COUNTA(D24:D25)>0,COUNTA(D27)>0),\"Please enter either length & width or area, not both.\",IF(D27<>\"\",IF(E27=\"\",\"Please select units.\",D27*F27*D29),IF(COUNTA(E24:E25)<2,\"Please select units.\",(D24*F24)*(D25*F25)*D29)))","v":"Please select units."},{"$f":"IF(LEFT(G30,1)=\"Y\",\"Non-Mow Area\",IF(LEFT(G30,1)=\"N\",\"Mow Area\",\"Please answer question about slopes\"))","v":"Please answer question about slopes"}]
[null,null,null,null,"foot (feet)"]
[null,"Area 4","Measurement","Value","Units","Conv. Factor","Value in ft"]
[null,null,"Length",null,null,{"$f":"IF(E34=\"\",\"\",VLOOKUP(E34,conv_Table,3,FALSE))","v":""},{"$f":"IF(COUNTA(D34:E34)=2,D34*F34,\"\")","v":""}]
[null,null,"Width",null,null,{"$f":"IF(E35=\"\",\"\",VLOOKUP(E35,conv_Table,3,FALSE))","v":""},{"$f":"IF(COUNTA(D35:E35)=2,D35*F35,\"\")","v":""}]
[null,null,null,null,"OR"]
[null,null,"Area",null,null,{"$f":"IF(E37=\"\",\"\",VLOOKUP(E37,conv_Table,3,FALSE))","v":""},{"$f":"IF(COUNTA(D37:E37)=2,D37*F37,\"\")","v":""}]
[null,null,null,null,"AND"]
[null,null,"Multiplier",1]
[null,null,"Is the slope of this area steeper than 3:1 (33.3% grade)?"]
[null,null,"Area 4 Total:",{"$f":"IF(AND(COUNTA(D34:D35)>0,COUNTA(D37)>0),\"Please enter either length & width or area, not both.\",IF(D37<>\"\",IF(E37=\"\",\"Please select units.\",D37*F37*D39),IF(COUNTA(E34:E35)<2,\"Please select units.\",(D34*F34)*(D35*F35)*D39)))","v":"Please select units."},{"$f":"IF(LEFT(G40,1)=\"Y\",\"Non-Mow Area\",IF(LEFT(G40,1)=\"N\",\"Mow Area\",\"Please answer question about slopes\"))","v":"Please answer question about slopes"}]
[null,null,null,null,"foot (feet)"]
[null,"Area 5","Measurement","Value","Units","Conv. Factor","Value in ft"]
[null,null,"Length",null,null,{"$f":"IF(E44=\"\",\"\",VLOOKUP(E44,conv_Table,3,FALSE))","v":""},{"$f":"IF(COUNTA(D44:E44)=2,D44*F44,\"\")","v":""}]
[null,null,"Width",null,null,{"$f":"IF(E45=\"\",\"\",VLOOKUP(E45,conv_Table,3,FALSE))","v":""},{"$f":"IF(COUNTA(D45:E45)=2,D45*F45,\"\")","v":""}]
[null,null,null,null,"OR"]
[null,null,"Area",null,null,{"$f":"IF(E47=\"\",\"\",VLOOKUP(E47,conv_Table,3,FALSE))","v":""},{"$f":"IF(COUNTA(D47:E47)=2,D47*F47,\"\")","v":""}]
[null,null,null,null,"AND"]
[null,null,"Multiplier",1]
[null,null,"Is the slope of this area steeper than 3:1 (33.3% grade)?"]
[null,null,"Area 5 Total:",{"$f":"IF(AND(COUNTA(D44:D45)>0,COUNTA(D47)>0),\"Please enter either length & width or area, not both.\",IF(D47<>\"\",IF(E47=\"\",\"Please select units.\",D47*F47*D49),IF(COUNTA(E44:E45)<2,\"Please select units.\",(D44*F44)*(D45*F45)*D49)))","v":"Please select units."},{"$f":"IF(LEFT(G50,1)=\"Y\",\"Non-Mow Area\",IF(LEFT(G50,1)=\"N\",\"Mow Area\",\"Please answer question about slopes\"))","v":"Please answer question about slopes"}]
[]
[null,null,"Area 1 Total:",null,{"$f":"IF(ISNUMBER(D11),D11,IF(SUM(D4:D7)>0,\"Check Entry\",0))","v":0},{"$f":"IF(ISNUMBER(E53),ROUND(E53/43560,2),\"Check Entry\")","v":0},{"$f":"IF(F53>0,IF(LEFT(G10,1)=\"Y\",\"Non-Mow Area\",IF(LEFT(G10,1)=\"N\",\"Mow Area\",\"Check slopes\")),\"\")","v":""}]
[null,null,"Area 2 Total:",null,{"$f":"IF(ISNUMBER(D21),D21,IF(SUM(D14:D17)>0,\"Check Entry\",0))","v":0},{"$f":"IF(ISNUMBER(E54),ROUND(E54/43560,2),\"Check Entry\")","v":0},{"$f":"IF(E54>0,IF(LEFT(G20,1)=\"Y\",\"Non-Mow Area\",IF(LEFT(G20,1)=\"N\",\"Mow Area\",\"Check slopes\")),\"\")","v":""}]
[null,null,"Area 3 Total:",null,{"$f":"IF(ISNUMBER(D31),D31,IF(SUM(D24:D27)>0,\"Check Entry\",0))","v":0},{"$f":"IF(ISNUMBER(E55),ROUND(E55/43560,2),\"Check Entry\")","v":0},{"$f":"IF(E55>0,IF(LEFT(G30,1)=\"Y\",\"Non-Mow Area\",IF(LEFT(G30,1)=\"N\",\"Mow Area\",\"Check slopes\")),\"\")","v":""}]
[null,null,"Area 4 Total:",null,{"$f":"IF(ISNUMBER(D41),D41,IF(SUM(D34:D37)>0,\"Check Entry\",0))","v":0},{"$f":"IF(ISNUMBER(E56),ROUND(E56/43560,2),\"Check Entry\")","v":0},{"$f":"IF(E56>0,IF(LEFT(G40,1)=\"Y\",\"Non-Mow Area\",IF(LEFT(G40,1)=\"N\",\"Mow Area\",\"Check slopes\")),\"\")","v":""}]
[null,null,"Area 5 Total:",null,{"$f":"IF(ISNUMBER(D51),D51,IF(SUM(D44:D47)>0,\"Check Entry\",0))","v":0},{"$f":"IF(ISNUMBER(E57),ROUND(E57/43560,2),\"Check Entry\")","v":0},{"$f":"IF(E57>0,IF(LEFT(G50,1)=\"Y\",\"Non-Mow Area\",IF(LEFT(G50,1)=\"N\",\"Mow Area\",\"Check slopes\")),\"\")","v":""}]
[null,null,"Total Area Calculated:",null,{"$f":"IF(COUNTIF(E53:E57,\"Check Entry\")>0,\"Check Entries\",SUM(E53:E57))","v":0},{"$f":"IF(COUNTIF(F53:F57,\"Check Entry\")>0,\"Check Entries\",SUM(F53:F57))","v":0}]
[null,null,"Total Mow Area:",null,{"$f":"IF(COUNTIF(E53:E57,\"Check Entry\")>0,\"Check Entries\",IF(COUNTIF(G53:G57,\"Check Slopes\")>0,\"Check Slopes\",SUMIF(G53:G57,\"Mow Area\",E53:E57)))","v":0},{"$f":"IF(COUNTIF(F53:F57,\"Check Entry\")>0,\"Check Entries\",IF(COUNTIF(G53:G57,\"Check Slopes\")>0,\"Check Slopes\",SUMIF(G53:G57,\"Mow Area\",F53:F57)))","v":0}]
[null,null,"Total Non-Mow Area:",null,{"$f":"IF(COUNTIF(E53:E57,\"Check Entry\")>0,\"Check Entries\",IF(COUNTIF(G53:G57,\"Check Slopes\")>0,\"Check Slopes\",SUMIF(G53:G57,\"Non-Mow Area\",E53:E57)))","v":0},{"$f":"IF(COUNTIF(F53:F57,\"Check Entry\")>0,\"Check Entries\",IF(COUNTIF(G53:G57,\"Check Slopes\")>0,\"Check Slopes\",SUMIF(G53:G57,\"Non-Mow Area\",F53:F57)))","v":0}]

{"sheet":"Area Calc 3","index":6,"n_rows":60,"n_cols":15,"rows_kept":60,"cut":false,"hidden":true,"merged":[[12,1,20,1],[19,2,19,5],[0,2,0,3],[0,10,0,15],[2,1,10,1],[3,10,3,14],[9,2,9,5],[10,4,10,6],[20,4,20,6],[22,1,30,1],[29,2,29,5],[32,1,40,1],[39,2,39,5],[42,1,50,1],[49,2,49,5],[30,4,30,6],[40,4,40,6],[50,4,50,6],[58,2,58,3],[59,2,59,3],[52,2,52,3],[53,2,53,3],[54,2,54,3],[55,2,55,3],[56,2,56,3],[57,2,57,3]]}
[null,null,"Use Yellow Fields to\nCalculate the Seeded Area\nfor Each Core-Mix:",null,"foot (feet)",null,null,null,null,null,"WARNING: Pressing the Clear Entries Button\n can NOT be undone! Press it only if you intend to delete ALL input on this worksheet."]
[null,"Core Mix #3: ",null,{"$f":"IF(ISBLANK('Start Page'!G52),\"\",'Start Page'!G52)","v":""}]
[null,"Area 1","Measurement","Value","Units","Conv. Factor","Value in ft"]
[null,null,"Length",null,null,{"$f":"IF(E4=\"\",\"\",VLOOKUP(E4,conv_Table,3,FALSE))","v":""},{"$f":"IF(COUNTA(D4:E4)=2,D4*F4,\"\")","v":""},null,null,null,"Conversion Factors"]
[null,null,"Width",null,null,{"$f":"IF(E5=\"\",\"\",VLOOKUP(E5,conv_Table,3,FALSE))","v":""},{"$f":"IF(COUNTA(D5:E5)=2,D5*F5,\"\")","v":""},null,null,null,null,null,"Units of Length/Width"]
[null,null,null,null,"OR",null,null,null,null,null,1,"foot (feet)",null,1,"foot"]
[null,null,"Area",null,null,{"$f":"IF(E7=\"\",\"\",VLOOKUP(E7,conv_Table,3,FALSE))","v":""},{"$f":"IF(COUNTA(D7:E7)=2,D7*F7,\"\")","v":""},null,null,null,1,"mile(s)","=",5280,"feet"]
[null,null,null,null,"AND",null,null,null,null,null,1,"kilometer(s)","=",3280.84,"feet"]
[null,null,"Multiplier",1,null,null,null,null,null,null,1,"meter(s)","=",3.28084,"feet"]
[null,null,"Is the slope of this area steeper than 3:1 (33.3% grade)?",null,null,null,null,null,null,null,1,"yard(s)","=",3,"feet"]
[null,null,"Area 1 Total:",{"$f":"IF(AND(COUNTA(D4:D5)>0,COUNTA(D7)>0),\"Please enter either length & width or area, not both.\",IF(D7<>\"\",IF(E7=\"\",\"Please select units.\",D7*F7*D9),IF(COUNTA(E4:E5)<2,\"Please select units.\",(D4*F4)*(D5*F5)*D9)))","v":"Please select units."},{"$f":"IF(LEFT(G10,1)=\"Y\",\"Non-Mow Area\",IF(LEFT(G10,1)=\"N\",\"Mow Area\",\"Please answer question about slopes\"))","v":"Please answer question about slopes"}]
[null,null,null,null,"foot (feet)"]
[null,"Area 2","Measurement","Value","Units","Conv. Factor","Value in ft",null,null,null,null,null,"Units of Area"]
[null,null,"Length",null,null,{"$f":"IF(E14=\"\",\"\",VLOOKUP(E14,conv_Table,3,FALSE))","v":""},{"$f":"IF(COUNTA(D14:E14)=2,D14*F14,\"\")","v":""},null,null,null,1,"sq. ft.","=",1,"sq. ft."]
[null,null,"Width",null,null,{"$f":"IF(E15=\"\",\"\",VLOOKUP(E15,conv_Table,3,FALSE))","v":""},{"$f":"IF(COUNTA(D15:E15)=2,D15*F15,\"\")","v":""},null,null,null,1,"acre(s)","=",43560,"sq. ft."]
[null,null,null,null,"OR",null,null,null,null,null,1,"hectare(s)","=",{"$f":"N17/100","v":107639.11105600001},"sq. ft."]
[null,null,"Area",null,null,{"$f":"IF(E17=\"\",\"\",VLOOKUP(E17,conv_Table,3,FALSE))","v":""},{"$f":"IF(COUNTA(D17:E17)=2,D17*F17,\"\")","v":""},null,null,null,1,"sq. kilometer(s)","=",{"$f":"N8^2","v":10763911.105600001},"sq. ft."]
[null,null,null,null,"AND",null,null,null,null,null,1,"sq. meter(s)","=",{"$f":"N9^2","v":10.7639111056},"sq. ft."]
[null,null,"Multiplier",1,null,null,null,null,null,null,1,"sq. mile(s)","=",{"$f":"N7^2","v":27878400},"sq. ft."]
[null,null,"Is the slope of this area steeper than 3:1 (33.3% grade)?",null,null,null,null,null,null,null,1,"sq. yard(s)","=",9,"sq. ft."]
[null,null,"Area 2 Total:",{"$f":"IF(AND(COUNTA(D14:D15)>0,COUNTA(D17)>0),\"Please enter either length & width or area, not both.\",IF(D17<>\"\",IF(E17=\"\",\"Please select units.\",D17*F17*D19),IF(COUNTA(E14:E15)<2,\"Please select units.\",(D14*F14)*(D15*F15)*D19)))","v":"Please select units."},{"$f":"IF(LEFT(G20,1)=\"Y\",\"Non-Mow Area\",IF(LEFT(G20,1)=\"N\",\"Mow Area\",\"Please answer question about slopes\"))","v":"Please answer question about slopes"}]
[null,null,null,null,"foot (feet)"]
[null,"Area 3","Measurement","Value","Units","Conv. Factor","Value in ft"]
[null,null,"Length",null,null,{"$f":"IF(E24=\"\",\"\",VLOOKUP(E24,conv_Table,3,FALSE))","v":""},{"$f":"IF(COUNTA(D24:E24)=2,D24*F24,\"\")","v":""}]
[null,null,"Width",null,null,{"$f":"IF(E25=\"\",\"\",VLOOKUP(E25,conv_Table,3,FALSE))","v":""},{"$f":"IF(COUNTA(D25:E25)=2,D25*F25,\"\")","v":""}]
[null,null,null,null,"OR"]
[null,null,"Area",null,null,{"$f":"IF(E27=\"\",\"\",VLOOKUP(E27,conv_Table,3,FALSE))","v":""},{"$f":"IF(COUNTA(D27:E27)=2,D27*F27,\"\")","v":""}]
[null,null,null,null,"AND"]
[null,null,"Multiplier",1]
[null,null,"Is the slope of this area steeper than 3:1 (33.3% grade)?"]
[null,null,"Area 3 Total:",{"$f":"IF(AND(COUNTA(D24:D25)>0,COUNTA(D27)>0),\"Please enter either length & width or area, not both.\",IF(D27<>\"\",IF(E27=\"\",\"Please select units.\",D27*F27*D29),IF(COUNTA(E24:E25)<2,\"Please select units.\",(D24*F24)*(D25*F25)*D29)))","v":"Please select units."},{"$f":"IF(LEFT(G30,1)=\"Y\",\"Non-Mow Area\",IF(LEFT(G30,1)=\"N\",\"Mow Area\",\"Please answer question about slopes\"))","v":"Please answer question about slopes"}]
[null,null,null,null,"foot (feet)"]
[null,"Area 4","Measurement","Value","Units","Conv. Factor","Value in ft"]
[null,null,"Length",null,null,{"$f":"IF(E34=\"\",\"\",VLOOKUP(E34,conv_Table,3,FALSE))","v":""},{"$f":"IF(COUNTA(D34:E34)=2,D34*F34,\"\")","v":""}]
[null,null,"Width",null,null,{"$f":"IF(E35=\"\",\"\",VLOOKUP(E35,conv_Table,3,FALSE))","v":""},{"$f":"IF(COUNTA(D35:E35)=2,D35*F35,\"\")","v":""}]
[null,null,null,null,"OR"]
[null,null,"Area",null,null,{"$f":"IF(E37=\"\",\"\",VLOOKUP(E37,conv_Table,3,FALSE))","v":""},{"$f":"IF(COUNTA(D37:E37)=2,D37*F37,\"\")","v":""}]
[null,null,null,null,"AND"]
[null,null,"Multiplier",1]
[null,null,"Is the slope of this area steeper than 3:1 (33.3% grade)?"]
[null,null,"Area 4 Total:",{"$f":"IF(AND(COUNTA(D34:D35)>0,COUNTA(D37)>0),\"Please enter either length & width or area, not both.\",IF(D37<>\"\",IF(E37=\"\",\"Please select units.\",D37*F37*D39),IF(COUNTA(E34:E35)<2,\"Please select units.\",(D34*F34)*(D35*F35)*D39)))","v":"Please select units."},{"$f":"IF(LEFT(G40,1)=\"Y\",\"Non-Mow Area\",IF(LEFT(G40,1)=\"N\",\"Mow Area\",\"Please answer question about slopes\"))","v":"Please answer question about slopes"}]
[null,null,null,null,"foot (feet)"]
[null,"Area 5","Measurement","Value","Units","Conv. Factor","Value in ft"]
[null,null,"Length",null,null,{"$f":"IF(E44=\"\",\"\",VLOOKUP(E44,conv_Table,3,FALSE))","v":""},{"$f":"IF(COUNTA(D44:E44)=2,D44*F44,\"\")","v":""}]
[null,null,"Width",null,null,{"$f":"IF(E45=\"\",\"\",VLOOKUP(E45,conv_Table,3,FALSE))","v":""},{"$f":"IF(COUNTA(D45:E45)=2,D45*F45,\"\")","v":""}]
[null,null,null,null,"OR"]
[null,null,"Area",null,null,{"$f":"IF(E47=\"\",\"\",VLOOKUP(E47,conv_Table,3,FALSE))","v":""},{"$f":"IF(COUNTA(D47:E47)=2,D47*F47,\"\")","v":""}]
[null,null,null,null,"AND"]
[null,null,"Multiplier",1]
[null,null,"Is the slope of this area steeper than 3:1 (33.3% grade)?"]
[null,null,"Area 5 Total:",{"$f":"IF(AND(COUNTA(D44:D45)>0,COUNTA(D47)>0),\"Please enter either length & width or area, not both.\",IF(D47<>\"\",IF(E47=\"\",\"Please select units.\",D47*F47*D49),IF(COUNTA(E44:E45)<2,\"Please select units.\",(D44*F44)*(D45*F45)*D49)))","v":"Please select units."},{"$f":"IF(LEFT(G50,1)=\"Y\",\"Non-Mow Area\",IF(LEFT(G50,1)=\"N\",\"Mow Area\",\"Please answer question about slopes\"))","v":"Please answer question about slopes"}]
[]
[null,null,"Area 1 Total:",null,{"$f":"IF(ISNUMBER(D11),D11,IF(SUM(D4:D7)>0,\"Check Entry\",0))","v":0},{"$f":"IF(ISNUMBER(E53),ROUND(E53/43560,2),\"Check Entry\")","v":0},{"$f":"IF(F53>0,IF(LEFT(G10,1)=\"Y\",\"Non-Mow Area\",IF(LEFT(G10,1)=\"N\",\"Mow Area\",\"Check slopes\")),\"\")","v":""}]
[null,null,"Area 2 Total:",null,{"$f":"IF(ISNUMBER(D21),D21,IF(SUM(D14:D17)>0,\"Check Entry\",0))","v":0},{"$f":"IF(ISNUMBER(E54),ROUND(E54/43560,2),\"Check Entry\")","v":0},{"$f":"IF(E54>0,IF(LEFT(G20,1)=\"Y\",\"Non-Mow Area\",IF(LEFT(G20,1)=\"N\",\"Mow Area\",\"Check slopes\")),\"\")","v":""}]
[null,null,"Area 3 Total:",null,{"$f":"IF(ISNUMBER(D31),D31,IF(SUM(D24:D27)>0,\"Check Entry\",0))","v":0},{"$f":"IF(ISNUMBER(E55),ROUND(E55/43560,2),\"Check Entry\")","v":0},{"$f":"IF(E55>0,IF(LEFT(G30,1)=\"Y\",\"Non-Mow Area\",IF(LEFT(G30,1)=\"N\",\"Mow Area\",\"Check slopes\")),\"\")","v":""}]
[null,null,"Area 4 Total:",null,{"$f":"IF(ISNUMBER(D41),D41,IF(SUM(D34:D37)>0,\"Check Entry\",0))","v":0},{"$f":"IF(ISNUMBER(E56),ROUND(E56/43560,2),\"Check Entry\")","v":0},{"$f":"IF(E56>0,IF(LEFT(G40,1)=\"Y\",\"Non-Mow Area\",IF(LEFT(G40,1)=\"N\",\"Mow Area\",\"Check slopes\")),\"\")","v":""}]
[null,null,"Area 5 Total:",null,{"$f":"IF(ISNUMBER(D51),D51,IF(SUM(D44:D47)>0,\"Check Entry\",0))","v":0},{"$f":"IF(ISNUMBER(E57),ROUND(E57/43560,2),\"Check Entry\")","v":0},{"$f":"IF(E57>0,IF(LEFT(G50,1)=\"Y\",\"Non-Mow Area\",IF(LEFT(G50,1)=\"N\",\"Mow Area\",\"Check slopes\")),\"\")","v":""}]
[null,null,"Total Area Calculated:",null,{"$f":"IF(COUNTIF(E53:E57,\"Check Entry\")>0,\"Check Entries\",SUM(E53:E57))","v":0},{"$f":"IF(COUNTIF(F53:F57,\"Check Entry\")>0,\"Check Entries\",SUM(F53:F57))","v":0}]
[null,null,"Total Mow Area:",null,{"$f":"IF(COUNTIF(E53:E57,\"Check Entry\")>0,\"Check Entries\",IF(COUNTIF(G53:G57,\"Check Slopes\")>0,\"Check Slopes\",SUMIF(G53:G57,\"Mow Area\",E53:E57)))","v":0},{"$f":"IF(COUNTIF(F53:F57,\"Check Entry\")>0,\"Check Entries\",IF(COUNTIF(G53:G57,\"Check Slopes\")>0,\"Check Slopes\",SUMIF(G53:G57,\"Mow Area\",F53:F57)))","v":0}]
[null,null,"Total Non-Mow Area:",null,{"$f":"IF(COUNTIF(E53:E57,\"Check Entry\")>0,\"Check Entries\",IF(COUNTIF(G53:G57,\"Check Slopes\")>0,\"Check Slopes\",SUMIF(G53:G57,\"Non-Mow Area\",E53:E57)))","v":0},{"$f":"IF(COUNTIF(F53:F57,\"Check Entry\")>0,\"Check Entries\",IF(COUNTIF(G53:G57,\"Check Slopes\")>0,\"Check Slopes\",SUMIF(G53:G57,\"Non-Mow Area\",F53:F57)))","v":0}]

{"sheet":"Fertilizer","index":7,"n_rows":20,"n_cols":31,"rows_kept":20,"cut":false,"hidden":true,"merged":[[0,26,0,27],[4,2,4,7],[15,9,15,10],[6,2,6,3],[11,6,11,7],[12,6,12,7],[13,6,13,7],[14,6,14,7],[6,9,6,11],[5,2,5,7],[1,5,1,7],[2,5,2,7],[3,5,3,7],[0,0,0,2],[1,0,1,1],[2,0,2,1],[0,9,0,13],[11,1,12,1],[5,0,5,1],[6,0,6,1],[8,5,10,7],[8,3,10,3],[7,2,7,7],[3,0,3,1],[4,0,4,1],[1,3,1,4],[2,3,2,4],[3,3,3,4]]}
["Fill in columns with\nblue or yellow headers",null,null,null,null,null,null,null,null,"WARNING: Pressing the Clear Page/All Button\ncan NOT be undone! Press it only if you intend to delete ALL input on this page or in this file.",null,null,null,null,null,null,null,null,null,null,"Intermediate Steps for Multiple Fertilizer Groups",null,null,null,null,null,"Column Widths for Merged Cells",null,"C:H used 70","C:D (used 30)","G:H (used 18)"]
[{"$f":"'Start Page'!B3","v":"Project Name/No.:"},null,{"$f":"'Start Page'!D3","v":0},{"$f":"'Start Page'!E3","v":"Roadside Data From:"},null,{"$f":"'Start Page'!G3","v":0},null,null,null,null,null,null,null,null,null,null,null,null,null,null,null,null,null,null,null,null,"A",5.67,{"$f":"SUM(AB4:AB9)","v":66.44},{"$f":"SUM(AB4:AB5)","v":29.11},{"$f":"SUM(AB8:AB9)","v":16.11}]
[{"$f":"'Start Page'!B4","v":"PPMS (UPC) #:"},null,{"$f":"'Start Page'!D4","v":0},{"$f":"'Start Page'!E4","v":"L&D Data From:"},null,{"$f":"'Start Page'!G4","v":0},null,null,null,null,null,null,null,null,null,null,null,null,null,null,null,null,null,null,null,null,"B",12]
[{"$f":"'Start Page'!B5","v":"Planting Date:"},null,{"$f":"'Start Page'!D5","v":0},{"$f":"'Start Page'!E5","v":"Date Entered:"},null,{"$f":"'Start Page'!G5","v":0},null,null,null,null,null,null,null,null,null,null,null,null,null,null,null,null,null,null,null,null,"C",22.11]
[{"$f":"'Start Page'!B6","v":"Proj. Description:"},null,{"$f":"'Start Page'!D6","v":0},null,null,null,null,null,null,null,null,null,null,null,null,null,null,null,null,null,null,null,null,null,null,null,"D",7,{"$f":"C5","v":0}]
[{"$f":"'Start Page'!B7","v":"File Location:"},null,{"$f":"'Start Page'!D7","v":"G:\\Projects\\2013 Projects\\13-144 VDOT_MS4_MNT#301_NMP_Spreadsheet_Program\\09_Deliverables\\Final\\"},null,null,null,null,null,null,null,null,null,null,null,null,null,null,null,null,null,null,null,null,null,null,null,"E",12,{"$f":"C6","v":"G:\\Projects\\2013 Projects\\13-144 VDOT_MS4_MNT#301_NMP_Spreadsheet_Program\\09_Deliverables\\Final\\"}]
["Laboratory:",null,{"$f":"nLabUsed","v":0},null,"P Test:",{"$f":"VLOOKUP($C$7,tLabConversions[],2,FALSE)","v":{"$error":"#N/A"}},"Lime Test:",{"$f":"VLOOKUP($C$7,tLabConversions[],3,FALSE)","v":{"$error":"#N/A"}},null,"Statistical Analysis:",null,null,null,null,null,null,null,null,null,null,null,null,null,null,null,null,"F",9.2200000000000006]
[null,{"$f":"IF(RIGHT(C7,1)=\"*\",\"*:\",\"\")","v":""},{"$f":"IF(RIGHT(C7,1)=\"*\",VLOOKUP($C$7,tLabConversions[],4,FALSE),\"\")","v":""},null,null,null,null,null,null,"Avg. Fertility",{"$f":"SUBTOTAL(1,tLabResults[3 Sub-groups])","v":{"$error":"#N/A"}},{"$f":"LOOKUP(ROUND(K8,0),tSoilRating[P Break (ppm)],tSoilRating[VA Tech Fertility Rating])","v":{"$error":"#N/A"}},null,null,null,null,null,null,null,null,null,null,null,null,null,null,"G",9.2200000000000006,null,{"$f":"C7","v":0}]
[null,null,null,"Soil Fertility Rating","Fertilizer ","Application Rate",null,null,null,"Std. Dev.",{"$f":"SUBTOTAL(7,tLabResults[3 Sub-groups])","v":{"$error":"#N/A"}},null,null,null,null,null,null,null,null,null,null,null,null,null,null,null,"H",6.89]
[null,null,null,null,"Grade"]
[null,null,null,null,"(N-P2O5-K2O)",null,null,null,null,"Upper Limit",{"$f":"$K$8+$K$9","v":{"$error":"#N/A"}},{"$f":"LOOKUP(ROUND(K11,0),tSoilRating[P Break (ppm)],tSoilRating[VA Tech Fertility Rating])","v":{"$error":"#N/A"}}]
[null,"< OR >","Single Fertilizer:",{"$f":"IF(COUNTIF(tLabResults[Fertility Rating],\"Review\")>0,\"Review\",IF(COUNTA(tLabResults[Fertility Rating])>SUBTOTAL(3,tLabResults[Fertility Rating]),\"Clear\",tLabResults[[#Totals],[Fertility Rating]]))","v":{"$error":"#N/A"}},{"$f":"IF(D12=\"Review\",\"Data Entry!\",IF(D12=\"Clear\",\"Filters from\",VLOOKUP(D12,tFertilizers[],2+Shift,FALSE)))","v":{"$error":"#N/A"}},{"$f":"IF(D12=\"Review\",\"See rows\",IF(D12=\"Clear\",\"Soil Data\",VLOOKUP(D12,tFertilizers[],3+Shift,FALSE)))","v":{"$error":"#N/A"}},{"$f":"IF(D12=\"Review\",\"with red text below\",IF(D12=\"Clear\",\"Table (below).\",VLOOKUP(D12,tFertilizers[],4+Shift,FALSE)))","v":{"$error":"#N/A"}},null,null,"Lower Limit",{"$f":"$K$8-$K$9","v":{"$error":"#N/A"}},{"$f":"LOOKUP(ROUND(K12,0),tSoilRating[P Break (ppm)],tSoilRating[VA Tech Fertility Rating])","v":{"$error":"#N/A"}},null,null,null,null,null,null,null,null,null,"No. of Samples",{"$f":"tLabResults[[#Headers],[P Value (ppm)]]","v":"P Value (ppm)"},{"$f":"tLabResults[[#Headers],[VA Tech P Value]]","v":"VA Tech P Value"},{"$f":"tLabResults[[#Headers],[Fertility Rating]]","v":"Fertility Rating"},null,null,null,null,null,{"$f":"G12","v":{"$error":"#N/A"}}]
[null,null,"Group 1 Fertilizer",{"$f":"IF(V13>0,Y13,\"N/A\")","v":"N/A"},{"$f":"IF(D13=\"Review\",\"Data Entry!\",IF(V13<1,\"N/A\",VLOOKUP(D13,tFertilizers[],2+Shift,FALSE)))","v":"N/A"},{"$f":"IF(D13=\"Review\",\"See rows\",IF(V13<1,\"N/A\",VLOOKUP(D13,tFertilizers[],3+Shift,FALSE)))","v":"N/A"},{"$f":"IF(D13=\"Review\",\"with red text below\",IF(V13<1,\"N/A\",VLOOKUP(D13,tFertilizers[],4+Shift,FALSE)))","v":"N/A"},null,null,null,null,null,null,null,null,null,null,null,null,null,1,{"$f":"IF(COUNTIFS(tLabResults[Group],U13,tLabResults[Fertility Rating],\"Review\")>0,\"Review\",COUNTIF(tLabResults[Group],U13))","v":0},{"$f":"IF(AND(V13>0,ISNUMBER(V13)),SUMIF(tLabResults[Group],U13,tLabResults[P Value (ppm)])/V13,0)","v":0},{"$f":"IF($F$7=\"Mehlich I\",W13,IF(W13>205,fConvert_upper,fConvert_lower))","v":{"$error":"#N/A"}},{"$f":"IF(OR(V13=\"Review\", X13<0),\"Review\",LOOKUP(X13,tSoilRating[P Break (ppm)],tSoilRating[VA Tech Fertility Rating]))","v":{"$error":"#N/A"}},null,null,null,null,null,{"$f":"G13","v":"N/A"}]
[null,null,"Group 2 Fertilizer",{"$f":"IF(V14>0,Y14,\"N/A\")","v":"N/A"},{"$f":"IF(D14=\"Review\",\"Data Entry!\",IF(V14<1,\"N/A\",VLOOKUP(D14,tFertilizers[],2+Shift,FALSE)))","v":"N/A"},{"$f":"IF(D14=\"Review\",\"See rows\",IF(V14<1,\"N/A\",VLOOKUP(D14,tFertilizers[],3+Shift,FALSE)))","v":"N/A"},{"$f":"IF(D14=\"Review\",\"with red text below\",IF(V14<1,\"N/A\",VLOOKUP(D14,tFertilizers[],4+Shift,FALSE)))","v":"N/A"},null,null,null,null,null,null,null,null,null,null,null,null,null,2,{"$f":"IF(COUNTIFS(tLabResults[Group],U14,tLabResults[Fertility Rating],\"Review\")>0,\"Review\",COUNTIF(tLabResults[Group],U14))","v":0},{"$f":"IF(AND(V14>0,ISNUMBER(V14)),SUMIF(tLabResults[Group],U14,tLabResults[P Value (ppm)])/V14,0)","v":0},{"$f":"IF($F$7=\"Mehlich I\",W14,IF(W14>205,fConvert_upper,fConvert_lower))","v":{"$error":"#N/A"}},{"$f":"IF(OR(V14=\"Review\", X14<0),\"Review\",LOOKUP(X14,tSoilRating[P Break (ppm)],tSoilRating[VA Tech Fertility Rating]))","v":{"$error":"#N/A"}},null,null,null,null,null,{"$f":"G14","v":"N/A"}]
[null,null,"Group 3 Fertilizer",{"$f":"IF(V15>0,Y15,\"N/A\")","v":"N/A"},{"$f":"IF(D15=\"Review\",\"Data Entry!\",IF(V15<1,\"N/A\",VLOOKUP(D15,tFertilizers[],2+Shift,FALSE)))","v":"N/A"},{"$f":"IF(D15=\"Review\",\"See rows\",IF(V15<1,\"N/A\",VLOOKUP(D15,tFertilizers[],3+Shift,FALSE)))","v":"N/A"},{"$f":"IF(D15=\"Review\",\"with red text below\",IF(V15<1,\"N/A\",VLOOKUP(D15,tFertilizers[],4+Shift,FALSE)))","v":"N/A"},null,null,null,null,null,null,null,null,null,null,null,null,null,3,{"$f":"IF(COUNTIFS(tLabResults[Group],U15,tLabResults[Fertility Rating],\"Review\")>0,\"Review\",COUNTIF(tLabResults[Group],U15))","v":0},{"$f":"IF(AND(V15>0,ISNUMBER(V15)),SUMIF(tLabResults[Group],U15,tLabResults[P Value (ppm)])/V15,0)","v":0},{"$f":"IF($F$7=\"Mehlich I\",W15,IF(W15>205,fConvert_upper,fConvert_lower))","v":{"$error":"#N/A"}},{"$f":"IF(OR(V15=\"Review\", X15<0),\"Review\",LOOKUP(X15,tSoilRating[P Break (ppm)],tSoilRating[VA Tech Fertility Rating]))","v":{"$error":"#N/A"}},null,null,null,null,null,{"$f":"G15","v":"N/A"}]
[{"$f":"IF(AND(COUNT(tLabResults[Group])>0,COUNT(tLabResults[Group])<iNumSamples),\"When breaking soil samples into groups, please ensure that each sample is assigned to a group.\",\"\")","v":""},null,null,null,null,null,null,null,null,"Statistical Analysis",null,null,null,null,null,null,null,null,null,null,"Total",{"$f":"COUNT(tLabResults[[Lab P value ]])","v":0},{"$f":"tLabResults[[#Totals],[P Value (ppm)]]","v":{"$error":"#N/A"}},{"$f":"tLabResults[[#Totals],[VA Tech P Value]]","v":{"$error":"#N/A"}},{"$f":"tLabResults[[#Totals],[Fertility Rating]]","v":{"$error":"#N/A"}}]
["Group","Sample No. or Name","Description ","Lab P value ","Lab Units","P Value (ppm)","VA Tech P Value","Fertility Rating","(Blank)\nCol.","2 Sub-groups","3 Sub-groups"]
[null,null,null,null,{"$f":"fLabUnits","v":{"$error":"#N/A"}},{"$f":"IF(tLabResults[[#This Row],[Lab Units]]=\"\",\"0\",IF(tLabResults[[#This Row],[Lab Units]]=\"ppm (p)\",tLabResults[[#This Row],[Lab P value ]],IF(RIGHT(tLabResults[[#This Row],[Lab Units]],3)=\"O5)\",fUnits_P2O5,fUnits_LbsAc)))","v":{"$error":"#N/A"}},{"$f":"IF($F$7=\"Mehlich I\",tLabResults[[#This Row],[P Value (ppm)]],IF(tLabResults[[#This Row],[P Value (ppm)]]>205,fConvert_upper,fConvert_lower))","v":{"$error":"#N/A"}},{"$f":"IF(OR(tLabResults[[#This Row],[VA Tech P Value]]<0,tLabResults[[#This Row],[Lab P value ]]=\"\"),\"Review\",LOOKUP(tLabResults[[#This Row],[VA Tech P Value]],tSoilRating[P Break (ppm)],tSoilRating[VA Tech Fertility Rating]))","v":{"$error":"#N/A"}},{"$f":"IF(tLabResults[[#This Row],[Fertility Rating]]=\"Review\",\"Input\",\"\")","v":{"$error":"#N/A"}},{"$f":"tLabResults[[#This Row],[VA Tech P Value]]","v":{"$error":"#N/A"}},{"$f":"tLabResults[[#This Row],[VA Tech P Value]]","v":{"$error":"#N/A"}}]
[null,null,null,null,{"$f":"fLabUnits","v":{"$error":"#N/A"}},{"$f":"IF(tLabResults[[#This Row],[Lab Units]]=\"\",\"0\",IF(tLabResults[[#This Row],[Lab Units]]=\"ppm (p)\",tLabResults[[#This Row],[Lab P value ]],IF(RIGHT(tLabResults[[#This Row],[Lab Units]],3)=\"O5)\",fUnits_P2O5,fUnits_LbsAc)))","v":{"$error":"#N/A"}},{"$f":"IF($F$7=\"Mehlich I\",tLabResults[[#This Row],[P Value (ppm)]],IF(tLabResults[[#This Row],[P Value (ppm)]]>205,fConvert_upper,fConvert_lower))","v":{"$error":"#N/A"}},{"$f":"IF(OR(tLabResults[[#This Row],[VA Tech P Value]]<0,tLabResults[[#This Row],[Lab P value ]]=\"\"),\"Review\",LOOKUP(tLabResults[[#This Row],[VA Tech P Value]],tSoilRating[P Break (ppm)],tSoilRating[VA Tech Fertility Rating]))","v":{"$error":"#N/A"}},{"$f":"IF(tLabResults[[#This Row],[Fertility Rating]]=\"Review\",\"Input\",\"\")","v":{"$error":"#N/A"}},{"$f":"tLabResults[[#This Row],[VA Tech P Value]]","v":{"$error":"#N/A"}},{"$f":"tLabResults[[#This Row],[VA Tech P Value]]","v":{"$error":"#N/A"}}]
[null,"Total",null,{"$f":"SUBTOTAL(102,tLabResults[[Lab P value ]])","v":0},null,{"$f":"SUBTOTAL(1,tLabResults[P Value (ppm)])","v":{"$error":"#N/A"}},{"$f":"IF($F$7=\"Mehlich I\",tLabResults[[#Totals],[P Value (ppm)]],IF(tLabResults[[#Totals],[P Value (ppm)]]>205,fConvert_upper,fConvert_lower))","v":{"$error":"#N/A"}},{"$f":"IF(tLabResults[[#Totals],[VA Tech P Value]]<0,\"L-\",LOOKUP(tLabResults[[#Totals],[VA Tech P Value]],tSoilRating[P Break (ppm)],tSoilRating[VA Tech Fertility Rating]))","v":{"$error":"#N/A"}}]

{"sheet":"Lime","index":8,"n_rows":22,"n_cols":30,"rows_kept":22,"cut":false,"hidden":true,"merged":[[6,2,6,3],[11,2,11,5],[4,2,4,6],[5,2,5,6],[0,26,0,27],[1,5,1,6],[2,5,2,6],[3,5,3,6],[1,3,1,4],[2,3,2,4],[3,3,3,4],[9,0,9,5],[8,0,8,5],[16,1,16,2],[11,0,11,1],[12,0,12,1],[0,0,0,2],[14,1,14,2],[15,1,15,2],[6,0,6,1],[7,0,7,1],[7,2,7,6],[6,5,6,6],[10,2,10,6],[10,0,10,1],[1,0,1,1],[2,0,2,1],[3,0,3,1],[4,0,4,1]]}
["Fill in fields with yellow highlighting\n& column with yellow header",null,null,null,null,null,null,null,null,null,null,null,null,null,null,null,null,null,null,null,null,null,null,null,null,null,"Column Widths for Merged Cells",null,"C:G (used 70)","C:D (used 30)"]
[{"$f":"'Start Page'!B3","v":"Project Name/No.:"},null,{"$f":"'Start Page'!D3","v":0},{"$f":"'Start Page'!E3","v":"Roadside Data From:"},null,{"$f":"'Start Page'!G3","v":0},null,null,null,null,null,null,null,null,null,null,null,null,null,null,null,null,null,null,null,null,"A",5.67,{"$f":"SUM(AB4:AB8)","v":66.44},{"$f":"SUM(AB4:AB5)","v":29.11}]
[{"$f":"'Start Page'!B4","v":"PPMS (UPC) #:"},null,{"$f":"'Start Page'!D4","v":0},{"$f":"'Start Page'!E4","v":"L&D Data From:"},null,{"$f":"'Start Page'!G4","v":0},null,null,null,null,null,null,null,null,null,null,null,null,null,null,null,null,null,null,null,null,"B",12]
[{"$f":"'Start Page'!B5","v":"Planting Date:"},null,{"$f":"'Start Page'!D5","v":0},{"$f":"'Start Page'!E5","v":"Date Entered:"},null,{"$f":"'Start Page'!G5","v":0},null,null,null,null,null,null,null,null,null,null,null,null,null,null,null,null,null,null,null,null,"C",22.11]
[{"$f":"'Start Page'!B6","v":"Proj. Description:"},null,{"$f":"'Start Page'!D6","v":0},null,null,null,null,null,null,null,null,null,null,null,null,null,null,null,null,null,null,null,null,null,null,null,"D",7,{"$f":"C5","v":0}]
[null,{"$f":"'Start Page'!B7","v":"File Location:"},{"$f":"'Start Page'!D7","v":"G:\\Projects\\2013 Projects\\13-144 VDOT_MS4_MNT#301_NMP_Spreadsheet_Program\\09_Deliverables\\Final\\"},null,null,null,null,null,null,null,null,null,null,null,null,null,null,null,null,null,null,null,null,null,null,null,"E",15.11,{"$f":"C6","v":"G:\\Projects\\2013 Projects\\13-144 VDOT_MS4_MNT#301_NMP_Spreadsheet_Program\\09_Deliverables\\Final\\"}]
["Laboratory:",null,{"$f":"nLabUsed","v":0},null,"Lime Test:",{"$f":"VLOOKUP($C$7,tLabConversions[],3,FALSE)","v":{"$error":"#N/A"}},null,null,null,null,null,null,null,null,null,null,null,null,null,null,null,null,null,null,null,null,"F",15.33]
["Test Method:",null,{"$f":"VLOOKUP($F$7,tKey_LimeType[],2,FALSE)","v":{"$error":"#N/A"}},null,null,null,null,null,null,null,null,null,null,null,null,null,null,null,null,null,null,null,null,null,null,null,"G",6.89,null,{"$f":"C7","v":0}]
["Did the Laboratory provide a recommended Lime Application rate for the entire area?",null,null,null,null,null,"y"]
[{"$f":"IF(LEFT(G9,1)=\"y\",\"What is the recommended application rate for Agricultural Lime (100% CCE) in tons/ac?\",\"\")","v":"What is the recommended application rate for Agricultural Lime (100% CCE) in tons/ac?"},null,null,null,null,null,3]
[{"$f":"IF(RIGHT(C7,1)=\"*\",\"*:\",\"\")","v":""},null,{"$f":"IF(RIGHT(C7,1)=\"*\",VLOOKUP($C$7,tLabConversions[],4,FALSE),\"\")","v":""},null,null,null,null,null,null,null,null,null,null,null,null,null,null,null,null,null,null,null,null,null,null,null,"Min. pH:",{"$f":"IF($F$7=\"1C\",0,IF($F$7=\"1A\",5.3,6.3))","v":{"$error":"#N/A"}}]
["Type of Lime:",null,null,null,null,null,null,null,null,null,null,null,null,null,null,null,null,null,null,null,null,null,null,null,null,null,"Max. pH:",{"$f":"IF($F$7=\"1C\",0,IF($F$7=\"1A\",6.6,6.9))","v":{"$error":"#N/A"}}]
[{"$f":"IF(LEFT(C12,1)=\"A\",\"\",\"% of CCE:\")","v":"% of CCE:"},null,null,null,null,null,null,null,null,null,null,null,null,null,null,null,null,null,null,null,null,null,null,null,null,null,"No. Errors",{"$f":"COUNTIF(tLimeCalcs[[Buffer pH ]],\">\"&AB12)+COUNTIF(tLimeCalcs[[Buffer pH ]],\"<\"&AB11)+COUNTIF(tLimeCalcs[[Buffer pH ]],\"\")","v":2}]
[null,null,null,null,null,null,null,null,null,null,null,null,null,null,null,null,null,null,null,null,null,null,null,null,null,null,"No. Entries",{"$f":"COUNT(tLimeCalcs[[Buffer pH ]])","v":0}]
[null,"Average Buffer pH:",null,{"$f":"IF(COUNTA(tLimeCalcs[[Buffer pH ]])>SUBTOTAL(3,tLimeCalcs[[Buffer pH ]]),\"Clear Filter\",IF(LEFT(G9,1)=\"y\",\"n/a\",IF(COUNTIF(tLimeCalcs[Lime Application Rate (tons/ac)],\"Review Input\")>0,\"Review Input\",tLimeCalcs[[#Totals],[Buffer pH ]])))","v":"n/a"}]
[null,"Agricultural Lime Application Rate:",null,{"$f":"IF(F7=\"1C\",\"**\",IF(LEFT(G9,1)=\"y\",G10,IF(ISNUMBER(D15)=FALSE,\"Review\",tLimeCalcs[[#Totals],[Lime Application Rate (tons/ac)]])))","v":{"$error":"#N/A"}},{"$f":"IF(F7=\"1C\",\"Contact Lab for recommendation**\",IF(LEFT(D16,1)=\"R\",\"Input\",\"tons/ac\"))","v":{"$error":"#N/A"}}]
[null,"Adjusted Lime Application Rate: ",null,{"$f":"IF(LEFT(G9,1)=\"y\",IF(LEFT($C$12,1)=\"A\",\"N/A\",IFERROR(VLOOKUP($D$16,tPercentCCE[],MATCH($C$13,rCCE_RowNum)),\"Review\")),IF(COUNTIF(tLimeCalcs[Adjusted Rate (tons/ac)],\"Review Input\")>0,\"Review\",tLimeCalcs[[#Totals],[Adjusted Rate (tons/ac)]]))","v":"Review"},{"$f":"IF(D17=\"N/A\",\"\",IF(LEFT(D17,1)=\"R\",\"Input\",\"tons/ac\"))","v":"Input"}]
[]
[null,"Sample No. or Name","Description ","Buffer pH ","Lime Application Rate (tons/ac)","Adjusted Rate (tons/ac)","Inverse pH"]
[null,{"$f":"IF(ISBLANK(Fertilizer!B18),\"\",Fertilizer!B18)","v":""},{"$f":"IF(ISBLANK(Fertilizer!C18),\"\",Fertilizer!C18)","v":""},null,{"$f":"IF($F$7=\"1C\",\"*Contact Lab*\",IFERROR(VLOOKUP(tLimeCalcs[[#This Row],[Buffer pH ]],IF($F$7=\"1A\",tLime_VATech[],tLime_SMB[]),4,TRUE),\"Review Input\"))","v":{"$error":"#N/A"}},{"$f":"IF(OR(LEFT($C$12,1)=\"A\",$F$7=\"1C\"),\"N/A\",IFERROR(VLOOKUP(tLimeCalcs[[#This Row],[Lime Application Rate (tons/ac)]],tPercentCCE[],MATCH($C$13,rCCE_RowNum)),\"Review Input\"))","v":{"$error":"#N/A"}},{"$f":"10^tLimeCalcs[[#This Row],[Buffer pH ]]","v":1}]
[null,{"$f":"IF(ISBLANK(Fertilizer!B19),\"\",Fertilizer!B19)","v":""},{"$f":"IF(ISBLANK(Fertilizer!C19),\"\",Fertilizer!C19)","v":""},null,{"$f":"IF($F$7=\"1C\",\"*Contact Lab*\",IFERROR(VLOOKUP(tLimeCalcs[[#This Row],[Buffer pH ]],IF($F$7=\"1A\",tLime_VATech[],tLime_SMB[]),4,TRUE),\"Review Input\"))","v":{"$error":"#N/A"}},{"$f":"IF(OR(LEFT($C$12,1)=\"A\",$F$7=\"1C\"),\"N/A\",IFERROR(VLOOKUP(tLimeCalcs[[#This Row],[Lime Application Rate (tons/ac)]],tPercentCCE[],MATCH($C$13,rCCE_RowNum)),\"Review Input\"))","v":{"$error":"#N/A"}},{"$f":"10^tLimeCalcs[[#This Row],[Buffer pH ]]","v":1}]
[null,"Averages",{"$f":"VLOOKUP(tLimeCalcs[[#Totals],[Inverse pH]],IF($F$7=\"1A\",tLime_VATech[],tLime_SMB[]),3,TRUE)","v":{"$error":"#N/A"}},{"$f":"SUBTOTAL(101,tLimeCalcs[[Buffer pH ]])","v":{"$error":"#DIV/0!"}},{"$f":"IF($F$7=\"1C\",\"*Contact Lab*\",VLOOKUP(tLimeCalcs[[#Totals],[Buffer pH ]],IF($F$7=\"1A\",tLime_VATech[],tLime_SMB[]),3,TRUE))","v":{"$error":"#N/A"}},{"$f":"IF(OR(LEFT($C$12,1)=\"A\",$F$7=\"1C\"),\"N/A\",VLOOKUP(tLimeCalcs[[#Totals],[Lime Application Rate (tons/ac)]],tPercentCCE[],MATCH($C$13,rCCE_RowNum)))","v":{"$error":"#N/A"}},{"$f":"LOG(SUBTOTAL(101,tLimeCalcs[Inverse pH]))","v":0}]

{"sheet":"Lab Analysis Summary","index":9,"n_rows":35,"n_cols":31,"rows_kept":35,"cut":false,"hidden":true,"merged":[[13,28,13,30],[5,1,5,5],[1,1,1,2],[2,1,2,2],[3,1,3,2],[1,4,1,5],[2,4,2,5],[3,4,3,5],[4,1,4,5],[6,1,6,5],[9,0,9,2],[10,0,10,2],[13,1,14,1],[13,3,14,5],[24,0,24,2],[25,0,25,2],[15,4,15,5],[26,0,26,2],[22,0,22,1],[22,2,22,5],[23,0,23,1],[16,4,16,5],[17,4,17,5],[18,4,18,5],[19,4,19,5]]}
[]
["Project Name/No.:",{"$f":"'Start Page'!D3","v":0},null,"Entered By:",{"$f":"'Start Page'!G3","v":0}]
["PPMS (UPC) #:",{"$f":"'Start Page'!D4","v":0},null,"Checked By:",{"$f":"'Start Page'!G4","v":0}]
["Planting Date:",{"$f":"'Start Page'!D5","v":0},null,"Sampling Date:",{"$f":"'Start Page'!G5","v":0}]
["Proj. Description:",{"$f":"'Start Page'!D6","v":0}]
["File Location:",{"$f":"'Start Page'!D7","v":"G:\\Projects\\2013 Projects\\13-144 VDOT_MS4_MNT#301_NMP_Spreadsheet_Program\\09_Deliverables\\Final\\"}]
["Testing Laboratory:",{"$f":"'Start Page'!G14","v":0}]
[]
["AREA SUMMARY"]
["Total Area Receiving Temporary Seeding",null,null,{"$f":"Area_TS","v":0},{"$f":"OFFSET(Area_TS,0,1)","v":"ac"}]
["Total Area Receiving Permanent Seeding",null,null,{"$f":"Area_PS","v":0},{"$f":"OFFSET(Area_PS,0,1)","v":"sf"}]
[]
["FERTILIZER SUMMARY"]
[null,"Soil Fertility Rating","Fertilizer Grade","Application Rate",null,null,"Area","Units",null,null,null,null,null,null,null,null,null,null,null,null,null,null,null,null,null,null,null,null,"Total Nutrient Applied:\n(=Area x Rate)"]
[null,null,"(N-P2O5-K2O)",null,null,null,null,null,null,null,null,null,null,null,null,null,null,null,null,null,null,null,null,null,null,null,"Fertilizer:","Area (ac)","N","P","K"]
["Temp. Seeding","n/a","15-30-15","150 lbs/ac","3.4 lbs/1,000 SF",null,{"$f":"D10","v":0},{"$f":"E10","v":"ac"},null,null,null,null,null,null,null,null,null,null,null,null,null,null,null,null,null,null,"TS",{"$f":"Area_TSac","v":0},{"$f":"IF(LEFT($H$16,1)=\"a\",$G16*VLOOKUP($AA16,tFertRatio_ac[],2+Shift,FALSE),$G16*VLOOKUP($AA16,tFertRatio_sf[],2+Shift,FALSE))","v":0},{"$f":"IF(LEFT($H$16,1)=\"a\",$G16*VLOOKUP($AA16,tFertRatio_ac[],3+Shift,FALSE),$G16*VLOOKUP($AA16,tFertRatio_sf[],3+Shift,FALSE))","v":0},{"$f":"IF(LEFT($H$16,1)=\"a\",$G16*VLOOKUP($AA16,tFertRatio_ac[],4+Shift,FALSE),$G16*VLOOKUP($AA16,tFertRatio_sf[],4+Shift,FALSE))","v":0}]
["Single Fertilizer:",{"$f":"Fertilizer!D12","v":{"$error":"#N/A"}},{"$f":"Fertilizer!E12","v":{"$error":"#N/A"}},{"$f":"Fertilizer!F12","v":{"$error":"#N/A"}},{"$f":"Fertilizer!G12","v":{"$error":"#N/A"}},{"$f":"Fertilizer!H12","v":0},{"$f":"D11","v":0},{"$f":"E11","v":"sf"},null,null,null,null,null,null,null,null,null,null,null,null,null,null,null,null,null,null,"PS-1rate",{"$f":"Area_PSac","v":0},{"$f":"IF(LEFT($H17,1)=\"a\",$G17*VLOOKUP($B17,tFertRatio_ac[],2+Shift,FALSE),$G17*VLOOKUP($B17,tFertRatio_sf[],2+Shift,FALSE))","v":{"$error":"#N/A"}},{"$f":"IF(LEFT($H17,1)=\"a\",$G17*VLOOKUP($B17,tFertRatio_ac[],3+Shift,FALSE),$G17*VLOOKUP($B17,tFertRatio_sf[],3+Shift,FALSE))","v":{"$error":"#N/A"}},{"$f":"IF(LEFT($H17,1)=\"a\",$G17*VLOOKUP($B17,tFertRatio_ac[],4+Shift,FALSE),$G17*VLOOKUP($B17,tFertRatio_sf[],4+Shift,FALSE))","v":{"$error":"#N/A"}}]
["Group 1 Fertilizer",{"$f":"Fertilizer!D13","v":"N/A"},{"$f":"Fertilizer!E13","v":"N/A"},{"$f":"Fertilizer!F13","v":"N/A"},{"$f":"Fertilizer!G13","v":"N/A"},{"$f":"Fertilizer!H13","v":0},null,"ac",{"$f":"IF(AND(G18>0,H18=\"\"),\"Please Select Units!\",IF(AND(B18=\"N/A\",G18>0),\"Please Assign Soil Samples to this Group on the Fertilzier tab or Clear this Entry!\",IF(OR(AND(LEFT(H18,1)=\"s\",(G18<50)),AND(LEFT(H18,1)=\"a\",G18>500)),\"Please confirm that the correct units are selected\",\"\")))","v":""},null,null,null,null,null,null,null,null,null,null,null,null,null,null,null,null,null,"PS-Grp 1",{"$f":"IF(LEFT(H18,1)=\"s\",G18*43560,G18)","v":0},{"$f":"IFERROR(IF(LEFT($H18,1)=\"a\",$G18*VLOOKUP($B18,tFertRatio_ac[],2+Shift,FALSE),$G18*VLOOKUP($B18,tFertRatio_sf[],2+Shift,FALSE)),0)","v":0},{"$f":"IFERROR(IF(LEFT($H18,1)=\"a\",$G18*VLOOKUP($B18,tFertRatio_ac[],3+Shift,FALSE),$G18*VLOOKUP($B18,tFertRatio_sf[],3+Shift,FALSE)),0)","v":0},{"$f":"IFERROR(IF(LEFT($H18,1)=\"a\",$G18*VLOOKUP($B18,tFertRatio_ac[],4+Shift,FALSE),$G18*VLOOKUP($B18,tFertRatio_sf[],4+Shift,FALSE)),0)","v":0}]
["Group 2 Fertilizer",{"$f":"Fertilizer!D14","v":"N/A"},{"$f":"Fertilizer!E14","v":"N/A"},{"$f":"Fertilizer!F14","v":"N/A"},{"$f":"Fertilizer!G14","v":"N/A"},{"$f":"Fertilizer!H14","v":0},null,"ac",{"$f":"IF(AND(G19>0,H19=\"\"),\"Please Select Units!\",IF(AND(B19=\"N/A\",G19>0),\"Please Assign Soil Samples to this Group on the Fertilzier tab or Clear this Entry!\",IF(OR(AND(LEFT(H19,1)=\"s\",(G19<50)),AND(LEFT(H19,1)=\"a\",G19>500)),\"Please confirm that the correct units are selected\",\"\")))","v":""},null,null,null,null,null,null,null,null,null,null,null,null,null,null,null,null,null,"PS-Grp 2",{"$f":"IF(LEFT(H19,1)=\"s\",G19*43560,G19)","v":0},{"$f":"IFERROR(IF(LEFT($H19,1)=\"a\",$G19*VLOOKUP($B19,tFertRatio_ac[],2+Shift,FALSE),$G19*VLOOKUP($B19,tFertRatio_sf[],2+Shift,FALSE)),0)","v":0},{"$f":"IFERROR(IF(LEFT($H19,1)=\"a\",$G19*VLOOKUP($B19,tFertRatio_ac[],3+Shift,FALSE),$G19*VLOOKUP($B19,tFertRatio_sf[],3+Shift,FALSE)),0)","v":0},{"$f":"IFERROR(IF(LEFT($H19,1)=\"a\",$G19*VLOOKUP($B19,tFertRatio_ac[],4+Shift,FALSE),$G19*VLOOKUP($B19,tFertRatio_sf[],4+Shift,FALSE)),0)","v":0}]
["Group 3 Fertilizer",{"$f":"Fertilizer!D15","v":"N/A"},{"$f":"Fertilizer!E15","v":"N/A"},{"$f":"Fertilizer!F15","v":"N/A"},{"$f":"Fertilizer!G15","v":"N/A"},{"$f":"Fertilizer!H15","v":0},null,null,{"$f":"IF(AND(G20>0,H20=\"\"),\"Please Select Units!\",IF(AND(B20=\"N/A\",G20>0),\"Please Assign Soil Samples to this Group on the Fertilzier tab or Clear this Entry!\",IF(OR(AND(LEFT(H20,1)=\"s\",(G20<50)),AND(LEFT(H20,1)=\"a\",G20>500)),\"Please confirm that the correct units are selected\",\"\")))","v":""},null,null,null,null,null,null,null,null,null,null,null,null,null,null,null,null,null,"PS-Grp 3",{"$f":"IF(LEFT(H20,1)=\"s\",G20*43560,G20)","v":0},{"$f":"IFERROR(IF(LEFT($H20,1)=\"a\",$G20*VLOOKUP($B20,tFertRatio_ac[],2+Shift,FALSE),$G20*VLOOKUP($B20,tFertRatio_sf[],2+Shift,FALSE)),0)","v":0},{"$f":"IFERROR(IF(LEFT($H20,1)=\"a\",$G20*VLOOKUP($B20,tFertRatio_ac[],3+Shift,FALSE),$G20*VLOOKUP($B20,tFertRatio_sf[],3+Shift,FALSE)),0)","v":0},{"$f":"IFERROR(IF(LEFT($H20,1)=\"a\",$G20*VLOOKUP($B20,tFertRatio_ac[],4+Shift,FALSE),$G20*VLOOKUP($B20,tFertRatio_sf[],4+Shift,FALSE)),0)","v":0}]
[null,null,null,null,null,null,null,null,null,null,null,null,null,null,null,null,null,null,null,null,null,null,null,null,null,null,"OS",{"$f":"Area_PSac","v":0},{"$f":"IF(LEFT($H17,1)=\"a\",$G17*VLOOKUP($AA21,tFertRatio_ac[],2+Shift,FALSE),$G17*VLOOKUP($AA21,tFertRatio_sf[],2+Shift,FALSE))","v":0},{"$f":"IF(LEFT($H17,1)=\"a\",$G17*VLOOKUP($AA21,tFertRatio_ac[],3+Shift,FALSE),$G17*VLOOKUP($AA21,tFertRatio_sf[],3+Shift,FALSE))","v":0},{"$f":"IF(LEFT($H17,1)=\"a\",$G17*VLOOKUP($AA21,tFertRatio_ac[],4+Shift,FALSE),$G17*VLOOKUP($AA21,tFertRatio_sf[],4+Shift,FALSE))","v":0}]
["LIME SUMMARY"]
["Type of Lime:",null,{"$f":"Lime!C12","v":0}]
[{"$f":"IF(LEFT(C23,1)=\"A\",\"\",\"% of CCE:\")","v":"% of CCE:"},null,{"$f":"Lime!C13","v":0}]
["Average Buffer pH:",null,null,{"$f":"Lime!D15","v":"n/a"}]
["Agricultural Lime Application Rate:",null,null,{"$f":"Lime!D16","v":{"$error":"#N/A"}},{"$f":"Lime!E16","v":{"$error":"#N/A"}}]
["Adjusted Lime Application Rate: ",null,null,{"$f":"Lime!D17","v":"Review"},{"$f":"Lime!E17","v":"Input"}]
[]
[]
["NUTRIENT SUMMARY","Nitrogen \n(N)","Phosphoric Acid (P)","Potash \n(K)","Lime (tons)"]
["Permanent Seeding",{"$f":"IF(SUM($G$18:$G$20)=0,AC$17,IF(SUM($AB$18:$AB$20)<>$AB$17,\"Check Areas\",IF(OR(SUM($AC$18:$AE$20)=0,COUNTIF($I$18:$I$20,\"\")<3),\"Check Groups\",SUM(AC$18:AC$20))))","v":{"$error":"#N/A"}},{"$f":"IF(SUM($G$18:$G$20)=0,AD$17,IF(SUM($AB$18:$AB$20)<>$AB$17,\"Check Areas\",IF(OR(SUM($AC$18:$AE$20)=0,COUNTIF($I$18:$I$20,\"\")<3),\"Check Groups\",SUM(AD$18:AD$20))))","v":{"$error":"#N/A"}},{"$error":"#N/A"},{"$f":"$D$26*Area_PSac","v":{"$error":"#N/A"}},{"$f":"IF($B$31=\"Check Areas\",\"The sum of the areas for the 3 fertilizer groups above do not add up to the total area of permanent seeding\",IF($B$31=\"Check Groups\",\"Review the warning messages beside the fertilizer groups above\",\"\"))","v":{"$error":"#N/A"}}]
["Incr. Adjustment \n(P.S. Only)",{"$f":"B31*0.25","v":{"$error":"#N/A"}},{"$f":"C31*0.25","v":{"$error":"#N/A"}},{"$f":"D31*0.25","v":{"$error":"#N/A"}},{"$f":"E31*0.25","v":{"$error":"#N/A"}},{"$f":"IF($B$31=\"Check Areas\",\"The sum of the areas for the 3 fertilizer groups above do not add up to the total area of permanent seeding\",IF($B$31=\"Check Groups\",\"Review the warning messages beside the fertilizer groups above\",\"\"))","v":{"$error":"#N/A"}}]
["Temporary Seeding ",{"$f":"AC16","v":0},{"$f":"AD16","v":0},{"$f":"AE16","v":0},{"$f":"IF(LEFT(NMPresults,4)=\"Turf\",$D$26*Area_TSac,0)","v":{"$error":"#N/A"}}]
["Overseeding",{"$f":"AC21","v":0},{"$f":"AD21","v":0},{"$f":"AE21","v":0},{"$f":"E31*0.5","v":{"$error":"#N/A"}}]
["Total Applied (lbs)",{"$f":"SUM(B31:B34)","v":{"$error":"#N/A"}},{"$f":"SUM(C31:C34)","v":{"$error":"#N/A"}},{"$f":"SUM(D31:D34)","v":{"$error":"#N/A"}},{"$f":"SUM(E31:E34)","v":{"$error":"#N/A"}},{"$f":"IF($B$31=\"Check Areas\",\"The sum of the areas for the 3 fertilizer groups above do not add up to the total area of permanent seeding\",IF($B$31=\"Check Groups\",\"Review the warning messages beside the fertilizer groups above\",\"\"))","v":{"$error":"#N/A"}}]

{"sheet":"Nutrient Rates","index":10,"n_rows":8,"n_cols":8,"rows_kept":8,"cut":false,"hidden":true,"merged":[[2,4,2,6]]}
[]
[null,"Area","Fertilizer Grade","Application Rate (Fertilizer)","Nitrogen (N)","Phosphoric Acid (P)","Potash (K)","Application Rate (Lime)"]
[null,"(ac)","(N-P-K)","(lbs/ac)","(lbs/ac)",null,null,"(tons/ac)"]
["Regular Seed",{"$f":"Area_PSac","v":0},{"$f":"VLOOKUP(\"Default Fertilizer\",tFertilizers[],2+Shift,FALSE)","v":"15-30-15"},{"$f":"VLOOKUP(\"Default Fertilizer\",tFertilizers[],3+Shift,FALSE)","v":250},{"$f":"VLOOKUP(\"Default\",tFertRatio_ac[],2+Shift,FALSE)","v":37.5},{"$f":"VLOOKUP(\"Default\",tFertRatio_ac[],3+Shift,FALSE)","v":75},{"$f":"VLOOKUP(\"Default\",tFertRatio_ac[],4+Shift,FALSE)","v":37.5},2]
["Incremental Adjustment (P.S. Only)",{"$f":"0.25*B4","v":0},{"$f":"C4","v":"15-30-15"},{"$f":"D4","v":250},{"$f":"E4","v":37.5},75,37.5,2]
["Temporary Seed",{"$f":"Area_TSac","v":0},{"$f":"VLOOKUP(\"Temporary Seeding\",tFertilizers[],2+Shift,FALSE)","v":"15-30-15"},{"$f":"VLOOKUP(\"Temporary Seeding\",tFertilizers[],3+Shift,FALSE)","v":125},{"$f":"VLOOKUP(\"TS\",tFertRatio_ac[],2+Shift,FALSE)","v":18.75},{"$f":"VLOOKUP(\"TS\",tFertRatio_ac[],3+Shift,FALSE)","v":37.5},{"$f":"VLOOKUP(\"TS\",tFertRatio_ac[],4+Shift,FALSE)","v":18.75},1]
["Overseeding",{"$f":"B4","v":0},{"$f":"VLOOKUP(\"Overseeding\",tFertilizers[],2+Shift,FALSE)","v":"46-0-0"},{"$f":"VLOOKUP(\"Overseeding\",tFertilizers[],3+Shift,FALSE)","v":65},{"$f":"VLOOKUP(\"OS\",tFertRatio_ac[],2+Shift,FALSE)","v":30},{"$f":"VLOOKUP(\"OS\",tFertRatio_ac[],3+Shift,FALSE)","v":0},{"$f":"VLOOKUP(\"OS\",tFertRatio_ac[],4+Shift,FALSE)","v":0},1]
["Total Applied (lbs)",null,null,null,{"$f":"SUMPRODUCT($B$4:$B$7,E4:E7)","v":0},{"$f":"SUMPRODUCT($B$4:$B$7,F4:F7)","v":0},{"$f":"SUMPRODUCT($B$4:$B$7,G4:G7)","v":0},{"$f":"SUMPRODUCT($B$4:$B$7,H4:H7)","v":0}]

{"sheet":"Mulch","index":11,"n_rows":19,"n_cols":7,"rows_kept":19,"cut":false,"hidden":true,"merged":[[1,0,1,1],[8,0,8,1],[11,1,11,2],[11,7,11,8],[17,1,18,1],[17,2,18,2],[17,3,18,3],[17,4,18,4],[17,5,18,5],[17,6,18,6]]}
[]
["Location",null,"Max. Slope","Area (ac)","Mulch Type","Inc. Adj.","Total Area (ac)"]
["Core Mix 1","Mow",{"$f":"'Start Page'!$AA29","v":0},{"$f":"'Start Page'!$AA28","v":0},{"$f":"VLOOKUP(C3,Table22[],3,TRUE)","v":"n/a"},{"$f":"D3*0.25","v":0},{"$f":"F3+D3","v":0}]
["Core Mix 1","Slopes",{"$f":"'Start Page'!$AA31","v":0},{"$f":"'Start Page'!$AA30","v":0},{"$f":"VLOOKUP(C4,Table22[],3,TRUE)","v":"n/a"},0,{"$f":"F4+D4","v":0}]
["Core Mix 2","Mow",{"$f":"'Start Page'!$AA42","v":0},{"$f":"'Start Page'!$AA41","v":0},{"$f":"VLOOKUP(C5,Table22[],3,TRUE)","v":"n/a"},0,0]
["Core Mix 2","Slopes",{"$f":"'Start Page'!$AA44","v":0},{"$f":"'Start Page'!$AA43","v":0},{"$f":"VLOOKUP(C6,Table22[],3,TRUE)","v":"n/a"},0,0]
["Core Mix 3","Mow",{"$f":"'Start Page'!$AA55","v":0},{"$f":"'Start Page'!$AA54","v":0},{"$f":"VLOOKUP(C7,Table22[],3,TRUE)","v":"n/a"},0,0]
["Core Mix 3","Slopes",{"$f":"'Start Page'!$AA57","v":0},{"$f":"'Start Page'!$AA56","v":0},{"$f":"VLOOKUP(C8,Table22[],3,TRUE)","v":"n/a"},0,0]
["Temporary Seed",null,"n/a",{"$f":"Area_TSac","v":0},"HECP Type 3",0,0]
[]
[]
["HECP","REGULAR SEED",null,"TEMPORARY","OVER-","TOTAL","TOTAL"]
["TYPE","MOW","SLOPES","SEED","SEEDING","(ACRES)","(SQ. YARDS)"]
["TYPE 1",{"$f":"SUMIFS($G$3:$G$8,$B$3:$B$8,B$13,$E$3:$E$8,\"HECP \"&$A14)","v":0},0,0,0,{"$f":"SUM(B14:E14)","v":0},{"$f":"(F14*43560)/(3^2)","v":0}]
["TYPE 2",0,0,0,0,{"$f":"SUM(B15:E15)","v":0},{"$f":"(F15*43560)/(3^2)","v":0}]
["TYPE 3",0,0,{"$f":"G9","v":0},0,{"$f":"SUM(B16:E16)","v":0},{"$f":"(F16*43560)/(3^2)","v":0}]
["TYPE 4",0,0,0,0,{"$f":"SUM(B17:E17)","v":0},{"$f":"(F17*43560)/(3^2)","v":0}]
["n/a",{"$f":"SUMIFS($G$3:$G$8,$B$3:$B$8,B$13,$E$3:$E$8,$A18)","v":0},{"$f":"SUMIFS($G$3:$G$8,$B$3:$B$8,C$13,$E$3:$E$8,$A18)","v":0},0,0,{"$f":"SUM(B18:E18)","v":0},{"$f":"(F18*43560)/(3^2)","v":0}]
["(too steep)"]

{"sheet":"Seed Lists","index":12,"n_rows":92,"n_cols":31,"rows_kept":92,"cut":false,"hidden":true,"merged":[]}
[null,null,null,null,null,null,null,null,null,null,null,null,null,null,null,null,null,null,null,null,null,null,null,null,null,null,"Hide Row?","Page Break Group Number","Count of Core Mix Seeds in Table","Count of Additive Seeds in Table","Rows Shown"]
[null,null,{"$f":"UPPER('Seed Rate Selection'!A6)","v":"CORE MIXES:"},null,null,null,null,null,null,null,null,null,null,null,null,null,null,null,null,null,null,null,null,null,null,null,{"$f":"COUNTIF(tSeed_Core[Selected?],\"yes\")<1","v":true},1,null,null,"Used"]
[null,{"$f":"UPPER(tSeed_Core[[#Headers],[Mix]])","v":"MIX"},{"$f":"UPPER(tSeed_Core[[#Headers],[Description]])","v":"DESCRIPTION"},{"$f":"UPPER(tSeed_Core[[#Headers],[Lbs/Acre]])","v":"LBS/ACRE"},null,null,null,null,null,null,null,null,null,null,null,null,null,null,null,null,null,null,null,null,null,null,{"$f":"COUNTIF(tSeed_Core[Selected?],\"yes\")<1","v":true},1]
[null,"1*",{"$f":"UPPER(VLOOKUP($B4,tSeed_Core[],2,FALSE))","v":"100% CERTIFIED FINE FESCUE*"},{"$f":"UPPER(VLOOKUP($B4,tSeed_Core[],4,FALSE))","v":""},null,null,null,null,null,null,null,null,null,null,null,null,null,null,null,null,null,null,null,null,null,null,{"$f":"VLOOKUP($B4,tSeed_Core[],9,FALSE)=\"no\"","v":true},1]
[null,"2",{"$f":"UPPER(VLOOKUP($B5,tSeed_Core[],2,FALSE))","v":"100% CERTIFIED TALL FESCUE"},{"$f":"UPPER(VLOOKUP($B5,tSeed_Core[],4,FALSE))","v":""},null,null,null,null,null,null,null,null,null,null,null,null,null,null,null,null,null,null,null,null,null,null,{"$f":"VLOOKUP($B5,tSeed_Core[],9,FALSE)=\"no\"","v":true},1]
[null,"3*",{"$f":"UPPER(VLOOKUP($B6,tSeed_Core[],2,FALSE))","v":"50% CERTIFIED TALL FESCUE  /  50% CERTIFIED FINE FESCUE*"},{"$f":"UPPER(VLOOKUP($B6,tSeed_Core[],4,FALSE))","v":""},null,null,null,null,null,null,null,null,null,null,null,null,null,null,null,null,null,null,null,null,null,null,{"$f":"VLOOKUP($B6,tSeed_Core[],9,FALSE)=\"no\"","v":true},1]
[null,"4",{"$f":"UPPER(VLOOKUP($B7,tSeed_Core[],2,FALSE))","v":"50% ORCHARDGRASS  /  50% CERTIFIED KENTUCKY BLUEGRASS"},{"$f":"UPPER(VLOOKUP($B7,tSeed_Core[],4,FALSE))","v":""},null,null,null,null,null,null,null,null,null,null,null,null,null,null,null,null,null,null,null,null,null,null,{"$f":"VLOOKUP($B7,tSeed_Core[],9,FALSE)=\"no\"","v":true},1]
[null,"5",{"$f":"UPPER(VLOOKUP($B8,tSeed_Core[],2,FALSE))","v":"100% BERMUDAGRASS"},{"$f":"UPPER(VLOOKUP($B8,tSeed_Core[],4,FALSE))","v":""},null,null,null,null,null,null,null,null,null,null,null,null,null,null,null,null,null,null,null,null,null,null,{"$f":"VLOOKUP($B8,tSeed_Core[],9,FALSE)=\"no\"","v":true},1]
[null,"C1",{"$f":"UPPER(VLOOKUP($B9,tSeed_Core[],2,FALSE))","v":"CUSTOM 1, SEE BOX BELOW FOR CONTENTS OF MIXTURE"},{"$f":"UPPER(VLOOKUP($B9,tSeed_Core[],4,FALSE))","v":"0"},null,null,null,null,null,null,null,null,null,null,null,null,null,null,null,null,null,null,null,null,null,null,{"$f":"VLOOKUP($B9,tSeed_Core[],9,FALSE)=\"no\"","v":true},1]
[null,"C2",{"$f":"UPPER(VLOOKUP($B10,tSeed_Core[],2,FALSE))","v":"CUSTOM 2, SEE BOX BELOW FOR CONTENTS OF MIXTURE"},{"$f":"UPPER(VLOOKUP($B10,tSeed_Core[],4,FALSE))","v":"0"},null,null,null,null,null,null,null,null,null,null,null,null,null,null,null,null,null,null,null,null,null,null,{"$f":"VLOOKUP($B10,tSeed_Core[],9,FALSE)=\"no\"","v":true},1]
[null,"C3",{"$f":"UPPER(VLOOKUP($B11,tSeed_Core[],2,FALSE))","v":"CUSTOM 3, SEE BOX BELOW FOR CONTENTS OF MIXTURE"},{"$f":"UPPER(VLOOKUP($B11,tSeed_Core[],4,FALSE))","v":"0"},null,null,null,null,null,null,null,null,null,null,null,null,null,null,null,null,null,null,null,null,null,null,{"$f":"VLOOKUP($B11,tSeed_Core[],9,FALSE)=\"no\"","v":true},1]
[null,"T1",{"$f":"UPPER(VLOOKUP($B12,tSeed_Core[],2,FALSE))","v":"50% CERTIFIED TALL FESCUE  /  50% BARLEY, WINTER RYE, OR WINTER WHEAT"},{"$f":"UPPER(VLOOKUP($B12,tSeed_Core[],4,FALSE))","v":""},null,null,null,null,null,null,null,null,null,null,null,null,null,null,null,null,null,null,null,null,null,null,{"$f":"VLOOKUP($B12,tSeed_Core[],9,FALSE)=\"no\"","v":true},1]
[null,"T2",{"$f":"UPPER(VLOOKUP($B13,tSeed_Core[],2,FALSE))","v":"50% FOXTAIL MILLET  /  50% CERTIFIED TALL FESCUE"},{"$f":"UPPER(VLOOKUP($B13,tSeed_Core[],4,FALSE))","v":""},null,null,null,null,null,null,null,null,null,null,null,null,null,null,null,null,null,null,null,null,null,null,{"$f":"VLOOKUP($B13,tSeed_Core[],9,FALSE)=\"no\"","v":true},1]
[null,"*:",{"$f":"UPPER('Seed Rate Selection'!B20)&CHAR(10)&UPPER('Seed Rate Selection'!C20)","v":"FINE FESCUES INCLUDE CHEWINGS, CREEPING RED, HARD, & SHEEP.\nSEE SEEDING SCHEDULE FOR TYPE(S) SPECIFIED FOR THIS PROJECT."},null,null,null,null,null,null,null,null,null,null,null,null,null,null,null,null,null,null,null,null,null,null,null,{"$f":"AND(AA4=TRUE,AA6=TRUE)","v":true},1]
[null,null,null,null,null,null,null,null,null,null,null,null,null,null,null,null,null,null,null,null,null,null,null,null,null,null,false,2]
[null,null,{"$f":"'Seed Rate Selection'!A33","v":"ADDITIVES:"},null,null,null,null,null,null,null,null,null,null,null,null,null,null,null,null,null,null,null,null,null,null,null,{"$f":"COUNTIF(tSeed_Add[Selected?],\"yes\")<1","v":true},2]
[null,{"$f":"UPPER(tSeed_Add[[#Headers],[Type]])","v":"TYPE"},{"$f":"UPPER(tSeed_Add[[#Headers],[Description]])","v":"DESCRIPTION"},{"$f":"UPPER(tSeed_Add[[#Headers],[Lbs/Acre]])","v":"LBS/ACRE"},null,null,null,null,null,null,null,null,null,null,null,null,null,null,null,null,null,null,null,null,null,null,{"$f":"COUNTIF(tSeed_Add[Selected?],\"yes\")<1","v":true},2]
[null,"A",{"$f":"UPPER(VLOOKUP($B18,tSeed_Add[],2,FALSE))","v":"100% LOVEGRASS**"},{"$f":"UPPER(VLOOKUP($B18,tSeed_Add[],4,FALSE))","v":""},null,null,null,null,null,null,null,null,null,null,null,null,null,null,null,null,null,null,null,null,null,null,{"$f":"VLOOKUP($B18,tSeed_Add[],9,FALSE)=\"no\"","v":true},2]
[null,"B",{"$f":"UPPER(VLOOKUP($B19,tSeed_Add[],2,FALSE))","v":"100% BARLEY, WINTER RYE, OR WINTER WHEAT"},{"$f":"UPPER(VLOOKUP($B19,tSeed_Add[],4,FALSE))","v":""},null,null,null,null,null,null,null,null,null,null,null,null,null,null,null,null,null,null,null,null,null,null,{"$f":"VLOOKUP($B19,tSeed_Add[],9,FALSE)=\"no\"","v":true},2]
[null,"C",{"$f":"UPPER(VLOOKUP($B20,tSeed_Add[],2,FALSE))","v":"100% FOXTAIL MILLET"},{"$f":"UPPER(VLOOKUP($B20,tSeed_Add[],4,FALSE))","v":""},null,null,null,null,null,null,null,null,null,null,null,null,null,null,null,null,null,null,null,null,null,null,{"$f":"VLOOKUP($B20,tSeed_Add[],9,FALSE)=\"no\"","v":true},2]
[null,"D",{"$f":"UPPER(VLOOKUP($B21,tSeed_Add[],2,FALSE))","v":"100% ANNUAL RYEGRASS"},{"$f":"UPPER(VLOOKUP($B21,tSeed_Add[],4,FALSE))","v":""},null,null,null,null,null,null,null,null,null,null,null,null,null,null,null,null,null,null,null,null,null,null,{"$f":"VLOOKUP($B21,tSeed_Add[],9,FALSE)=\"no\"","v":true},2]
[null,"E",{"$f":"UPPER(VLOOKUP($B22,tSeed_Add[],2,FALSE))","v":"100% BLUE GRAMA"},{"$f":"UPPER(VLOOKUP($B22,tSeed_Add[],4,FALSE))","v":""},null,null,null,null,null,null,null,null,null,null,null,null,null,null,null,null,null,null,null,null,null,null,{"$f":"VLOOKUP($B22,tSeed_Add[],9,FALSE)=\"no\"","v":true},2]
[null,"F",{"$f":"UPPER(VLOOKUP($B23,tSeed_Add[],2,FALSE))","v":"100% ALFALFA"},{"$f":"UPPER(VLOOKUP($B23,tSeed_Add[],4,FALSE))","v":""},null,null,null,null,null,null,null,null,null,null,null,null,null,null,null,null,null,null,null,null,null,null,{"$f":"VLOOKUP($B23,tSeed_Add[],9,FALSE)=\"no\"","v":true},2]
[null,"G",{"$f":"UPPER(VLOOKUP($B24,tSeed_Add[],2,FALSE))","v":"100% WHITE CLOVER"},{"$f":"UPPER(VLOOKUP($B24,tSeed_Add[],4,FALSE))","v":""},null,null,null,null,null,null,null,null,null,null,null,null,null,null,null,null,null,null,null,null,null,null,{"$f":"VLOOKUP($B24,tSeed_Add[],9,FALSE)=\"no\"","v":true},2]
[null,"H",{"$f":"UPPER(VLOOKUP($B25,tSeed_Add[],2,FALSE))","v":"100% CROWN VETCH (LEGUME)**"},{"$f":"UPPER(VLOOKUP($B25,tSeed_Add[],4,FALSE))","v":""},null,null,null,null,null,null,null,null,null,null,null,null,null,null,null,null,null,null,null,null,null,null,{"$f":"VLOOKUP($B25,tSeed_Add[],9,FALSE)=\"no\"","v":true},2]
[null,"I",{"$f":"UPPER(VLOOKUP($B26,tSeed_Add[],2,FALSE))","v":"100% SERICEA LESPEDEZA (LEGUME)**"},{"$f":"UPPER(VLOOKUP($B26,tSeed_Add[],4,FALSE))","v":""},null,null,null,null,null,null,null,null,null,null,null,null,null,null,null,null,null,null,null,null,null,null,{"$f":"VLOOKUP($B26,tSeed_Add[],9,FALSE)=\"no\"","v":true},2]
[null,"J",{"$f":"UPPER(VLOOKUP($B27,tSeed_Add[],2,FALSE))","v":"100% BIRDSFOOT TREFOIL (LEGUME)**"},{"$f":"UPPER(VLOOKUP($B27,tSeed_Add[],4,FALSE))","v":""},null,null,null,null,null,null,null,null,null,null,null,null,null,null,null,null,null,null,null,null,null,null,{"$f":"VLOOKUP($B27,tSeed_Add[],9,FALSE)=\"no\"","v":true},2]
[null,"K",{"$f":"UPPER(VLOOKUP($B28,tSeed_Add[],2,FALSE))","v":"POLLINATOR SEED MIX "},{"$f":"UPPER(VLOOKUP($B28,tSeed_Add[],4,FALSE))","v":""},null,null,null,null,null,null,null,null,null,null,null,null,null,null,null,null,null,null,null,null,null,null,{"$f":"VLOOKUP($B28,tSeed_Add[],9,FALSE)=\"no\"","v":true},2]
[null,"L",{"$f":"UPPER(VLOOKUP($B29,tSeed_Add[],2,FALSE))","v":""},{"$f":"UPPER(VLOOKUP($B29,tSeed_Add[],4,FALSE))","v":""},null,null,null,null,null,null,null,null,null,null,null,null,null,null,null,null,null,null,null,null,null,null,{"$f":"VLOOKUP($B29,tSeed_Add[],9,FALSE)=\"no\"","v":true},2]
[null,"M",{"$f":"UPPER(VLOOKUP($B30,tSeed_Add[],2,FALSE))","v":""},{"$f":"UPPER(VLOOKUP($B30,tSeed_Add[],4,FALSE))","v":""},null,null,null,null,null,null,null,null,null,null,null,null,null,null,null,null,null,null,null,null,null,null,{"$f":"VLOOKUP($B30,tSeed_Add[],9,FALSE)=\"no\"","v":true},2]
[null,"N",{"$f":"UPPER(VLOOKUP($B31,tSeed_Add[],2,FALSE))","v":""},{"$f":"UPPER(VLOOKUP($B31,tSeed_Add[],4,FALSE))","v":""},null,null,null,null,null,null,null,null,null,null,null,null,null,null,null,null,null,null,null,null,null,null,{"$f":"VLOOKUP($B31,tSeed_Add[],9,FALSE)=\"no\"","v":true},2]
[null,"O",{"$f":"UPPER(VLOOKUP($B32,tSeed_Add[],2,FALSE))","v":""},{"$f":"UPPER(VLOOKUP($B32,tSeed_Add[],4,FALSE))","v":""},null,null,null,null,null,null,null,null,null,null,null,null,null,null,null,null,null,null,null,null,null,null,{"$f":"VLOOKUP($B32,tSeed_Add[],9,FALSE)=\"no\"","v":true},2]
[null,{"$f":"IF(OR(COUNTIFS(tSeed_Add[Selected?],\"Yes\",tSeed_Add[Slope Restricted?],\"Yes\")>0,rSeedShown=\"All\"),\"**:\",\"\")","v":""},{"$f":"IF(OR(COUNTIFS(tSeed_Add[Selected?],\"Yes\",tSeed_Add[Slope Restricted?],\"Yes\")>0,rSeedShown=\"All\"),\"THESE ADDITIVES ARE NOT TO BE USED IN AREAS THAT WILL BE MOWED \n(SLOPES FLATTER THAN OR EQUAL TO 3:1)\",\"\")","v":""},null,null,null,null,null,null,null,null,null,null,null,null,null,null,null,null,null,null,null,null,null,null,null,{"$f":"AND(B33=\"\",rSeedShown=\"Used\")","v":true},2]
[null,null,null,null,null,null,null,null,null,null,null,null,null,null,null,null,null,null,null,null,null,null,null,null,null,null,{"$f":"COUNTIF(tSeed_Add[Selected?],\"yes\")<1","v":true},2]
[null,null,{"$f":"IF('Seed Rate Selection'!C4=1,\"CUSTOM SEED MIX\",IF('Seed Rate Selection'!C4>1,\"CUSTOM SEED MIXES\",\"\"))","v":""},null,null,null,null,null,null,null,null,null,null,null,null,null,null,null,null,null,null,null,null,null,null,null,{"$f":"OR(LEFT('Seed Rate Selection'!$C$3,1)=\"n\",ISBLANK('Seed Rate Selection'!$C$3))","v":true},3]
[null,"PERCENT",{"$f":"UPPER('Seed Rate Selection'!C55)","v":"CUSTOM MIX CODE:"},{"$f":"'Seed Rate Selection'!D55","v":"C1"},null,null,null,null,null,null,null,null,null,null,null,null,null,null,null,null,null,null,null,null,null,null,{"$f":"'Seed Rate Selection'!$C$4<1","v":true},3]
[null,"OF",{"$f":"UPPER('Seed Rate Selection'!C56)","v":"APPLICATION RATE (LBS/AC):"},{"$f":"'Seed Rate Selection'!D56","v":0},{"$f":"IF(AND('Seed Rate Selection'!$C$4>=1,D37<1),\"Please Check Entries for Custom Seed Mix 1 on the Seed Lists Page\",\"\")","v":""},null,null,null,null,null,null,null,null,null,null,null,null,null,null,null,null,null,null,null,null,null,{"$f":"'Seed Rate Selection'!$C$4<1","v":true},3]
[null,"MIX",{"$f":"UPPER('Seed Rate Selection'!C57)","v":"SEED NAME"},{"$f":"UPPER('Seed Rate Selection'!D57)","v":"LBS/ACRE"},null,null,null,null,null,null,null,null,null,null,null,null,null,null,null,null,null,null,null,null,null,null,{"$f":"'Seed Rate Selection'!$C$4<1","v":true},3]
[1,{"$f":"IF(ISBLANK(INDEX(tSeed_Custom1[% Of Mix],$A39)),\"\",INDEX(tSeed_Custom1[% Of Mix],$A39))","v":0},{"$f":"IF(ISBLANK(INDEX(tSeed_Custom1[Seed Name],$A39)),\"\",UPPER(INDEX(tSeed_Custom1[Seed Name],$A39)))","v":""},{"$f":"IF(ISBLANK(INDEX(tSeed_Custom1[Lbs/Acre],$A39)),\"\",INDEX(tSeed_Custom1[Lbs/Acre],$A39))","v":""},{"$f":"IF(OR(COUNTIF(C39:D39,\"\")=1,AND(COUNTIF(C39:D39,\"\")<2,'Seed Rate Selection'!$C$4<1)),\"Please Check Entries for Custom Seed Mix 1 on the Seed Lists Page\",\"\")","v":""},null,null,null,null,null,null,null,null,null,null,null,null,null,null,null,null,null,null,null,null,null,{"$f":"AND(C39=\"\",D39=\"\")","v":true},3]
[2,{"$f":"IF(ISBLANK(INDEX(tSeed_Custom1[% Of Mix],$A40)),\"\",INDEX(tSeed_Custom1[% Of Mix],$A40))","v":0},{"$f":"IF(ISBLANK(INDEX(tSeed_Custom1[Seed Name],$A40)),\"\",UPPER(INDEX(tSeed_Custom1[Seed Name],$A40)))","v":""},{"$f":"IF(ISBLANK(INDEX(tSeed_Custom1[Lbs/Acre],$A40)),\"\",INDEX(tSeed_Custom1[Lbs/Acre],$A40))","v":""},{"$f":"IF(OR(COUNTIF(C40:D40,\"\")=1,AND(COUNTIF(C40:D40,\"\")<2,'Seed Rate Selection'!$C$4<1)),\"Please Check Entries for Custom Seed Mix 1 on the Seed Lists Page\",\"\")","v":""},null,null,null,null,null,null,null,null,null,null,null,null,null,null,null,null,null,null,null,null,null,{"$f":"AND(C40=\"\",D40=\"\")","v":true},3]
[3,{"$f":"IF(ISBLANK(INDEX(tSeed_Custom1[% Of Mix],$A41)),\"\",INDEX(tSeed_Custom1[% Of Mix],$A41))","v":0},{"$f":"IF(ISBLANK(INDEX(tSeed_Custom1[Seed Name],$A41)),\"\",UPPER(INDEX(tSeed_Custom1[Seed Name],$A41)))","v":""},{"$f":"IF(ISBLANK(INDEX(tSeed_Custom1[Lbs/Acre],$A41)),\"\",INDEX(tSeed_Custom1[Lbs/Acre],$A41))","v":""},{"$f":"IF(OR(COUNTIF(C41:D41,\"\")=1,AND(COUNTIF(C41:D41,\"\")<2,'Seed Rate Selection'!$C$4<1)),\"Please Check Entries for Custom Seed Mix 1 on the Seed Lists Page\",\"\")","v":""},null,null,null,null,null,null,null,null,null,null,null,null,null,null,null,null,null,null,null,null,null,true,3]
[4,{"$f":"IF(ISBLANK(INDEX(tSeed_Custom1[% Of Mix],$A42)),\"\",INDEX(tSeed_Custom1[% Of Mix],$A42))","v":0},{"$f":"IF(ISBLANK(INDEX(tSeed_Custom1[Seed Name],$A42)),\"\",UPPER(INDEX(tSeed_Custom1[Seed Name],$A42)))","v":""},{"$f":"IF(ISBLANK(INDEX(tSeed_Custom1[Lbs/Acre],$A42)),\"\",INDEX(tSeed_Custom1[Lbs/Acre],$A42))","v":""},{"$f":"IF(OR(COUNTIF(C42:D42,\"\")=1,AND(COUNTIF(C42:D42,\"\")<2,'Seed Rate Selection'!$C$4<1)),\"Please Check Entries for Custom Seed Mix 1 on the Seed Lists Page\",\"\")","v":""},null,null,null,null,null,null,null,null,null,null,null,null,null,null,null,null,null,null,null,null,null,true,3]
[5,{"$f":"IF(ISBLANK(INDEX(tSeed_Custom1[% Of Mix],$A43)),\"\",INDEX(tSeed_Custom1[% Of Mix],$A43))","v":0},{"$f":"IF(ISBLANK(INDEX(tSeed_Custom1[Seed Name],$A43)),\"\",UPPER(INDEX(tSeed_Custom1[Seed Name],$A43)))","v":""},{"$f":"IF(ISBLANK(INDEX(tSeed_Custom1[Lbs/Acre],$A43)),\"\",INDEX(tSeed_Custom1[Lbs/Acre],$A43))","v":""},{"$f":"IF(OR(COUNTIF(C43:D43,\"\")=1,AND(COUNTIF(C43:D43,\"\")<2,'Seed Rate Selection'!$C$4<1)),\"Please Check Entries for Custom Seed Mix 1 on the Seed Lists Page\",\"\")","v":""},null,null,null,null,null,null,null,null,null,null,null,null,null,null,null,null,null,null,null,null,null,true,3]
[6,{"$f":"IF(ISBLANK(INDEX(tSeed_Custom1[% Of Mix],$A44)),\"\",INDEX(tSeed_Custom1[% Of Mix],$A44))","v":0},{"$f":"IF(ISBLANK(INDEX(tSeed_Custom1[Seed Name],$A44)),\"\",UPPER(INDEX(tSeed_Custom1[Seed Name],$A44)))","v":""},{"$f":"IF(ISBLANK(INDEX(tSeed_Custom1[Lbs/Acre],$A44)),\"\",INDEX(tSeed_Custom1[Lbs/Acre],$A44))","v":""},{"$f":"IF(OR(COUNTIF(C44:D44,\"\")=1,AND(COUNTIF(C44:D44,\"\")<2,'Seed Rate Selection'!$C$4<1)),\"Please Check Entries for Custom Seed Mix 1 on the Seed Lists Page\",\"\")","v":""},null,null,null,null,null,null,null,null,null,null,null,null,null,null,null,null,null,null,null,null,null,true,3]
[7,{"$f":"IF(ISBLANK(INDEX(tSeed_Custom1[% Of Mix],$A45)),\"\",INDEX(tSeed_Custom1[% Of Mix],$A45))","v":0},{"$f":"IF(ISBLANK(INDEX(tSeed_Custom1[Seed Name],$A45)),\"\",UPPER(INDEX(tSeed_Custom1[Seed Name],$A45)))","v":""},{"$f":"IF(ISBLANK(INDEX(tSeed_Custom1[Lbs/Acre],$A45)),\"\",INDEX(tSeed_Custom1[Lbs/Acre],$A45))","v":""},{"$f":"IF(OR(COUNTIF(C45:D45,\"\")=1,AND(COUNTIF(C45:D45,\"\")<2,'Seed Rate Selection'!$C$4<1)),\"Please Check Entries for Custom Seed Mix 1 on the Seed Lists Page\",\"\")","v":""},null,null,null,null,null,null,null,null,null,null,null,null,null,null,null,null,null,null,null,null,null,true,3]
[8,{"$f":"IF(ISBLANK(INDEX(tSeed_Custom1[% Of Mix],$A46)),\"\",INDEX(tSeed_Custom1[% Of Mix],$A46))","v":0},{"$f":"IF(ISBLANK(INDEX(tSeed_Custom1[Seed Name],$A46)),\"\",UPPER(INDEX(tSeed_Custom1[Seed Name],$A46)))","v":""},{"$f":"IF(ISBLANK(INDEX(tSeed_Custom1[Lbs/Acre],$A46)),\"\",INDEX(tSeed_Custom1[Lbs/Acre],$A46))","v":""},{"$f":"IF(OR(COUNTIF(C46:D46,\"\")=1,AND(COUNTIF(C46:D46,\"\")<2,'Seed Rate Selection'!$C$4<1)),\"Please Check Entries for Custom Seed Mix 1 on the Seed Lists Page\",\"\")","v":""},null,null,null,null,null,null,null,null,null,null,null,null,null,null,null,null,null,null,null,null,null,true,3]
[9,{"$f":"IF(ISBLANK(INDEX(tSeed_Custom1[% Of Mix],$A47)),\"\",INDEX(tSeed_Custom1[% Of Mix],$A47))","v":0},{"$f":"IF(ISBLANK(INDEX(tSeed_Custom1[Seed Name],$A47)),\"\",UPPER(INDEX(tSeed_Custom1[Seed Name],$A47)))","v":""},{"$f":"IF(ISBLANK(INDEX(tSeed_Custom1[Lbs/Acre],$A47)),\"\",INDEX(tSeed_Custom1[Lbs/Acre],$A47))","v":""},{"$f":"IF(OR(COUNTIF(C47:D47,\"\")=1,AND(COUNTIF(C47:D47,\"\")<2,'Seed Rate Selection'!$C$4<1)),\"Please Check Entries for Custom Seed Mix 1 on the Seed Lists Page\",\"\")","v":""},null,null,null,null,null,null,null,null,null,null,null,null,null,null,null,null,null,null,null,null,null,true,3]
[10,{"$f":"IF(ISBLANK(INDEX(tSeed_Custom1[% Of Mix],$A48)),\"\",INDEX(tSeed_Custom1[% Of Mix],$A48))","v":0},{"$f":"IF(ISBLANK(INDEX(tSeed_Custom1[Seed Name],$A48)),\"\",UPPER(INDEX(tSeed_Custom1[Seed Name],$A48)))","v":""},{"$f":"IF(ISBLANK(INDEX(tSeed_Custom1[Lbs/Acre],$A48)),\"\",INDEX(tSeed_Custom1[Lbs/Acre],$A48))","v":""},{"$f":"IF(OR(COUNTIF(C48:D48,\"\")=1,AND(COUNTIF(C48:D48,\"\")<2,'Seed Rate Selection'!$C$4<1)),\"Please Check Entries for Custom Seed Mix 1 on the Seed Lists Page\",\"\")","v":""},null,null,null,null,null,null,null,null,null,null,null,null,null,null,null,null,null,null,null,null,null,true,3]
[11,{"$f":"IF(ISBLANK(INDEX(tSeed_Custom1[% Of Mix],$A49)),\"\",INDEX(tSeed_Custom1[% Of Mix],$A49))","v":0},{"$f":"IF(ISBLANK(INDEX(tSeed_Custom1[Seed Name],$A49)),\"\",UPPER(INDEX(tSeed_Custom1[Seed Name],$A49)))","v":""},{"$f":"IF(ISBLANK(INDEX(tSeed_Custom1[Lbs/Acre],$A49)),\"\",INDEX(tSeed_Custom1[Lbs/Acre],$A49))","v":""},{"$f":"IF(OR(COUNTIF(C49:D49,\"\")=1,AND(COUNTIF(C49:D49,\"\")<2,'Seed Rate Selection'!$C$4<1)),\"Please Check Entries for Custom Seed Mix 1 on the Seed Lists Page\",\"\")","v":""},null,null,null,null,null,null,null,null,null,null,null,null,null,null,null,null,null,null,null,null,null,true,3]
[12,{"$f":"IF(ISBLANK(INDEX(tSeed_Custom1[% Of Mix],$A50)),\"\",INDEX(tSeed_Custom1[% Of Mix],$A50))","v":0},{"$f":"IF(ISBLANK(INDEX(tSeed_Custom1[Seed Name],$A50)),\"\",UPPER(INDEX(tSeed_Custom1[Seed Name],$A50)))","v":""},{"$f":"IF(ISBLANK(INDEX(tSeed_Custom1[Lbs/Acre],$A50)),\"\",INDEX(tSeed_Custom1[Lbs/Acre],$A50))","v":""},{"$f":"IF(OR(COUNTIF(C50:D50,\"\")=1,AND(COUNTIF(C50:D50,\"\")<2,'Seed Rate Selection'!$C$4<1)),\"Please Check Entries for Custom Seed Mix 1 on the Seed Lists Page\",\"\")","v":""},null,null,null,null,null,null,null,null,null,null,null,null,null,null,null,null,null,null,null,null,null,true,3]
[13,{"$f":"IF(ISBLANK(INDEX(tSeed_Custom1[% Of Mix],$A51)),\"\",INDEX(tSeed_Custom1[% Of Mix],$A51))","v":0},{"$f":"IF(ISBLANK(INDEX(tSeed_Custom1[Seed Name],$A51)),\"\",UPPER(INDEX(tSeed_Custom1[Seed Name],$A51)))","v":""},{"$f":"IF(ISBLANK(INDEX(tSeed_Custom1[Lbs/Acre],$A51)),\"\",INDEX(tSeed_Custom1[Lbs/Acre],$A51))","v":""},{"$f":"IF(OR(COUNTIF(C51:D51,\"\")=1,AND(COUNTIF(C51:D51,\"\")<2,'Seed Rate Selection'!$C$4<1)),\"Please Check Entries for Custom Seed Mix 1 on the Seed Lists Page\",\"\")","v":""},null,null,null,null,null,null,null,null,null,null,null,null,null,null,null,null,null,null,null,null,null,true,3]
[14,{"$f":"IF(ISBLANK(INDEX(tSeed_Custom1[% Of Mix],$A52)),\"\",INDEX(tSeed_Custom1[% Of Mix],$A52))","v":0},{"$f":"IF(ISBLANK(INDEX(tSeed_Custom1[Seed Name],$A52)),\"\",UPPER(INDEX(tSeed_Custom1[Seed Name],$A52)))","v":""},{"$f":"IF(ISBLANK(INDEX(tSeed_Custom1[Lbs/Acre],$A52)),\"\",INDEX(tSeed_Custom1[Lbs/Acre],$A52))","v":""},{"$f":"IF(OR(COUNTIF(C52:D52,\"\")=1,AND(COUNTIF(C52:D52,\"\")<2,'Seed Rate Selection'!$C$4<1)),\"Please Check Entries for Custom Seed Mix 1 on the Seed Lists Page\",\"\")","v":""},null,null,null,null,null,null,null,null,null,null,null,null,null,null,null,null,null,null,null,null,null,true,3]
[15,{"$f":"IF(ISBLANK(INDEX(tSeed_Custom1[% Of Mix],$A53)),\"\",INDEX(tSeed_Custom1[% Of Mix],$A53))","v":0},{"$f":"IF(ISBLANK(INDEX(tSeed_Custom1[Seed Name],$A53)),\"\",UPPER(INDEX(tSeed_Custom1[Seed Name],$A53)))","v":""},{"$f":"IF(ISBLANK(INDEX(tSeed_Custom1[Lbs/Acre],$A53)),\"\",INDEX(tSeed_Custom1[Lbs/Acre],$A53))","v":""},{"$f":"IF(OR(COUNTIF(C53:D53,\"\")=1,AND(COUNTIF(C53:D53,\"\")<2,'Seed Rate Selection'!$C$4<1)),\"Please Check Entries for Custom Seed Mix 1 on the Seed Lists Page\",\"\")","v":""},null,null,null,null,null,null,null,null,null,null,null,null,null,null,null,null,null,null,null,null,null,true,3]
[null,null,null,null,null,null,null,null,null,null,null,null,null,null,null,null,null,null,null,null,null,null,null,null,null,null,{"$f":"'Seed Rate Selection'!$C$4<1","v":true},3]
[null,"PERCENT",{"$f":"UPPER('Seed Rate Selection'!C74)","v":"CUSTOM MIX CODE:"},{"$f":"'Seed Rate Selection'!D74","v":"C2"},null,null,null,null,null,null,null,null,null,null,null,null,null,null,null,null,null,null,null,null,null,null,{"$f":"'Seed Rate Selection'!$C$4<2","v":true},4]
[null,"OF",{"$f":"UPPER('Seed Rate Selection'!C75)","v":"APPLICATION RATE (LBS/AC):"},{"$f":"'Seed Rate Selection'!D75","v":0},{"$f":"IF(AND('Seed Rate Selection'!$C$4>=2,D56<1),\"Please Check Entries for Custom Seed Mix 2 on the Seed Lists Page\",\"\")","v":""},null,null,null,null,null,null,null,null,null,null,null,null,null,null,null,null,null,null,null,null,null,{"$f":"'Seed Rate Selection'!$C$4<2","v":true},4]
[null,"MIX",{"$f":"UPPER('Seed Rate Selection'!C76)","v":"SEED NAME"},{"$f":"UPPER('Seed Rate Selection'!D76)","v":"LBS/ACRE"},null,null,null,null,null,null,null,null,null,null,null,null,null,null,null,null,null,null,null,null,null,null,{"$f":"'Seed Rate Selection'!$C$4<2","v":true},4]
[1,{"$f":"IF(ISBLANK(INDEX(tSeed_Custom2[% Of Mix],$A58)),\"\",INDEX(tSeed_Custom2[% Of Mix],$A58))","v":0},{"$f":"IF(ISBLANK(INDEX(tSeed_Custom2[Seed Name],$A58)),\"\",UPPER(INDEX(tSeed_Custom2[Seed Name],$A58)))","v":""},{"$f":"IF(ISBLANK(INDEX(tSeed_Custom2[Lbs/Acre],$A58)),\"\",INDEX(tSeed_Custom2[Lbs/Acre],$A58))","v":""},{"$f":"IF(OR(COUNTIF(C58:D58,\"\")=1,AND(COUNTIF(C58:D58,\"\")<2,'Seed Rate Selection'!$C$4<2)),\"Please Check Entries for Custom Seed Mix 2 on the Seed Lists Page\",\"\")","v":""},null,null,null,null,null,null,null,null,null,null,null,null,null,null,null,null,null,null,null,null,null,{"$f":"AND(C58=\"\",D58=\"\")","v":true},4]
[2,{"$f":"IF(ISBLANK(INDEX(tSeed_Custom2[% Of Mix],$A59)),\"\",INDEX(tSeed_Custom2[% Of Mix],$A59))","v":0},{"$f":"IF(ISBLANK(INDEX(tSeed_Custom2[Seed Name],$A59)),\"\",UPPER(INDEX(tSeed_Custom2[Seed Name],$A59)))","v":""},{"$f":"IF(ISBLANK(INDEX(tSeed_Custom2[Lbs/Acre],$A59)),\"\",INDEX(tSeed_Custom2[Lbs/Acre],$A59))","v":""},{"$f":"IF(OR(COUNTIF(C59:D59,\"\")=1,AND(COUNTIF(C59:D59,\"\")<2,'Seed Rate Selection'!$C$4<2)),\"Please Check Entries for Custom Seed Mix 2 on the Seed Lists Page\",\"\")","v":""},null,null,null,null,null,null,null,null,null,null,null,null,null,null,null,null,null,null,null,null,null,{"$f":"AND(C59=\"\",D59=\"\")","v":true},4]
[3,{"$f":"IF(ISBLANK(INDEX(tSeed_Custom2[% Of Mix],$A60)),\"\",INDEX(tSeed_Custom2[% Of Mix],$A60))","v":0},{"$f":"IF(ISBLANK(INDEX(tSeed_Custom2[Seed Name],$A60)),\"\",UPPER(INDEX(tSeed_Custom2[Seed Name],$A60)))","v":""},{"$f":"IF(ISBLANK(INDEX(tSeed_Custom2[Lbs/Acre],$A60)),\"\",INDEX(tSeed_Custom2[Lbs/Acre],$A60))","v":""},{"$f":"IF(OR(COUNTIF(C60:D60,\"\")=1,AND(COUNTIF(C60:D60,\"\")<2,'Seed Rate Selection'!$C$4<2)),\"Please Check Entries for Custom Seed Mix 2 on the Seed Lists Page\",\"\")","v":""},null,null,null,null,null,null,null,null,null,null,null,null,null,null,null,null,null,null,null,null,null,true,4]
[4,{"$f":"IF(ISBLANK(INDEX(tSeed_Custom2[% Of Mix],$A61)),\"\",INDEX(tSeed_Custom2[% Of Mix],$A61))","v":0},{"$f":"IF(ISBLANK(INDEX(tSeed_Custom2[Seed Name],$A61)),\"\",UPPER(INDEX(tSeed_Custom2[Seed Name],$A61)))","v":""},{"$f":"IF(ISBLANK(INDEX(tSeed_Custom2[Lbs/Acre],$A61)),\"\",INDEX(tSeed_Custom2[Lbs/Acre],$A61))","v":""},{"$f":"IF(OR(COUNTIF(C61:D61,\"\")=1,AND(COUNTIF(C61:D61,\"\")<2,'Seed Rate Selection'!$C$4<2)),\"Please Check Entries for Custom Seed Mix 2 on the Seed Lists Page\",\"\")","v":""},null,null,null,null,null,null,null,null,null,null,null,null,null,null,null,null,null,null,null,null,null,true,4]
[5,{"$f":"IF(ISBLANK(INDEX(tSeed_Custom2[% Of Mix],$A62)),\"\",INDEX(tSeed_Custom2[% Of Mix],$A62))","v":0},{"$f":"IF(ISBLANK(INDEX(tSeed_Custom2[Seed Name],$A62)),\"\",UPPER(INDEX(tSeed_Custom2[Seed Name],$A62)))","v":""},{"$f":"IF(ISBLANK(INDEX(tSeed_Custom2[Lbs/Acre],$A62)),\"\",INDEX(tSeed_Custom2[Lbs/Acre],$A62))","v":""},{"$f":"IF(OR(COUNTIF(C62:D62,\"\")=1,AND(COUNTIF(C62:D62,\"\")<2,'Seed Rate Selection'!$C$4<2)),\"Please Check Entries for Custom Seed Mix 2 on the Seed Lists Page\",\"\")","v":""},null,null,null,null,null,null,null,null,null,null,null,null,null,null,null,null,null,null,null,null,null,true,4]
[6,{"$f":"IF(ISBLANK(INDEX(tSeed_Custom2[% Of Mix],$A63)),\"\",INDEX(tSeed_Custom2[% Of Mix],$A63))","v":0},{"$f":"IF(ISBLANK(INDEX(tSeed_Custom2[Seed Name],$A63)),\"\",UPPER(INDEX(tSeed_Custom2[Seed Name],$A63)))","v":""},{"$f":"IF(ISBLANK(INDEX(tSeed_Custom2[Lbs/Acre],$A63)),\"\",INDEX(tSeed_Custom2[Lbs/Acre],$A63))","v":""},{"$f":"IF(OR(COUNTIF(C63:D63,\"\")=1,AND(COUNTIF(C63:D63,\"\")<2,'Seed Rate Selection'!$C$4<2)),\"Please Check Entries for Custom Seed Mix 2 on the Seed Lists Page\",\"\")","v":""},null,null,null,null,null,null,null,null,null,null,null,null,null,null,null,null,null,null,null,null,null,true,4]
[7,{"$f":"IF(ISBLANK(INDEX(tSeed_Custom2[% Of Mix],$A64)),\"\",INDEX(tSeed_Custom2[% Of Mix],$A64))","v":0},{"$f":"IF(ISBLANK(INDEX(tSeed_Custom2[Seed Name],$A64)),\"\",UPPER(INDEX(tSeed_Custom2[Seed Name],$A64)))","v":""},{"$f":"IF(ISBLANK(INDEX(tSeed_Custom2[Lbs/Acre],$A64)),\"\",INDEX(tSeed_Custom2[Lbs/Acre],$A64))","v":""},{"$f":"IF(OR(COUNTIF(C64:D64,\"\")=1,AND(COUNTIF(C64:D64,\"\")<2,'Seed Rate Selection'!$C$4<2)),\"Please Check Entries for Custom Seed Mix 2 on the Seed Lists Page\",\"\")","v":""},null,null,null,null,null,null,null,null,null,null,null,null,null,null,null,null,null,null,null,null,null,true,4]
[8,{"$f":"IF(ISBLANK(INDEX(tSeed_Custom2[% Of Mix],$A65)),\"\",INDEX(tSeed_Custom2[% Of Mix],$A65))","v":0},{"$f":"IF(ISBLANK(INDEX(tSeed_Custom2[Seed Name],$A65)),\"\",UPPER(INDEX(tSeed_Custom2[Seed Name],$A65)))","v":""},{"$f":"IF(ISBLANK(INDEX(tSeed_Custom2[Lbs/Acre],$A65)),\"\",INDEX(tSeed_Custom2[Lbs/Acre],$A65))","v":""},{"$f":"IF(OR(COUNTIF(C65:D65,\"\")=1,AND(COUNTIF(C65:D65,\"\")<2,'Seed Rate Selection'!$C$4<2)),\"Please Check Entries for Custom Seed Mix 2 on the Seed Lists Page\",\"\")","v":""},null,null,null,null,null,null,null,null,null,null,null,null,null,null,null,null,null,null,null,null,null,true,4]
[9,{"$f":"IF(ISBLANK(INDEX(tSeed_Custom2[% Of Mix],$A66)),\"\",INDEX(tSeed_Custom2[% Of Mix],$A66))","v":0},{"$f":"IF(ISBLANK(INDEX(tSeed_Custom2[Seed Name],$A66)),\"\",UPPER(INDEX(tSeed_Custom2[Seed Name],$A66)))","v":""},{"$f":"IF(ISBLANK(INDEX(tSeed_Custom2[Lbs/Acre],$A66)),\"\",INDEX(tSeed_Custom2[Lbs/Acre],$A66))","v":""},{"$f":"IF(OR(COUNTIF(C66:D66,\"\")=1,AND(COUNTIF(C66:D66,\"\")<2,'Seed Rate Selection'!$C$4<2)),\"Please Check Entries for Custom Seed Mix 2 on the Seed Lists Page\",\"\")","v":""},null,null,null,null,null,null,null,null,null,null,null,null,null,null,null,null,null,null,null,null,null,true,4]
[10,{"$f":"IF(ISBLANK(INDEX(tSeed_Custom2[% Of Mix],$A67)),\"\",INDEX(tSeed_Custom2[% Of Mix],$A67))","v":0},{"$f":"IF(ISBLANK(INDEX(tSeed_Custom2[Seed Name],$A67)),\"\",UPPER(INDEX(tSeed_Custom2[Seed Name],$A67)))","v":""},{"$f":"IF(ISBLANK(INDEX(tSeed_Custom2[Lbs/Acre],$A67)),\"\",INDEX(tSeed_Custom2[Lbs/Acre],$A67))","v":""},{"$f":"IF(OR(COUNTIF(C67:D67,\"\")=1,AND(COUNTIF(C67:D67,\"\")<2,'Seed Rate Selection'!$C$4<2)),\"Please Check Entries for Custom Seed Mix 2 on the Seed Lists Page\",\"\")","v":""},null,null,null,null,null,null,null,null,null,null,null,null,null,null,null,null,null,null,null,null,null,true,4]
[11,{"$f":"IF(ISBLANK(INDEX(tSeed_Custom2[% Of Mix],$A68)),\"\",INDEX(tSeed_Custom2[% Of Mix],$A68))","v":0},{"$f":"IF(ISBLANK(INDEX(tSeed_Custom2[Seed Name],$A68)),\"\",UPPER(INDEX(tSeed_Custom2[Seed Name],$A68)))","v":""},{"$f":"IF(ISBLANK(INDEX(tSeed_Custom2[Lbs/Acre],$A68)),\"\",INDEX(tSeed_Custom2[Lbs/Acre],$A68))","v":""},{"$f":"IF(OR(COUNTIF(C68:D68,\"\")=1,AND(COUNTIF(C68:D68,\"\")<2,'Seed Rate Selection'!$C$4<2)),\"Please Check Entries for Custom Seed Mix 2 on the Seed Lists Page\",\"\")","v":""},null,null,null,null,null,null,null,null,null,null,null,null,null,null,null,null,null,null,null,null,null,true,4]
[12,{"$f":"IF(ISBLANK(INDEX(tSeed_Custom2[% Of Mix],$A69)),\"\",INDEX(tSeed_Custom2[% Of Mix],$A69))","v":0},{"$f":"IF(ISBLANK(INDEX(tSeed_Custom2[Seed Name],$A69)),\"\",UPPER(INDEX(tSeed_Custom2[Seed Name],$A69)))","v":""},{"$f":"IF(ISBLANK(INDEX(tSeed_Custom2[Lbs/Acre],$A69)),\"\",INDEX(tSeed_Custom2[Lbs/Acre],$A69))","v":""},{"$f":"IF(OR(COUNTIF(C69:D69,\"\")=1,AND(COUNTIF(C69:D69,\"\")<2,'Seed Rate Selection'!$C$4<2)),\"Please Check Entries for Custom Seed Mix 2 on the Seed Lists Page\",\"\")","v":""},null,null,null,null,null,null,null,null,null,null,null,null,null,null,null,null,null,null,null,null,null,true,4]
[13,{"$f":"IF(ISBLANK(INDEX(tSeed_Custom2[% Of Mix],$A70)),\"\",INDEX(tSeed_Custom2[% Of Mix],$A70))","v":0},{"$f":"IF(ISBLANK(INDEX(tSeed_Custom2[Seed Name],$A70)),\"\",UPPER(INDEX(tSeed_Custom2[Seed Name],$A70)))","v":""},{"$f":"IF(ISBLANK(INDEX(tSeed_Custom2[Lbs/Acre],$A70)),\"\",INDEX(tSeed_Custom2[Lbs/Acre],$A70))","v":""},{"$f":"IF(OR(COUNTIF(C70:D70,\"\")=1,AND(COUNTIF(C70:D70,\"\")<2,'Seed Rate Selection'!$C$4<2)),\"Please Check Entries for Custom Seed Mix 2 on the Seed Lists Page\",\"\")","v":""},null,null,null,null,null,null,null,null,null,null,null,null,null,null,null,null,null,null,null,null,null,true,4]
[14,{"$f":"IF(ISBLANK(INDEX(tSeed_Custom2[% Of Mix],$A71)),\"\",INDEX(tSeed_Custom2[% Of Mix],$A71))","v":0},{"$f":"IF(ISBLANK(INDEX(tSeed_Custom2[Seed Name],$A71)),\"\",UPPER(INDEX(tSeed_Custom2[Seed Name],$A71)))","v":""},{"$f":"IF(ISBLANK(INDEX(tSeed_Custom2[Lbs/Acre],$A71)),\"\",INDEX(tSeed_Custom2[Lbs/Acre],$A71))","v":""},{"$f":"IF(OR(COUNTIF(C71:D71,\"\")=1,AND(COUNTIF(C71:D71,\"\")<2,'Seed Rate Selection'!$C$4<2)),\"Please Check Entries for Custom Seed Mix 2 on the Seed Lists Page\",\"\")","v":""},null,null,null,null,null,null,null,null,null,null,null,null,null,null,null,null,null,null,null,null,null,true,4]
[15,{"$f":"IF(ISBLANK(INDEX(tSeed_Custom2[% Of Mix],$A72)),\"\",INDEX(tSeed_Custom2[% Of Mix],$A72))","v":0},{"$f":"IF(ISBLANK(INDEX(tSeed_Custom2[Seed Name],$A72)),\"\",UPPER(INDEX(tSeed_Custom2[Seed Name],$A72)))","v":""},{"$f":"IF(ISBLANK(INDEX(tSeed_Custom2[Lbs/Acre],$A72)),\"\",INDEX(tSeed_Custom2[Lbs/Acre],$A72))","v":""},{"$f":"IF(OR(COUNTIF(C72:D72,\"\")=1,AND(COUNTIF(C72:D72,\"\")<2,'Seed Rate Selection'!$C$4<2)),\"Please Check Entries for Custom Seed Mix 2 on the Seed Lists Page\",\"\")","v":""},null,null,null,null,null,null,null,null,null,null,null,null,null,null,null,null,null,null,null,null,null,true,4]
[null,null,null,null,null,null,null,null,null,null,null,null,null,null,null,null,null,null,null,null,null,null,null,null,null,null,{"$f":"'Seed Rate Selection'!$C$4<2","v":true},4]
[null,"PERCENT",{"$f":"UPPER('Seed Rate Selection'!C93)","v":"CUSTOM MIX CODE:"},{"$f":"'Seed Rate Selection'!D93","v":"C3"},null,null,null,null,null,null,null,null,null,null,null,null,null,null,null,null,null,null,null,null,null,null,{"$f":"'Seed Rate Selection'!$C$4<3","v":true},5]
[null,"OF",{"$f":"UPPER('Seed Rate Selection'!C94)","v":"APPLICATION RATE (LBS/AC):"},{"$f":"'Seed Rate Selection'!D94","v":0},{"$f":"IF(AND('Seed Rate Selection'!$C$4>=3,D75<1),\"Please Check Entries for Custom Seed Mix 3 on the Seed Lists Page\",\"\")","v":""},null,null,null,null,null,null,null,null,null,null,null,null,null,null,null,null,null,null,null,null,null,{"$f":"'Seed Rate Selection'!$C$4<3","v":true},5]
[null,"MIX",{"$f":"UPPER('Seed Rate Selection'!C95)","v":"SEED NAME"},{"$f":"UPPER('Seed Rate Selection'!D95)","v":"LBS/ACRE"},null,null,null,null,null,null,null,null,null,null,null,null,null,null,null,null,null,null,null,null,null,null,{"$f":"'Seed Rate Selection'!$C$4<3","v":true},5]
[1,{"$f":"IF(ISBLANK(INDEX(tSeed_Custom3[% Of Mix],$A77)),\"\",INDEX(tSeed_Custom3[% Of Mix],$A77))","v":0},{"$f":"IF(ISBLANK(INDEX(tSeed_Custom3[Seed Name],$A77)),\"\",UPPER(INDEX(tSeed_Custom3[Seed Name],$A77)))","v":""},{"$f":"IF(ISBLANK(INDEX(tSeed_Custom3[Lbs/Acre],$A77)),\"\",INDEX(tSeed_Custom3[Lbs/Acre],$A77))","v":""},{"$f":"IF(OR(COUNTIF(C77:D77,\"\")=1,AND(COUNTIF(C77:D77,\"\")<2,'Seed Rate Selection'!$C$4<3)),\"Please Check Entries for Custom Seed Mix 3 on the Seed Lists Page\",\"\")","v":""},null,null,null,null,null,null,null,null,null,null,null,null,null,null,null,null,null,null,null,null,null,{"$f":"AND(C77=\"\",D77=\"\")","v":true},5]
[2,{"$f":"IF(ISBLANK(INDEX(tSeed_Custom3[% Of Mix],$A78)),\"\",INDEX(tSeed_Custom3[% Of Mix],$A78))","v":0},{"$f":"IF(ISBLANK(INDEX(tSeed_Custom3[Seed Name],$A78)),\"\",UPPER(INDEX(tSeed_Custom3[Seed Name],$A78)))","v":""},{"$f":"IF(ISBLANK(INDEX(tSeed_Custom3[Lbs/Acre],$A78)),\"\",INDEX(tSeed_Custom3[Lbs/Acre],$A78))","v":""},{"$f":"IF(OR(COUNTIF(C78:D78,\"\")=1,AND(COUNTIF(C78:D78,\"\")<2,'Seed Rate Selection'!$C$4<3)),\"Please Check Entries for Custom Seed Mix 3 on the Seed Lists Page\",\"\")","v":""},null,null,null,null,null,null,null,null,null,null,null,null,null,null,null,null,null,null,null,null,null,{"$f":"AND(C78=\"\",D78=\"\")","v":true},5]
[3,{"$f":"IF(ISBLANK(INDEX(tSeed_Custom3[% Of Mix],$A79)),\"\",INDEX(tSeed_Custom3[% Of Mix],$A79))","v":0},{"$f":"IF(ISBLANK(INDEX(tSeed_Custom3[Seed Name],$A79)),\"\",UPPER(INDEX(tSeed_Custom3[Seed Name],$A79)))","v":""},{"$f":"IF(ISBLANK(INDEX(tSeed_Custom3[Lbs/Acre],$A79)),\"\",INDEX(tSeed_Custom3[Lbs/Acre],$A79))","v":""},{"$f":"IF(OR(COUNTIF(C79:D79,\"\")=1,AND(COUNTIF(C79:D79,\"\")<2,'Seed Rate Selection'!$C$4<3)),\"Please Check Entries for Custom Seed Mix 3 on the Seed Lists Page\",\"\")","v":""},null,null,null,null,null,null,null,null,null,null,null,null,null,null,null,null,null,null,null,null,null,true,5]
[4,{"$f":"IF(ISBLANK(INDEX(tSeed_Custom3[% Of Mix],$A80)),\"\",INDEX(tSeed_Custom3[% Of Mix],$A80))","v":0},{"$f":"IF(ISBLANK(INDEX(tSeed_Custom3[Seed Name],$A80)),\"\",UPPER(INDEX(tSeed_Custom3[Seed Name],$A80)))","v":""},{"$f":"IF(ISBLANK(INDEX(tSeed_Custom3[Lbs/Acre],$A80)),\"\",INDEX(tSeed_Custom3[Lbs/Acre],$A80))","v":""},{"$f":"IF(OR(COUNTIF(C80:D80,\"\")=1,AND(COUNTIF(C80:D80,\"\")<2,'Seed Rate Selection'!$C$4<3)),\"Please Check Entries for Custom Seed Mix 3 on the Seed Lists Page\",\"\")","v":""},null,null,null,null,null,null,null,null,null,null,null,null,null,null,null,null,null,null,null,null,null,true,5]
[5,{"$f":"IF(ISBLANK(INDEX(tSeed_Custom3[% Of Mix],$A81)),\"\",INDEX(tSeed_Custom3[% Of Mix],$A81))","v":0},{"$f":"IF(ISBLANK(INDEX(tSeed_Custom3[Seed Name],$A81)),\"\",UPPER(INDEX(tSeed_Custom3[Seed Name],$A81)))","v":""},{"$f":"IF(ISBLANK(INDEX(tSeed_Custom3[Lbs/Acre],$A81)),\"\",INDEX(tSeed_Custom3[Lbs/Acre],$A81))","v":""},{"$f":"IF(OR(COUNTIF(C81:D81,\"\")=1,AND(COUNTIF(C81:D81,\"\")<2,'Seed Rate Selection'!$C$4<3)),\"Please Check Entries for Custom Seed Mix 3 on the Seed Lists Page\",\"\")","v":""},null,null,null,null,null,null,null,null,null,null,null,null,null,null,null,null,null,null,null,null,null,true,5]
[6,{"$f":"IF(ISBLANK(INDEX(tSeed_Custom3[% Of Mix],$A82)),\"\",INDEX(tSeed_Custom3[% Of Mix],$A82))","v":0},{"$f":"IF(ISBLANK(INDEX(tSeed_Custom3[Seed Name],$A82)),\"\",UPPER(INDEX(tSeed_Custom3[Seed Name],$A82)))","v":""},{"$f":"IF(ISBLANK(INDEX(tSeed_Custom3[Lbs/Acre],$A82)),\"\",INDEX(tSeed_Custom3[Lbs/Acre],$A82))","v":""},{"$f":"IF(OR(COUNTIF(C82:D82,\"\")=1,AND(COUNTIF(C82:D82,\"\")<2,'Seed Rate Selection'!$C$4<3)),\"Please Check Entries for Custom Seed Mix 3 on the Seed Lists Page\",\"\")","v":""},null,null,null,null,null,null,null,null,null,null,null,null,null,null,null,null,null,null,null,null,null,true,5]
[7,{"$f":"IF(ISBLANK(INDEX(tSeed_Custom3[% Of Mix],$A83)),\"\",INDEX(tSeed_Custom3[% Of Mix],$A83))","v":0},{"$f":"IF(ISBLANK(INDEX(tSeed_Custom3[Seed Name],$A83)),\"\",UPPER(INDEX(tSeed_Custom3[Seed Name],$A83)))","v":""},{"$f":"IF(ISBLANK(INDEX(tSeed_Custom3[Lbs/Acre],$A83)),\"\",INDEX(tSeed_Custom3[Lbs/Acre],$A83))","v":""},{"$f":"IF(OR(COUNTIF(C83:D83,\"\")=1,AND(COUNTIF(C83:D83,\"\")<2,'Seed Rate Selection'!$C$4<3)),\"Please Check Entries for Custom Seed Mix 3 on the Seed Lists Page\",\"\")","v":""},null,null,null,null,null,null,null,null,null,null,null,null,null,null,null,null,null,null,null,null,null,true,5]
[8,{"$f":"IF(ISBLANK(INDEX(tSeed_Custom3[% Of Mix],$A84)),\"\",INDEX(tSeed_Custom3[% Of Mix],$A84))","v":0},{"$f":"IF(ISBLANK(INDEX(tSeed_Custom3[Seed Name],$A84)),\"\",UPPER(INDEX(tSeed_Custom3[Seed Name],$A84)))","v":""},{"$f":"IF(ISBLANK(INDEX(tSeed_Custom3[Lbs/Acre],$A84)),\"\",INDEX(tSeed_Custom3[Lbs/Acre],$A84))","v":""},{"$f":"IF(OR(COUNTIF(C84:D84,\"\")=1,AND(COUNTIF(C84:D84,\"\")<2,'Seed Rate Selection'!$C$4<3)),\"Please Check Entries for Custom Seed Mix 3 on the Seed Lists Page\",\"\")","v":""},null,null,null,null,null,null,null,null,null,null,null,null,null,null,null,null,null,null,null,null,null,true,5]
[9,{"$f":"IF(ISBLANK(INDEX(tSeed_Custom3[% Of Mix],$A85)),\"\",INDEX(tSeed_Custom3[% Of Mix],$A85))","v":0},{"$f":"IF(ISBLANK(INDEX(tSeed_Custom3[Seed Name],$A85)),\"\",UPPER(INDEX(tSeed_Custom3[Seed Name],$A85)))","v":""},{"$f":"IF(ISBLANK(INDEX(tSeed_Custom3[Lbs/Acre],$A85)),\"\",INDEX(tSeed_Custom3[Lbs/Acre],$A85))","v":""},{"$f":"IF(OR(COUNTIF(C85:D85,\"\")=1,AND(COUNTIF(C85:D85,\"\")<2,'Seed Rate Selection'!$C$4<3)),\"Please Check Entries for Custom Seed Mix 3 on the Seed Lists Page\",\"\")","v":""},null,null,null,null,null,null,null,null,null,null,null,null,null,null,null,null,null,null,null,null,null,true,5]
[10,{"$f":"IF(ISBLANK(INDEX(tSeed_Custom3[% Of Mix],$A86)),\"\",INDEX(tSeed_Custom3[% Of Mix],$A86))","v":0},{"$f":"IF(ISBLANK(INDEX(tSeed_Custom3[Seed Name],$A86)),\"\",UPPER(INDEX(tSeed_Custom3[Seed Name],$A86)))","v":""},{"$f":"IF(ISBLANK(INDEX(tSeed_Custom3[Lbs/Acre],$A86)),\"\",INDEX(tSeed_Custom3[Lbs/Acre],$A86))","v":""},{"$f":"IF(OR(COUNTIF(C86:D86,\"\")=1,AND(COUNTIF(C86:D86,\"\")<2,'Seed Rate Selection'!$C$4<3)),\"Please Check Entries for Custom Seed Mix 3 on the Seed Lists Page\",\"\")","v":""},null,null,null,null,null,null,null,null,null,null,null,null,null,null,null,null,null,null,null,null,null,true,5]
[11,{"$f":"IF(ISBLANK(INDEX(tSeed_Custom3[% Of Mix],$A87)),\"\",INDEX(tSeed_Custom3[% Of Mix],$A87))","v":0},{"$f":"IF(ISBLANK(INDEX(tSeed_Custom3[Seed Name],$A87)),\"\",UPPER(INDEX(tSeed_Custom3[Seed Name],$A87)))","v":""},{"$f":"IF(ISBLANK(INDEX(tSeed_Custom3[Lbs/Acre],$A87)),\"\",INDEX(tSeed_Custom3[Lbs/Acre],$A87))","v":""},{"$f":"IF(OR(COUNTIF(C87:D87,\"\")=1,AND(COUNTIF(C87:D87,\"\")<2,'Seed Rate Selection'!$C$4<3)),\"Please Check Entries for Custom Seed Mix 3 on the Seed Lists Page\",\"\")","v":""},null,null,null,null,null,null,null,null,null,null,null,null,null,null,null,null,null,null,null,null,null,true,5]
[12,{"$f":"IF(ISBLANK(INDEX(tSeed_Custom3[% Of Mix],$A88)),\"\",INDEX(tSeed_Custom3[% Of Mix],$A88))","v":0},{"$f":"IF(ISBLANK(INDEX(tSeed_Custom3[Seed Name],$A88)),\"\",UPPER(INDEX(tSeed_Custom3[Seed Name],$A88)))","v":""},{"$f":"IF(ISBLANK(INDEX(tSeed_Custom3[Lbs/Acre],$A88)),\"\",INDEX(tSeed_Custom3[Lbs/Acre],$A88))","v":""},{"$f":"IF(OR(COUNTIF(C88:D88,\"\")=1,AND(COUNTIF(C88:D88,\"\")<2,'Seed Rate Selection'!$C$4<3)),\"Please Check Entries for Custom Seed Mix 3 on the Seed Lists Page\",\"\")","v":""},null,null,null,null,null,null,null,null,null,null,null,null,null,null,null,null,null,null,null,null,null,true,5]
[13,{"$f":"IF(ISBLANK(INDEX(tSeed_Custom3[% Of Mix],$A89)),\"\",INDEX(tSeed_Custom3[% Of Mix],$A89))","v":0},{"$f":"IF(ISBLANK(INDEX(tSeed_Custom3[Seed Name],$A89)),\"\",UPPER(INDEX(tSeed_Custom3[Seed Name],$A89)))","v":""},{"$f":"IF(ISBLANK(INDEX(tSeed_Custom3[Lbs/Acre],$A89)),\"\",INDEX(tSeed_Custom3[Lbs/Acre],$A89))","v":""},{"$f":"IF(OR(COUNTIF(C89:D89,\"\")=1,AND(COUNTIF(C89:D89,\"\")<2,'Seed Rate Selection'!$C$4<3)),\"Please Check Entries for Custom Seed Mix 3 on the Seed Lists Page\",\"\")","v":""},null,null,null,null,null,null,null,null,null,null,null,null,null,null,null,null,null,null,null,null,null,true,5]
[14,{"$f":"IF(ISBLANK(INDEX(tSeed_Custom3[% Of Mix],$A90)),\"\",INDEX(tSeed_Custom3[% Of Mix],$A90))","v":0},{"$f":"IF(ISBLANK(INDEX(tSeed_Custom3[Seed Name],$A90)),\"\",UPPER(INDEX(tSeed_Custom3[Seed Name],$A90)))","v":""},{"$f":"IF(ISBLANK(INDEX(tSeed_Custom3[Lbs/Acre],$A90)),\"\",INDEX(tSeed_Custom3[Lbs/Acre],$A90))","v":""},{"$f":"IF(OR(COUNTIF(C90:D90,\"\")=1,AND(COUNTIF(C90:D90,\"\")<2,'Seed Rate Selection'!$C$4<3)),\"Please Check Entries for Custom Seed Mix 3 on the Seed Lists Page\",\"\")","v":""},null,null,null,null,null,null,null,null,null,null,null,null,null,null,null,null,null,null,null,null,null,true,5]
[15,{"$f":"IF(ISBLANK(INDEX(tSeed_Custom3[% Of Mix],$A91)),\"\",INDEX(tSeed_Custom3[% Of Mix],$A91))","v":0},{"$f":"IF(ISBLANK(INDEX(tSeed_Custom3[Seed Name],$A91)),\"\",UPPER(INDEX(tSeed_Custom3[Seed Name],$A91)))","v":""},{"$f":"IF(ISBLANK(INDEX(tSeed_Custom3[Lbs/Acre],$A91)),\"\",INDEX(tSeed_Custom3[Lbs/Acre],$A91))","v":""},{"$f":"IF(OR(COUNTIF(C91:D91,\"\")=1,AND(COUNTIF(C91:D91,\"\")<2,'Seed Rate Selection'!$C$4<3)),\"Please Check Entries for Custom Seed Mix 3 on the Seed Lists Page\",\"\")","v":""},null,null,null,null,null,null,null,null,null,null,null,null,null,null,null,null,null,null,null,null,null,true,5]
[null,null,null,null,null,null,null,null,null,null,null,null,null,null,null,null,null,null,null,null,null,null,null,null,null,null,{"$f":"'Seed Rate Selection'!$C$4<3","v":true},5]

{"sheet":"Roadside Summary","index":13,"n_rows":22,"n_cols":21,"rows_kept":22,"cut":false,"hidden":true,"merged":[[19,12,19,20],[7,17,7,18],[8,13,8,14],[7,13,7,14],[6,15,6,16],[7,15,7,16],[8,15,8,16],[6,19,6,20],[7,19,7,20],[8,19,8,20],[8,17,8,18],[1,13,1,20],[4,0,6,0],[4,7,6,7],[3,0,3,10],[4,1,6,1],[4,2,6,2],[4,5,6,5],[4,3,6,3],[6,13,6,14],[1,12,6,12],[4,6,6,6],[6,17,6,18]]}
[]
[null,null,null,null,null,null,null,null,null,null,null,null,"CODES LISTED IN THIS TABLE REFER TO THE LISTS OF CORE MIXES & ADDITIVES, WHICH SHOW SEED NAMES & APPLICATION RATES FOR THIS PROJECT.","SEEDING SCHEDULE"]
[null,null,null,null,null,null,null,null,null,null,null,null,null,"SLOPES","MOWED",{"$f":"N3","v":"SLOPES"},{"$f":"O3","v":"MOWED"},"SLOPES","MOWED","SLOPES","MOWED"]
["ROADSIDE DEVELOPMENT SUMMARY",null,null,null,null,null,null,null,null,null,null,null,null,"SEED MIX",{"$f":"N4","v":"SEED MIX"},{"$f":"N4","v":"SEED MIX"},"SEED MIX","SEED MIX","SEED MIX","SEED MIX","SEED MIX"]
["PROJECT NUMBERS\nAND/OR\nLOCATION DESC.","REGULAR \nSEED","OVER\nSEEDING","LEGUME\nSEED","LEGUME","TEMPORARY SEED",{"$f":"IF(LEFT(ansTopsoil)=\"n\",\"NO TOPSOIL SPECIFIED\",iTopsoilDepth&\"\"\" TOPSOIL\"&CHAR(10)&\"CLASS \"&UPPER(sTopsoilClass))","v":"\" TOPSOIL\nCLASS "},"LIME",null,"FERTILIZER",null,null,null,"WITH ",{"$f":"N5","v":"WITH "},"WITH ","WITH ","WITH ","WITH ","WITH ","WITH "]
[null,null,null,null,"OVER",null,null,null,"N","P","K",null,null,"ADDITIVE",{"$f":"N6","v":"ADDITIVE"},"ADDITIVE","ADDITIVE","ADDITIVE","ADDITIVE","ADDITIVE","ADDITIVE"]
[null,null,null,null,"SEEDING",null,null,null,"NITROGEN","PHOSPHORUS","POTASSIUM",null,null,"SPRING",null,"SUMMER",null,"FALL",null,"DORMANT"]
[null,"LBS.","LBS.","LBS.","LBS.","LBS.",{"$f":"IF(LEFT(ansTopsoil)=\"n\",\"\",\"ACRES\")","v":"ACRES"},"TONS","LBS.","LBS.","LBS.",null,"PROJECT NUMBERS","MONTH & DATE",null,"MONTH & DATE",null,"MONTH & DATE",null,"MONTH & DATE"]
[{"$f":"'Start Page'!$D$3","v":0},{"$f":"IF(iNumMixes<2,'Seed Mix Selection'!$J$58-'Seed Mix Selection'!$I$58,\"SEE\")","v":0},{"$f":"IF(iNumMixes<2,'Seed Mix Selection'!$J$58-B9,\"BREAK\")","v":0},{"$f":"IF(iNumMixes<2,'Seed Mix Selection'!$J$64-'Seed Mix Selection'!$I$64,\"DOWN\")","v":0},{"$f":"IF(iNumMixes<2,'Seed Mix Selection'!$J$64-D9,\"BELOW\")","v":0},{"$f":"'Seed Mix Selection'!C72","v":0},{"$f":"IF(LEFT(ansTopsoil)=\"n\",\"\",Area_Soil)","v":0},{"$f":"IF(ansDefault=\"Custom\",'Lab Analysis Summary'!E35,'Nutrient Rates'!D8+'Nutrient Rates'!H8)","v":0},{"$f":"ROUND(IF(ansDefault=\"Custom\",'Lab Analysis Summary'!B35,'Nutrient Rates'!E8),0)","v":0},{"$f":"ROUND(IF(ansDefault=\"Custom\",'Lab Analysis Summary'!C35,'Nutrient Rates'!F8),0)","v":0},{"$f":"ROUND(IF(ansDefault=\"Custom\",'Lab Analysis Summary'!D35,'Nutrient Rates'!G8),0)","v":0},null,"AND/OR LOCATION",{"$f":"VLOOKUP(ansRegion,tPlantTimes[],2,FALSE)","v":{"$error":"#N/A"}},null,{"$f":"VLOOKUP(ansRegion,tPlantTimes[],3,FALSE)","v":{"$error":"#N/A"}},null,{"$f":"VLOOKUP(ansRegion,tPlantTimes[],4,FALSE)","v":{"$error":"#N/A"}},null,{"$f":"VLOOKUP(ansRegion,tPlantTimes[],5,FALSE)","v":{"$error":"#N/A"}}]
[{"$f":"IF(iNumMixes=1,\"\",'Start Page'!$G$26)","v":0},{"$f":"IF(iNumMixes<2,\"\",'Seed Mix Selection'!$J58-'Seed Mix Selection'!$I58)","v":""},{"$f":"IF(iNumMixes<2,\"\",'Seed Mix Selection'!$J58-B10)","v":""},{"$f":"IF(iNumMixes<2,\"\",'Seed Mix Selection'!$J64-'Seed Mix Selection'!$I64)","v":""},{"$f":"IF(iNumMixes<2,\"\",'Seed Mix Selection'!$J64-D10)","v":""},null,null,null,null,null,null,null,{"$f":"IF(iNumMixes=1,'Start Page'!$D$3,'Start Page'!$G$26)","v":0},{"$f":"OFFSET(rSMS_CM1,0,1)","v":"()"},{"$f":"OFFSET(rSMS_CM1,0,2)","v":"()"},{"$f":"OFFSET(rSMS_CM1,0,3)","v":"()"},{"$f":"OFFSET(rSMS_CM1,0,4)","v":"()"},{"$f":"OFFSET(rSMS_CM1,0,5)","v":"()"},{"$f":"OFFSET(rSMS_CM1,0,6)","v":"()"},{"$f":"OFFSET(rSMS_CM1,0,7)","v":"()"},{"$f":"OFFSET(rSMS_CM1,0,8)","v":"()"}]
[{"$f":"IF(iNumMixes<2,\"\",'Start Page'!$G$39)","v":""},{"$f":"IF(iNumMixes<2,\"\",'Seed Mix Selection'!$J59-'Seed Mix Selection'!$I59)","v":""},{"$f":"IF(iNumMixes<2,\"\",'Seed Mix Selection'!$J59-B11)","v":""},{"$f":"IF(iNumMixes<2,\"\",'Seed Mix Selection'!$J65-'Seed Mix Selection'!$I65)","v":""},{"$f":"IF(iNumMixes<2,\"\",'Seed Mix Selection'!$J65-D11)","v":""},null,null,null,null,null,null,null,{"$f":"IF(iNumMixes<2,\"\",'Start Page'!$G$39)","v":""},{"$f":"IF(iNumMixes<2,\"\",OFFSET(rSMS_CM2,0,1))","v":""},{"$f":"IF(iNumMixes<2,\"\",OFFSET(rSMS_CM2,0,2))","v":""},{"$f":"IF(iNumMixes<2,\"\",OFFSET(rSMS_CM2,0,3))","v":""},{"$f":"IF(iNumMixes<2,\"\",OFFSET(rSMS_CM2,0,4))","v":""},{"$f":"IF(iNumMixes<2,\"\",OFFSET(rSMS_CM2,0,5))","v":""},{"$f":"IF(iNumMixes<2,\"\",OFFSET(rSMS_CM2,0,6))","v":""},{"$f":"IF(iNumMixes<2,\"\",OFFSET(rSMS_CM2,0,7))","v":""},{"$f":"IF(iNumMixes<2,\"\",OFFSET(rSMS_CM2,0,8))","v":""}]
[{"$f":"IF(iNumMixes<3,\"\",'Start Page'!$G$52)","v":""},{"$f":"IF(iNumMixes<3,\"\",'Seed Mix Selection'!$J60-'Seed Mix Selection'!$I60)","v":""},{"$f":"IF(iNumMixes<3,\"\",'Seed Mix Selection'!$J60-B12)","v":""},{"$f":"IF(iNumMixes<3,\"\",'Seed Mix Selection'!$J66-'Seed Mix Selection'!$I66)","v":""},{"$f":"IF(iNumMixes<3,\"\",'Seed Mix Selection'!$J66-D12)","v":""},null,null,null,null,null,null,null,{"$f":"IF(iNumMixes<3,\"\",'Start Page'!$G$52)","v":""},{"$f":"IF(iNumMixes<3,\"\",OFFSET(rSMS_CM3,0,1))","v":""},{"$f":"IF(iNumMixes<3,\"\",OFFSET(rSMS_CM3,0,2))","v":""},{"$f":"IF(iNumMixes<3,\"\",OFFSET(rSMS_CM3,0,3))","v":""},{"$f":"IF(iNumMixes<3,\"\",OFFSET(rSMS_CM3,0,4))","v":""},{"$f":"IF(iNumMixes<3,\"\",OFFSET(rSMS_CM3,0,5))","v":""},{"$f":"IF(iNumMixes<3,\"\",OFFSET(rSMS_CM3,0,6))","v":""},{"$f":"IF(iNumMixes<3,\"\",OFFSET(rSMS_CM3,0,7))","v":""},{"$f":"IF(iNumMixes<3,\"\",OFFSET(rSMS_CM3,0,8))","v":""}]
[]
[]
["TOTAL",{"$f":"IF(iNumMixes=1,B$9,SUM(B$10:B$12))","v":0},{"$f":"IF(iNumMixes=1,C$9,SUM(C$10:C$12))","v":0},{"$f":"IF(iNumMixes=1,D$9,SUM(D$10:D$12))","v":0},{"$f":"IF(iNumMixes=1,E$9,SUM(E$10:E$12))","v":0},{"$f":"F9","v":0},{"$f":"IF(LEFT(ansTopsoil)=\"n\",\"\",SUM(G9:G14))","v":0},{"$f":"H9","v":0},{"$f":"I9","v":0},{"$f":"J9","v":0},{"$f":"K9","v":0}]
[null,null,null,null,null,null,null,null,null,null,null,null,"*: SPECIFIED TYPE(S) OF FINE FESCUE:"]
[null,null,null,null,null,null,null,null,null,null,null,null,{"$f":"IF(LEFT('Seed Mix Selection'!B11,1)=\"S\",IF(iNumMixes=1,'Start Page'!$D$3,'Start Page'!$G$26),\"\")","v":""},{"$f":"IF('Seed Mix Selection'!C11=\"\",\"\",IF(LEFT('Seed Mix Selection'!C11,5)=\"Other\",'Seed Mix Selection'!C12,'Seed Mix Selection'!C11))","v":""},{"$f":"IF('Seed Mix Selection'!D11=\"\",\"\",IF(LEFT('Seed Mix Selection'!D11,5)=\"Other\",'Seed Mix Selection'!D12,'Seed Mix Selection'!D11))","v":""},{"$f":"IF('Seed Mix Selection'!E11=\"\",\"\",IF(LEFT('Seed Mix Selection'!E11,5)=\"Other\",'Seed Mix Selection'!E12,'Seed Mix Selection'!E11))","v":""},{"$f":"IF('Seed Mix Selection'!F11=\"\",\"\",IF(LEFT('Seed Mix Selection'!F11,5)=\"Other\",'Seed Mix Selection'!F12,'Seed Mix Selection'!F11))","v":""},{"$f":"IF('Seed Mix Selection'!G11=\"\",\"\",IF(LEFT('Seed Mix Selection'!G11,5)=\"Other\",'Seed Mix Selection'!G12,'Seed Mix Selection'!G11))","v":""},{"$f":"IF('Seed Mix Selection'!H11=\"\",\"\",IF(LEFT('Seed Mix Selection'!H11,5)=\"Other\",'Seed Mix Selection'!H12,'Seed Mix Selection'!H11))","v":""},{"$f":"IF('Seed Mix Selection'!I11=\"\",\"\",IF(LEFT('Seed Mix Selection'!I11,5)=\"Other\",'Seed Mix Selection'!I12,'Seed Mix Selection'!I11))","v":""},{"$f":"IF('Seed Mix Selection'!J11=\"\",\"\",IF(LEFT('Seed Mix Selection'!J11,5)=\"Other\",'Seed Mix Selection'!J12,'Seed Mix Selection'!J11))","v":""}]
[null,null,null,null,null,null,null,null,null,null,null,null,{"$f":"IF(LEFT('Seed Mix Selection'!B23,1)=\"S\",IF(iNumMixes<2,\"Verify # of Mixes*\",'Start Page'!$G$39),\"\")","v":""},{"$f":"IF('Seed Mix Selection'!C23=\"\",\"\",IF(LEFT('Seed Mix Selection'!C23,5)=\"Other\",'Seed Mix Selection'!C24,'Seed Mix Selection'!C23))","v":""},{"$f":"IF('Seed Mix Selection'!D23=\"\",\"\",IF(LEFT('Seed Mix Selection'!D23,5)=\"Other\",'Seed Mix Selection'!D24,'Seed Mix Selection'!D23))","v":""},{"$f":"IF('Seed Mix Selection'!E23=\"\",\"\",IF(LEFT('Seed Mix Selection'!E23,5)=\"Other\",'Seed Mix Selection'!E24,'Seed Mix Selection'!E23))","v":""},{"$f":"IF('Seed Mix Selection'!F23=\"\",\"\",IF(LEFT('Seed Mix Selection'!F23,5)=\"Other\",'Seed Mix Selection'!F24,'Seed Mix Selection'!F23))","v":""},{"$f":"IF('Seed Mix Selection'!G23=\"\",\"\",IF(LEFT('Seed Mix Selection'!G23,5)=\"Other\",'Seed Mix Selection'!G24,'Seed Mix Selection'!G23))","v":""},{"$f":"IF('Seed Mix Selection'!H23=\"\",\"\",IF(LEFT('Seed Mix Selection'!H23,5)=\"Other\",'Seed Mix Selection'!H24,'Seed Mix Selection'!H23))","v":""},{"$f":"IF('Seed Mix Selection'!I23=\"\",\"\",IF(LEFT('Seed Mix Selection'!I23,5)=\"Other\",'Seed Mix Selection'!I24,'Seed Mix Selection'!I23))","v":""},{"$f":"IF('Seed Mix Selection'!J23=\"\",\"\",IF(LEFT('Seed Mix Selection'!J23,5)=\"Other\",'Seed Mix Selection'!J24,'Seed Mix Selection'!J23))","v":""}]
[null,null,null,null,null,null,null,null,null,null,null,null,{"$f":"IF(LEFT('Seed Mix Selection'!B35,1)=\"S\",IF(iNumMixes<3,\"Verify # of Mixes*\",'Start Page'!$G$52),\"\")","v":""},{"$f":"IF('Seed Mix Selection'!C35=\"\",\"\",IF(LEFT('Seed Mix Selection'!C35,5)=\"Other\",'Seed Mix Selection'!C36,'Seed Mix Selection'!C35))","v":""},{"$f":"IF('Seed Mix Selection'!D35=\"\",\"\",IF(LEFT('Seed Mix Selection'!D35,5)=\"Other\",'Seed Mix Selection'!D36,'Seed Mix Selection'!D35))","v":""},{"$f":"IF('Seed Mix Selection'!E35=\"\",\"\",IF(LEFT('Seed Mix Selection'!E35,5)=\"Other\",'Seed Mix Selection'!E36,'Seed Mix Selection'!E35))","v":""},{"$f":"IF('Seed Mix Selection'!F35=\"\",\"\",IF(LEFT('Seed Mix Selection'!F35,5)=\"Other\",'Seed Mix Selection'!F36,'Seed Mix Selection'!F35))","v":""},{"$f":"IF('Seed Mix Selection'!G35=\"\",\"\",IF(LEFT('Seed Mix Selection'!G35,5)=\"Other\",'Seed Mix Selection'!G36,'Seed Mix Selection'!G35))","v":""},{"$f":"IF('Seed Mix Selection'!H35=\"\",\"\",IF(LEFT('Seed Mix Selection'!H35,5)=\"Other\",'Seed Mix Selection'!H36,'Seed Mix Selection'!H35))","v":""},{"$f":"IF('Seed Mix Selection'!I35=\"\",\"\",IF(LEFT('Seed Mix Selection'!I35,5)=\"Other\",'Seed Mix Selection'!I36,'Seed Mix Selection'!I35))","v":""},{"$f":"IF('Seed Mix Selection'!J35=\"\",\"\",IF(LEFT('Seed Mix Selection'!J35,5)=\"Other\",'Seed Mix Selection'!J36,'Seed Mix Selection'!J35))","v":""}]
[null,null,null,null,null,null,null,null,null,null,null,null,{"$f":"IF(COUNTIF(N17:U19,\"Any Type**\")>0,\"**: \"&'Seed Rate Selection'!B20,\"\")","v":""}]
[null,null,null,null,null,null,null,null,null,null,null,null,{"$f":"IF(COUNTIF(M17:M19,\"Verify # of Mixes*\")>0,\"*: Please check your answer to question #5 on the Start Page (Proj. Questionnaire) against the input on the\",\"\")","v":""}]
[null,null,null,null,null,null,null,null,null,null,null,null,{"$f":"IF(COUNTIF(M17:M19,\"Verify # of Mixes*\")>0,\" Seed Mix Selection Page as they do not match.  (May need to contact District Roadside Manager).\",\"\")","v":""}]

{"sheet":"Roadside Notes","index":14,"n_rows":26,"n_cols":52,"rows_kept":26,"cut":false,"hidden":true,"merged":[]}
["Include Note?","•\n\n\n•\n  ","Choose whether or not to include each note by selecting/entering Yes or No in the gray box to the left of each note.  Default values have been entered for each note, but they can all be overwritten if so desired.  \nAlso, Enter any Custom Notes specific to this project at the bottom of the list of notes and ensure that the box to the left updates accordingly.  ",null,null,null,null,null,null,null,null,null,null,null,null,null,null,null,null,null,null,null,null,null,null,null,null,"Row Group",null,null,null,null,null,null,null,null,null,null,null,null,null,null,null,null,null,null,null,null,null,null,null,"Roadside Notes"]
[{"$f":"COUNTIF(rNotesFilter,\"\")","v":0},null,"NOTES",null,null,null,null,null,null,null,null,null,null,null,null,null,null,null,null,null,null,null,null,null,null,null,null,1]
["Yes",1,"RECOMMENDATIONS FOR THE APPLICATION OF SEED MIXTURES (CORE MIX AND ADDITIVES), FERTILIZER, LIME, ETC. SHALL BE OBTAINED FROM THE DISTRICT ROADSIDE MANAGER.",null,null,null,null,null,null,null,null,null,null,null,null,null,null,null,null,null,null,null,null,null,null,null,null,1]
["Yes",{"$f":"IF(LEFT(A4,1)=\"n\",B3,B3+1)","v":2},"ALL SEED, FERTILIZER, LIME, MULCH, ETC. MUST BE IN CONFORMANCE WITH VDOT ROAD AND BRIDGE SPECIFICATIONS AND ANY APPLICABLE INFORMATIONAL & INSTRUCTIONAL MEMORANDA. "]
["Yes",{"$f":"IF(LEFT(A5,1)=\"n\",B4,B4+1)","v":3},{"$f":"\"APPROXIMATELY \"&Area_PSac&\" ACRES WILL BE DISTURBED ON THIS PROJECT AND WILL REQUIRE THE ESTABLISHMENT OF GRASSES AND/OR LEGUMES.\"","v":"APPROXIMATELY 0 ACRES WILL BE DISTURBED ON THIS PROJECT AND WILL REQUIRE THE ESTABLISHMENT OF GRASSES AND/OR LEGUMES."},{"$f":"IF(A5=\"\",\"Please Choose whether or not to include this note\",\"\")","v":""},null,null,null,null,null,null,null,null,null,null,null,null,null,null,null,null,null,null,null,null,null,null,null,1]
["Yes",{"$f":"IF(LEFT(A6,1)=\"n\",B5,B5+1)","v":4},"REGULAR SEED SHALL BE APPLIED AT THE RATES SHOWN IN THE CORE MIX, ADDITIVES, AND WHERE APPLICABLE, CUSTOM SEED MIX TABLES.  \nSEEDING QUANTITIES SHOWN IN THE ROADSIDE DEVELOPMENT SUMMARY TABLE ARE BASED ON THE HIGHEST \"NORMAL\" SEEDING RATE FOR EACH CORE MIX (BY SEASON FOR BOTH MOWED AREAS AND NON-MOWED SLOPES), WITH A 25% INCREMENTAL ADJUSTMENT TO ACCOUNT FOR SEEDING PROGRESSION, SEEDING AFTER SIGN OR GUARDRAIL INSTALLATION, AND OTHER MINOR UNPLANNED DISTURBANCES.  ",{"$f":"IF(A6=\"\",\"Please Choose whether or not to include this note\",\"\")","v":""},null,null,null,null,null,null,null,null,null,null,null,null,null,null,null,null,null,null,null,null,null,null,null,1]
["Yes",{"$f":"IF(LEFT(A7,1)=\"n\",B6,B6+1)","v":5},"REGULAR SEED SHALL BE FERTILIZED AT THE RATES SHOWN IN THE FERTILIZER SUMMARY TABLE.  \nTHE TOTAL FERTILIZER QUANTITIES SHOWN IN THE TABLES INCLUDES THE 25% INCREMENTAL ADJUSTMENT DESCRIBED ABOVE.","",null,null,null,null,null,null,null,null,null,null,null,null,null,null,null,null,null,null,null,null,null,null,null,1]
["Yes",6,"OVERSEEDING RATES SHALL BE 100% OF THE REGULAR SEED RATE WITHOUT THE INCREMENTAL ADJUSTMENT.  ","",null,null,null,null,null,null,null,null,null,null,null,null,null,null,null,null,null,null,null,null,null,null,null,1]
["Yes",7,"OVERSEEDING SHALL ONLY INCLUDE FERTILIZER ONCE, AT THE RATE SHOWN IN THE FERTILIZER SUMMARY TABLE.  ADDITIONAL OVERSEEDING MAY BE DONE WITH NO FERTILIZER APPLIED, OR A SOIL TEST MAY BE PERFORMED TO DETERMINE THE SPECIFIC NUTRIENTS NECESSARY TO ESTABLISH THE GRASSES AND/OR LEGUMES.","",null,null,null,null,null,null,null,null,null,null,null,null,null,null,null,null,null,null,null,null,null,null,null,1]
["Yes",8,"THE ENGINEER WILL REQUIRE THE CONTRACTOR TO PERFORM SUPPLEMENTAL SEEDING WHEN LESS THAN 75% UNIFORM STAND OF THE PERMANENT GRASS (AND LEGUMES) SPECIFIED IN THE MIXTURES IS OBTAINED.  (ANNUAL SPECIES SUCH AS RYE AND MILLET ARE TEMPORARY VARIETIES AND REQUIRE SUPPLEMENTAL SEEDING.)","",null,null,null,null,null,null,null,null,null,null,null,null,null,null,null,null,null,null,null,null,null,null,null,1]
["Yes",9,"LEGUME SEED SHALL BE INOCULATED WITH THE APPROPRIATE STRAIN AND RATE OF BACTERIA.  FOR HYDROSEEDING, USE FIVE TIMES (5X) THE AMOUNT OF INOCULANT RECOMMENDED BY THE MANUFACTURER.","",null,null,null,null,null,null,null,null,null,null,null,null,null,null,null,null,null,null,null,null,null,null,null,1]
["Yes",10,"THE DATE SEED IS APPLIED SHALL BE USED TO DETERMINE WHETHER TO USE HULLED OR UNHULLED SEED FOR BERMUDAGRASS AND SERICEA LESPEDEZA.  ","",null,null,null,null,null,null,null,null,null,null,null,null,null,null,null,null,null,null,null,null,null,null,null,1]
[{"$f":"A12","v":"Yes"},null,{"$f":"CONCATENATE(\"SPRING & SUMMER (\",LEFT('Roadside Summary'!N9,4),\" TO \",RIGHT('Roadside Summary'!P9,4),\"): USE HULLED SEED\",CHAR(10),\"FALL & WINTER (\",LEFT('Roadside Summary'!R9,4),\" TO \",RIGHT('Roadside Summary'!T9,4),\"): USE UNHULLED SEED.\")","v":{"$error":"#N/A"}},"",null,null,null,null,null,null,null,null,null,null,null,null,null,null,null,null,null,null,null,null,null,null,null,1]
["Yes",{"$f":"IF(LEFT(A14,1)=\"n\",B12,B12+1)","v":11},{"$f":"CONCATENATE(\"EROSION CONTROL MULCH, AS DIRECTED BY THE ENGINEER, IS TO BE USED ON AREAS THAT ARE TO BE LEFT DORMANT FOR MORE THAN 14 DAYS DURING THE DORMANT PERIOD (\",UPPER('Roadside Summary'!T9),\").\")","v":{"$error":"#N/A"}},"",null,null,null,null,null,null,null,null,null,null,null,null,null,null,null,null,null,null,null,null,null,null,null,2]
["Yes",12,"WHEN EROSION CONTROL MULCH IS USED, IT SHALL PROVIDE 100% COVERAGE OF ALL DENUDED AREAS.","",null,null,null,null,null,null,null,null,null,null,null,null,null,null,null,null,null,null,null,null,null,null,null,2]
["Yes",13,"HECP SHALL BE APPLIED ACCORDING TO THE MANUFACTERUER'S SPECIFICATIONS  (OR RECOMMENDATIONS).","",null,null,null,null,null,null,null,null,null,null,null,null,null,null,null,null,null,null,null,null,null,null,null,2]
[{"$f":"IF(LEFT(C17,6)=\"Custom\",\"No\",\"Yes\")","v":"No"},13,"CUSTOM NOTE 1","",null,null,null,null,null,null,null,null,null,null,null,null,null,null,null,null,null,null,null,null,null,null,null,4]
[{"$f":"IF(LEFT(C18,6)=\"Custom\",\"No\",\"Yes\")","v":"No"},13,"CUSTOM NOTE 2","",null,null,null,null,null,null,null,null,null,null,null,null,null,null,null,null,null,null,null,null,null,null,null,4]
[{"$f":"IF(LEFT(C19,6)=\"Custom\",\"No\",\"Yes\")","v":"No"},13,"CUSTOM NOTE 3","",null,null,null,null,null,null,null,null,null,null,null,null,null,null,null,null,null,null,null,null,null,null,null,4]
[{"$f":"IF(LEFT(C20,6)=\"Custom\",\"No\",\"Yes\")","v":"No"},13,"CUSTOM NOTE 4","",null,null,null,null,null,null,null,null,null,null,null,null,null,null,null,null,null,null,null,null,null,null,null,4]
[{"$f":"IF(LEFT(C21,6)=\"Custom\",\"No\",\"Yes\")","v":"No"},13,"CUSTOM NOTE 5","",null,null,null,null,null,null,null,null,null,null,null,null,null,null,null,null,null,null,null,null,null,null,null,4]
[{"$f":"IF(LEFT(C22,6)=\"Custom\",\"No\",\"Yes\")","v":"No"},{"$f":"IF(LEFT(A22,1)=\"n\",B21,B21+1)","v":13},"CUSTOM NOTE 6","",null,null,null,null,null,null,null,null,null,null,null,null,null,null,null,null,null,null,null,null,null,null,null,4]
[{"$f":"IF(LEFT(C23,6)=\"Custom\",\"No\",\"Yes\")","v":"No"},{"$f":"IF(LEFT(A23,1)=\"n\",B22,B22+1)","v":13},"CUSTOM NOTE 7","",null,null,null,null,null,null,null,null,null,null,null,null,null,null,null,null,null,null,null,null,null,null,null,4]
[{"$f":"IF(LEFT(C24,6)=\"Custom\",\"No\",\"Yes\")","v":"No"},{"$f":"IF(LEFT(A24,1)=\"n\",B23,B23+1)","v":13},"CUSTOM NOTE 8","",null,null,null,null,null,null,null,null,null,null,null,null,null,null,null,null,null,null,null,null,null,null,null,4]
[{"$f":"IF(LEFT(C25,6)=\"Custom\",\"No\",\"Yes\")","v":"No"},13,"CUSTOM NOTE 9","",null,null,null,null,null,null,null,null,null,null,null,null,null,null,null,null,null,null,null,null,null,null,null,4]
[{"$f":"IF(LEFT(C26,6)=\"Custom\",\"No\",\"Yes\")","v":"No"},13,"CUSTOM NOTE 10","",null,null,null,null,null,null,null,null,null,null,null,null,null,null,null,null,null,null,null,null,null,null,null,4]

{"sheet":"Seed Mix Selection","index":15,"n_rows":75,"n_cols":50,"rows_kept":75,"cut":false,"hidden":true,"merged":[[16,36,16,37],[28,36,28,37],[40,36,40,37],[40,48,40,49],[28,48,28,49],[16,48,16,49],[32,0,41,0],[8,26,17,26],[0,27,0,33],[7,2,7,3],[7,4,7,5],[7,6,7,7],[8,0,17,0],[20,0,29,0],[5,2,5,3],[5,4,5,5],[5,6,5,7],[6,2,6,3],[6,4,6,5],[6,6,6,7],[7,39,7,47],[7,27,7,35],[0,39,0,45],[5,8,5,9],[6,8,6,9],[7,8,7,9]]}
[null,"Select Seed Mixtures for each Time Period for both Mowed & Non-Mowed Areas utilizing the Drop-down Lists",null,null,null,null,null,null,null,null,null,null,null,null,null,null,null,null,null,null,null,null,null,null,null,null,null,"Total Seed Weights",null,null,null,null,null,null,null,null,null,null,null,"Total Legume Weights"]
[null,null,"SLOPES","MOWED","SLOPES","MOWED","SLOPES","MOWED","SLOPES","MOWED"]
[null,null,"SEED MIX","SEED MIX","SEED MIX","SEED MIX","SEED MIX","SEED MIX","SEED MIX","SEED MIX"]
[null,null,"WITH ","WITH ","WITH ","WITH ","WITH ","WITH ","WITH ","WITH "]
[null,null,"ADDITIVE","ADDITIVE","ADDITIVE","ADDITIVE","ADDITIVE","ADDITIVE","ADDITIVE","ADDITIVE"]
[null,null,"SPRING",null,"SUMMER",null,"FALL",null,"DORMANT",null,null,null,null,null,null,null,null,null,null,null,null,null,null,null,null,null,null,null,{"$f":"C2","v":"SLOPES"},"MOWED","SLOPES","MOWED","SLOPES","MOWED","SLOPES","MOWED",null,null,null,null,{"$f":"AC6","v":"SLOPES"},{"$f":"AD6","v":"MOWED"},{"$f":"AE6","v":"SLOPES"},"MOWED","SLOPES","MOWED","SLOPES","MOWED"]
[null,null,"MONTH & DATE",null,"MONTH & DATE",null,"MONTH & DATE",null,"MONTH & DATE",null,null,null,null,null,null,null,null,null,null,null,null,null,null,null,null,null,null,null,{"$f":"C6","v":"SPRING"},{"$f":"C6","v":"SPRING"},{"$f":"E6","v":"SUMMER"},{"$f":"E6","v":"SUMMER"},{"$f":"G6","v":"FALL"},{"$f":"G6","v":"FALL"},{"$f":"I6","v":"DORMANT"},{"$f":"I6","v":"DORMANT"},"MOW","Non-Mow",null,null,{"$f":"AC7","v":"SPRING"},{"$f":"AD7","v":"SPRING"},{"$f":"AE7","v":"SUMMER"},{"$f":"AF7","v":"SUMMER"},{"$f":"AG7","v":"FALL"},{"$f":"AH7","v":"FALL"},{"$f":"AI7","v":"DORMANT"},{"$f":"AJ7","v":"DORMANT"},"MOW","Non-Mow"]
[null,null,{"$f":"VLOOKUP(ansRegion,tPlantTimes[],2,FALSE)","v":{"$error":"#N/A"}},null,{"$f":"VLOOKUP(ansRegion,tPlantTimes[],3,FALSE)","v":{"$error":"#N/A"}},null,{"$f":"VLOOKUP(ansRegion,tPlantTimes[],4,FALSE)","v":{"$error":"#N/A"}},null,{"$f":"VLOOKUP(ansRegion,tPlantTimes[],5,FALSE)","v":{"$error":"#N/A"}},null,null,null,null,null,null,null,null,null,null,null,null,null,null,null,null,null,null,"Total Seed Weights (lbs/ac)",null,null,null,null,null,null,null,null,"Max.","Max.",null,"Total Legume Weights (lbs/ac)",null,null,null,null,null,null,null,null,"Max.","Max."]
["Core Mix 1","Mix Code",{"$f":"\"(\"&IF(AND(C10<>\" \",C10<>\"\"),LEFT(C10,FIND(\":\",C10)-1),\"\")&\")\"&IF(AND(C13<>\" \",C13<>\"\"),LEFT(C13,1),\"\")&IF(AND(C14<>\" \",C14<>\"\"),LEFT(C14,1),\"\")&IF(AND(C15<>\" \",C15<>\"\"),LEFT(C15,1),\"\")&IF(AND(C16<>\" \",C16<>\"\"),LEFT(C16,1),\"\")&IF(AND(C17<>\" \",C17<>\"\"),LEFT(C17,1),\"\")&IF(AND(C18<>\" \",C18<>\"\"),LEFT(C18,1),\"\")","v":"()"},{"$f":"\"(\"&IF(AND(D10<>\" \",D10<>\"\"),LEFT(D10,FIND(\":\",D10)-1),\"\")&\")\"&IF(AND(D13<>\" \",D13<>\"\"),LEFT(D13,1),\"\")&IF(AND(D14<>\" \",D14<>\"\"),LEFT(D14,1),\"\")&IF(AND(D15<>\" \",D15<>\"\"),LEFT(D15,1),\"\")&IF(AND(D16<>\" \",D16<>\"\"),LEFT(D16,1),\"\")&IF(AND(D17<>\" \",D17<>\"\"),LEFT(D17,1),\"\")&IF(AND(D18<>\" \",D18<>\"\"),LEFT(D18,1),\"\")","v":"()"},{"$f":"\"(\"&IF(AND(E10<>\" \",E10<>\"\"),LEFT(E10,FIND(\":\",E10)-1),\"\")&\")\"&IF(AND(E13<>\" \",E13<>\"\"),LEFT(E13,1),\"\")&IF(AND(E14<>\" \",E14<>\"\"),LEFT(E14,1),\"\")&IF(AND(E15<>\" \",E15<>\"\"),LEFT(E15,1),\"\")&IF(AND(E16<>\" \",E16<>\"\"),LEFT(E16,1),\"\")&IF(AND(E17<>\" \",E17<>\"\"),LEFT(E17,1),\"\")&IF(AND(E18<>\" \",E18<>\"\"),LEFT(E18,1),\"\")","v":"()"},"()","()","()","()","()","Mix Description:",null,{"$f":"OFFSET(rSP_Mix1,1,5)","v":0},null,null,null,null,null,null,null,null,null,null,null,null,null,"Core Mix 1","Mix Code",{"$f":"$C9","v":"()"},{"$f":"$D9","v":"()"},{"$f":"$E9","v":"()"},{"$f":"$F9","v":"()"},{"$f":"$G9","v":"()"},{"$f":"$H9","v":"()"},{"$f":"$I9","v":"()"},{"$f":"$J9","v":"()"},"Rate","Rate",null,"Mix Code",{"$f":"$C9","v":"()"},{"$f":"$D9","v":"()"},{"$f":"$E9","v":"()"},{"$f":"$F9","v":"()"},{"$f":"$G9","v":"()"},{"$f":"$H9","v":"()"},{"$f":"$I9","v":"()"},{"$f":"$J9","v":"()"},"Rate","Rate"]
[null,"Core Mixture  (1, 2, 3…)"," "," "," "," "," "," "," "," "," ",null,null,null,null,null,null,null,null,null,null,null,null,null,null,null,null,"Core Mixture  (1, 2, 3…)",{"$f":"IF(AND(C10<>\" \",C10<>\"\"),VLOOKUP(LEFT(C10,FIND(\":\",C10)-1),tSeed_Core[],4,FALSE),0)","v":0},{"$f":"IF(AND(D10<>\" \",D10<>\"\"),VLOOKUP(LEFT(D10,FIND(\":\",D10)-1),tSeed_Core[],4,FALSE),0)","v":0},{"$f":"IF(AND(E10<>\" \",E10<>\"\"),VLOOKUP(LEFT(E10,FIND(\":\",E10)-1),tSeed_Core[],4,FALSE),0)","v":0},{"$f":"IF(AND(F10<>\" \",F10<>\"\"),VLOOKUP(LEFT(F10,FIND(\":\",F10)-1),tSeed_Core[],4,FALSE),0)","v":0},{"$f":"IF(AND(G10<>\" \",G10<>\"\"),VLOOKUP(LEFT(G10,FIND(\":\",G10)-1),tSeed_Core[],4,FALSE),0)","v":0},{"$f":"IF(AND(H10<>\" \",H10<>\"\"),VLOOKUP(LEFT(H10,FIND(\":\",H10)-1),tSeed_Core[],4,FALSE),0)","v":0},{"$f":"IF(AND(I10<>\" \",I10<>\"\"),VLOOKUP(LEFT(I10,FIND(\":\",I10)-1),tSeed_Core[],4,FALSE),0)","v":0},{"$f":"IF(AND(J10<>\" \",J10<>\"\"),VLOOKUP(LEFT(J10,FIND(\":\",J10)-1),tSeed_Core[],4,FALSE),0)","v":0},null,null,null,"Core Mixture  (1, 2, 3…)",{"$f":"IF(LEFT(C10,1)=\"C\",VLOOKUP(LEFT(C10,FIND(\":\",C10)-1),tSeed_Core[],5,FALSE),0)","v":0},{"$f":"IF(LEFT(D10,1)=\"C\",VLOOKUP(LEFT(D10,FIND(\":\",D10)-1),tSeed_Core[],5,FALSE),0)","v":0},{"$f":"IF(LEFT(E10,1)=\"C\",VLOOKUP(LEFT(E10,FIND(\":\",E10)-1),tSeed_Core[],5,FALSE),0)","v":0},{"$f":"IF(LEFT(F10,1)=\"C\",VLOOKUP(LEFT(F10,FIND(\":\",F10)-1),tSeed_Core[],5,FALSE),0)","v":0},{"$f":"IF(LEFT(G10,1)=\"C\",VLOOKUP(LEFT(G10,FIND(\":\",G10)-1),tSeed_Core[],5,FALSE),0)","v":0},{"$f":"IF(LEFT(H10,1)=\"C\",VLOOKUP(LEFT(H10,FIND(\":\",H10)-1),tSeed_Core[],5,FALSE),0)","v":0},{"$f":"IF(LEFT(I10,1)=\"C\",VLOOKUP(LEFT(I10,FIND(\":\",I10)-1),tSeed_Core[],5,FALSE),0)","v":0},{"$f":"IF(LEFT(J10,1)=\"C\",VLOOKUP(LEFT(J10,FIND(\":\",J10)-1),tSeed_Core[],5,FALSE),0)","v":0}]
[null,{"$f":"IF(COUNTIF(AC11:AJ11,\"Yes\")>0,\"Specific Type of Fine Fescue\",\"n/a\")","v":"n/a"},null,null,null,null,null,null,null,null,null,null,null,null,null,null,null,null,null,null,null,null,null,null,null,null,null,"Fine Fescue?",{"$f":"IF(RIGHT(C10,1)=\"*\",\"Yes\",\"No\")","v":"No"},{"$f":"IF(RIGHT(D10,1)=\"*\",\"Yes\",\"No\")","v":"No"},{"$f":"IF(RIGHT(E10,1)=\"*\",\"Yes\",\"No\")","v":"No"},{"$f":"IF(RIGHT(F10,1)=\"*\",\"Yes\",\"No\")","v":"No"},{"$f":"IF(RIGHT(G10,1)=\"*\",\"Yes\",\"No\")","v":"No"},{"$f":"IF(RIGHT(H10,1)=\"*\",\"Yes\",\"No\")","v":"No"},{"$f":"IF(RIGHT(I10,1)=\"*\",\"Yes\",\"No\")","v":"No"},{"$f":"IF(RIGHT(J10,1)=\"*\",\"Yes\",\"No\")","v":"No"}]
[null,{"$f":"IF(COUNTIF(AC12:AJ12,\"Yes\")>0,\"Specify Other Type\",\"n/a\")","v":"n/a"},null,null,null,null,null,null,null,null,null,null,null,null,null,null,null,null,null,null,null,null,null,null,null,null,null,"User Entry?",{"$f":"IF(LEFT(C11,5)=\"Other\",\"Yes\",\"No\")","v":"No"},{"$f":"IF(LEFT(D11,5)=\"Other\",\"Yes\",\"No\")","v":"No"},"No","No","No","No","No","No"]
[null,"Additive 1 \n(A, B, C…)"," "," "," "," "," "," "," "," ",{"$f":"IF(OR(AND(COUNTIF(C10:H10,\"C1:*\")>0,OFFSET(rSeedCustom_1,1,1)<0.01),AND(COUNTIF(C10:H10,\"C2:*\")>0,OFFSET(rSeedCustom_2,1,1)<0.01),AND(COUNTIF(C10:H10,\"C3:*\")>0,OFFSET(rSeedCustom_3,1,1)<0.01)),\"Please Check the Custom Seed Mix inputs on the Seed Mix Selection tab\",\"\")","v":""},null,null,null,null,null,null,null,null,null,null,null,null,null,null,null,null,"Additive 1 \n(A, B, C…)",{"$f":"IF(AND(C13<>\" \",C13<>\"\"),IF(VLOOKUP(LEFT(C13,FIND(\":\",C13)-1),tSeed_Add[],5,FALSE)=\"No\",VLOOKUP(LEFT(C13,FIND(\":\",C13)-1),tSeed_Add[],4,FALSE),0),0)","v":0},{"$f":"IF(AND(D13<>\" \",D13<>\"\"),IF(VLOOKUP(LEFT(D13,FIND(\":\",D13)-1),tSeed_Add[],5,FALSE)=\"No\",VLOOKUP(LEFT(D13,FIND(\":\",D13)-1),tSeed_Add[],4,FALSE),0),0)","v":0},{"$f":"IF(AND(E13<>\" \",E13<>\"\"),IF(VLOOKUP(LEFT(E13,FIND(\":\",E13)-1),tSeed_Add[],5,FALSE)=\"No\",VLOOKUP(LEFT(E13,FIND(\":\",E13)-1),tSeed_Add[],4,FALSE),0),0)","v":0},{"$f":"IF(AND(F13<>\" \",F13<>\"\"),IF(VLOOKUP(LEFT(F13,FIND(\":\",F13)-1),tSeed_Add[],5,FALSE)=\"No\",VLOOKUP(LEFT(F13,FIND(\":\",F13)-1),tSeed_Add[],4,FALSE),0),0)","v":0},{"$f":"IF(AND(G13<>\" \",G13<>\"\"),IF(VLOOKUP(LEFT(G13,FIND(\":\",G13)-1),tSeed_Add[],5,FALSE)=\"No\",VLOOKUP(LEFT(G13,FIND(\":\",G13)-1),tSeed_Add[],4,FALSE),0),0)","v":0},{"$f":"IF(AND(H13<>\" \",H13<>\"\"),IF(VLOOKUP(LEFT(H13,FIND(\":\",H13)-1),tSeed_Add[],5,FALSE)=\"No\",VLOOKUP(LEFT(H13,FIND(\":\",H13)-1),tSeed_Add[],4,FALSE),0),0)","v":0},{"$f":"IF(AND(I13<>\" \",I13<>\"\"),IF(VLOOKUP(LEFT(I13,FIND(\":\",I13)-1),tSeed_Add[],5,FALSE)=\"No\",VLOOKUP(LEFT(I13,FIND(\":\",I13)-1),tSeed_Add[],4,FALSE),0),0)","v":0},{"$f":"IF(AND(J13<>\" \",J13<>\"\"),IF(VLOOKUP(LEFT(J13,FIND(\":\",J13)-1),tSeed_Add[],5,FALSE)=\"No\",VLOOKUP(LEFT(J13,FIND(\":\",J13)-1),tSeed_Add[],4,FALSE),0),0)","v":0},null,null,null,"Additive 1 \n(A, B, C…)",{"$f":"IF(AND(C13<>\" \",C13<>\"\"),IF(VLOOKUP(LEFT(C13,FIND(\":\",C13)-1),tSeed_Add[],5,FALSE)=\"Yes\",VLOOKUP(LEFT(C13,FIND(\":\",C13)-1),tSeed_Add[],4,FALSE),0),0)","v":0},{"$f":"IF(AND(D13<>\" \",D13<>\"\"),IF(VLOOKUP(LEFT(D13,FIND(\":\",D13)-1),tSeed_Add[],5,FALSE)=\"Yes\",VLOOKUP(LEFT(D13,FIND(\":\",D13)-1),tSeed_Add[],4,FALSE),0),0)","v":0},{"$f":"IF(AND(E13<>\" \",E13<>\"\"),IF(VLOOKUP(LEFT(E13,FIND(\":\",E13)-1),tSeed_Add[],5,FALSE)=\"Yes\",VLOOKUP(LEFT(E13,FIND(\":\",E13)-1),tSeed_Add[],4,FALSE),0),0)","v":0},{"$f":"IF(AND(F13<>\" \",F13<>\"\"),IF(VLOOKUP(LEFT(F13,FIND(\":\",F13)-1),tSeed_Add[],5,FALSE)=\"Yes\",VLOOKUP(LEFT(F13,FIND(\":\",F13)-1),tSeed_Add[],4,FALSE),0),0)","v":0},{"$f":"IF(AND(G13<>\" \",G13<>\"\"),IF(VLOOKUP(LEFT(G13,FIND(\":\",G13)-1),tSeed_Add[],5,FALSE)=\"Yes\",VLOOKUP(LEFT(G13,FIND(\":\",G13)-1),tSeed_Add[],4,FALSE),0),0)","v":0},{"$f":"IF(AND(H13<>\" \",H13<>\"\"),IF(VLOOKUP(LEFT(H13,FIND(\":\",H13)-1),tSeed_Add[],5,FALSE)=\"Yes\",VLOOKUP(LEFT(H13,FIND(\":\",H13)-1),tSeed_Add[],4,FALSE),0),0)","v":0},{"$f":"IF(AND(I13<>\" \",I13<>\"\"),IF(VLOOKUP(LEFT(I13,FIND(\":\",I13)-1),tSeed_Add[],5,FALSE)=\"Yes\",VLOOKUP(LEFT(I13,FIND(\":\",I13)-1),tSeed_Add[],4,FALSE),0),0)","v":0},{"$f":"IF(AND(J13<>\" \",J13<>\"\"),IF(VLOOKUP(LEFT(J13,FIND(\":\",J13)-1),tSeed_Add[],5,FALSE)=\"Yes\",VLOOKUP(LEFT(J13,FIND(\":\",J13)-1),tSeed_Add[],4,FALSE),0),0)","v":0}]
[null,"Additive 2 \n(A, B, C…)"," "," "," "," "," "," "," "," "," ",null,null,null,null,null,null,null,null,null,null,null,null,null,null,null,null,"Additive 2 \n(A, B, C…)",{"$f":"IF(AND(C14<>\" \",C14<>\"\"),IF(VLOOKUP(LEFT(C14,FIND(\":\",C14)-1),tSeed_Add[],5,FALSE)=\"No\",VLOOKUP(LEFT(C14,FIND(\":\",C14)-1),tSeed_Add[],4,FALSE),0),0)","v":0},{"$f":"IF(AND(D14<>\" \",D14<>\"\"),IF(VLOOKUP(LEFT(D14,FIND(\":\",D14)-1),tSeed_Add[],5,FALSE)=\"No\",VLOOKUP(LEFT(D14,FIND(\":\",D14)-1),tSeed_Add[],4,FALSE),0),0)","v":0},{"$f":"IF(AND(E14<>\" \",E14<>\"\"),IF(VLOOKUP(LEFT(E14,FIND(\":\",E14)-1),tSeed_Add[],5,FALSE)=\"No\",VLOOKUP(LEFT(E14,FIND(\":\",E14)-1),tSeed_Add[],4,FALSE),0),0)","v":0},{"$f":"IF(AND(F14<>\" \",F14<>\"\"),IF(VLOOKUP(LEFT(F14,FIND(\":\",F14)-1),tSeed_Add[],5,FALSE)=\"No\",VLOOKUP(LEFT(F14,FIND(\":\",F14)-1),tSeed_Add[],4,FALSE),0),0)","v":0},{"$f":"IF(AND(G14<>\" \",G14<>\"\"),IF(VLOOKUP(LEFT(G14,FIND(\":\",G14)-1),tSeed_Add[],5,FALSE)=\"No\",VLOOKUP(LEFT(G14,FIND(\":\",G14)-1),tSeed_Add[],4,FALSE),0),0)","v":0},{"$f":"IF(AND(H14<>\" \",H14<>\"\"),IF(VLOOKUP(LEFT(H14,FIND(\":\",H14)-1),tSeed_Add[],5,FALSE)=\"No\",VLOOKUP(LEFT(H14,FIND(\":\",H14)-1),tSeed_Add[],4,FALSE),0),0)","v":0},{"$f":"IF(AND(I14<>\" \",I14<>\"\"),IF(VLOOKUP(LEFT(I14,FIND(\":\",I14)-1),tSeed_Add[],5,FALSE)=\"No\",VLOOKUP(LEFT(I14,FIND(\":\",I14)-1),tSeed_Add[],4,FALSE),0),0)","v":0},{"$f":"IF(AND(J14<>\" \",J14<>\"\"),IF(VLOOKUP(LEFT(J14,FIND(\":\",J14)-1),tSeed_Add[],5,FALSE)=\"No\",VLOOKUP(LEFT(J14,FIND(\":\",J14)-1),tSeed_Add[],4,FALSE),0),0)","v":0},null,null,null,"Additive 2 \n(A, B, C…)",{"$f":"IF(AND(C14<>\" \",C14<>\"\"),IF(VLOOKUP(LEFT(C14,FIND(\":\",C14)-1),tSeed_Add[],5,FALSE)=\"Yes\",VLOOKUP(LEFT(C14,FIND(\":\",C14)-1),tSeed_Add[],4,FALSE),0),0)","v":0},{"$f":"IF(AND(D14<>\" \",D14<>\"\"),IF(VLOOKUP(LEFT(D14,FIND(\":\",D14)-1),tSeed_Add[],5,FALSE)=\"Yes\",VLOOKUP(LEFT(D14,FIND(\":\",D14)-1),tSeed_Add[],4,FALSE),0),0)","v":0},{"$f":"IF(AND(E14<>\" \",E14<>\"\"),IF(VLOOKUP(LEFT(E14,FIND(\":\",E14)-1),tSeed_Add[],5,FALSE)=\"Yes\",VLOOKUP(LEFT(E14,FIND(\":\",E14)-1),tSeed_Add[],4,FALSE),0),0)","v":0},{"$f":"IF(AND(F14<>\" \",F14<>\"\"),IF(VLOOKUP(LEFT(F14,FIND(\":\",F14)-1),tSeed_Add[],5,FALSE)=\"Yes\",VLOOKUP(LEFT(F14,FIND(\":\",F14)-1),tSeed_Add[],4,FALSE),0),0)","v":0},{"$f":"IF(AND(G14<>\" \",G14<>\"\"),IF(VLOOKUP(LEFT(G14,FIND(\":\",G14)-1),tSeed_Add[],5,FALSE)=\"Yes\",VLOOKUP(LEFT(G14,FIND(\":\",G14)-1),tSeed_Add[],4,FALSE),0),0)","v":0},{"$f":"IF(AND(H14<>\" \",H14<>\"\"),IF(VLOOKUP(LEFT(H14,FIND(\":\",H14)-1),tSeed_Add[],5,FALSE)=\"Yes\",VLOOKUP(LEFT(H14,FIND(\":\",H14)-1),tSeed_Add[],4,FALSE),0),0)","v":0},{"$f":"IF(AND(I14<>\" \",I14<>\"\"),IF(VLOOKUP(LEFT(I14,FIND(\":\",I14)-1),tSeed_Add[],5,FALSE)=\"Yes\",VLOOKUP(LEFT(I14,FIND(\":\",I14)-1),tSeed_Add[],4,FALSE),0),0)","v":0},{"$f":"IF(AND(J14<>\" \",J14<>\"\"),IF(VLOOKUP(LEFT(J14,FIND(\":\",J14)-1),tSeed_Add[],5,FALSE)=\"Yes\",VLOOKUP(LEFT(J14,FIND(\":\",J14)-1),tSeed_Add[],4,FALSE),0),0)","v":0}]
[null,"Additive 3 \n(A, B, C…)"," "," "," "," "," "," "," "," "," ",null,null,null,null,null,null,null,null,null,null,null,null,null,null,null,null,"Additive 3 \n(A, B, C…)",{"$f":"IF(AND(C15<>\" \",C15<>\"\"),IF(VLOOKUP(LEFT(C15,FIND(\":\",C15)-1),tSeed_Add[],5,FALSE)=\"No\",VLOOKUP(LEFT(C15,FIND(\":\",C15)-1),tSeed_Add[],4,FALSE),0),0)","v":0},{"$f":"IF(AND(D15<>\" \",D15<>\"\"),IF(VLOOKUP(LEFT(D15,FIND(\":\",D15)-1),tSeed_Add[],5,FALSE)=\"No\",VLOOKUP(LEFT(D15,FIND(\":\",D15)-1),tSeed_Add[],4,FALSE),0),0)","v":0},{"$f":"IF(AND(E15<>\" \",E15<>\"\"),IF(VLOOKUP(LEFT(E15,FIND(\":\",E15)-1),tSeed_Add[],5,FALSE)=\"No\",VLOOKUP(LEFT(E15,FIND(\":\",E15)-1),tSeed_Add[],4,FALSE),0),0)","v":0},{"$f":"IF(AND(F15<>\" \",F15<>\"\"),IF(VLOOKUP(LEFT(F15,FIND(\":\",F15)-1),tSeed_Add[],5,FALSE)=\"No\",VLOOKUP(LEFT(F15,FIND(\":\",F15)-1),tSeed_Add[],4,FALSE),0),0)","v":0},{"$f":"IF(AND(G15<>\" \",G15<>\"\"),IF(VLOOKUP(LEFT(G15,FIND(\":\",G15)-1),tSeed_Add[],5,FALSE)=\"No\",VLOOKUP(LEFT(G15,FIND(\":\",G15)-1),tSeed_Add[],4,FALSE),0),0)","v":0},{"$f":"IF(AND(H15<>\" \",H15<>\"\"),IF(VLOOKUP(LEFT(H15,FIND(\":\",H15)-1),tSeed_Add[],5,FALSE)=\"No\",VLOOKUP(LEFT(H15,FIND(\":\",H15)-1),tSeed_Add[],4,FALSE),0),0)","v":0},{"$f":"IF(AND(I15<>\" \",I15<>\"\"),IF(VLOOKUP(LEFT(I15,FIND(\":\",I15)-1),tSeed_Add[],5,FALSE)=\"No\",VLOOKUP(LEFT(I15,FIND(\":\",I15)-1),tSeed_Add[],4,FALSE),0),0)","v":0},{"$f":"IF(AND(J15<>\" \",J15<>\"\"),IF(VLOOKUP(LEFT(J15,FIND(\":\",J15)-1),tSeed_Add[],5,FALSE)=\"No\",VLOOKUP(LEFT(J15,FIND(\":\",J15)-1),tSeed_Add[],4,FALSE),0),0)","v":0},null,null,null,"Additive 3 \n(A, B, C…)",{"$f":"IF(AND(C15<>\" \",C15<>\"\"),IF(VLOOKUP(LEFT(C15,FIND(\":\",C15)-1),tSeed_Add[],5,FALSE)=\"Yes\",VLOOKUP(LEFT(C15,FIND(\":\",C15)-1),tSeed_Add[],4,FALSE),0),0)","v":0},{"$f":"IF(AND(D15<>\" \",D15<>\"\"),IF(VLOOKUP(LEFT(D15,FIND(\":\",D15)-1),tSeed_Add[],5,FALSE)=\"Yes\",VLOOKUP(LEFT(D15,FIND(\":\",D15)-1),tSeed_Add[],4,FALSE),0),0)","v":0},{"$f":"IF(AND(E15<>\" \",E15<>\"\"),IF(VLOOKUP(LEFT(E15,FIND(\":\",E15)-1),tSeed_Add[],5,FALSE)=\"Yes\",VLOOKUP(LEFT(E15,FIND(\":\",E15)-1),tSeed_Add[],4,FALSE),0),0)","v":0},{"$f":"IF(AND(F15<>\" \",F15<>\"\"),IF(VLOOKUP(LEFT(F15,FIND(\":\",F15)-1),tSeed_Add[],5,FALSE)=\"Yes\",VLOOKUP(LEFT(F15,FIND(\":\",F15)-1),tSeed_Add[],4,FALSE),0),0)","v":0},{"$f":"IF(AND(G15<>\" \",G15<>\"\"),IF(VLOOKUP(LEFT(G15,FIND(\":\",G15)-1),tSeed_Add[],5,FALSE)=\"Yes\",VLOOKUP(LEFT(G15,FIND(\":\",G15)-1),tSeed_Add[],4,FALSE),0),0)","v":0},{"$f":"IF(AND(H15<>\" \",H15<>\"\"),IF(VLOOKUP(LEFT(H15,FIND(\":\",H15)-1),tSeed_Add[],5,FALSE)=\"Yes\",VLOOKUP(LEFT(H15,FIND(\":\",H15)-1),tSeed_Add[],4,FALSE),0),0)","v":0},{"$f":"IF(AND(I15<>\" \",I15<>\"\"),IF(VLOOKUP(LEFT(I15,FIND(\":\",I15)-1),tSeed_Add[],5,FALSE)=\"Yes\",VLOOKUP(LEFT(I15,FIND(\":\",I15)-1),tSeed_Add[],4,FALSE),0),0)","v":0},{"$f":"IF(AND(J15<>\" \",J15<>\"\"),IF(VLOOKUP(LEFT(J15,FIND(\":\",J15)-1),tSeed_Add[],5,FALSE)=\"Yes\",VLOOKUP(LEFT(J15,FIND(\":\",J15)-1),tSeed_Add[],4,FALSE),0),0)","v":0}]
[null,"Additive 4 \n(A, B, C…)"," "," "," "," "," "," "," "," "," ",null,null,null,null,null,null,null,null,null,null,null,null,null,null,null,null,"Additive 4 \n(A, B, C…)",{"$f":"IF(AND(C16<>\" \",C16<>\"\"),IF(VLOOKUP(LEFT(C16,FIND(\":\",C16)-1),tSeed_Add[],5,FALSE)=\"No\",VLOOKUP(LEFT(C16,FIND(\":\",C16)-1),tSeed_Add[],4,FALSE),0),0)","v":0},{"$f":"IF(AND(D16<>\" \",D16<>\"\"),IF(VLOOKUP(LEFT(D16,FIND(\":\",D16)-1),tSeed_Add[],5,FALSE)=\"No\",VLOOKUP(LEFT(D16,FIND(\":\",D16)-1),tSeed_Add[],4,FALSE),0),0)","v":0},{"$f":"IF(AND(E16<>\" \",E16<>\"\"),IF(VLOOKUP(LEFT(E16,FIND(\":\",E16)-1),tSeed_Add[],5,FALSE)=\"No\",VLOOKUP(LEFT(E16,FIND(\":\",E16)-1),tSeed_Add[],4,FALSE),0),0)","v":0},{"$f":"IF(AND(F16<>\" \",F16<>\"\"),IF(VLOOKUP(LEFT(F16,FIND(\":\",F16)-1),tSeed_Add[],5,FALSE)=\"No\",VLOOKUP(LEFT(F16,FIND(\":\",F16)-1),tSeed_Add[],4,FALSE),0),0)","v":0},{"$f":"IF(AND(G16<>\" \",G16<>\"\"),IF(VLOOKUP(LEFT(G16,FIND(\":\",G16)-1),tSeed_Add[],5,FALSE)=\"No\",VLOOKUP(LEFT(G16,FIND(\":\",G16)-1),tSeed_Add[],4,FALSE),0),0)","v":0},{"$f":"IF(AND(H16<>\" \",H16<>\"\"),IF(VLOOKUP(LEFT(H16,FIND(\":\",H16)-1),tSeed_Add[],5,FALSE)=\"No\",VLOOKUP(LEFT(H16,FIND(\":\",H16)-1),tSeed_Add[],4,FALSE),0),0)","v":0},{"$f":"IF(AND(I16<>\" \",I16<>\"\"),IF(VLOOKUP(LEFT(I16,FIND(\":\",I16)-1),tSeed_Add[],5,FALSE)=\"No\",VLOOKUP(LEFT(I16,FIND(\":\",I16)-1),tSeed_Add[],4,FALSE),0),0)","v":0},{"$f":"IF(AND(J16<>\" \",J16<>\"\"),IF(VLOOKUP(LEFT(J16,FIND(\":\",J16)-1),tSeed_Add[],5,FALSE)=\"No\",VLOOKUP(LEFT(J16,FIND(\":\",J16)-1),tSeed_Add[],4,FALSE),0),0)","v":0},null,null,null,"Additive 4 \n(A, B, C…)",{"$f":"IF(AND(C16<>\" \",C16<>\"\"),IF(VLOOKUP(LEFT(C16,FIND(\":\",C16)-1),tSeed_Add[],5,FALSE)=\"Yes\",VLOOKUP(LEFT(C16,FIND(\":\",C16)-1),tSeed_Add[],4,FALSE),0),0)","v":0},{"$f":"IF(AND(D16<>\" \",D16<>\"\"),IF(VLOOKUP(LEFT(D16,FIND(\":\",D16)-1),tSeed_Add[],5,FALSE)=\"Yes\",VLOOKUP(LEFT(D16,FIND(\":\",D16)-1),tSeed_Add[],4,FALSE),0),0)","v":0},{"$f":"IF(AND(E16<>\" \",E16<>\"\"),IF(VLOOKUP(LEFT(E16,FIND(\":\",E16)-1),tSeed_Add[],5,FALSE)=\"Yes\",VLOOKUP(LEFT(E16,FIND(\":\",E16)-1),tSeed_Add[],4,FALSE),0),0)","v":0},{"$f":"IF(AND(F16<>\" \",F16<>\"\"),IF(VLOOKUP(LEFT(F16,FIND(\":\",F16)-1),tSeed_Add[],5,FALSE)=\"Yes\",VLOOKUP(LEFT(F16,FIND(\":\",F16)-1),tSeed_Add[],4,FALSE),0),0)","v":0},{"$f":"IF(AND(G16<>\" \",G16<>\"\"),IF(VLOOKUP(LEFT(G16,FIND(\":\",G16)-1),tSeed_Add[],5,FALSE)=\"Yes\",VLOOKUP(LEFT(G16,FIND(\":\",G16)-1),tSeed_Add[],4,FALSE),0),0)","v":0},{"$f":"IF(AND(H16<>\" \",H16<>\"\"),IF(VLOOKUP(LEFT(H16,FIND(\":\",H16)-1),tSeed_Add[],5,FALSE)=\"Yes\",VLOOKUP(LEFT(H16,FIND(\":\",H16)-1),tSeed_Add[],4,FALSE),0),0)","v":0},{"$f":"IF(AND(I16<>\" \",I16<>\"\"),IF(VLOOKUP(LEFT(I16,FIND(\":\",I16)-1),tSeed_Add[],5,FALSE)=\"Yes\",VLOOKUP(LEFT(I16,FIND(\":\",I16)-1),tSeed_Add[],4,FALSE),0),0)","v":0},{"$f":"IF(AND(J16<>\" \",J16<>\"\"),IF(VLOOKUP(LEFT(J16,FIND(\":\",J16)-1),tSeed_Add[],5,FALSE)=\"Yes\",VLOOKUP(LEFT(J16,FIND(\":\",J16)-1),tSeed_Add[],4,FALSE),0),0)","v":0}]
[null,"Additive 5 \n(A, B, C…)"," "," "," "," "," "," "," "," "," ",null,null,null,null,null,null,null,null,null,null,null,null,null,null,null,null,"Additive 5 \n(A, B, C…)",{"$f":"IF(AND(C17<>\" \",C17<>\"\"),IF(VLOOKUP(LEFT(C17,FIND(\":\",C17)-1),tSeed_Add[],5,FALSE)=\"No\",VLOOKUP(LEFT(C17,FIND(\":\",C17)-1),tSeed_Add[],4,FALSE),0),0)","v":0},{"$f":"IF(AND(D17<>\" \",D17<>\"\"),IF(VLOOKUP(LEFT(D17,FIND(\":\",D17)-1),tSeed_Add[],5,FALSE)=\"No\",VLOOKUP(LEFT(D17,FIND(\":\",D17)-1),tSeed_Add[],4,FALSE),0),0)","v":0},{"$f":"IF(AND(E17<>\" \",E17<>\"\"),IF(VLOOKUP(LEFT(E17,FIND(\":\",E17)-1),tSeed_Add[],5,FALSE)=\"No\",VLOOKUP(LEFT(E17,FIND(\":\",E17)-1),tSeed_Add[],4,FALSE),0),0)","v":0},{"$f":"IF(AND(F17<>\" \",F17<>\"\"),IF(VLOOKUP(LEFT(F17,FIND(\":\",F17)-1),tSeed_Add[],5,FALSE)=\"No\",VLOOKUP(LEFT(F17,FIND(\":\",F17)-1),tSeed_Add[],4,FALSE),0),0)","v":0},{"$f":"IF(AND(G17<>\" \",G17<>\"\"),IF(VLOOKUP(LEFT(G17,FIND(\":\",G17)-1),tSeed_Add[],5,FALSE)=\"No\",VLOOKUP(LEFT(G17,FIND(\":\",G17)-1),tSeed_Add[],4,FALSE),0),0)","v":0},{"$f":"IF(AND(H17<>\" \",H17<>\"\"),IF(VLOOKUP(LEFT(H17,FIND(\":\",H17)-1),tSeed_Add[],5,FALSE)=\"No\",VLOOKUP(LEFT(H17,FIND(\":\",H17)-1),tSeed_Add[],4,FALSE),0),0)","v":0},{"$f":"IF(AND(I17<>\" \",I17<>\"\"),IF(VLOOKUP(LEFT(I17,FIND(\":\",I17)-1),tSeed_Add[],5,FALSE)=\"No\",VLOOKUP(LEFT(I17,FIND(\":\",I17)-1),tSeed_Add[],4,FALSE),0),0)","v":0},{"$f":"IF(AND(J17<>\" \",J17<>\"\"),IF(VLOOKUP(LEFT(J17,FIND(\":\",J17)-1),tSeed_Add[],5,FALSE)=\"No\",VLOOKUP(LEFT(J17,FIND(\":\",J17)-1),tSeed_Add[],4,FALSE),0),0)","v":0},"Adjusted Rate \n(if Applicable)",null,null,"Additive 5 \n(A, B, C…)",{"$f":"IF(AND(C17<>\" \",C17<>\"\"),IF(VLOOKUP(LEFT(C17,FIND(\":\",C17)-1),tSeed_Add[],5,FALSE)=\"Yes\",VLOOKUP(LEFT(C17,FIND(\":\",C17)-1),tSeed_Add[],4,FALSE),0),0)","v":0},{"$f":"IF(AND(D17<>\" \",D17<>\"\"),IF(VLOOKUP(LEFT(D17,FIND(\":\",D17)-1),tSeed_Add[],5,FALSE)=\"Yes\",VLOOKUP(LEFT(D17,FIND(\":\",D17)-1),tSeed_Add[],4,FALSE),0),0)","v":0},{"$f":"IF(AND(E17<>\" \",E17<>\"\"),IF(VLOOKUP(LEFT(E17,FIND(\":\",E17)-1),tSeed_Add[],5,FALSE)=\"Yes\",VLOOKUP(LEFT(E17,FIND(\":\",E17)-1),tSeed_Add[],4,FALSE),0),0)","v":0},{"$f":"IF(AND(F17<>\" \",F17<>\"\"),IF(VLOOKUP(LEFT(F17,FIND(\":\",F17)-1),tSeed_Add[],5,FALSE)=\"Yes\",VLOOKUP(LEFT(F17,FIND(\":\",F17)-1),tSeed_Add[],4,FALSE),0),0)","v":0},{"$f":"IF(AND(G17<>\" \",G17<>\"\"),IF(VLOOKUP(LEFT(G17,FIND(\":\",G17)-1),tSeed_Add[],5,FALSE)=\"Yes\",VLOOKUP(LEFT(G17,FIND(\":\",G17)-1),tSeed_Add[],4,FALSE),0),0)","v":0},{"$f":"IF(AND(H17<>\" \",H17<>\"\"),IF(VLOOKUP(LEFT(H17,FIND(\":\",H17)-1),tSeed_Add[],5,FALSE)=\"Yes\",VLOOKUP(LEFT(H17,FIND(\":\",H17)-1),tSeed_Add[],4,FALSE),0),0)","v":0},{"$f":"IF(AND(I17<>\" \",I17<>\"\"),IF(VLOOKUP(LEFT(I17,FIND(\":\",I17)-1),tSeed_Add[],5,FALSE)=\"Yes\",VLOOKUP(LEFT(I17,FIND(\":\",I17)-1),tSeed_Add[],4,FALSE),0),0)","v":0},{"$f":"IF(AND(J17<>\" \",J17<>\"\"),IF(VLOOKUP(LEFT(J17,FIND(\":\",J17)-1),tSeed_Add[],5,FALSE)=\"Yes\",VLOOKUP(LEFT(J17,FIND(\":\",J17)-1),tSeed_Add[],4,FALSE),0),0)","v":0},"Adjusted Rate \n(if Applicable)"]
[null,"Additive 6 \n(A, B, C…)"," "," "," "," "," "," "," "," "," ",null,null,null,null,null,null,null,null,null,null,null,null,null,null,null,null,"Additive 6 \n(A, B, C…)",{"$f":"IF(AND(C18<>\" \",C18<>\"\"),IF(VLOOKUP(LEFT(C18,FIND(\":\",C18)-1),tSeed_Add[],5,FALSE)=\"No\",VLOOKUP(LEFT(C18,FIND(\":\",C18)-1),tSeed_Add[],4,FALSE),0),0)","v":0},{"$f":"IF(AND(D18<>\" \",D18<>\"\"),IF(VLOOKUP(LEFT(D18,FIND(\":\",D18)-1),tSeed_Add[],5,FALSE)=\"No\",VLOOKUP(LEFT(D18,FIND(\":\",D18)-1),tSeed_Add[],4,FALSE),0),0)","v":0},{"$f":"IF(AND(E18<>\" \",E18<>\"\"),IF(VLOOKUP(LEFT(E18,FIND(\":\",E18)-1),tSeed_Add[],5,FALSE)=\"No\",VLOOKUP(LEFT(E18,FIND(\":\",E18)-1),tSeed_Add[],4,FALSE),0),0)","v":0},{"$f":"IF(AND(F18<>\" \",F18<>\"\"),IF(VLOOKUP(LEFT(F18,FIND(\":\",F18)-1),tSeed_Add[],5,FALSE)=\"No\",VLOOKUP(LEFT(F18,FIND(\":\",F18)-1),tSeed_Add[],4,FALSE),0),0)","v":0},{"$f":"IF(AND(G18<>\" \",G18<>\"\"),IF(VLOOKUP(LEFT(G18,FIND(\":\",G18)-1),tSeed_Add[],5,FALSE)=\"No\",VLOOKUP(LEFT(G18,FIND(\":\",G18)-1),tSeed_Add[],4,FALSE),0),0)","v":0},{"$f":"IF(AND(H18<>\" \",H18<>\"\"),IF(VLOOKUP(LEFT(H18,FIND(\":\",H18)-1),tSeed_Add[],5,FALSE)=\"No\",VLOOKUP(LEFT(H18,FIND(\":\",H18)-1),tSeed_Add[],4,FALSE),0),0)","v":0},{"$f":"IF(AND(I18<>\" \",I18<>\"\"),IF(VLOOKUP(LEFT(I18,FIND(\":\",I18)-1),tSeed_Add[],5,FALSE)=\"No\",VLOOKUP(LEFT(I18,FIND(\":\",I18)-1),tSeed_Add[],4,FALSE),0),0)","v":0},{"$f":"IF(AND(J18<>\" \",J18<>\"\"),IF(VLOOKUP(LEFT(J18,FIND(\":\",J18)-1),tSeed_Add[],5,FALSE)=\"No\",VLOOKUP(LEFT(J18,FIND(\":\",J18)-1),tSeed_Add[],4,FALSE),0),0)","v":0},{"$f":"IF(LEFT(OFFSET(rSP_Mix1,7,5),1)=\"y\",OFFSET(rSP_Mix1,10,5)*AK19,0)","v":0},{"$f":"IF(LEFT(OFFSET(rSP_Mix1,7,5),1)=\"y\",OFFSET(rSP_Mix1,10,5)*AL19,0)","v":0},null,"Additive 6 \n(A, B, C…)",{"$f":"IF(AND(C18<>\" \",C18<>\"\"),IF(VLOOKUP(LEFT(C18,FIND(\":\",C18)-1),tSeed_Add[],5,FALSE)=\"Yes\",VLOOKUP(LEFT(C18,FIND(\":\",C18)-1),tSeed_Add[],4,FALSE),0),0)","v":0},{"$f":"IF(AND(D18<>\" \",D18<>\"\"),IF(VLOOKUP(LEFT(D18,FIND(\":\",D18)-1),tSeed_Add[],5,FALSE)=\"Yes\",VLOOKUP(LEFT(D18,FIND(\":\",D18)-1),tSeed_Add[],4,FALSE),0),0)","v":0},{"$f":"IF(AND(E18<>\" \",E18<>\"\"),IF(VLOOKUP(LEFT(E18,FIND(\":\",E18)-1),tSeed_Add[],5,FALSE)=\"Yes\",VLOOKUP(LEFT(E18,FIND(\":\",E18)-1),tSeed_Add[],4,FALSE),0),0)","v":0},{"$f":"IF(AND(F18<>\" \",F18<>\"\"),IF(VLOOKUP(LEFT(F18,FIND(\":\",F18)-1),tSeed_Add[],5,FALSE)=\"Yes\",VLOOKUP(LEFT(F18,FIND(\":\",F18)-1),tSeed_Add[],4,FALSE),0),0)","v":0},{"$f":"IF(AND(G18<>\" \",G18<>\"\"),IF(VLOOKUP(LEFT(G18,FIND(\":\",G18)-1),tSeed_Add[],5,FALSE)=\"Yes\",VLOOKUP(LEFT(G18,FIND(\":\",G18)-1),tSeed_Add[],4,FALSE),0),0)","v":0},{"$f":"IF(AND(H18<>\" \",H18<>\"\"),IF(VLOOKUP(LEFT(H18,FIND(\":\",H18)-1),tSeed_Add[],5,FALSE)=\"Yes\",VLOOKUP(LEFT(H18,FIND(\":\",H18)-1),tSeed_Add[],4,FALSE),0),0)","v":0},{"$f":"IF(AND(I18<>\" \",I18<>\"\"),IF(VLOOKUP(LEFT(I18,FIND(\":\",I18)-1),tSeed_Add[],5,FALSE)=\"Yes\",VLOOKUP(LEFT(I18,FIND(\":\",I18)-1),tSeed_Add[],4,FALSE),0),0)","v":0},{"$f":"IF(AND(J18<>\" \",J18<>\"\"),IF(VLOOKUP(LEFT(J18,FIND(\":\",J18)-1),tSeed_Add[],5,FALSE)=\"Yes\",VLOOKUP(LEFT(J18,FIND(\":\",J18)-1),tSeed_Add[],4,FALSE),0),0)","v":0},{"$f":"IF(LEFT(OFFSET(rSP_Mix1,7,5),1)=\"y\",OFFSET(rSP_Mix1,10,5)*AW19,0)","v":0},{"$f":"IF(LEFT(OFFSET(rSP_Mix1,7,5),1)=\"y\",OFFSET(rSP_Mix1,10,5)*AX19,0)","v":0}]
[{"$f":"IF(fRowHeight=0,\"Click on the Plus Sign (+) on the left to show the \"&A9&\" Selection Matrix\",\"Click on the Minus Sign (-) on the left to hide the \"&A9&\" Selection Matrix\")","v":"Click on the Minus Sign (-) on the left to hide the Core Mix 1 Selection Matrix"},null,null,null,null,null,null,null,null,null,null,null,null,null,null,null,null,null,null,null,null,null,null,null,null,null,null,"Core Mix 1 Total Seed",{"$f":"SUM(AC10:AC18)","v":0},0,0,0,0,0,0,0,{"$f":"MAX(AC19,AE19,AG19,AI19)","v":0},{"$f":"MAX(AD19,AF19,AH19,AJ19)","v":0},null,"Core Mix 1 Total Legumes",{"$f":"SUM(AO10:AO18)","v":0},0,0,0,0,0,0,0,{"$f":"MAX(AO19,AQ19,AS19,AU19)","v":0},{"$f":"MAX(AP19,AR19,AT19,AV19)","v":0}]
[null,{"$f":"IF(C20<>\"\",\"WARNING:\",\"\")","v":"WARNING:"},{"$f":"IF(iNumMixes<2,\"2nd Mix not selected on Start Page (Proj. Q's #5)\",IF(Area_PS2<0.01,\"No Area assigned to Core Mix 2 (on start page)\",\"\"))","v":"2nd Mix not selected on Start Page (Proj. Q's #5)"}]
["Core Mix 2","Mix Code",{"$f":"\"(\"&IF(AND(C22<>\" \",C22<>\"\"),LEFT(C22,FIND(\":\",C22)-1),\"\")&\")\"&IF(AND(C25<>\" \",C25<>\"\"),LEFT(C25,1),\"\")&IF(AND(C26<>\" \",C26<>\"\"),LEFT(C26,1),\"\")&IF(AND(C27<>\" \",C27<>\"\"),LEFT(C27,1),\"\")&IF(AND(C28<>\" \",C28<>\"\"),LEFT(C28,1),\"\")&IF(AND(C29<>\" \",C29<>\"\"),LEFT(C29,1),\"\")&IF(AND(C30<>\" \",C30<>\"\"),LEFT(C30,1),\"\")","v":"()"},{"$f":"\"(\"&IF(AND(D22<>\" \",D22<>\"\"),LEFT(D22,FIND(\":\",D22)-1),\"\")&\")\"&IF(AND(D25<>\" \",D25<>\"\"),LEFT(D25,1),\"\")&IF(AND(D26<>\" \",D26<>\"\"),LEFT(D26,1),\"\")&IF(AND(D27<>\" \",D27<>\"\"),LEFT(D27,1),\"\")&IF(AND(D28<>\" \",D28<>\"\"),LEFT(D28,1),\"\")&IF(AND(D29<>\" \",D29<>\"\"),LEFT(D29,1),\"\")&IF(AND(D30<>\" \",D30<>\"\"),LEFT(D30,1),\"\")","v":"()"},{"$f":"\"(\"&IF(AND(E22<>\" \",E22<>\"\"),LEFT(E22,FIND(\":\",E22)-1),\"\")&\")\"&IF(AND(E25<>\" \",E25<>\"\"),LEFT(E25,1),\"\")&IF(AND(E26<>\" \",E26<>\"\"),LEFT(E26,1),\"\")&IF(AND(E27<>\" \",E27<>\"\"),LEFT(E27,1),\"\")&IF(AND(E28<>\" \",E28<>\"\"),LEFT(E28,1),\"\")&IF(AND(E29<>\" \",E29<>\"\"),LEFT(E29,1),\"\")&IF(AND(E30<>\" \",E30<>\"\"),LEFT(E30,1),\"\")","v":"()"},"()","()","()","()","()","Mix Description:",null,{"$f":"OFFSET(rSP_Mix2,1,5)","v":0},null,null,null,null,null,null,null,null,null,null,null,null,null,null,"Mix Code",{"$f":"$C21","v":"()"},{"$f":"$D21","v":"()"},{"$f":"$E21","v":"()"},{"$f":"$F21","v":"()"},{"$f":"$G21","v":"()"},{"$f":"$H21","v":"()"},{"$f":"$I21","v":"()"},{"$f":"$J21","v":"()"},null,null,null,"Mix Code",{"$f":"$C21","v":"()"},{"$f":"$D21","v":"()"},{"$f":"$E21","v":"()"},{"$f":"$F21","v":"()"},{"$f":"$G21","v":"()"},{"$f":"$H21","v":"()"},{"$f":"$I21","v":"()"},{"$f":"$J21","v":"()"}]
[null,"Core Mixture  (1, 2, 3…)"," "," "," "," "," "," "," "," "," ",null,null,null,null,null,null,null,null,null,null,null,null,null,null,null,null,"Core Mixture  (1, 2, 3…)",{"$f":"IF(AND(C22<>\" \",C22<>\"\"),VLOOKUP(LEFT(C22,FIND(\":\",C22)-1),tSeed_Core[],4,FALSE),0)","v":0},{"$f":"IF(AND(D22<>\" \",D22<>\"\"),VLOOKUP(LEFT(D22,FIND(\":\",D22)-1),tSeed_Core[],4,FALSE),0)","v":0},{"$f":"IF(AND(E22<>\" \",E22<>\"\"),VLOOKUP(LEFT(E22,FIND(\":\",E22)-1),tSeed_Core[],4,FALSE),0)","v":0},{"$f":"IF(AND(F22<>\" \",F22<>\"\"),VLOOKUP(LEFT(F22,FIND(\":\",F22)-1),tSeed_Core[],4,FALSE),0)","v":0},{"$f":"IF(AND(G22<>\" \",G22<>\"\"),VLOOKUP(LEFT(G22,FIND(\":\",G22)-1),tSeed_Core[],4,FALSE),0)","v":0},{"$f":"IF(AND(H22<>\" \",H22<>\"\"),VLOOKUP(LEFT(H22,FIND(\":\",H22)-1),tSeed_Core[],4,FALSE),0)","v":0},{"$f":"IF(AND(I22<>\" \",I22<>\"\"),VLOOKUP(LEFT(I22,FIND(\":\",I22)-1),tSeed_Core[],4,FALSE),0)","v":0},{"$f":"IF(AND(J22<>\" \",J22<>\"\"),VLOOKUP(LEFT(J22,FIND(\":\",J22)-1),tSeed_Core[],4,FALSE),0)","v":0},null,null,null,"Core Mixture  (1, 2, 3…)",{"$f":"IF(LEFT(C22,1)=\"C\",VLOOKUP(LEFT(C22,FIND(\":\",C22)-1),tSeed_Core[],5,FALSE),0)","v":0},{"$f":"IF(LEFT(D22,1)=\"C\",VLOOKUP(LEFT(D22,FIND(\":\",D22)-1),tSeed_Core[],5,FALSE),0)","v":0},{"$f":"IF(LEFT(E22,1)=\"C\",VLOOKUP(LEFT(E22,FIND(\":\",E22)-1),tSeed_Core[],5,FALSE),0)","v":0},{"$f":"IF(LEFT(F22,1)=\"C\",VLOOKUP(LEFT(F22,FIND(\":\",F22)-1),tSeed_Core[],5,FALSE),0)","v":0},{"$f":"IF(LEFT(G22,1)=\"C\",VLOOKUP(LEFT(G22,FIND(\":\",G22)-1),tSeed_Core[],5,FALSE),0)","v":0},{"$f":"IF(LEFT(H22,1)=\"C\",VLOOKUP(LEFT(H22,FIND(\":\",H22)-1),tSeed_Core[],5,FALSE),0)","v":0},{"$f":"IF(LEFT(I22,1)=\"C\",VLOOKUP(LEFT(I22,FIND(\":\",I22)-1),tSeed_Core[],5,FALSE),0)","v":0},{"$f":"IF(LEFT(J22,1)=\"C\",VLOOKUP(LEFT(J22,FIND(\":\",J22)-1),tSeed_Core[],5,FALSE),0)","v":0}]
[null,{"$f":"IF(COUNTIF(AC23:AJ23,\"Yes\")>0,\"Specific Type of Fine Fescue\",\"n/a\")","v":"n/a"},null,null,null,null,null,null,null,null,null,null,null,null,null,null,null,null,null,null,null,null,null,null,null,null,null,"Fine Fescue?",{"$f":"IF(RIGHT(C22,1)=\"*\",\"Yes\",\"No\")","v":"No"},{"$f":"IF(RIGHT(D22,1)=\"*\",\"Yes\",\"No\")","v":"No"},{"$f":"IF(RIGHT(E22,1)=\"*\",\"Yes\",\"No\")","v":"No"},{"$f":"IF(RIGHT(F22,1)=\"*\",\"Yes\",\"No\")","v":"No"},{"$f":"IF(RIGHT(G22,1)=\"*\",\"Yes\",\"No\")","v":"No"},{"$f":"IF(RIGHT(H22,1)=\"*\",\"Yes\",\"No\")","v":"No"},{"$f":"IF(RIGHT(I22,1)=\"*\",\"Yes\",\"No\")","v":"No"},{"$f":"IF(RIGHT(J22,1)=\"*\",\"Yes\",\"No\")","v":"No"}]
[null,{"$f":"IF(COUNTIF(AC24:AJ24,\"Yes\")>0,\"Specify Other Type\",\"n/a\")","v":"n/a"},null,null,null,null,null,null,null,null,null,null,null,null,null,null,null,null,null,null,null,null,null,null,null,null,null,"User Entry?",{"$f":"IF(LEFT(C23,5)=\"Other\",\"Yes\",\"No\")","v":"No"},{"$f":"IF(LEFT(D23,5)=\"Other\",\"Yes\",\"No\")","v":"No"},{"$f":"IF(LEFT(E23,5)=\"Other\",\"Yes\",\"No\")","v":"No"},{"$f":"IF(LEFT(F23,5)=\"Other\",\"Yes\",\"No\")","v":"No"},{"$f":"IF(LEFT(G23,5)=\"Other\",\"Yes\",\"No\")","v":"No"},{"$f":"IF(LEFT(H23,5)=\"Other\",\"Yes\",\"No\")","v":"No"},{"$f":"IF(LEFT(I23,5)=\"Other\",\"Yes\",\"No\")","v":"No"},{"$f":"IF(LEFT(J23,5)=\"Other\",\"Yes\",\"No\")","v":"No"}]
[null,"Additive 1 \n(A, B, C…)"," "," "," "," "," "," "," "," ",{"$f":"IF(OR(AND(COUNTIF(C22:H22,\"C1:*\")>0,OFFSET(rSeedCustom_1,1,1)<0.01),AND(COUNTIF(C22:H22,\"C2:*\")>0,OFFSET(rSeedCustom_2,1,1)<0.01),AND(COUNTIF(C22:H22,\"C3:*\")>0,OFFSET(rSeedCustom_3,1,1)<0.01)),\"Please Check the Custom Seed Mix inputs on the Seed Mix Selection tab\",\"\")","v":""},null,null,null,null,null,null,null,null,null,null,null,null,null,null,null,null,"Additive 1 \n(A, B, C…)",{"$f":"IF(AND(C25<>\" \",C25<>\"\"),IF(VLOOKUP(LEFT(C25,FIND(\":\",C25)-1),tSeed_Add[],5,FALSE)=\"No\",VLOOKUP(LEFT(C25,FIND(\":\",C25)-1),tSeed_Add[],4,FALSE),0),0)","v":0},{"$f":"IF(AND(D25<>\" \",D25<>\"\"),IF(VLOOKUP(LEFT(D25,FIND(\":\",D25)-1),tSeed_Add[],5,FALSE)=\"No\",VLOOKUP(LEFT(D25,FIND(\":\",D25)-1),tSeed_Add[],4,FALSE),0),0)","v":0},{"$f":"IF(AND(E25<>\" \",E25<>\"\"),IF(VLOOKUP(LEFT(E25,FIND(\":\",E25)-1),tSeed_Add[],5,FALSE)=\"No\",VLOOKUP(LEFT(E25,FIND(\":\",E25)-1),tSeed_Add[],4,FALSE),0),0)","v":0},{"$f":"IF(AND(F25<>\" \",F25<>\"\"),IF(VLOOKUP(LEFT(F25,FIND(\":\",F25)-1),tSeed_Add[],5,FALSE)=\"No\",VLOOKUP(LEFT(F25,FIND(\":\",F25)-1),tSeed_Add[],4,FALSE),0),0)","v":0},{"$f":"IF(AND(G25<>\" \",G25<>\"\"),IF(VLOOKUP(LEFT(G25,FIND(\":\",G25)-1),tSeed_Add[],5,FALSE)=\"No\",VLOOKUP(LEFT(G25,FIND(\":\",G25)-1),tSeed_Add[],4,FALSE),0),0)","v":0},{"$f":"IF(AND(H25<>\" \",H25<>\"\"),IF(VLOOKUP(LEFT(H25,FIND(\":\",H25)-1),tSeed_Add[],5,FALSE)=\"No\",VLOOKUP(LEFT(H25,FIND(\":\",H25)-1),tSeed_Add[],4,FALSE),0),0)","v":0},{"$f":"IF(AND(I25<>\" \",I25<>\"\"),IF(VLOOKUP(LEFT(I25,FIND(\":\",I25)-1),tSeed_Add[],5,FALSE)=\"No\",VLOOKUP(LEFT(I25,FIND(\":\",I25)-1),tSeed_Add[],4,FALSE),0),0)","v":0},{"$f":"IF(AND(J25<>\" \",J25<>\"\"),IF(VLOOKUP(LEFT(J25,FIND(\":\",J25)-1),tSeed_Add[],5,FALSE)=\"No\",VLOOKUP(LEFT(J25,FIND(\":\",J25)-1),tSeed_Add[],4,FALSE),0),0)","v":0},null,null,null,"Additive 1 \n(A, B, C…)",{"$f":"IF(AND(C25<>\" \",C25<>\"\"),IF(VLOOKUP(LEFT(C25,FIND(\":\",C25)-1),tSeed_Add[],5,FALSE)=\"Yes\",VLOOKUP(LEFT(C25,FIND(\":\",C25)-1),tSeed_Add[],4,FALSE),0),0)","v":0},{"$f":"IF(AND(D25<>\" \",D25<>\"\"),IF(VLOOKUP(LEFT(D25,FIND(\":\",D25)-1),tSeed_Add[],5,FALSE)=\"Yes\",VLOOKUP(LEFT(D25,FIND(\":\",D25)-1),tSeed_Add[],4,FALSE),0),0)","v":0},{"$f":"IF(AND(E25<>\" \",E25<>\"\"),IF(VLOOKUP(LEFT(E25,FIND(\":\",E25)-1),tSeed_Add[],5,FALSE)=\"Yes\",VLOOKUP(LEFT(E25,FIND(\":\",E25)-1),tSeed_Add[],4,FALSE),0),0)","v":0},{"$f":"IF(AND(F25<>\" \",F25<>\"\"),IF(VLOOKUP(LEFT(F25,FIND(\":\",F25)-1),tSeed_Add[],5,FALSE)=\"Yes\",VLOOKUP(LEFT(F25,FIND(\":\",F25)-1),tSeed_Add[],4,FALSE),0),0)","v":0},{"$f":"IF(AND(G25<>\" \",G25<>\"\"),IF(VLOOKUP(LEFT(G25,FIND(\":\",G25)-1),tSeed_Add[],5,FALSE)=\"Yes\",VLOOKUP(LEFT(G25,FIND(\":\",G25)-1),tSeed_Add[],4,FALSE),0),0)","v":0},{"$f":"IF(AND(H25<>\" \",H25<>\"\"),IF(VLOOKUP(LEFT(H25,FIND(\":\",H25)-1),tSeed_Add[],5,FALSE)=\"Yes\",VLOOKUP(LEFT(H25,FIND(\":\",H25)-1),tSeed_Add[],4,FALSE),0),0)","v":0},{"$f":"IF(AND(I25<>\" \",I25<>\"\"),IF(VLOOKUP(LEFT(I25,FIND(\":\",I25)-1),tSeed_Add[],5,FALSE)=\"Yes\",VLOOKUP(LEFT(I25,FIND(\":\",I25)-1),tSeed_Add[],4,FALSE),0),0)","v":0},{"$f":"IF(AND(J25<>\" \",J25<>\"\"),IF(VLOOKUP(LEFT(J25,FIND(\":\",J25)-1),tSeed_Add[],5,FALSE)=\"Yes\",VLOOKUP(LEFT(J25,FIND(\":\",J25)-1),tSeed_Add[],4,FALSE),0),0)","v":0}]
[null,"Additive 2 \n(A, B, C…)"," "," "," "," "," "," "," "," "," ",null,null,null,null,null,null,null,null,null,null,null,null,null,null,null,null,"Additive 2 \n(A, B, C…)",{"$f":"IF(AND(C26<>\" \",C26<>\"\"),IF(VLOOKUP(LEFT(C26,FIND(\":\",C26)-1),tSeed_Add[],5,FALSE)=\"No\",VLOOKUP(LEFT(C26,FIND(\":\",C26)-1),tSeed_Add[],4,FALSE),0),0)","v":0},{"$f":"IF(AND(D26<>\" \",D26<>\"\"),IF(VLOOKUP(LEFT(D26,FIND(\":\",D26)-1),tSeed_Add[],5,FALSE)=\"No\",VLOOKUP(LEFT(D26,FIND(\":\",D26)-1),tSeed_Add[],4,FALSE),0),0)","v":0},{"$f":"IF(AND(E26<>\" \",E26<>\"\"),IF(VLOOKUP(LEFT(E26,FIND(\":\",E26)-1),tSeed_Add[],5,FALSE)=\"No\",VLOOKUP(LEFT(E26,FIND(\":\",E26)-1),tSeed_Add[],4,FALSE),0),0)","v":0},{"$f":"IF(AND(F26<>\" \",F26<>\"\"),IF(VLOOKUP(LEFT(F26,FIND(\":\",F26)-1),tSeed_Add[],5,FALSE)=\"No\",VLOOKUP(LEFT(F26,FIND(\":\",F26)-1),tSeed_Add[],4,FALSE),0),0)","v":0},{"$f":"IF(AND(G26<>\" \",G26<>\"\"),IF(VLOOKUP(LEFT(G26,FIND(\":\",G26)-1),tSeed_Add[],5,FALSE)=\"No\",VLOOKUP(LEFT(G26,FIND(\":\",G26)-1),tSeed_Add[],4,FALSE),0),0)","v":0},{"$f":"IF(AND(H26<>\" \",H26<>\"\"),IF(VLOOKUP(LEFT(H26,FIND(\":\",H26)-1),tSeed_Add[],5,FALSE)=\"No\",VLOOKUP(LEFT(H26,FIND(\":\",H26)-1),tSeed_Add[],4,FALSE),0),0)","v":0},{"$f":"IF(AND(I26<>\" \",I26<>\"\"),IF(VLOOKUP(LEFT(I26,FIND(\":\",I26)-1),tSeed_Add[],5,FALSE)=\"No\",VLOOKUP(LEFT(I26,FIND(\":\",I26)-1),tSeed_Add[],4,FALSE),0),0)","v":0},{"$f":"IF(AND(J26<>\" \",J26<>\"\"),IF(VLOOKUP(LEFT(J26,FIND(\":\",J26)-1),tSeed_Add[],5,FALSE)=\"No\",VLOOKUP(LEFT(J26,FIND(\":\",J26)-1),tSeed_Add[],4,FALSE),0),0)","v":0},null,null,null,"Additive 2 \n(A, B, C…)",{"$f":"IF(AND(C26<>\" \",C26<>\"\"),IF(VLOOKUP(LEFT(C26,FIND(\":\",C26)-1),tSeed_Add[],5,FALSE)=\"Yes\",VLOOKUP(LEFT(C26,FIND(\":\",C26)-1),tSeed_Add[],4,FALSE),0),0)","v":0},{"$f":"IF(AND(D26<>\" \",D26<>\"\"),IF(VLOOKUP(LEFT(D26,FIND(\":\",D26)-1),tSeed_Add[],5,FALSE)=\"Yes\",VLOOKUP(LEFT(D26,FIND(\":\",D26)-1),tSeed_Add[],4,FALSE),0),0)","v":0},{"$f":"IF(AND(E26<>\" \",E26<>\"\"),IF(VLOOKUP(LEFT(E26,FIND(\":\",E26)-1),tSeed_Add[],5,FALSE)=\"Yes\",VLOOKUP(LEFT(E26,FIND(\":\",E26)-1),tSeed_Add[],4,FALSE),0),0)","v":0},{"$f":"IF(AND(F26<>\" \",F26<>\"\"),IF(VLOOKUP(LEFT(F26,FIND(\":\",F26)-1),tSeed_Add[],5,FALSE)=\"Yes\",VLOOKUP(LEFT(F26,FIND(\":\",F26)-1),tSeed_Add[],4,FALSE),0),0)","v":0},{"$f":"IF(AND(G26<>\" \",G26<>\"\"),IF(VLOOKUP(LEFT(G26,FIND(\":\",G26)-1),tSeed_Add[],5,FALSE)=\"Yes\",VLOOKUP(LEFT(G26,FIND(\":\",G26)-1),tSeed_Add[],4,FALSE),0),0)","v":0},{"$f":"IF(AND(H26<>\" \",H26<>\"\"),IF(VLOOKUP(LEFT(H26,FIND(\":\",H26)-1),tSeed_Add[],5,FALSE)=\"Yes\",VLOOKUP(LEFT(H26,FIND(\":\",H26)-1),tSeed_Add[],4,FALSE),0),0)","v":0},{"$f":"IF(AND(I26<>\" \",I26<>\"\"),IF(VLOOKUP(LEFT(I26,FIND(\":\",I26)-1),tSeed_Add[],5,FALSE)=\"Yes\",VLOOKUP(LEFT(I26,FIND(\":\",I26)-1),tSeed_Add[],4,FALSE),0),0)","v":0},{"$f":"IF(AND(J26<>\" \",J26<>\"\"),IF(VLOOKUP(LEFT(J26,FIND(\":\",J26)-1),tSeed_Add[],5,FALSE)=\"Yes\",VLOOKUP(LEFT(J26,FIND(\":\",J26)-1),tSeed_Add[],4,FALSE),0),0)","v":0}]
[null,"Additive 3 \n(A, B, C…)"," "," "," "," "," "," "," "," "," ",null,null,null,null,null,null,null,null,null,null,null,null,null,null,null,null,"Additive 3 \n(A, B, C…)",{"$f":"IF(AND(C27<>\" \",C27<>\"\"),IF(VLOOKUP(LEFT(C27,FIND(\":\",C27)-1),tSeed_Add[],5,FALSE)=\"No\",VLOOKUP(LEFT(C27,FIND(\":\",C27)-1),tSeed_Add[],4,FALSE),0),0)","v":0},{"$f":"IF(AND(D27<>\" \",D27<>\"\"),IF(VLOOKUP(LEFT(D27,FIND(\":\",D27)-1),tSeed_Add[],5,FALSE)=\"No\",VLOOKUP(LEFT(D27,FIND(\":\",D27)-1),tSeed_Add[],4,FALSE),0),0)","v":0},{"$f":"IF(AND(E27<>\" \",E27<>\"\"),IF(VLOOKUP(LEFT(E27,FIND(\":\",E27)-1),tSeed_Add[],5,FALSE)=\"No\",VLOOKUP(LEFT(E27,FIND(\":\",E27)-1),tSeed_Add[],4,FALSE),0),0)","v":0},{"$f":"IF(AND(F27<>\" \",F27<>\"\"),IF(VLOOKUP(LEFT(F27,FIND(\":\",F27)-1),tSeed_Add[],5,FALSE)=\"No\",VLOOKUP(LEFT(F27,FIND(\":\",F27)-1),tSeed_Add[],4,FALSE),0),0)","v":0},{"$f":"IF(AND(G27<>\" \",G27<>\"\"),IF(VLOOKUP(LEFT(G27,FIND(\":\",G27)-1),tSeed_Add[],5,FALSE)=\"No\",VLOOKUP(LEFT(G27,FIND(\":\",G27)-1),tSeed_Add[],4,FALSE),0),0)","v":0},{"$f":"IF(AND(H27<>\" \",H27<>\"\"),IF(VLOOKUP(LEFT(H27,FIND(\":\",H27)-1),tSeed_Add[],5,FALSE)=\"No\",VLOOKUP(LEFT(H27,FIND(\":\",H27)-1),tSeed_Add[],4,FALSE),0),0)","v":0},{"$f":"IF(AND(I27<>\" \",I27<>\"\"),IF(VLOOKUP(LEFT(I27,FIND(\":\",I27)-1),tSeed_Add[],5,FALSE)=\"No\",VLOOKUP(LEFT(I27,FIND(\":\",I27)-1),tSeed_Add[],4,FALSE),0),0)","v":0},{"$f":"IF(AND(J27<>\" \",J27<>\"\"),IF(VLOOKUP(LEFT(J27,FIND(\":\",J27)-1),tSeed_Add[],5,FALSE)=\"No\",VLOOKUP(LEFT(J27,FIND(\":\",J27)-1),tSeed_Add[],4,FALSE),0),0)","v":0},null,null,null,"Additive 3 \n(A, B, C…)",{"$f":"IF(AND(C27<>\" \",C27<>\"\"),IF(VLOOKUP(LEFT(C27,FIND(\":\",C27)-1),tSeed_Add[],5,FALSE)=\"Yes\",VLOOKUP(LEFT(C27,FIND(\":\",C27)-1),tSeed_Add[],4,FALSE),0),0)","v":0},{"$f":"IF(AND(D27<>\" \",D27<>\"\"),IF(VLOOKUP(LEFT(D27,FIND(\":\",D27)-1),tSeed_Add[],5,FALSE)=\"Yes\",VLOOKUP(LEFT(D27,FIND(\":\",D27)-1),tSeed_Add[],4,FALSE),0),0)","v":0},{"$f":"IF(AND(E27<>\" \",E27<>\"\"),IF(VLOOKUP(LEFT(E27,FIND(\":\",E27)-1),tSeed_Add[],5,FALSE)=\"Yes\",VLOOKUP(LEFT(E27,FIND(\":\",E27)-1),tSeed_Add[],4,FALSE),0),0)","v":0},{"$f":"IF(AND(F27<>\" \",F27<>\"\"),IF(VLOOKUP(LEFT(F27,FIND(\":\",F27)-1),tSeed_Add[],5,FALSE)=\"Yes\",VLOOKUP(LEFT(F27,FIND(\":\",F27)-1),tSeed_Add[],4,FALSE),0),0)","v":0},{"$f":"IF(AND(G27<>\" \",G27<>\"\"),IF(VLOOKUP(LEFT(G27,FIND(\":\",G27)-1),tSeed_Add[],5,FALSE)=\"Yes\",VLOOKUP(LEFT(G27,FIND(\":\",G27)-1),tSeed_Add[],4,FALSE),0),0)","v":0},{"$f":"IF(AND(H27<>\" \",H27<>\"\"),IF(VLOOKUP(LEFT(H27,FIND(\":\",H27)-1),tSeed_Add[],5,FALSE)=\"Yes\",VLOOKUP(LEFT(H27,FIND(\":\",H27)-1),tSeed_Add[],4,FALSE),0),0)","v":0},{"$f":"IF(AND(I27<>\" \",I27<>\"\"),IF(VLOOKUP(LEFT(I27,FIND(\":\",I27)-1),tSeed_Add[],5,FALSE)=\"Yes\",VLOOKUP(LEFT(I27,FIND(\":\",I27)-1),tSeed_Add[],4,FALSE),0),0)","v":0},{"$f":"IF(AND(J27<>\" \",J27<>\"\"),IF(VLOOKUP(LEFT(J27,FIND(\":\",J27)-1),tSeed_Add[],5,FALSE)=\"Yes\",VLOOKUP(LEFT(J27,FIND(\":\",J27)-1),tSeed_Add[],4,FALSE),0),0)","v":0}]
[null,"Additive 4 \n(A, B, C…)"," "," "," "," "," "," "," "," "," ",null,null,null,null,null,null,null,null,null,null,null,null,null,null,null,null,"Additive 4 \n(A, B, C…)",{"$f":"IF(AND(C28<>\" \",C28<>\"\"),IF(VLOOKUP(LEFT(C28,FIND(\":\",C28)-1),tSeed_Add[],5,FALSE)=\"No\",VLOOKUP(LEFT(C28,FIND(\":\",C28)-1),tSeed_Add[],4,FALSE),0),0)","v":0},{"$f":"IF(AND(D28<>\" \",D28<>\"\"),IF(VLOOKUP(LEFT(D28,FIND(\":\",D28)-1),tSeed_Add[],5,FALSE)=\"No\",VLOOKUP(LEFT(D28,FIND(\":\",D28)-1),tSeed_Add[],4,FALSE),0),0)","v":0},{"$f":"IF(AND(E28<>\" \",E28<>\"\"),IF(VLOOKUP(LEFT(E28,FIND(\":\",E28)-1),tSeed_Add[],5,FALSE)=\"No\",VLOOKUP(LEFT(E28,FIND(\":\",E28)-1),tSeed_Add[],4,FALSE),0),0)","v":0},{"$f":"IF(AND(F28<>\" \",F28<>\"\"),IF(VLOOKUP(LEFT(F28,FIND(\":\",F28)-1),tSeed_Add[],5,FALSE)=\"No\",VLOOKUP(LEFT(F28,FIND(\":\",F28)-1),tSeed_Add[],4,FALSE),0),0)","v":0},{"$f":"IF(AND(G28<>\" \",G28<>\"\"),IF(VLOOKUP(LEFT(G28,FIND(\":\",G28)-1),tSeed_Add[],5,FALSE)=\"No\",VLOOKUP(LEFT(G28,FIND(\":\",G28)-1),tSeed_Add[],4,FALSE),0),0)","v":0},{"$f":"IF(AND(H28<>\" \",H28<>\"\"),IF(VLOOKUP(LEFT(H28,FIND(\":\",H28)-1),tSeed_Add[],5,FALSE)=\"No\",VLOOKUP(LEFT(H28,FIND(\":\",H28)-1),tSeed_Add[],4,FALSE),0),0)","v":0},{"$f":"IF(AND(I28<>\" \",I28<>\"\"),IF(VLOOKUP(LEFT(I28,FIND(\":\",I28)-1),tSeed_Add[],5,FALSE)=\"No\",VLOOKUP(LEFT(I28,FIND(\":\",I28)-1),tSeed_Add[],4,FALSE),0),0)","v":0},{"$f":"IF(AND(J28<>\" \",J28<>\"\"),IF(VLOOKUP(LEFT(J28,FIND(\":\",J28)-1),tSeed_Add[],5,FALSE)=\"No\",VLOOKUP(LEFT(J28,FIND(\":\",J28)-1),tSeed_Add[],4,FALSE),0),0)","v":0},null,null,null,"Additive 4 \n(A, B, C…)",{"$f":"IF(AND(C28<>\" \",C28<>\"\"),IF(VLOOKUP(LEFT(C28,FIND(\":\",C28)-1),tSeed_Add[],5,FALSE)=\"Yes\",VLOOKUP(LEFT(C28,FIND(\":\",C28)-1),tSeed_Add[],4,FALSE),0),0)","v":0},{"$f":"IF(AND(D28<>\" \",D28<>\"\"),IF(VLOOKUP(LEFT(D28,FIND(\":\",D28)-1),tSeed_Add[],5,FALSE)=\"Yes\",VLOOKUP(LEFT(D28,FIND(\":\",D28)-1),tSeed_Add[],4,FALSE),0),0)","v":0},{"$f":"IF(AND(E28<>\" \",E28<>\"\"),IF(VLOOKUP(LEFT(E28,FIND(\":\",E28)-1),tSeed_Add[],5,FALSE)=\"Yes\",VLOOKUP(LEFT(E28,FIND(\":\",E28)-1),tSeed_Add[],4,FALSE),0),0)","v":0},{"$f":"IF(AND(F28<>\" \",F28<>\"\"),IF(VLOOKUP(LEFT(F28,FIND(\":\",F28)-1),tSeed_Add[],5,FALSE)=\"Yes\",VLOOKUP(LEFT(F28,FIND(\":\",F28)-1),tSeed_Add[],4,FALSE),0),0)","v":0},{"$f":"IF(AND(G28<>\" \",G28<>\"\"),IF(VLOOKUP(LEFT(G28,FIND(\":\",G28)-1),tSeed_Add[],5,FALSE)=\"Yes\",VLOOKUP(LEFT(G28,FIND(\":\",G28)-1),tSeed_Add[],4,FALSE),0),0)","v":0},{"$f":"IF(AND(H28<>\" \",H28<>\"\"),IF(VLOOKUP(LEFT(H28,FIND(\":\",H28)-1),tSeed_Add[],5,FALSE)=\"Yes\",VLOOKUP(LEFT(H28,FIND(\":\",H28)-1),tSeed_Add[],4,FALSE),0),0)","v":0},{"$f":"IF(AND(I28<>\" \",I28<>\"\"),IF(VLOOKUP(LEFT(I28,FIND(\":\",I28)-1),tSeed_Add[],5,FALSE)=\"Yes\",VLOOKUP(LEFT(I28,FIND(\":\",I28)-1),tSeed_Add[],4,FALSE),0),0)","v":0},{"$f":"IF(AND(J28<>\" \",J28<>\"\"),IF(VLOOKUP(LEFT(J28,FIND(\":\",J28)-1),tSeed_Add[],5,FALSE)=\"Yes\",VLOOKUP(LEFT(J28,FIND(\":\",J28)-1),tSeed_Add[],4,FALSE),0),0)","v":0}]
[null,"Additive 5 \n(A, B, C…)"," "," "," "," "," "," "," "," "," ",null,null,null,null,null,null,null,null,null,null,null,null,null,null,null,null,"Additive 5 \n(A, B, C…)",{"$f":"IF(AND(C29<>\" \",C29<>\"\"),IF(VLOOKUP(LEFT(C29,FIND(\":\",C29)-1),tSeed_Add[],5,FALSE)=\"No\",VLOOKUP(LEFT(C29,FIND(\":\",C29)-1),tSeed_Add[],4,FALSE),0),0)","v":0},{"$f":"IF(AND(D29<>\" \",D29<>\"\"),IF(VLOOKUP(LEFT(D29,FIND(\":\",D29)-1),tSeed_Add[],5,FALSE)=\"No\",VLOOKUP(LEFT(D29,FIND(\":\",D29)-1),tSeed_Add[],4,FALSE),0),0)","v":0},{"$f":"IF(AND(E29<>\" \",E29<>\"\"),IF(VLOOKUP(LEFT(E29,FIND(\":\",E29)-1),tSeed_Add[],5,FALSE)=\"No\",VLOOKUP(LEFT(E29,FIND(\":\",E29)-1),tSeed_Add[],4,FALSE),0),0)","v":0},{"$f":"IF(AND(F29<>\" \",F29<>\"\"),IF(VLOOKUP(LEFT(F29,FIND(\":\",F29)-1),tSeed_Add[],5,FALSE)=\"No\",VLOOKUP(LEFT(F29,FIND(\":\",F29)-1),tSeed_Add[],4,FALSE),0),0)","v":0},{"$f":"IF(AND(G29<>\" \",G29<>\"\"),IF(VLOOKUP(LEFT(G29,FIND(\":\",G29)-1),tSeed_Add[],5,FALSE)=\"No\",VLOOKUP(LEFT(G29,FIND(\":\",G29)-1),tSeed_Add[],4,FALSE),0),0)","v":0},{"$f":"IF(AND(H29<>\" \",H29<>\"\"),IF(VLOOKUP(LEFT(H29,FIND(\":\",H29)-1),tSeed_Add[],5,FALSE)=\"No\",VLOOKUP(LEFT(H29,FIND(\":\",H29)-1),tSeed_Add[],4,FALSE),0),0)","v":0},{"$f":"IF(AND(I29<>\" \",I29<>\"\"),IF(VLOOKUP(LEFT(I29,FIND(\":\",I29)-1),tSeed_Add[],5,FALSE)=\"No\",VLOOKUP(LEFT(I29,FIND(\":\",I29)-1),tSeed_Add[],4,FALSE),0),0)","v":0},{"$f":"IF(AND(J29<>\" \",J29<>\"\"),IF(VLOOKUP(LEFT(J29,FIND(\":\",J29)-1),tSeed_Add[],5,FALSE)=\"No\",VLOOKUP(LEFT(J29,FIND(\":\",J29)-1),tSeed_Add[],4,FALSE),0),0)","v":0},"Adjusted Rate \n(if Applicable)",null,null,"Additive 5 \n(A, B, C…)",{"$f":"IF(AND(C29<>\" \",C29<>\"\"),IF(VLOOKUP(LEFT(C29,FIND(\":\",C29)-1),tSeed_Add[],5,FALSE)=\"Yes\",VLOOKUP(LEFT(C29,FIND(\":\",C29)-1),tSeed_Add[],4,FALSE),0),0)","v":0},{"$f":"IF(AND(D29<>\" \",D29<>\"\"),IF(VLOOKUP(LEFT(D29,FIND(\":\",D29)-1),tSeed_Add[],5,FALSE)=\"Yes\",VLOOKUP(LEFT(D29,FIND(\":\",D29)-1),tSeed_Add[],4,FALSE),0),0)","v":0},{"$f":"IF(AND(E29<>\" \",E29<>\"\"),IF(VLOOKUP(LEFT(E29,FIND(\":\",E29)-1),tSeed_Add[],5,FALSE)=\"Yes\",VLOOKUP(LEFT(E29,FIND(\":\",E29)-1),tSeed_Add[],4,FALSE),0),0)","v":0},{"$f":"IF(AND(F29<>\" \",F29<>\"\"),IF(VLOOKUP(LEFT(F29,FIND(\":\",F29)-1),tSeed_Add[],5,FALSE)=\"Yes\",VLOOKUP(LEFT(F29,FIND(\":\",F29)-1),tSeed_Add[],4,FALSE),0),0)","v":0},{"$f":"IF(AND(G29<>\" \",G29<>\"\"),IF(VLOOKUP(LEFT(G29,FIND(\":\",G29)-1),tSeed_Add[],5,FALSE)=\"Yes\",VLOOKUP(LEFT(G29,FIND(\":\",G29)-1),tSeed_Add[],4,FALSE),0),0)","v":0},{"$f":"IF(AND(H29<>\" \",H29<>\"\"),IF(VLOOKUP(LEFT(H29,FIND(\":\",H29)-1),tSeed_Add[],5,FALSE)=\"Yes\",VLOOKUP(LEFT(H29,FIND(\":\",H29)-1),tSeed_Add[],4,FALSE),0),0)","v":0},{"$f":"IF(AND(I29<>\" \",I29<>\"\"),IF(VLOOKUP(LEFT(I29,FIND(\":\",I29)-1),tSeed_Add[],5,FALSE)=\"Yes\",VLOOKUP(LEFT(I29,FIND(\":\",I29)-1),tSeed_Add[],4,FALSE),0),0)","v":0},{"$f":"IF(AND(J29<>\" \",J29<>\"\"),IF(VLOOKUP(LEFT(J29,FIND(\":\",J29)-1),tSeed_Add[],5,FALSE)=\"Yes\",VLOOKUP(LEFT(J29,FIND(\":\",J29)-1),tSeed_Add[],4,FALSE),0),0)","v":0},"Adjusted Rate \n(if Applicable)"]
[null,"Additive 6 \n(A, B, C…)"," "," "," "," "," "," "," "," "," ",null,null,null,null,null,null,null,null,null,null,null,null,null,null,null,null,"Additive 6 \n(A, B, C…)",{"$f":"IF(AND(C30<>\" \",C30<>\"\"),IF(VLOOKUP(LEFT(C30,FIND(\":\",C30)-1),tSeed_Add[],5,FALSE)=\"No\",VLOOKUP(LEFT(C30,FIND(\":\",C30)-1),tSeed_Add[],4,FALSE),0),0)","v":0},{"$f":"IF(AND(D30<>\" \",D30<>\"\"),IF(VLOOKUP(LEFT(D30,FIND(\":\",D30)-1),tSeed_Add[],5,FALSE)=\"No\",VLOOKUP(LEFT(D30,FIND(\":\",D30)-1),tSeed_Add[],4,FALSE),0),0)","v":0},{"$f":"IF(AND(E30<>\" \",E30<>\"\"),IF(VLOOKUP(LEFT(E30,FIND(\":\",E30)-1),tSeed_Add[],5,FALSE)=\"No\",VLOOKUP(LEFT(E30,FIND(\":\",E30)-1),tSeed_Add[],4,FALSE),0),0)","v":0},{"$f":"IF(AND(F30<>\" \",F30<>\"\"),IF(VLOOKUP(LEFT(F30,FIND(\":\",F30)-1),tSeed_Add[],5,FALSE)=\"No\",VLOOKUP(LEFT(F30,FIND(\":\",F30)-1),tSeed_Add[],4,FALSE),0),0)","v":0},{"$f":"IF(AND(G30<>\" \",G30<>\"\"),IF(VLOOKUP(LEFT(G30,FIND(\":\",G30)-1),tSeed_Add[],5,FALSE)=\"No\",VLOOKUP(LEFT(G30,FIND(\":\",G30)-1),tSeed_Add[],4,FALSE),0),0)","v":0},{"$f":"IF(AND(H30<>\" \",H30<>\"\"),IF(VLOOKUP(LEFT(H30,FIND(\":\",H30)-1),tSeed_Add[],5,FALSE)=\"No\",VLOOKUP(LEFT(H30,FIND(\":\",H30)-1),tSeed_Add[],4,FALSE),0),0)","v":0},{"$f":"IF(AND(I30<>\" \",I30<>\"\"),IF(VLOOKUP(LEFT(I30,FIND(\":\",I30)-1),tSeed_Add[],5,FALSE)=\"No\",VLOOKUP(LEFT(I30,FIND(\":\",I30)-1),tSeed_Add[],4,FALSE),0),0)","v":0},{"$f":"IF(AND(J30<>\" \",J30<>\"\"),IF(VLOOKUP(LEFT(J30,FIND(\":\",J30)-1),tSeed_Add[],5,FALSE)=\"No\",VLOOKUP(LEFT(J30,FIND(\":\",J30)-1),tSeed_Add[],4,FALSE),0),0)","v":0},{"$f":"IF(LEFT(OFFSET(rSP_Mix2,7,5),1)=\"y\",OFFSET(rSP_Mix2,10,5)*AK31,0)","v":0},{"$f":"IF(LEFT(OFFSET(rSP_Mix2,7,5),1)=\"y\",OFFSET(rSP_Mix2,10,5)*AL31,0)","v":0},null,"Additive 6 \n(A, B, C…)",{"$f":"IF(AND(C30<>\" \",C30<>\"\"),IF(VLOOKUP(LEFT(C30,FIND(\":\",C30)-1),tSeed_Add[],5,FALSE)=\"Yes\",VLOOKUP(LEFT(C30,FIND(\":\",C30)-1),tSeed_Add[],4,FALSE),0),0)","v":0},{"$f":"IF(AND(D30<>\" \",D30<>\"\"),IF(VLOOKUP(LEFT(D30,FIND(\":\",D30)-1),tSeed_Add[],5,FALSE)=\"Yes\",VLOOKUP(LEFT(D30,FIND(\":\",D30)-1),tSeed_Add[],4,FALSE),0),0)","v":0},{"$f":"IF(AND(E30<>\" \",E30<>\"\"),IF(VLOOKUP(LEFT(E30,FIND(\":\",E30)-1),tSeed_Add[],5,FALSE)=\"Yes\",VLOOKUP(LEFT(E30,FIND(\":\",E30)-1),tSeed_Add[],4,FALSE),0),0)","v":0},{"$f":"IF(AND(F30<>\" \",F30<>\"\"),IF(VLOOKUP(LEFT(F30,FIND(\":\",F30)-1),tSeed_Add[],5,FALSE)=\"Yes\",VLOOKUP(LEFT(F30,FIND(\":\",F30)-1),tSeed_Add[],4,FALSE),0),0)","v":0},{"$f":"IF(AND(G30<>\" \",G30<>\"\"),IF(VLOOKUP(LEFT(G30,FIND(\":\",G30)-1),tSeed_Add[],5,FALSE)=\"Yes\",VLOOKUP(LEFT(G30,FIND(\":\",G30)-1),tSeed_Add[],4,FALSE),0),0)","v":0},{"$f":"IF(AND(H30<>\" \",H30<>\"\"),IF(VLOOKUP(LEFT(H30,FIND(\":\",H30)-1),tSeed_Add[],5,FALSE)=\"Yes\",VLOOKUP(LEFT(H30,FIND(\":\",H30)-1),tSeed_Add[],4,FALSE),0),0)","v":0},{"$f":"IF(AND(I30<>\" \",I30<>\"\"),IF(VLOOKUP(LEFT(I30,FIND(\":\",I30)-1),tSeed_Add[],5,FALSE)=\"Yes\",VLOOKUP(LEFT(I30,FIND(\":\",I30)-1),tSeed_Add[],4,FALSE),0),0)","v":0},{"$f":"IF(AND(J30<>\" \",J30<>\"\"),IF(VLOOKUP(LEFT(J30,FIND(\":\",J30)-1),tSeed_Add[],5,FALSE)=\"Yes\",VLOOKUP(LEFT(J30,FIND(\":\",J30)-1),tSeed_Add[],4,FALSE),0),0)","v":0},{"$f":"IF(LEFT(OFFSET(rSP_Mix2,7,5),1)=\"y\",OFFSET(rSP_Mix2,10,5)*AW31,0)","v":0},{"$f":"IF(LEFT(OFFSET(rSP_Mix2,7,5),1)=\"y\",OFFSET(rSP_Mix2,10,5)*AX31,0)","v":0}]
[{"$f":"IF(fRowHeight=0,\"Click on the Plus Sign (+) on the left to show the \"&A21&\" Selection Matrix\",\"Click on the Minus Sign (-) on the left to hide the \"&A21&\" Selection Matrix\")","v":"Click on the Minus Sign (-) on the left to hide the Core Mix 2 Selection Matrix"},null,null,null,null,null,null,null,null,null,null,null,null,null,null,null,null,null,null,null,null,null,null,null,null,null,null,"Core Mix 2 Total Seed",{"$f":"SUM(AC22:AC30)","v":0},{"$f":"SUM(AD22:AD30)","v":0},0,0,0,0,0,0,{"$f":"MAX(AC31,AE31,AG31,AI31)","v":0},{"$f":"MAX(AD31,AF31,AH31,AJ31)","v":0},null,"Core Mix 2 Total Legumes",{"$f":"SUM(AO22:AO30)","v":0},{"$f":"SUM(AP22:AP30)","v":0},0,0,0,0,0,0,{"$f":"MAX(AO31,AQ31,AS31,AU31)","v":0},{"$f":"MAX(AP31,AR31,AT31,AV31)","v":0}]
[null,{"$f":"IF(C32<>\"\",\"WARNING:\",\"\")","v":"WARNING:"},{"$f":"IF(iNumMixes<3,\"3nd Mix not selected on Start Page (Proj. Q's #5)\",IF(Area_PS3<0.01,\"No Area assigned to Core Mix 3 (on start page)\",\"\"))","v":"3nd Mix not selected on Start Page (Proj. Q's #5)"}]
["Core Mix 3","Mix Code",{"$f":"\"(\"&IF(AND(C34<>\" \",C34<>\"\"),LEFT(C34,FIND(\":\",C34)-1),\"\")&\")\"&IF(AND(C37<>\" \",C37<>\"\"),LEFT(C37,1),\"\")&IF(AND(C38<>\" \",C38<>\"\"),LEFT(C38,1),\"\")&IF(AND(C39<>\" \",C39<>\"\"),LEFT(C39,1),\"\")&IF(AND(C40<>\" \",C40<>\"\"),LEFT(C40,1),\"\")&IF(AND(C41<>\" \",C41<>\"\"),LEFT(C41,1),\"\")&IF(AND(C42<>\" \",C42<>\"\"),LEFT(C42,1),\"\")","v":"()"},{"$f":"\"(\"&IF(AND(D34<>\" \",D34<>\"\"),LEFT(D34,FIND(\":\",D34)-1),\"\")&\")\"&IF(AND(D37<>\" \",D37<>\"\"),LEFT(D37,1),\"\")&IF(AND(D38<>\" \",D38<>\"\"),LEFT(D38,1),\"\")&IF(AND(D39<>\" \",D39<>\"\"),LEFT(D39,1),\"\")&IF(AND(D40<>\" \",D40<>\"\"),LEFT(D40,1),\"\")&IF(AND(D41<>\" \",D41<>\"\"),LEFT(D41,1),\"\")&IF(AND(D42<>\" \",D42<>\"\"),LEFT(D42,1),\"\")","v":"()"},{"$f":"\"(\"&IF(AND(E34<>\" \",E34<>\"\"),LEFT(E34,FIND(\":\",E34)-1),\"\")&\")\"&IF(AND(E37<>\" \",E37<>\"\"),LEFT(E37,1),\"\")&IF(AND(E38<>\" \",E38<>\"\"),LEFT(E38,1),\"\")&IF(AND(E39<>\" \",E39<>\"\"),LEFT(E39,1),\"\")&IF(AND(E40<>\" \",E40<>\"\"),LEFT(E40,1),\"\")&IF(AND(E41<>\" \",E41<>\"\"),LEFT(E41,1),\"\")&IF(AND(E42<>\" \",E42<>\"\"),LEFT(E42,1),\"\")","v":"()"},"()","()","()","()","()","Mix Description:",null,{"$f":"OFFSET(rSP_Mix3,1,5)","v":0},null,null,null,null,null,null,null,null,null,null,null,null,null,null,"Mix Code",{"$f":"$C33","v":"()"},{"$f":"$D33","v":"()"},{"$f":"$E33","v":"()"},{"$f":"$F33","v":"()"},{"$f":"$G33","v":"()"},{"$f":"$H33","v":"()"},{"$f":"$I33","v":"()"},{"$f":"$J33","v":"()"},null,null,null,"Mix Code",{"$f":"$C33","v":"()"},{"$f":"$D33","v":"()"},{"$f":"$E33","v":"()"},{"$f":"$F33","v":"()"},{"$f":"$G33","v":"()"},{"$f":"$H33","v":"()"},{"$f":"$I33","v":"()"},{"$f":"$J33","v":"()"}]
[null,"Core Mixture  (1, 2, 3…)"," "," "," "," "," "," "," "," "," ",null,null,null,null,null,null,null,null,null,null,null,null,null,null,null,null,"Core Mixture  (1, 2, 3…)",{"$f":"IF(AND(C34<>\" \",C34<>\"\"),VLOOKUP(LEFT(C34,FIND(\":\",C34)-1),tSeed_Core[],4,FALSE),0)","v":0},{"$f":"IF(AND(D34<>\" \",D34<>\"\"),VLOOKUP(LEFT(D34,FIND(\":\",D34)-1),tSeed_Core[],4,FALSE),0)","v":0},{"$f":"IF(AND(E34<>\" \",E34<>\"\"),VLOOKUP(LEFT(E34,FIND(\":\",E34)-1),tSeed_Core[],4,FALSE),0)","v":0},{"$f":"IF(AND(F34<>\" \",F34<>\"\"),VLOOKUP(LEFT(F34,FIND(\":\",F34)-1),tSeed_Core[],4,FALSE),0)","v":0},{"$f":"IF(AND(G34<>\" \",G34<>\"\"),VLOOKUP(LEFT(G34,FIND(\":\",G34)-1),tSeed_Core[],4,FALSE),0)","v":0},{"$f":"IF(AND(H34<>\" \",H34<>\"\"),VLOOKUP(LEFT(H34,FIND(\":\",H34)-1),tSeed_Core[],4,FALSE),0)","v":0},{"$f":"IF(AND(I34<>\" \",I34<>\"\"),VLOOKUP(LEFT(I34,FIND(\":\",I34)-1),tSeed_Core[],4,FALSE),0)","v":0},{"$f":"IF(AND(J34<>\" \",J34<>\"\"),VLOOKUP(LEFT(J34,FIND(\":\",J34)-1),tSeed_Core[],4,FALSE),0)","v":0},null,null,null,"Core Mixture  (1, 2, 3…)",{"$f":"IF(LEFT(C34,1)=\"C\",VLOOKUP(LEFT(C34,FIND(\":\",C34)-1),tSeed_Core[],5,FALSE),0)","v":0},{"$f":"IF(LEFT(D34,1)=\"C\",VLOOKUP(LEFT(D34,FIND(\":\",D34)-1),tSeed_Core[],5,FALSE),0)","v":0},{"$f":"IF(LEFT(E34,1)=\"C\",VLOOKUP(LEFT(E34,FIND(\":\",E34)-1),tSeed_Core[],5,FALSE),0)","v":0},{"$f":"IF(LEFT(F34,1)=\"C\",VLOOKUP(LEFT(F34,FIND(\":\",F34)-1),tSeed_Core[],5,FALSE),0)","v":0},{"$f":"IF(LEFT(G34,1)=\"C\",VLOOKUP(LEFT(G34,FIND(\":\",G34)-1),tSeed_Core[],5,FALSE),0)","v":0},{"$f":"IF(LEFT(H34,1)=\"C\",VLOOKUP(LEFT(H34,FIND(\":\",H34)-1),tSeed_Core[],5,FALSE),0)","v":0},{"$f":"IF(LEFT(I34,1)=\"C\",VLOOKUP(LEFT(I34,FIND(\":\",I34)-1),tSeed_Core[],5,FALSE),0)","v":0},{"$f":"IF(LEFT(J34,1)=\"C\",VLOOKUP(LEFT(J34,FIND(\":\",J34)-1),tSeed_Core[],5,FALSE),0)","v":0}]
[null,{"$f":"IF(COUNTIF(AC35:AJ35,\"Yes\")>0,\"Specific Type of Fine Fescue\",\"n/a\")","v":"n/a"},null,null,null,null,null,null,null,null,null,null,null,null,null,null,null,null,null,null,null,null,null,null,null,null,null,"Fine Fescue?",{"$f":"IF(RIGHT(C34,1)=\"*\",\"Yes\",\"No\")","v":"No"},{"$f":"IF(RIGHT(D34,1)=\"*\",\"Yes\",\"No\")","v":"No"},"No","No","No","No","No","No"]
[null,{"$f":"IF(COUNTIF(AC36:AJ36,\"Yes\")>0,\"Specify Other Type\",\"n/a\")","v":"n/a"},null,null,null,null,null,null,null,null,null,null,null,null,null,null,null,null,null,null,null,null,null,null,null,null,null,"User Entry?",{"$f":"IF(LEFT(C35,5)=\"Other\",\"Yes\",\"No\")","v":"No"},{"$f":"IF(LEFT(D35,5)=\"Other\",\"Yes\",\"No\")","v":"No"},{"$f":"IF(LEFT(E35,5)=\"Other\",\"Yes\",\"No\")","v":"No"},{"$f":"IF(LEFT(F35,5)=\"Other\",\"Yes\",\"No\")","v":"No"},{"$f":"IF(LEFT(G35,5)=\"Other\",\"Yes\",\"No\")","v":"No"},{"$f":"IF(LEFT(H35,5)=\"Other\",\"Yes\",\"No\")","v":"No"},{"$f":"IF(LEFT(I35,5)=\"Other\",\"Yes\",\"No\")","v":"No"},{"$f":"IF(LEFT(J35,5)=\"Other\",\"Yes\",\"No\")","v":"No"}]
[null,"Additive 1 \n(A, B, C…)"," "," "," "," "," "," "," "," ",{"$f":"IF(OR(AND(COUNTIF(C34:H34,\"C1:*\")>0,OFFSET(rSeedCustom_1,1,1)<0.01),AND(COUNTIF(C34:H34,\"C2:*\")>0,OFFSET(rSeedCustom_2,1,1)<0.01),AND(COUNTIF(C34:H34,\"C3:*\")>0,OFFSET(rSeedCustom_3,1,1)<0.01)),\"Please Check the Custom Seed Mix inputs on the Seed Mix Selection tab\",\"\")","v":""},null,null,null,null,null,null,null,null,null,null,null,null,null,null,null,null,"Additive 1 \n(A, B, C…)",{"$f":"IF(AND(C37<>\" \",C37<>\"\"),IF(VLOOKUP(LEFT(C37,FIND(\":\",C37)-1),tSeed_Add[],5,FALSE)=\"No\",VLOOKUP(LEFT(C37,FIND(\":\",C37)-1),tSeed_Add[],4,FALSE),0),0)","v":0},{"$f":"IF(AND(D37<>\" \",D37<>\"\"),IF(VLOOKUP(LEFT(D37,FIND(\":\",D37)-1),tSeed_Add[],5,FALSE)=\"No\",VLOOKUP(LEFT(D37,FIND(\":\",D37)-1),tSeed_Add[],4,FALSE),0),0)","v":0},{"$f":"IF(AND(E37<>\" \",E37<>\"\"),IF(VLOOKUP(LEFT(E37,FIND(\":\",E37)-1),tSeed_Add[],5,FALSE)=\"No\",VLOOKUP(LEFT(E37,FIND(\":\",E37)-1),tSeed_Add[],4,FALSE),0),0)","v":0},{"$f":"IF(AND(F37<>\" \",F37<>\"\"),IF(VLOOKUP(LEFT(F37,FIND(\":\",F37)-1),tSeed_Add[],5,FALSE)=\"No\",VLOOKUP(LEFT(F37,FIND(\":\",F37)-1),tSeed_Add[],4,FALSE),0),0)","v":0},{"$f":"IF(AND(G37<>\" \",G37<>\"\"),IF(VLOOKUP(LEFT(G37,FIND(\":\",G37)-1),tSeed_Add[],5,FALSE)=\"No\",VLOOKUP(LEFT(G37,FIND(\":\",G37)-1),tSeed_Add[],4,FALSE),0),0)","v":0},{"$f":"IF(AND(H37<>\" \",H37<>\"\"),IF(VLOOKUP(LEFT(H37,FIND(\":\",H37)-1),tSeed_Add[],5,FALSE)=\"No\",VLOOKUP(LEFT(H37,FIND(\":\",H37)-1),tSeed_Add[],4,FALSE),0),0)","v":0},{"$f":"IF(AND(I37<>\" \",I37<>\"\"),IF(VLOOKUP(LEFT(I37,FIND(\":\",I37)-1),tSeed_Add[],5,FALSE)=\"No\",VLOOKUP(LEFT(I37,FIND(\":\",I37)-1),tSeed_Add[],4,FALSE),0),0)","v":0},{"$f":"IF(AND(J37<>\" \",J37<>\"\"),IF(VLOOKUP(LEFT(J37,FIND(\":\",J37)-1),tSeed_Add[],5,FALSE)=\"No\",VLOOKUP(LEFT(J37,FIND(\":\",J37)-1),tSeed_Add[],4,FALSE),0),0)","v":0},null,null,null,"Additive 1 \n(A, B, C…)",{"$f":"IF(AND(C37<>\" \",C37<>\"\"),IF(VLOOKUP(LEFT(C37,FIND(\":\",C37)-1),tSeed_Add[],5,FALSE)=\"Yes\",VLOOKUP(LEFT(C37,FIND(\":\",C37)-1),tSeed_Add[],4,FALSE),0),0)","v":0},{"$f":"IF(AND(D37<>\" \",D37<>\"\"),IF(VLOOKUP(LEFT(D37,FIND(\":\",D37)-1),tSeed_Add[],5,FALSE)=\"Yes\",VLOOKUP(LEFT(D37,FIND(\":\",D37)-1),tSeed_Add[],4,FALSE),0),0)","v":0},{"$f":"IF(AND(E37<>\" \",E37<>\"\"),IF(VLOOKUP(LEFT(E37,FIND(\":\",E37)-1),tSeed_Add[],5,FALSE)=\"Yes\",VLOOKUP(LEFT(E37,FIND(\":\",E37)-1),tSeed_Add[],4,FALSE),0),0)","v":0},{"$f":"IF(AND(F37<>\" \",F37<>\"\"),IF(VLOOKUP(LEFT(F37,FIND(\":\",F37)-1),tSeed_Add[],5,FALSE)=\"Yes\",VLOOKUP(LEFT(F37,FIND(\":\",F37)-1),tSeed_Add[],4,FALSE),0),0)","v":0},{"$f":"IF(AND(G37<>\" \",G37<>\"\"),IF(VLOOKUP(LEFT(G37,FIND(\":\",G37)-1),tSeed_Add[],5,FALSE)=\"Yes\",VLOOKUP(LEFT(G37,FIND(\":\",G37)-1),tSeed_Add[],4,FALSE),0),0)","v":0},{"$f":"IF(AND(H37<>\" \",H37<>\"\"),IF(VLOOKUP(LEFT(H37,FIND(\":\",H37)-1),tSeed_Add[],5,FALSE)=\"Yes\",VLOOKUP(LEFT(H37,FIND(\":\",H37)-1),tSeed_Add[],4,FALSE),0),0)","v":0},{"$f":"IF(AND(I37<>\" \",I37<>\"\"),IF(VLOOKUP(LEFT(I37,FIND(\":\",I37)-1),tSeed_Add[],5,FALSE)=\"Yes\",VLOOKUP(LEFT(I37,FIND(\":\",I37)-1),tSeed_Add[],4,FALSE),0),0)","v":0},{"$f":"IF(AND(J37<>\" \",J37<>\"\"),IF(VLOOKUP(LEFT(J37,FIND(\":\",J37)-1),tSeed_Add[],5,FALSE)=\"Yes\",VLOOKUP(LEFT(J37,FIND(\":\",J37)-1),tSeed_Add[],4,FALSE),0),0)","v":0}]
[null,"Additive 2 \n(A, B, C…)"," "," "," "," "," "," "," "," "," ",null,null,null,null,null,null,null,null,null,null,null,null,null,null,null,null,"Additive 2 \n(A, B, C…)",{"$f":"IF(AND(C38<>\" \",C38<>\"\"),IF(VLOOKUP(LEFT(C38,FIND(\":\",C38)-1),tSeed_Add[],5,FALSE)=\"No\",VLOOKUP(LEFT(C38,FIND(\":\",C38)-1),tSeed_Add[],4,FALSE),0),0)","v":0},{"$f":"IF(AND(D38<>\" \",D38<>\"\"),IF(VLOOKUP(LEFT(D38,FIND(\":\",D38)-1),tSeed_Add[],5,FALSE)=\"No\",VLOOKUP(LEFT(D38,FIND(\":\",D38)-1),tSeed_Add[],4,FALSE),0),0)","v":0},{"$f":"IF(AND(E38<>\" \",E38<>\"\"),IF(VLOOKUP(LEFT(E38,FIND(\":\",E38)-1),tSeed_Add[],5,FALSE)=\"No\",VLOOKUP(LEFT(E38,FIND(\":\",E38)-1),tSeed_Add[],4,FALSE),0),0)","v":0},{"$f":"IF(AND(F38<>\" \",F38<>\"\"),IF(VLOOKUP(LEFT(F38,FIND(\":\",F38)-1),tSeed_Add[],5,FALSE)=\"No\",VLOOKUP(LEFT(F38,FIND(\":\",F38)-1),tSeed_Add[],4,FALSE),0),0)","v":0},{"$f":"IF(AND(G38<>\" \",G38<>\"\"),IF(VLOOKUP(LEFT(G38,FIND(\":\",G38)-1),tSeed_Add[],5,FALSE)=\"No\",VLOOKUP(LEFT(G38,FIND(\":\",G38)-1),tSeed_Add[],4,FALSE),0),0)","v":0},{"$f":"IF(AND(H38<>\" \",H38<>\"\"),IF(VLOOKUP(LEFT(H38,FIND(\":\",H38)-1),tSeed_Add[],5,FALSE)=\"No\",VLOOKUP(LEFT(H38,FIND(\":\",H38)-1),tSeed_Add[],4,FALSE),0),0)","v":0},{"$f":"IF(AND(I38<>\" \",I38<>\"\"),IF(VLOOKUP(LEFT(I38,FIND(\":\",I38)-1),tSeed_Add[],5,FALSE)=\"No\",VLOOKUP(LEFT(I38,FIND(\":\",I38)-1),tSeed_Add[],4,FALSE),0),0)","v":0},{"$f":"IF(AND(J38<>\" \",J38<>\"\"),IF(VLOOKUP(LEFT(J38,FIND(\":\",J38)-1),tSeed_Add[],5,FALSE)=\"No\",VLOOKUP(LEFT(J38,FIND(\":\",J38)-1),tSeed_Add[],4,FALSE),0),0)","v":0},null,null,null,"Additive 2 \n(A, B, C…)",{"$f":"IF(AND(C38<>\" \",C38<>\"\"),IF(VLOOKUP(LEFT(C38,FIND(\":\",C38)-1),tSeed_Add[],5,FALSE)=\"Yes\",VLOOKUP(LEFT(C38,FIND(\":\",C38)-1),tSeed_Add[],4,FALSE),0),0)","v":0},{"$f":"IF(AND(D38<>\" \",D38<>\"\"),IF(VLOOKUP(LEFT(D38,FIND(\":\",D38)-1),tSeed_Add[],5,FALSE)=\"Yes\",VLOOKUP(LEFT(D38,FIND(\":\",D38)-1),tSeed_Add[],4,FALSE),0),0)","v":0},{"$f":"IF(AND(E38<>\" \",E38<>\"\"),IF(VLOOKUP(LEFT(E38,FIND(\":\",E38)-1),tSeed_Add[],5,FALSE)=\"Yes\",VLOOKUP(LEFT(E38,FIND(\":\",E38)-1),tSeed_Add[],4,FALSE),0),0)","v":0},{"$f":"IF(AND(F38<>\" \",F38<>\"\"),IF(VLOOKUP(LEFT(F38,FIND(\":\",F38)-1),tSeed_Add[],5,FALSE)=\"Yes\",VLOOKUP(LEFT(F38,FIND(\":\",F38)-1),tSeed_Add[],4,FALSE),0),0)","v":0},{"$f":"IF(AND(G38<>\" \",G38<>\"\"),IF(VLOOKUP(LEFT(G38,FIND(\":\",G38)-1),tSeed_Add[],5,FALSE)=\"Yes\",VLOOKUP(LEFT(G38,FIND(\":\",G38)-1),tSeed_Add[],4,FALSE),0),0)","v":0},{"$f":"IF(AND(H38<>\" \",H38<>\"\"),IF(VLOOKUP(LEFT(H38,FIND(\":\",H38)-1),tSeed_Add[],5,FALSE)=\"Yes\",VLOOKUP(LEFT(H38,FIND(\":\",H38)-1),tSeed_Add[],4,FALSE),0),0)","v":0},{"$f":"IF(AND(I38<>\" \",I38<>\"\"),IF(VLOOKUP(LEFT(I38,FIND(\":\",I38)-1),tSeed_Add[],5,FALSE)=\"Yes\",VLOOKUP(LEFT(I38,FIND(\":\",I38)-1),tSeed_Add[],4,FALSE),0),0)","v":0},{"$f":"IF(AND(J38<>\" \",J38<>\"\"),IF(VLOOKUP(LEFT(J38,FIND(\":\",J38)-1),tSeed_Add[],5,FALSE)=\"Yes\",VLOOKUP(LEFT(J38,FIND(\":\",J38)-1),tSeed_Add[],4,FALSE),0),0)","v":0}]
[null,"Additive 3 \n(A, B, C…)"," "," "," "," "," "," "," "," "," ",null,null,null,null,null,null,null,null,null,null,null,null,null,null,null,null,"Additive 3 \n(A, B, C…)",{"$f":"IF(AND(C39<>\" \",C39<>\"\"),IF(VLOOKUP(LEFT(C39,FIND(\":\",C39)-1),tSeed_Add[],5,FALSE)=\"No\",VLOOKUP(LEFT(C39,FIND(\":\",C39)-1),tSeed_Add[],4,FALSE),0),0)","v":0},{"$f":"IF(AND(D39<>\" \",D39<>\"\"),IF(VLOOKUP(LEFT(D39,FIND(\":\",D39)-1),tSeed_Add[],5,FALSE)=\"No\",VLOOKUP(LEFT(D39,FIND(\":\",D39)-1),tSeed_Add[],4,FALSE),0),0)","v":0},{"$f":"IF(AND(E39<>\" \",E39<>\"\"),IF(VLOOKUP(LEFT(E39,FIND(\":\",E39)-1),tSeed_Add[],5,FALSE)=\"No\",VLOOKUP(LEFT(E39,FIND(\":\",E39)-1),tSeed_Add[],4,FALSE),0),0)","v":0},{"$f":"IF(AND(F39<>\" \",F39<>\"\"),IF(VLOOKUP(LEFT(F39,FIND(\":\",F39)-1),tSeed_Add[],5,FALSE)=\"No\",VLOOKUP(LEFT(F39,FIND(\":\",F39)-1),tSeed_Add[],4,FALSE),0),0)","v":0},{"$f":"IF(AND(G39<>\" \",G39<>\"\"),IF(VLOOKUP(LEFT(G39,FIND(\":\",G39)-1),tSeed_Add[],5,FALSE)=\"No\",VLOOKUP(LEFT(G39,FIND(\":\",G39)-1),tSeed_Add[],4,FALSE),0),0)","v":0},{"$f":"IF(AND(H39<>\" \",H39<>\"\"),IF(VLOOKUP(LEFT(H39,FIND(\":\",H39)-1),tSeed_Add[],5,FALSE)=\"No\",VLOOKUP(LEFT(H39,FIND(\":\",H39)-1),tSeed_Add[],4,FALSE),0),0)","v":0},{"$f":"IF(AND(I39<>\" \",I39<>\"\"),IF(VLOOKUP(LEFT(I39,FIND(\":\",I39)-1),tSeed_Add[],5,FALSE)=\"No\",VLOOKUP(LEFT(I39,FIND(\":\",I39)-1),tSeed_Add[],4,FALSE),0),0)","v":0},{"$f":"IF(AND(J39<>\" \",J39<>\"\"),IF(VLOOKUP(LEFT(J39,FIND(\":\",J39)-1),tSeed_Add[],5,FALSE)=\"No\",VLOOKUP(LEFT(J39,FIND(\":\",J39)-1),tSeed_Add[],4,FALSE),0),0)","v":0},null,null,null,"Additive 3 \n(A, B, C…)",{"$f":"IF(AND(C39<>\" \",C39<>\"\"),IF(VLOOKUP(LEFT(C39,FIND(\":\",C39)-1),tSeed_Add[],5,FALSE)=\"Yes\",VLOOKUP(LEFT(C39,FIND(\":\",C39)-1),tSeed_Add[],4,FALSE),0),0)","v":0},{"$f":"IF(AND(D39<>\" \",D39<>\"\"),IF(VLOOKUP(LEFT(D39,FIND(\":\",D39)-1),tSeed_Add[],5,FALSE)=\"Yes\",VLOOKUP(LEFT(D39,FIND(\":\",D39)-1),tSeed_Add[],4,FALSE),0),0)","v":0},{"$f":"IF(AND(E39<>\" \",E39<>\"\"),IF(VLOOKUP(LEFT(E39,FIND(\":\",E39)-1),tSeed_Add[],5,FALSE)=\"Yes\",VLOOKUP(LEFT(E39,FIND(\":\",E39)-1),tSeed_Add[],4,FALSE),0),0)","v":0},{"$f":"IF(AND(F39<>\" \",F39<>\"\"),IF(VLOOKUP(LEFT(F39,FIND(\":\",F39)-1),tSeed_Add[],5,FALSE)=\"Yes\",VLOOKUP(LEFT(F39,FIND(\":\",F39)-1),tSeed_Add[],4,FALSE),0),0)","v":0},{"$f":"IF(AND(G39<>\" \",G39<>\"\"),IF(VLOOKUP(LEFT(G39,FIND(\":\",G39)-1),tSeed_Add[],5,FALSE)=\"Yes\",VLOOKUP(LEFT(G39,FIND(\":\",G39)-1),tSeed_Add[],4,FALSE),0),0)","v":0},{"$f":"IF(AND(H39<>\" \",H39<>\"\"),IF(VLOOKUP(LEFT(H39,FIND(\":\",H39)-1),tSeed_Add[],5,FALSE)=\"Yes\",VLOOKUP(LEFT(H39,FIND(\":\",H39)-1),tSeed_Add[],4,FALSE),0),0)","v":0},{"$f":"IF(AND(I39<>\" \",I39<>\"\"),IF(VLOOKUP(LEFT(I39,FIND(\":\",I39)-1),tSeed_Add[],5,FALSE)=\"Yes\",VLOOKUP(LEFT(I39,FIND(\":\",I39)-1),tSeed_Add[],4,FALSE),0),0)","v":0},{"$f":"IF(AND(J39<>\" \",J39<>\"\"),IF(VLOOKUP(LEFT(J39,FIND(\":\",J39)-1),tSeed_Add[],5,FALSE)=\"Yes\",VLOOKUP(LEFT(J39,FIND(\":\",J39)-1),tSeed_Add[],4,FALSE),0),0)","v":0}]
[null,"Additive 4 \n(A, B, C…)"," "," "," "," "," "," "," "," "," ",null,null,null,null,null,null,null,null,null,null,null,null,null,null,null,null,"Additive 4 \n(A, B, C…)",{"$f":"IF(AND(C40<>\" \",C40<>\"\"),IF(VLOOKUP(LEFT(C40,FIND(\":\",C40)-1),tSeed_Add[],5,FALSE)=\"No\",VLOOKUP(LEFT(C40,FIND(\":\",C40)-1),tSeed_Add[],4,FALSE),0),0)","v":0},{"$f":"IF(AND(D40<>\" \",D40<>\"\"),IF(VLOOKUP(LEFT(D40,FIND(\":\",D40)-1),tSeed_Add[],5,FALSE)=\"No\",VLOOKUP(LEFT(D40,FIND(\":\",D40)-1),tSeed_Add[],4,FALSE),0),0)","v":0},{"$f":"IF(AND(E40<>\" \",E40<>\"\"),IF(VLOOKUP(LEFT(E40,FIND(\":\",E40)-1),tSeed_Add[],5,FALSE)=\"No\",VLOOKUP(LEFT(E40,FIND(\":\",E40)-1),tSeed_Add[],4,FALSE),0),0)","v":0},{"$f":"IF(AND(F40<>\" \",F40<>\"\"),IF(VLOOKUP(LEFT(F40,FIND(\":\",F40)-1),tSeed_Add[],5,FALSE)=\"No\",VLOOKUP(LEFT(F40,FIND(\":\",F40)-1),tSeed_Add[],4,FALSE),0),0)","v":0},{"$f":"IF(AND(G40<>\" \",G40<>\"\"),IF(VLOOKUP(LEFT(G40,FIND(\":\",G40)-1),tSeed_Add[],5,FALSE)=\"No\",VLOOKUP(LEFT(G40,FIND(\":\",G40)-1),tSeed_Add[],4,FALSE),0),0)","v":0},{"$f":"IF(AND(H40<>\" \",H40<>\"\"),IF(VLOOKUP(LEFT(H40,FIND(\":\",H40)-1),tSeed_Add[],5,FALSE)=\"No\",VLOOKUP(LEFT(H40,FIND(\":\",H40)-1),tSeed_Add[],4,FALSE),0),0)","v":0},{"$f":"IF(AND(I40<>\" \",I40<>\"\"),IF(VLOOKUP(LEFT(I40,FIND(\":\",I40)-1),tSeed_Add[],5,FALSE)=\"No\",VLOOKUP(LEFT(I40,FIND(\":\",I40)-1),tSeed_Add[],4,FALSE),0),0)","v":0},{"$f":"IF(AND(J40<>\" \",J40<>\"\"),IF(VLOOKUP(LEFT(J40,FIND(\":\",J40)-1),tSeed_Add[],5,FALSE)=\"No\",VLOOKUP(LEFT(J40,FIND(\":\",J40)-1),tSeed_Add[],4,FALSE),0),0)","v":0},null,null,null,"Additive 4 \n(A, B, C…)",{"$f":"IF(AND(C40<>\" \",C40<>\"\"),IF(VLOOKUP(LEFT(C40,FIND(\":\",C40)-1),tSeed_Add[],5,FALSE)=\"Yes\",VLOOKUP(LEFT(C40,FIND(\":\",C40)-1),tSeed_Add[],4,FALSE),0),0)","v":0},{"$f":"IF(AND(D40<>\" \",D40<>\"\"),IF(VLOOKUP(LEFT(D40,FIND(\":\",D40)-1),tSeed_Add[],5,FALSE)=\"Yes\",VLOOKUP(LEFT(D40,FIND(\":\",D40)-1),tSeed_Add[],4,FALSE),0),0)","v":0},{"$f":"IF(AND(E40<>\" \",E40<>\"\"),IF(VLOOKUP(LEFT(E40,FIND(\":\",E40)-1),tSeed_Add[],5,FALSE)=\"Yes\",VLOOKUP(LEFT(E40,FIND(\":\",E40)-1),tSeed_Add[],4,FALSE),0),0)","v":0},{"$f":"IF(AND(F40<>\" \",F40<>\"\"),IF(VLOOKUP(LEFT(F40,FIND(\":\",F40)-1),tSeed_Add[],5,FALSE)=\"Yes\",VLOOKUP(LEFT(F40,FIND(\":\",F40)-1),tSeed_Add[],4,FALSE),0),0)","v":0},{"$f":"IF(AND(G40<>\" \",G40<>\"\"),IF(VLOOKUP(LEFT(G40,FIND(\":\",G40)-1),tSeed_Add[],5,FALSE)=\"Yes\",VLOOKUP(LEFT(G40,FIND(\":\",G40)-1),tSeed_Add[],4,FALSE),0),0)","v":0},{"$f":"IF(AND(H40<>\" \",H40<>\"\"),IF(VLOOKUP(LEFT(H40,FIND(\":\",H40)-1),tSeed_Add[],5,FALSE)=\"Yes\",VLOOKUP(LEFT(H40,FIND(\":\",H40)-1),tSeed_Add[],4,FALSE),0),0)","v":0},{"$f":"IF(AND(I40<>\" \",I40<>\"\"),IF(VLOOKUP(LEFT(I40,FIND(\":\",I40)-1),tSeed_Add[],5,FALSE)=\"Yes\",VLOOKUP(LEFT(I40,FIND(\":\",I40)-1),tSeed_Add[],4,FALSE),0),0)","v":0},{"$f":"IF(AND(J40<>\" \",J40<>\"\"),IF(VLOOKUP(LEFT(J40,FIND(\":\",J40)-1),tSeed_Add[],5,FALSE)=\"Yes\",VLOOKUP(LEFT(J40,FIND(\":\",J40)-1),tSeed_Add[],4,FALSE),0),0)","v":0}]
[null,"Additive 5 \n(A, B, C…)"," "," "," "," "," "," "," "," "," ",null,null,null,null,null,null,null,null,null,null,null,null,null,null,null,null,"Additive 5 \n(A, B, C…)",{"$f":"IF(AND(C41<>\" \",C41<>\"\"),IF(VLOOKUP(LEFT(C41,FIND(\":\",C41)-1),tSeed_Add[],5,FALSE)=\"No\",VLOOKUP(LEFT(C41,FIND(\":\",C41)-1),tSeed_Add[],4,FALSE),0),0)","v":0},{"$f":"IF(AND(D41<>\" \",D41<>\"\"),IF(VLOOKUP(LEFT(D41,FIND(\":\",D41)-1),tSeed_Add[],5,FALSE)=\"No\",VLOOKUP(LEFT(D41,FIND(\":\",D41)-1),tSeed_Add[],4,FALSE),0),0)","v":0},{"$f":"IF(AND(E41<>\" \",E41<>\"\"),IF(VLOOKUP(LEFT(E41,FIND(\":\",E41)-1),tSeed_Add[],5,FALSE)=\"No\",VLOOKUP(LEFT(E41,FIND(\":\",E41)-1),tSeed_Add[],4,FALSE),0),0)","v":0},{"$f":"IF(AND(F41<>\" \",F41<>\"\"),IF(VLOOKUP(LEFT(F41,FIND(\":\",F41)-1),tSeed_Add[],5,FALSE)=\"No\",VLOOKUP(LEFT(F41,FIND(\":\",F41)-1),tSeed_Add[],4,FALSE),0),0)","v":0},{"$f":"IF(AND(G41<>\" \",G41<>\"\"),IF(VLOOKUP(LEFT(G41,FIND(\":\",G41)-1),tSeed_Add[],5,FALSE)=\"No\",VLOOKUP(LEFT(G41,FIND(\":\",G41)-1),tSeed_Add[],4,FALSE),0),0)","v":0},{"$f":"IF(AND(H41<>\" \",H41<>\"\"),IF(VLOOKUP(LEFT(H41,FIND(\":\",H41)-1),tSeed_Add[],5,FALSE)=\"No\",VLOOKUP(LEFT(H41,FIND(\":\",H41)-1),tSeed_Add[],4,FALSE),0),0)","v":0},{"$f":"IF(AND(I41<>\" \",I41<>\"\"),IF(VLOOKUP(LEFT(I41,FIND(\":\",I41)-1),tSeed_Add[],5,FALSE)=\"No\",VLOOKUP(LEFT(I41,FIND(\":\",I41)-1),tSeed_Add[],4,FALSE),0),0)","v":0},{"$f":"IF(AND(J41<>\" \",J41<>\"\"),IF(VLOOKUP(LEFT(J41,FIND(\":\",J41)-1),tSeed_Add[],5,FALSE)=\"No\",VLOOKUP(LEFT(J41,FIND(\":\",J41)-1),tSeed_Add[],4,FALSE),0),0)","v":0},"Adjusted Rate \n(if Applicable)",null,null,"Additive 5 \n(A, B, C…)",{"$f":"IF(AND(C41<>\" \",C41<>\"\"),IF(VLOOKUP(LEFT(C41,FIND(\":\",C41)-1),tSeed_Add[],5,FALSE)=\"Yes\",VLOOKUP(LEFT(C41,FIND(\":\",C41)-1),tSeed_Add[],4,FALSE),0),0)","v":0},{"$f":"IF(AND(D41<>\" \",D41<>\"\"),IF(VLOOKUP(LEFT(D41,FIND(\":\",D41)-1),tSeed_Add[],5,FALSE)=\"Yes\",VLOOKUP(LEFT(D41,FIND(\":\",D41)-1),tSeed_Add[],4,FALSE),0),0)","v":0},{"$f":"IF(AND(E41<>\" \",E41<>\"\"),IF(VLOOKUP(LEFT(E41,FIND(\":\",E41)-1),tSeed_Add[],5,FALSE)=\"Yes\",VLOOKUP(LEFT(E41,FIND(\":\",E41)-1),tSeed_Add[],4,FALSE),0),0)","v":0},{"$f":"IF(AND(F41<>\" \",F41<>\"\"),IF(VLOOKUP(LEFT(F41,FIND(\":\",F41)-1),tSeed_Add[],5,FALSE)=\"Yes\",VLOOKUP(LEFT(F41,FIND(\":\",F41)-1),tSeed_Add[],4,FALSE),0),0)","v":0},{"$f":"IF(AND(G41<>\" \",G41<>\"\"),IF(VLOOKUP(LEFT(G41,FIND(\":\",G41)-1),tSeed_Add[],5,FALSE)=\"Yes\",VLOOKUP(LEFT(G41,FIND(\":\",G41)-1),tSeed_Add[],4,FALSE),0),0)","v":0},{"$f":"IF(AND(H41<>\" \",H41<>\"\"),IF(VLOOKUP(LEFT(H41,FIND(\":\",H41)-1),tSeed_Add[],5,FALSE)=\"Yes\",VLOOKUP(LEFT(H41,FIND(\":\",H41)-1),tSeed_Add[],4,FALSE),0),0)","v":0},{"$f":"IF(AND(I41<>\" \",I41<>\"\"),IF(VLOOKUP(LEFT(I41,FIND(\":\",I41)-1),tSeed_Add[],5,FALSE)=\"Yes\",VLOOKUP(LEFT(I41,FIND(\":\",I41)-1),tSeed_Add[],4,FALSE),0),0)","v":0},{"$f":"IF(AND(J41<>\" \",J41<>\"\"),IF(VLOOKUP(LEFT(J41,FIND(\":\",J41)-1),tSeed_Add[],5,FALSE)=\"Yes\",VLOOKUP(LEFT(J41,FIND(\":\",J41)-1),tSeed_Add[],4,FALSE),0),0)","v":0},"Adjusted Rate \n(if Applicable)"]
[null,"Additive 6 \n(A, B, C…)"," "," "," "," "," "," "," "," "," ",null,null,null,null,null,null,null,null,null,null,null,null,null,null,null,null,"Additive 6 \n(A, B, C…)",{"$f":"IF(AND(C42<>\" \",C42<>\"\"),IF(VLOOKUP(LEFT(C42,FIND(\":\",C42)-1),tSeed_Add[],5,FALSE)=\"No\",VLOOKUP(LEFT(C42,FIND(\":\",C42)-1),tSeed_Add[],4,FALSE),0),0)","v":0},{"$f":"IF(AND(D42<>\" \",D42<>\"\"),IF(VLOOKUP(LEFT(D42,FIND(\":\",D42)-1),tSeed_Add[],5,FALSE)=\"No\",VLOOKUP(LEFT(D42,FIND(\":\",D42)-1),tSeed_Add[],4,FALSE),0),0)","v":0},{"$f":"IF(AND(E42<>\" \",E42<>\"\"),IF(VLOOKUP(LEFT(E42,FIND(\":\",E42)-1),tSeed_Add[],5,FALSE)=\"No\",VLOOKUP(LEFT(E42,FIND(\":\",E42)-1),tSeed_Add[],4,FALSE),0),0)","v":0},{"$f":"IF(AND(F42<>\" \",F42<>\"\"),IF(VLOOKUP(LEFT(F42,FIND(\":\",F42)-1),tSeed_Add[],5,FALSE)=\"No\",VLOOKUP(LEFT(F42,FIND(\":\",F42)-1),tSeed_Add[],4,FALSE),0),0)","v":0},{"$f":"IF(AND(G42<>\" \",G42<>\"\"),IF(VLOOKUP(LEFT(G42,FIND(\":\",G42)-1),tSeed_Add[],5,FALSE)=\"No\",VLOOKUP(LEFT(G42,FIND(\":\",G42)-1),tSeed_Add[],4,FALSE),0),0)","v":0},{"$f":"IF(AND(H42<>\" \",H42<>\"\"),IF(VLOOKUP(LEFT(H42,FIND(\":\",H42)-1),tSeed_Add[],5,FALSE)=\"No\",VLOOKUP(LEFT(H42,FIND(\":\",H42)-1),tSeed_Add[],4,FALSE),0),0)","v":0},{"$f":"IF(AND(I42<>\" \",I42<>\"\"),IF(VLOOKUP(LEFT(I42,FIND(\":\",I42)-1),tSeed_Add[],5,FALSE)=\"No\",VLOOKUP(LEFT(I42,FIND(\":\",I42)-1),tSeed_Add[],4,FALSE),0),0)","v":0},{"$f":"IF(AND(J42<>\" \",J42<>\"\"),IF(VLOOKUP(LEFT(J42,FIND(\":\",J42)-1),tSeed_Add[],5,FALSE)=\"No\",VLOOKUP(LEFT(J42,FIND(\":\",J42)-1),tSeed_Add[],4,FALSE),0),0)","v":0},{"$f":"IF(LEFT(OFFSET(rSP_Mix3,7,5),1)=\"y\",OFFSET(rSP_Mix3,10,5)*AK43,0)","v":0},{"$f":"IF(LEFT(OFFSET(rSP_Mix3,7,5),1)=\"y\",OFFSET(rSP_Mix3,10,5)*AL43,0)","v":0},null,"Additive 6 \n(A, B, C…)",{"$f":"IF(AND(C42<>\" \",C42<>\"\"),IF(VLOOKUP(LEFT(C42,FIND(\":\",C42)-1),tSeed_Add[],5,FALSE)=\"Yes\",VLOOKUP(LEFT(C42,FIND(\":\",C42)-1),tSeed_Add[],4,FALSE),0),0)","v":0},{"$f":"IF(AND(D42<>\" \",D42<>\"\"),IF(VLOOKUP(LEFT(D42,FIND(\":\",D42)-1),tSeed_Add[],5,FALSE)=\"Yes\",VLOOKUP(LEFT(D42,FIND(\":\",D42)-1),tSeed_Add[],4,FALSE),0),0)","v":0},{"$f":"IF(AND(E42<>\" \",E42<>\"\"),IF(VLOOKUP(LEFT(E42,FIND(\":\",E42)-1),tSeed_Add[],5,FALSE)=\"Yes\",VLOOKUP(LEFT(E42,FIND(\":\",E42)-1),tSeed_Add[],4,FALSE),0),0)","v":0},{"$f":"IF(AND(F42<>\" \",F42<>\"\"),IF(VLOOKUP(LEFT(F42,FIND(\":\",F42)-1),tSeed_Add[],5,FALSE)=\"Yes\",VLOOKUP(LEFT(F42,FIND(\":\",F42)-1),tSeed_Add[],4,FALSE),0),0)","v":0},{"$f":"IF(AND(G42<>\" \",G42<>\"\"),IF(VLOOKUP(LEFT(G42,FIND(\":\",G42)-1),tSeed_Add[],5,FALSE)=\"Yes\",VLOOKUP(LEFT(G42,FIND(\":\",G42)-1),tSeed_Add[],4,FALSE),0),0)","v":0},{"$f":"IF(AND(H42<>\" \",H42<>\"\"),IF(VLOOKUP(LEFT(H42,FIND(\":\",H42)-1),tSeed_Add[],5,FALSE)=\"Yes\",VLOOKUP(LEFT(H42,FIND(\":\",H42)-1),tSeed_Add[],4,FALSE),0),0)","v":0},{"$f":"IF(AND(I42<>\" \",I42<>\"\"),IF(VLOOKUP(LEFT(I42,FIND(\":\",I42)-1),tSeed_Add[],5,FALSE)=\"Yes\",VLOOKUP(LEFT(I42,FIND(\":\",I42)-1),tSeed_Add[],4,FALSE),0),0)","v":0},{"$f":"IF(AND(J42<>\" \",J42<>\"\"),IF(VLOOKUP(LEFT(J42,FIND(\":\",J42)-1),tSeed_Add[],5,FALSE)=\"Yes\",VLOOKUP(LEFT(J42,FIND(\":\",J42)-1),tSeed_Add[],4,FALSE),0),0)","v":0},{"$f":"IF(LEFT(OFFSET(rSP_Mix3,7,5),1)=\"y\",OFFSET(rSP_Mix3,10,5)*AW43,0)","v":0},{"$f":"IF(LEFT(OFFSET(rSP_Mix3,7,5),1)=\"y\",OFFSET(rSP_Mix3,10,5)*AX43,0)","v":0}]
[{"$f":"IF(fRowHeight=0,\"Click on the Plus Sign (+) on the left to show the \"&A33&\" Selection Matrix\",\"Click on the Minus Sign (-) on the left to hide the \"&A33&\" Selection Matrix\")","v":"Click on the Minus Sign (-) on the left to hide the Core Mix 3 Selection Matrix"},null,null,null,null,null,null,null,null,null,null,null,null,null,null,null,null,null,null,null,null,null,null,null,null,null,null,"Core Mix 3 Total Seed",{"$f":"SUM(AC34:AC42)","v":0},{"$f":"SUM(AD34:AD42)","v":0},0,0,0,0,0,0,{"$f":"MAX(AC43,AE43,AG43,AI43)","v":0},{"$f":"MAX(AD43,AF43,AH43,AJ43)","v":0},null,"Core Mix 3 Total Legumes",{"$f":"SUM(AO34:AO42)","v":0},{"$f":"SUM(AP34:AP42)","v":0},0,0,0,0,0,0,{"$f":"MAX(AO43,AQ43,AS43,AU43)","v":0},{"$f":"MAX(AP43,AR43,AT43,AV43)","v":0}]
[]
[null,"Core Mix 1",{"$f":"C9","v":"()"},"()","()","()","()","()","()","()"]
[null,"Seed lbs/ac",{"$f":"AC10","v":0},0,0,0,0,0,0,0]
[null,"Legume lbs/ac",{"$f":"AO19","v":0},0,0,0,0,0,0,0]
[null,"Core Mix 2",{"$f":"C21","v":"()"},"()","()","()","()","()","()","()"]
[null,"Seed lbs/ac",{"$f":"AC31","v":0},0,0,0,0,0,0,0]
[null,"Legume lbs/ac",{"$f":"AO31","v":0},0,0,0,0,0,0,0]
[null,"Core Mix 3",{"$f":"C33","v":"()"},"()","()","()","()","()","()","()"]
[null,"Seed lbs/ac",{"$f":"AC43","v":0},0,0,0,0,0,0,0]
[null,"Legume lbs/ac",{"$f":"AO43","v":0},0,0,0,0,0,0,0]
[null,"Temporary Seed",100,100,100,100,100,100,100,100]
[]
[]
[null,"Regular Seed","Area (ac) Mowed","Area (ac) Slopes","Adj. Rate Area (M)","Adj. Rate Area (S)","Normal Seeding","Incr. Adj.","Over-seeding","Total"]
[null,"Core Mix 1",{"$f":"IF(LEFT(OFFSET(rSP_Mix1,7,5),1)=\"y\",OFFSET(Area_PS1m,0,20)-E58,OFFSET(Area_PS1m,0,20))","v":0},{"$f":"IF(LEFT(OFFSET(rSP_Mix1,7,5),1)=\"y\",OFFSET(Area_PS1nm,0,20)-F58,OFFSET(Area_PS1nm,0,20))","v":0},{"$f":"IF(LEFT(OFFSET(rSP_Mix1,7,5),1)=\"y\",OFFSET(rSP_Mix1,8,25),0)","v":0},{"$f":"IF(LEFT(OFFSET(rSP_Mix1,7,5),1)=\"y\",OFFSET(rSP_Mix1,9,25),0)","v":0},{"$f":"SUMPRODUCT(C58:D58,$AK$19:$AL$19)+SUMPRODUCT(E58:F58,$AK$18:$AL$18)","v":0},{"$f":"G58*0.25","v":0},{"$f":"G58","v":0},{"$f":"SUM(G58:I58)","v":0}]
[null,"Core Mix 2",{"$f":"IF(LEFT(OFFSET(rSP_Mix2,7,5),1)=\"y\",OFFSET(Area_PS2m,0,20)-E59,OFFSET(Area_PS2m,0,20))","v":0},{"$f":"IF(LEFT(OFFSET(rSP_Mix2,7,5),1)=\"y\",OFFSET(Area_PS2nm,0,20)-F59,OFFSET(Area_PS2nm,0,20))","v":0},{"$f":"IF(LEFT(OFFSET(rSP_Mix2,7,5),1)=\"y\",OFFSET(rSP_Mix2,8,25),0)","v":0},{"$f":"IF(LEFT(OFFSET(rSP_Mix2,7,5),1)=\"y\",OFFSET(rSP_Mix2,9,25),0)","v":0},{"$f":"SUMPRODUCT(C59:D59,$AK$31:$AL$31)+SUMPRODUCT(E59:F59,$AK$30:$AL$30)","v":0},{"$f":"G59*0.25","v":0},{"$f":"G59","v":0},{"$f":"SUM(G59:I59)","v":0}]
[null,"Core Mix 3",{"$f":"IF(LEFT(OFFSET(rSP_Mix3,7,5),1)=\"y\",OFFSET(Area_PS3m,0,20)-E60,OFFSET(Area_PS3m,0,20))","v":0},{"$f":"IF(LEFT(OFFSET(rSP_Mix3,7,5),1)=\"y\",OFFSET(Area_PS3nm,0,20)-F60,OFFSET(Area_PS3nm,0,20))","v":0},{"$f":"IF(LEFT(OFFSET(rSP_Mix3,7,5),1)=\"y\",OFFSET(rSP_Mix3,8,25),0)","v":0},{"$f":"IF(LEFT(OFFSET(rSP_Mix3,7,5),1)=\"y\",OFFSET(rSP_Mix3,9,25),0)","v":0},{"$f":"SUMPRODUCT(C60:D60,$AK$43:$AL$43)+SUMPRODUCT(E60:F60,$AK$42:$AL$42)","v":0},{"$f":"G60*0.25","v":0},{"$f":"G60","v":0},{"$f":"SUM(G60:I60)","v":0}]
[null,"Grand Totals",{"$f":"SUM(C58:C60)","v":0},0,0,0,0,0,0,0]
[]
[null,"Legume Seed","Area (ac) Mowed","Area (ac) Slopes","Adj. Rate Area (M)","Adj. Rate Area (S)","Normal Seeding","Incr. Adj.","Over-seeding","Total"]
[null,"Core Mix 1",{"$f":"C58","v":0},{"$f":"D58","v":0},0,0,{"$f":"SUMPRODUCT(C64:D64,$AW$19:$AX$19)+SUMPRODUCT(E64:F64,$AW$18:$AX$18)","v":0},{"$f":"G64*0.25","v":0},{"$f":"G64","v":0},{"$f":"SUM(G64:I64)","v":0}]
[null,"Core Mix 2",{"$f":"C59","v":0},{"$f":"D59","v":0},0,0,{"$f":"SUMPRODUCT(C65:D65,$AW$31:$AX$31)+SUMPRODUCT(E65:F65,$AW$30:$AX$30)","v":0},{"$f":"G65*0.25","v":0},{"$f":"G65","v":0},{"$f":"SUM(G65:I65)","v":0}]
[null,"Core Mix 3",0,{"$f":"D60","v":0},0,0,{"$f":"SUMPRODUCT(C66:D66,$AW$43:$AX$43)+SUMPRODUCT(E66:F66,$AW$42:$AX$42)","v":0},{"$f":"G66*0.25","v":0},{"$f":"G66","v":0},{"$f":"SUM(G66:I66)","v":0}]
[null,"Grand Totals",{"$f":"SUM(C64:C66)","v":0},0,{"$f":"SUM(E64:E66)","v":0},0,{"$f":"SUM(G64:G66)","v":0},0,0,0]
[]
[null,"Temporary Seed"]
[null,"Rate",100,"lbs/ac"]
[null,"Acres",{"$f":"Area_TSac","v":0},"acres"]
[null,"Total Lbs ",{"$f":"C71*C70","v":0},"pounds"]
[]
[null,"Slope Restricted Additives Used?"]
[null,null,{"$f":"COUNTIFS(tSeed_Add[Selected?],\"Yes\",tSeed_Add[Slope Restricted?],\"Yes\")","v":0}]

{"sheet":"Seed Rate Selection","index":16,"n_rows":110,"n_cols":15,"rows_kept":110,"cut":false,"hidden":true,"merged":[[54,0,54,1],[55,0,55,1]]}
[null,"Enter/Adjust Seed Application Rates and/or\nCreate Custom Seed Mixes (Core Mix)"]
["Required Questions",null,null,null,"Navigation Links:"]
[1,"Will there be Custom Seed Mixes on this Project?",null,"Custom Mix 1","Custom Mix 2","Custom Mix 3"]
["1a","If so, how many are there? (can use up to 3)",null,{"$f":"IF(AND(LEFT(C3,1)=\"n\",C4>0),\"Conflicting Answer - Please Delete Value or Enter 0 if no custom mixes will be used.\",IF(AND(LEFT(C3,1)=\"y\",C4<1),\"Please Enter the Number of Custom Mixes that will be used on this project.\",\"\"))","v":""}]
[]
["CORE MIXES:",null,{"$f":"IF(COUNTIFS(tSeed_Core[Selected?],\"Yes\",tSeed_Core[Lbs/Acre],\"\")>0,\"Please provide a seed application rate for all used Core Mixes\",\"\")","v":""}]
["Mix","Description","Dropdown List","Lbs/Acre","Legume","Coastal Order","Piedmont Order","Mountain Order","Selected?",null,"Region","Spring","Summer","Fall","Dormant Period"]
[" "," ",{"$f":"IF(OR(ISBLANK(tSeed_Core[[#This Row],[Mix]]),tSeed_Core[[#This Row],[Mix]]=\" \"),\"\",tSeed_Core[[#This Row],[Mix]]&\": \"&tSeed_Core[[#This Row],[Description]])","v":""},null,"No",1,1,1,"n/a",null,"Coastal","3/1 to 5/15","5/16 to 9/15","9/16 to 11/15","11/16 to 2/29"]
["1*","100% Certified Fine Fescue*",{"$f":"IF(OR(ISBLANK(tSeed_Core[[#This Row],[Mix]]),tSeed_Core[[#This Row],[Mix]]=\" \"),\"\",tSeed_Core[[#This Row],[Mix]]&\": \"&tSeed_Core[[#This Row],[Description]])","v":"1*: 100% Certified Fine Fescue*"},null,"No",2,6,3,{"$f":"IF(COUNTIF('Seed Mix Selection'!$C$9:$J$42,tSeed_Core[[#This Row],[Dropdown List]])>0,\"Yes\",\"No\")","v":"No"},null,"Piedmont","3/16 to 5/31","6/1 to 9/15","9/16 to 10/31","11/1 to 3/15"]
["2","100% Certified Tall Fescue",{"$f":"IF(OR(ISBLANK(tSeed_Core[[#This Row],[Mix]]),tSeed_Core[[#This Row],[Mix]]=\" \"),\"\",tSeed_Core[[#This Row],[Mix]]&\": \"&tSeed_Core[[#This Row],[Description]])","v":"2: 100% Certified Tall Fescue"},null,"No",3,7,4,{"$f":"IF(COUNTIF('Seed Mix Selection'!$C$9:$J$42,tSeed_Core[[#This Row],[Dropdown List]])>0,\"Yes\",\"No\")","v":"No"},null,"Mountain","3/16 to 5/31","6/1 to 9/15","9/16 to 10/31","11/1 to 3/15"]
["3*","50% Certified Tall Fescue  /  50% Certified Fine Fescue*",{"$f":"IF(OR(ISBLANK(tSeed_Core[[#This Row],[Mix]]),tSeed_Core[[#This Row],[Mix]]=\" \"),\"\",tSeed_Core[[#This Row],[Mix]]&\": \"&tSeed_Core[[#This Row],[Description]])","v":"3*: 50% Certified Tall Fescue  /  50% Certified Fine Fescue*"},null,"No",4,2,5,{"$f":"IF(COUNTIF('Seed Mix Selection'!$C$9:$J$42,tSeed_Core[[#This Row],[Dropdown List]])>0,\"Yes\",\"No\")","v":"No"}]
["4","50% Orchardgrass  /  50% Certified Kentucky Bluegrass",{"$f":"IF(OR(ISBLANK(tSeed_Core[[#This Row],[Mix]]),tSeed_Core[[#This Row],[Mix]]=\" \"),\"\",tSeed_Core[[#This Row],[Mix]]&\": \"&tSeed_Core[[#This Row],[Description]])","v":"4: 50% Orchardgrass  /  50% Certified Kentucky Bluegrass"},null,"No",5,3,6,{"$f":"IF(COUNTIF('Seed Mix Selection'!$C$9:$J$42,tSeed_Core[[#This Row],[Dropdown List]])>0,\"Yes\",\"No\")","v":"No"},null,"Fine Fescue Types:"]
["5","100% Bermudagrass",{"$f":"IF(OR(ISBLANK(tSeed_Core[[#This Row],[Mix]]),tSeed_Core[[#This Row],[Mix]]=\" \"),\"\",tSeed_Core[[#This Row],[Mix]]&\": \"&tSeed_Core[[#This Row],[Description]])","v":"5: 100% Bermudagrass"},null,"No",6,4,7,{"$f":"IF(COUNTIF('Seed Mix Selection'!$C$9:$J$42,tSeed_Core[[#This Row],[Dropdown List]])>0,\"Yes\",\"No\")","v":"No"},null,"Chewings"]
["C1","Custom 1, See Box Below for Contents of Mixture",{"$f":"IF(OR(ISBLANK(tSeed_Core[[#This Row],[Mix]]),tSeed_Core[[#This Row],[Mix]]=\" \"),\"\",tSeed_Core[[#This Row],[Mix]]&\": \"&tSeed_Core[[#This Row],[Description]])","v":"C1: Custom 1, See Box Below for Contents of Mixture"},{"$f":"OFFSET(rSeedCustom_1,1,1)","v":0},{"$f":"E56","v":0},7,5,2,{"$f":"IF(COUNTIF('Seed Mix Selection'!$C$9:$J$42,tSeed_Core[[#This Row],[Dropdown List]])>0,\"Yes\",\"No\")","v":"No"},null,"Creeping Red"]
["C2","Custom 2, See Box Below for Contents of Mixture",{"$f":"IF(OR(ISBLANK(tSeed_Core[[#This Row],[Mix]]),tSeed_Core[[#This Row],[Mix]]=\" \"),\"\",tSeed_Core[[#This Row],[Mix]]&\": \"&tSeed_Core[[#This Row],[Description]])","v":"C2: Custom 2, See Box Below for Contents of Mixture"},{"$f":"OFFSET(rSeedCustom_2,1,1)","v":0},{"$f":"E75","v":0},{"$f":"F14","v":7},5,2,{"$f":"IF(COUNTIF('Seed Mix Selection'!$C$9:$J$42,tSeed_Core[[#This Row],[Dropdown List]])>0,\"Yes\",\"No\")","v":"No"},null,"Hard"]
["C3","Custom 3, See Box Below for Contents of Mixture",{"$f":"IF(OR(ISBLANK(tSeed_Core[[#This Row],[Mix]]),tSeed_Core[[#This Row],[Mix]]=\" \"),\"\",tSeed_Core[[#This Row],[Mix]]&\": \"&tSeed_Core[[#This Row],[Description]])","v":"C3: Custom 3, See Box Below for Contents of Mixture"},{"$f":"OFFSET(rSeedCustom_3,1,1)","v":0},{"$f":"E94","v":0},7,5,2,{"$f":"IF(COUNTIF('Seed Mix Selection'!$C$9:$J$42,tSeed_Core[[#This Row],[Dropdown List]])>0,\"Yes\",\"No\")","v":"No"},null,"Sheep"]
["T1","50% Certified Tall Fescue  /  50% Barley, Winter Rye, or Winter Wheat",{"$f":"IF(OR(ISBLANK(tSeed_Core[[#This Row],[Mix]]),tSeed_Core[[#This Row],[Mix]]=\" \"),\"\",tSeed_Core[[#This Row],[Mix]]&\": \"&tSeed_Core[[#This Row],[Description]])","v":"T1: 50% Certified Tall Fescue  /  50% Barley, Winter Rye, or Winter Wheat"},null,"No",8,8,8,{"$f":"IF(COUNTIF('Seed Mix Selection'!$C$9:$J$42,tSeed_Core[[#This Row],[Dropdown List]])>0,\"Yes\",\"No\")","v":"No"},null,"Other (Specify Below)"]
["T2","50% Foxtail Millet  /  50% Certified Tall Fescue",{"$f":"IF(OR(ISBLANK(tSeed_Core[[#This Row],[Mix]]),tSeed_Core[[#This Row],[Mix]]=\" \"),\"\",tSeed_Core[[#This Row],[Mix]]&\": \"&tSeed_Core[[#This Row],[Description]])","v":"T2: 50% Foxtail Millet  /  50% Certified Tall Fescue"},null,"No",9,9,9,{"$f":"IF(COUNTIF('Seed Mix Selection'!$C$9:$J$42,tSeed_Core[[#This Row],[Dropdown List]])>0,\"Yes\",\"No\")","v":"No"}]
["n/a","No seed selected for this period",{"$f":"IF(OR(ISBLANK(tSeed_Core[[#This Row],[Mix]]),tSeed_Core[[#This Row],[Mix]]=\" \"),\"\",tSeed_Core[[#This Row],[Mix]]&\": \"&tSeed_Core[[#This Row],[Description]])","v":"n/a: No seed selected for this period"},"n/a","No",9,9,9,{"$f":"IF(COUNTIF('Seed Mix Selection'!$C$9:$J$42,tSeed_Core[[#This Row],[Dropdown List]])>0,\"Yes\",\"No\")","v":"No"},null,"Any Type**"]
["*:","Fine Fescues include Chewings, Creeping Red, Hard, & Sheep.","See Seeding Schedule for type(s) specified for this project."]
[]
["NATIVE SEEDS:",null,{"$f":"IF(COUNTIFS(tSeed_Alt[Selected?],\"Yes\",tSeed_Alt[Lbs/Acre],\"\")>0,\"Please provide a seed application rate for all used Native Seeds\",\"\")","v":""}]
["Code","Description (Category)","Dropdown List","Lbs/Acre","Legume","Coastal Order","Piedmont Order","Mountain Order","Selected?"]
[" ",null,{"$f":"IF(OR(ISBLANK(tSeed_Alt[[#This Row],[Code]]),tSeed_Alt[[#This Row],[Code]]=\" \"),\"\",tSeed_Alt[[#This Row],[Code]]&\": \"&tSeed_Alt[[#This Row],[Description (Category)]])","v":""},null,null,null,null,null,"n/a"]
[6,"AUTUMN BENTGRASS (NATIVE)",{"$f":"IF(OR(ISBLANK(tSeed_Alt[[#This Row],[Code]]),tSeed_Alt[[#This Row],[Code]]=\" \"),\"\",tSeed_Alt[[#This Row],[Code]]&\": \"&tSeed_Alt[[#This Row],[Description (Category)]])","v":"6: AUTUMN BENTGRASS (NATIVE)"},null,null,null,null,null,{"$f":"IF(COUNTIF('Seed Mix Selection'!$C$9:$J$42,tSeed_Alt[[#This Row],[Dropdown List]])>0,\"Yes\",\"No\")","v":"No"}]
[7,"BROOMSEDGE (NATIVE)",{"$f":"IF(OR(ISBLANK(tSeed_Alt[[#This Row],[Code]]),tSeed_Alt[[#This Row],[Code]]=\" \"),\"\",tSeed_Alt[[#This Row],[Code]]&\": \"&tSeed_Alt[[#This Row],[Description (Category)]])","v":"7: BROOMSEDGE (NATIVE)"},null,null,null,null,null,{"$f":"IF(COUNTIF('Seed Mix Selection'!$C$9:$J$42,tSeed_Alt[[#This Row],[Dropdown List]])>0,\"Yes\",\"No\")","v":"No"}]
[8,"DEER TONGUE (NATIVE)",{"$f":"IF(OR(ISBLANK(tSeed_Alt[[#This Row],[Code]]),tSeed_Alt[[#This Row],[Code]]=\" \"),\"\",tSeed_Alt[[#This Row],[Code]]&\": \"&tSeed_Alt[[#This Row],[Description (Category)]])","v":"8: DEER TONGUE (NATIVE)"},null,null,null,null,null,{"$f":"IF(COUNTIF('Seed Mix Selection'!$C$9:$J$42,tSeed_Alt[[#This Row],[Dropdown List]])>0,\"Yes\",\"No\")","v":"No"}]
[9,"VA WILD RYE (NATIVE)",{"$f":"IF(OR(ISBLANK(tSeed_Alt[[#This Row],[Code]]),tSeed_Alt[[#This Row],[Code]]=\" \"),\"\",tSeed_Alt[[#This Row],[Code]]&\": \"&tSeed_Alt[[#This Row],[Description (Category)]])","v":"9: VA WILD RYE (NATIVE)"},null,null,null,null,null,{"$f":"IF(COUNTIF('Seed Mix Selection'!$C$9:$J$42,tSeed_Alt[[#This Row],[Dropdown List]])>0,\"Yes\",\"No\")","v":"No"}]
[10,"LITTLE BLUE STEM (NATIVE)",{"$f":"IF(OR(ISBLANK(tSeed_Alt[[#This Row],[Code]]),tSeed_Alt[[#This Row],[Code]]=\" \"),\"\",tSeed_Alt[[#This Row],[Code]]&\": \"&tSeed_Alt[[#This Row],[Description (Category)]])","v":"10: LITTLE BLUE STEM (NATIVE)"},null,null,null,null,null,{"$f":"IF(COUNTIF('Seed Mix Selection'!$C$9:$J$42,tSeed_Alt[[#This Row],[Dropdown List]])>0,\"Yes\",\"No\")","v":"No"}]
[11,"INDIAN GRASS (NATIVE)",{"$f":"IF(OR(ISBLANK(tSeed_Alt[[#This Row],[Code]]),tSeed_Alt[[#This Row],[Code]]=\" \"),\"\",tSeed_Alt[[#This Row],[Code]]&\": \"&tSeed_Alt[[#This Row],[Description (Category)]])","v":"11: INDIAN GRASS (NATIVE)"},null,null,null,null,null,{"$f":"IF(COUNTIF('Seed Mix Selection'!$C$9:$J$42,tSeed_Alt[[#This Row],[Dropdown List]])>0,\"Yes\",\"No\")","v":"No"}]
[12,"PURPLE TOP (NATIVE)",{"$f":"IF(OR(ISBLANK(tSeed_Alt[[#This Row],[Code]]),tSeed_Alt[[#This Row],[Code]]=\" \"),\"\",tSeed_Alt[[#This Row],[Code]]&\": \"&tSeed_Alt[[#This Row],[Description (Category)]])","v":"12: PURPLE TOP (NATIVE)"},null,null,null,null,null,{"$f":"IF(COUNTIF('Seed Mix Selection'!$C$9:$J$42,tSeed_Alt[[#This Row],[Dropdown List]])>0,\"Yes\",\"No\")","v":"No"}]
[]
["ADDITIVES:",null,{"$f":"IF(COUNTIFS(tSeed_Add[Selected?],\"Yes\",tSeed_Add[Lbs/Acre],\"\")>0,\"Please provide a seed application rate for all used Core Mixes\",\"\")","v":""}]
["Type","Description","Dropdown List","Lbs/Acre","Legume","Coastal Order","Piedmont Order","Mountain Order","Selected?","Slope Restricted?"]
[null,null,{"$f":"IF(OR(ISBLANK(tSeed_Add[[#This Row],[Type]]),tSeed_Add[[#This Row],[Type]]=\" \"),\"\",tSeed_Add[[#This Row],[Type]]&\": \"&tSeed_Add[[#This Row],[Description]])","v":""},null,"No",null,null,null,"n/a",{"$f":"IF(RIGHT(tSeed_Add[[#This Row],[Description]],2)=\"**\",\"Yes\",\"No\")","v":"No"}]
["A","100% Lovegrass**",{"$f":"IF(OR(ISBLANK(tSeed_Add[[#This Row],[Type]]),tSeed_Add[[#This Row],[Type]]=\" \"),\"\",tSeed_Add[[#This Row],[Type]]&\": \"&tSeed_Add[[#This Row],[Description]])","v":"A: 100% Lovegrass**"},null,"No",null,null,null,{"$f":"IF(COUNTIF('Seed Mix Selection'!$C$9:$J$42,tSeed_Add[[#This Row],[Dropdown List]])>0,\"Yes\",\"No\")","v":"No"},{"$f":"IF(RIGHT(tSeed_Add[[#This Row],[Description]],2)=\"**\",\"Yes\",\"No\")","v":"Yes"}]
["B","100% Barley, Winter Rye, or Winter Wheat",{"$f":"IF(OR(ISBLANK(tSeed_Add[[#This Row],[Type]]),tSeed_Add[[#This Row],[Type]]=\" \"),\"\",tSeed_Add[[#This Row],[Type]]&\": \"&tSeed_Add[[#This Row],[Description]])","v":"B: 100% Barley, Winter Rye, or Winter Wheat"},null,"No",null,null,null,{"$f":"IF(COUNTIF('Seed Mix Selection'!$C$9:$J$42,tSeed_Add[[#This Row],[Dropdown List]])>0,\"Yes\",\"No\")","v":"No"},{"$f":"IF(RIGHT(tSeed_Add[[#This Row],[Description]],2)=\"**\",\"Yes\",\"No\")","v":"No"}]
["C","100% Foxtail Millet",{"$f":"IF(OR(ISBLANK(tSeed_Add[[#This Row],[Type]]),tSeed_Add[[#This Row],[Type]]=\" \"),\"\",tSeed_Add[[#This Row],[Type]]&\": \"&tSeed_Add[[#This Row],[Description]])","v":"C: 100% Foxtail Millet"},null,"No",null,null,null,{"$f":"IF(COUNTIF('Seed Mix Selection'!$C$9:$J$42,tSeed_Add[[#This Row],[Dropdown List]])>0,\"Yes\",\"No\")","v":"No"},{"$f":"IF(RIGHT(tSeed_Add[[#This Row],[Description]],2)=\"**\",\"Yes\",\"No\")","v":"No"}]
["D","100% Annual Ryegrass",{"$f":"IF(OR(ISBLANK(tSeed_Add[[#This Row],[Type]]),tSeed_Add[[#This Row],[Type]]=\" \"),\"\",tSeed_Add[[#This Row],[Type]]&\": \"&tSeed_Add[[#This Row],[Description]])","v":"D: 100% Annual Ryegrass"},null,"No",null,null,null,{"$f":"IF(COUNTIF('Seed Mix Selection'!$C$9:$J$42,tSeed_Add[[#This Row],[Dropdown List]])>0,\"Yes\",\"No\")","v":"No"},{"$f":"IF(RIGHT(tSeed_Add[[#This Row],[Description]],2)=\"**\",\"Yes\",\"No\")","v":"No"}]
["E","100% Blue Grama",{"$f":"IF(OR(ISBLANK(tSeed_Add[[#This Row],[Type]]),tSeed_Add[[#This Row],[Type]]=\" \"),\"\",tSeed_Add[[#This Row],[Type]]&\": \"&tSeed_Add[[#This Row],[Description]])","v":"E: 100% Blue Grama"},null,"No",null,null,null,{"$f":"IF(COUNTIF('Seed Mix Selection'!$C$9:$J$42,tSeed_Add[[#This Row],[Dropdown List]])>0,\"Yes\",\"No\")","v":"No"},{"$f":"IF(RIGHT(tSeed_Add[[#This Row],[Description]],2)=\"**\",\"Yes\",\"No\")","v":"No"}]
["F","100% Alfalfa",{"$f":"IF(OR(ISBLANK(tSeed_Add[[#This Row],[Type]]),tSeed_Add[[#This Row],[Type]]=\" \"),\"\",tSeed_Add[[#This Row],[Type]]&\": \"&tSeed_Add[[#This Row],[Description]])","v":"F: 100% Alfalfa"},null,"Yes",null,null,null,{"$f":"IF(COUNTIF('Seed Mix Selection'!$C$9:$J$42,tSeed_Add[[#This Row],[Dropdown List]])>0,\"Yes\",\"No\")","v":"No"},{"$f":"IF(RIGHT(tSeed_Add[[#This Row],[Description]],2)=\"**\",\"Yes\",\"No\")","v":"No"}]
["G","100% White Clover",{"$f":"IF(OR(ISBLANK(tSeed_Add[[#This Row],[Type]]),tSeed_Add[[#This Row],[Type]]=\" \"),\"\",tSeed_Add[[#This Row],[Type]]&\": \"&tSeed_Add[[#This Row],[Description]])","v":"G: 100% White Clover"},null,"Yes",null,null,null,{"$f":"IF(COUNTIF('Seed Mix Selection'!$C$9:$J$42,tSeed_Add[[#This Row],[Dropdown List]])>0,\"Yes\",\"No\")","v":"No"},{"$f":"IF(RIGHT(tSeed_Add[[#This Row],[Description]],2)=\"**\",\"Yes\",\"No\")","v":"No"}]
["H","100% Crown Vetch (Legume)**",{"$f":"IF(OR(ISBLANK(tSeed_Add[[#This Row],[Type]]),tSeed_Add[[#This Row],[Type]]=\" \"),\"\",tSeed_Add[[#This Row],[Type]]&\": \"&tSeed_Add[[#This Row],[Description]])","v":"H: 100% Crown Vetch (Legume)**"},null,"Yes",null,null,null,{"$f":"IF(COUNTIF('Seed Mix Selection'!$C$9:$J$42,tSeed_Add[[#This Row],[Dropdown List]])>0,\"Yes\",\"No\")","v":"No"},{"$f":"IF(RIGHT(tSeed_Add[[#This Row],[Description]],2)=\"**\",\"Yes\",\"No\")","v":"Yes"}]
["I","100% Sericea Lespedeza (Legume)**",{"$f":"IF(OR(ISBLANK(tSeed_Add[[#This Row],[Type]]),tSeed_Add[[#This Row],[Type]]=\" \"),\"\",tSeed_Add[[#This Row],[Type]]&\": \"&tSeed_Add[[#This Row],[Description]])","v":"I: 100% Sericea Lespedeza (Legume)**"},null,"Yes",null,null,null,{"$f":"IF(COUNTIF('Seed Mix Selection'!$C$9:$J$42,tSeed_Add[[#This Row],[Dropdown List]])>0,\"Yes\",\"No\")","v":"No"},{"$f":"IF(RIGHT(tSeed_Add[[#This Row],[Description]],2)=\"**\",\"Yes\",\"No\")","v":"Yes"}]
["J","100% Birdsfoot Trefoil (Legume)**",{"$f":"IF(OR(ISBLANK(tSeed_Add[[#This Row],[Type]]),tSeed_Add[[#This Row],[Type]]=\" \"),\"\",tSeed_Add[[#This Row],[Type]]&\": \"&tSeed_Add[[#This Row],[Description]])","v":"J: 100% Birdsfoot Trefoil (Legume)**"},null,"Yes",null,null,null,{"$f":"IF(COUNTIF('Seed Mix Selection'!$C$9:$J$42,tSeed_Add[[#This Row],[Dropdown List]])>0,\"Yes\",\"No\")","v":"No"},{"$f":"IF(RIGHT(tSeed_Add[[#This Row],[Description]],2)=\"**\",\"Yes\",\"No\")","v":"Yes"}]
["K","Pollinator Seed Mix ",{"$f":"IF(OR(ISBLANK(tSeed_Add[[#This Row],[Type]]),tSeed_Add[[#This Row],[Type]]=\" \"),\"\",tSeed_Add[[#This Row],[Type]]&\": \"&tSeed_Add[[#This Row],[Description]])","v":"K: Pollinator Seed Mix "},null,"No",null,null,null,{"$f":"IF(COUNTIF('Seed Mix Selection'!$C$9:$J$42,tSeed_Add[[#This Row],[Dropdown List]])>0,\"Yes\",\"No\")","v":"No"},{"$f":"IF(RIGHT(tSeed_Add[[#This Row],[Description]],2)=\"**\",\"Yes\",\"No\")","v":"No"}]
["L",null,{"$f":"IF(OR(ISBLANK(tSeed_Add[[#This Row],[Type]]),tSeed_Add[[#This Row],[Type]]=\" \"),\"\",tSeed_Add[[#This Row],[Type]]&\": \"&tSeed_Add[[#This Row],[Description]])","v":"L: "},null,null,null,null,null,{"$f":"IF(COUNTIF('Seed Mix Selection'!$C$9:$J$42,tSeed_Add[[#This Row],[Dropdown List]])>0,\"Yes\",\"No\")","v":"No"},{"$f":"IF(RIGHT(tSeed_Add[[#This Row],[Description]],2)=\"**\",\"Yes\",\"No\")","v":"No"}]
["M",null,{"$f":"IF(OR(ISBLANK(tSeed_Add[[#This Row],[Type]]),tSeed_Add[[#This Row],[Type]]=\" \"),\"\",tSeed_Add[[#This Row],[Type]]&\": \"&tSeed_Add[[#This Row],[Description]])","v":"M: "},null,null,null,null,null,{"$f":"IF(COUNTIF('Seed Mix Selection'!$C$9:$J$42,tSeed_Add[[#This Row],[Dropdown List]])>0,\"Yes\",\"No\")","v":"No"},{"$f":"IF(RIGHT(tSeed_Add[[#This Row],[Description]],2)=\"**\",\"Yes\",\"No\")","v":"No"}]
["N",null,{"$f":"IF(OR(ISBLANK(tSeed_Add[[#This Row],[Type]]),tSeed_Add[[#This Row],[Type]]=\" \"),\"\",tSeed_Add[[#This Row],[Type]]&\": \"&tSeed_Add[[#This Row],[Description]])","v":"N: "},null,null,null,null,null,{"$f":"IF(COUNTIF('Seed Mix Selection'!$C$9:$J$42,tSeed_Add[[#This Row],[Dropdown List]])>0,\"Yes\",\"No\")","v":"No"},{"$f":"IF(RIGHT(tSeed_Add[[#This Row],[Description]],2)=\"**\",\"Yes\",\"No\")","v":"No"}]
["O",null,{"$f":"IF(OR(ISBLANK(tSeed_Add[[#This Row],[Type]]),tSeed_Add[[#This Row],[Type]]=\" \"),\"\",tSeed_Add[[#This Row],[Type]]&\": \"&tSeed_Add[[#This Row],[Description]])","v":"O: "},null,null,null,null,null,{"$f":"IF(COUNTIF('Seed Mix Selection'!$C$9:$J$42,tSeed_Add[[#This Row],[Dropdown List]])>0,\"Yes\",\"No\")","v":"No"},{"$f":"IF(RIGHT(tSeed_Add[[#This Row],[Description]],2)=\"**\",\"Yes\",\"No\")","v":"No"}]
["Z",null,{"$f":"IF(OR(ISBLANK(tSeed_Add[[#This Row],[Type]]),tSeed_Add[[#This Row],[Type]]=\" \"),\"\",tSeed_Add[[#This Row],[Type]]&\": \"&tSeed_Add[[#This Row],[Description]])","v":"Z: "},null,null,null,null,null,{"$f":"IF(COUNTIF('Seed Mix Selection'!$C$9:$J$42,tSeed_Add[[#This Row],[Dropdown List]])>0,\"Yes\",\"No\")","v":"No"},{"$f":"IF(RIGHT(tSeed_Add[[#This Row],[Description]],2)=\"**\",\"Yes\",\"No\")","v":"No"}]
["**:","These Additives are NOT to be used in areas that will be mowed (slopes flatter than or equal to 3:1)"]
[]
["CUSTOM SEED MIX(ES)",null,{"$f":"IF(AND(LEFT($C$3,1)=\"y\",$C$4>=1),IF(COUNTA(tSeed_Custom1[Seed Name])<1,\"Please Enter at least One (1) Seed Name for this Custom Seed Mix\",IF(COUNTIF(G58:G72,\"\")<15,\"Please ensure that all columns are filled out for each seed listed.\",\"\")),IF(COUNTIF(G58:G72,\"\")<15,\"Please Check Answers about Custom Seed Mixes at the Top of the Page or Delete Input in Table Below\",\"\"))","v":""}]
["This area is provided in order to create a custom seed mixture that can be used",null,"Custom Mix Code:","C1",{"$f":"SUM(tSeed_Custom1[Lbs/Acre])-E56","v":0},"lbs/ac Seed"]
[" as a core mix instead of one of the Core Mixtures listed in the tables above.",null,"Application Rate (lbs/ac):",{"$f":"SUM(tSeed_Custom1[Lbs/Acre])","v":0},{"$f":"SUMIF(tSeed_Custom1[Legume?],\"y*\",tSeed_Custom1[Lbs/Acre])","v":0},"lbs/ac Legumes"]
["To use a Custom Seed Mix:",null,"Seed Name","Lbs/Acre","Legume?","% Of Mix"]
[1,"Enter the Seed Name (either scientific or common name) in the",null,null,null,{"$f":"IFERROR(tSeed_Custom1[[#This Row],[Lbs/Acre]]/$D$56,0)","v":0},{"$f":"IF(AND(OR($C$4<1,LEFT($C$3,1)<>\"Y\"),OR(tSeed_Custom1[[#This Row],[Seed Name]]>0,tSeed_Custom1[[#This Row],[Lbs/Acre]]>0)),\"Check Answers about Custom Seed Mixes at Top of Page\",IF(AND(COUNTA(tSeed_Custom1[[#This Row],[Seed Name]:[Legume?]])>0,COUNTA(tSeed_Custom1[[#This Row],[Seed Name]:[Legume?]])<3),\"Please enter information for all 3 columns!\",\"\"))","v":""}]
[null,"first column of the table to the right (or below for C2 & C3)",null,null,null,{"$f":"IFERROR(tSeed_Custom1[[#This Row],[Lbs/Acre]]/$D$56,0)","v":0},{"$f":"IF(AND(OR($C$4<1,LEFT($C$3,1)<>\"Y\"),OR(tSeed_Custom1[[#This Row],[Seed Name]]>0,tSeed_Custom1[[#This Row],[Lbs/Acre]]>0)),\"Check Answers about Custom Seed Mixes at Top of Page\",IF(AND(COUNTA(tSeed_Custom1[[#This Row],[Seed Name]:[Legume?]])>0,COUNTA(tSeed_Custom1[[#This Row],[Seed Name]:[Legume?]])<3),\"Please enter information for all 3 columns!\",\"\"))","v":""}]
[2,"Enter the application rate for the seed in pounds per acre (lbs/ac)",null,null,null,{"$f":"IFERROR(tSeed_Custom1[[#This Row],[Lbs/Acre]]/$D$56,0)","v":0},{"$f":"IF(AND(OR($C$4<1,LEFT($C$3,1)<>\"Y\"),OR(tSeed_Custom1[[#This Row],[Seed Name]]>0,tSeed_Custom1[[#This Row],[Lbs/Acre]]>0)),\"Check Answers about Custom Seed Mixes at Top of Page\",IF(AND(COUNTA(tSeed_Custom1[[#This Row],[Seed Name]:[Legume?]])>0,COUNTA(tSeed_Custom1[[#This Row],[Seed Name]:[Legume?]])<3),\"Please enter information for all 3 columns!\",\"\"))","v":""}]
[3,"List whether or not the seed is a Legume in the 3rd column",null,null,null,{"$f":"IFERROR(tSeed_Custom1[[#This Row],[Lbs/Acre]]/$D$56,0)","v":0},{"$f":"IF(AND(OR($C$4<1,LEFT($C$3,1)<>\"Y\"),OR(tSeed_Custom1[[#This Row],[Seed Name]]>0,tSeed_Custom1[[#This Row],[Lbs/Acre]]>0)),\"Check Answers about Custom Seed Mixes at Top of Page\",IF(AND(COUNTA(tSeed_Custom1[[#This Row],[Seed Name]:[Legume?]])>0,COUNTA(tSeed_Custom1[[#This Row],[Seed Name]:[Legume?]])<3),\"Please enter information for all 3 columns!\",\"\"))","v":""}]
[null,"NOTE: Program assumes seed is NOT a legume unless ",null,null,null,{"$f":"IFERROR(tSeed_Custom1[[#This Row],[Lbs/Acre]]/$D$56,0)","v":0},{"$f":"IF(AND(OR($C$4<1,LEFT($C$3,1)<>\"Y\"),OR(tSeed_Custom1[[#This Row],[Seed Name]]>0,tSeed_Custom1[[#This Row],[Lbs/Acre]]>0)),\"Check Answers about Custom Seed Mixes at Top of Page\",IF(AND(COUNTA(tSeed_Custom1[[#This Row],[Seed Name]:[Legume?]])>0,COUNTA(tSeed_Custom1[[#This Row],[Seed Name]:[Legume?]])<3),\"Please enter information for all 3 columns!\",\"\"))","v":""}]
[null,"user enters \"Yes\" in this column (Legume?)",null,null,null,{"$f":"IFERROR(tSeed_Custom1[[#This Row],[Lbs/Acre]]/$D$56,0)","v":0},{"$f":"IF(AND(OR($C$4<1,LEFT($C$3,1)<>\"Y\"),OR(tSeed_Custom1[[#This Row],[Seed Name]]>0,tSeed_Custom1[[#This Row],[Lbs/Acre]]>0)),\"Check Answers about Custom Seed Mixes at Top of Page\",IF(AND(COUNTA(tSeed_Custom1[[#This Row],[Seed Name]:[Legume?]])>0,COUNTA(tSeed_Custom1[[#This Row],[Seed Name]:[Legume?]])<3),\"Please enter information for all 3 columns!\",\"\"))","v":""}]
[null,"Due to the additional items necessary to establish legumes vs.",null,null,null,{"$f":"IFERROR(tSeed_Custom1[[#This Row],[Lbs/Acre]]/$D$56,0)","v":0},{"$f":"IF(AND(OR($C$4<1,LEFT($C$3,1)<>\"Y\"),OR(tSeed_Custom1[[#This Row],[Seed Name]]>0,tSeed_Custom1[[#This Row],[Lbs/Acre]]>0)),\"Check Answers about Custom Seed Mixes at Top of Page\",IF(AND(COUNTA(tSeed_Custom1[[#This Row],[Seed Name]:[Legume?]])>0,COUNTA(tSeed_Custom1[[#This Row],[Seed Name]:[Legume?]])<3),\"Please enter information for all 3 columns!\",\"\"))","v":""}]
[null,"seeds (inocculants, etc.) they are a separate pay item & must ",null,null,null,{"$f":"IFERROR(tSeed_Custom1[[#This Row],[Lbs/Acre]]/$D$56,0)","v":0},{"$f":"IF(AND(OR($C$4<1,LEFT($C$3,1)<>\"Y\"),OR(tSeed_Custom1[[#This Row],[Seed Name]]>0,tSeed_Custom1[[#This Row],[Lbs/Acre]]>0)),\"Check Answers about Custom Seed Mixes at Top of Page\",IF(AND(COUNTA(tSeed_Custom1[[#This Row],[Seed Name]:[Legume?]])>0,COUNTA(tSeed_Custom1[[#This Row],[Seed Name]:[Legume?]])<3),\"Please enter information for all 3 columns!\",\"\"))","v":""}]
[null,"be broken out in order for this spreadsheet to work correctly",null,null,null,{"$f":"IFERROR(tSeed_Custom1[[#This Row],[Lbs/Acre]]/$D$56,0)","v":0},{"$f":"IF(AND(OR($C$4<1,LEFT($C$3,1)<>\"Y\"),OR(tSeed_Custom1[[#This Row],[Seed Name]]>0,tSeed_Custom1[[#This Row],[Lbs/Acre]]>0)),\"Check Answers about Custom Seed Mixes at Top of Page\",IF(AND(COUNTA(tSeed_Custom1[[#This Row],[Seed Name]:[Legume?]])>0,COUNTA(tSeed_Custom1[[#This Row],[Seed Name]:[Legume?]])<3),\"Please enter information for all 3 columns!\",\"\"))","v":""}]
[4,"Select \"C#: Custom #, See Box Below for Contents of Mixture\"",null,null,null,{"$f":"IFERROR(tSeed_Custom1[[#This Row],[Lbs/Acre]]/$D$56,0)","v":0},{"$f":"IF(AND(OR($C$4<1,LEFT($C$3,1)<>\"Y\"),OR(tSeed_Custom1[[#This Row],[Seed Name]]>0,tSeed_Custom1[[#This Row],[Lbs/Acre]]>0)),\"Check Answers about Custom Seed Mixes at Top of Page\",IF(AND(COUNTA(tSeed_Custom1[[#This Row],[Seed Name]:[Legume?]])>0,COUNTA(tSeed_Custom1[[#This Row],[Seed Name]:[Legume?]])<3),\"Please enter information for all 3 columns!\",\"\"))","v":""}]
[null,"from the drop down list under \"Core Mixture\" on the ",null,null,null,{"$f":"IFERROR(tSeed_Custom1[[#This Row],[Lbs/Acre]]/$D$56,0)","v":0},{"$f":"IF(AND(OR($C$4<1,LEFT($C$3,1)<>\"Y\"),OR(tSeed_Custom1[[#This Row],[Seed Name]]>0,tSeed_Custom1[[#This Row],[Lbs/Acre]]>0)),\"Check Answers about Custom Seed Mixes at Top of Page\",IF(AND(COUNTA(tSeed_Custom1[[#This Row],[Seed Name]:[Legume?]])>0,COUNTA(tSeed_Custom1[[#This Row],[Seed Name]:[Legume?]])<3),\"Please enter information for all 3 columns!\",\"\"))","v":""}]
[null,"Seed Mix Selection tab",null,null,null,{"$f":"IFERROR(tSeed_Custom1[[#This Row],[Lbs/Acre]]/$D$56,0)","v":0},{"$f":"IF(AND(OR($C$4<1,LEFT($C$3,1)<>\"Y\"),OR(tSeed_Custom1[[#This Row],[Seed Name]]>0,tSeed_Custom1[[#This Row],[Lbs/Acre]]>0)),\"Check Answers about Custom Seed Mixes at Top of Page\",IF(AND(COUNTA(tSeed_Custom1[[#This Row],[Seed Name]:[Legume?]])>0,COUNTA(tSeed_Custom1[[#This Row],[Seed Name]:[Legume?]])<3),\"Please enter information for all 3 columns!\",\"\"))","v":""}]
[null,"(where # is 1, 2, or 3 for custom mixes 1, 2, & 3 respectively)",null,null,null,{"$f":"IFERROR(tSeed_Custom1[[#This Row],[Lbs/Acre]]/$D$56,0)","v":0},{"$f":"IF(AND(OR($C$4<1,LEFT($C$3,1)<>\"Y\"),OR(tSeed_Custom1[[#This Row],[Seed Name]]>0,tSeed_Custom1[[#This Row],[Lbs/Acre]]>0)),\"Check Answers about Custom Seed Mixes at Top of Page\",IF(AND(COUNTA(tSeed_Custom1[[#This Row],[Seed Name]:[Legume?]])>0,COUNTA(tSeed_Custom1[[#This Row],[Seed Name]:[Legume?]])<3),\"Please enter information for all 3 columns!\",\"\"))","v":""}]
["Helpful Hints:",null,null,null,null,{"$f":"IFERROR(tSeed_Custom1[[#This Row],[Lbs/Acre]]/$D$56,0)","v":0},{"$f":"IF(AND(OR($C$4<1,LEFT($C$3,1)<>\"Y\"),OR(tSeed_Custom1[[#This Row],[Seed Name]]>0,tSeed_Custom1[[#This Row],[Lbs/Acre]]>0)),\"Check Answers about Custom Seed Mixes at Top of Page\",IF(AND(COUNTA(tSeed_Custom1[[#This Row],[Seed Name]:[Legume?]])>0,COUNTA(tSeed_Custom1[[#This Row],[Seed Name]:[Legume?]])<3),\"Please enter information for all 3 columns!\",\"\"))","v":""}]
["A.","You can copy and paste from the seed lists above if it is a mixture",null,null,null,{"$f":"IFERROR(tSeed_Custom1[[#This Row],[Lbs/Acre]]/$D$56,0)","v":0},{"$f":"IF(AND(OR($C$4<1,LEFT($C$3,1)<>\"Y\"),OR(tSeed_Custom1[[#This Row],[Seed Name]]>0,tSeed_Custom1[[#This Row],[Lbs/Acre]]>0)),\"Check Answers about Custom Seed Mixes at Top of Page\",IF(AND(COUNTA(tSeed_Custom1[[#This Row],[Seed Name]:[Legume?]])>0,COUNTA(tSeed_Custom1[[#This Row],[Seed Name]:[Legume?]])<3),\"Please enter information for all 3 columns!\",\"\"))","v":""}]
[null,"of seeds already listed on this page.",{"$f":"IF(AND(LEFT($C$3,1)=\"y\",$C$4>=2),IF(COUNTA(tSeed_Custom2[Seed Name])<1,\"Please Enter at least One (1) Seed Name for this Custom Seed Mix\",IF(COUNTIF(B77:B91,\"\")<15,\"Please ensure that all columns are filled out for each seed listed.\",\"\")),IF(COUNTIF(B77:B91,\"\")<15,\"Please Check Answers about Custom Seed Mixes at the Top of the Page or Delete Input in Table Below\",\"\"))","v":""},null,null,null,null,null,null,null,{"$f":"IF(AND(LEFT($C$3,1)=\"y\",$C$4>=2),IF(COUNTA(tSeed_Custom2[Seed Name])<1,\"Please Enter at least One (1) Seed Name for this Custom Seed Mix\",IF(COUNTIF(B77:B91,\"\")<15,\"Please ensure that all columns are filled out for each seed listed.\",\"\")),IF(COUNTIF(B77:B91,\"\")<15,\"Please Check Answers about Custom Seed Mixes at the Top of the Page or Delete Input in Table Below\",\"\"))","v":""}]
["B.","Alternatively, if it is a custom blend you often use, keep a copy of","Custom Mix Code:","C2",{"$f":"SUM(tSeed_Custom2[Lbs/Acre])-E75","v":0},"lbs/ac Seed"]
[null,"the list in another file and copy/paste the values into new versions","Application Rate (lbs/ac):",{"$f":"SUM(tSeed_Custom2[Lbs/Acre])","v":0},{"$f":"SUMIF(tSeed_Custom2[Legume?],\"y*\",tSeed_Custom2[Lbs/Acre])","v":0},"lbs/ac Legumes"]
[null,"of this spreadsheet.","Seed Name","Lbs/Acre","Legume?","% Of Mix"]
[null,{"$f":"IF(AND(OR($C$4<2,LEFT($C$3,1)<>\"Y\"),OR(tSeed_Custom2[[#This Row],[Seed Name]]>0,tSeed_Custom2[[#This Row],[Lbs/Acre]]>0)),\"Check Answers about Custom Seed Mixes at Top of Page\",IF(AND(COUNTA(tSeed_Custom2[[#This Row],[Seed Name]:[Legume?]])>0,COUNTA(tSeed_Custom2[[#This Row],[Seed Name]:[Legume?]])<3),\"Please enter information for all 3 columns!\",\"\"))","v":""},null,null,null,{"$f":"IFERROR(tSeed_Custom2[[#This Row],[Lbs/Acre]]/$D$75,0)","v":0}]
[null,{"$f":"IF(AND(OR($C$4<2,LEFT($C$3,1)<>\"Y\"),OR(tSeed_Custom2[[#This Row],[Seed Name]]>0,tSeed_Custom2[[#This Row],[Lbs/Acre]]>0)),\"Check Answers about Custom Seed Mixes at Top of Page\",IF(AND(COUNTA(tSeed_Custom2[[#This Row],[Seed Name]:[Legume?]])>0,COUNTA(tSeed_Custom2[[#This Row],[Seed Name]:[Legume?]])<3),\"Please enter information for all 3 columns!\",\"\"))","v":""},null,null,null,{"$f":"IFERROR(tSeed_Custom2[[#This Row],[Lbs/Acre]]/$D$75,0)","v":0}]
[null,{"$f":"IF(AND(OR($C$4<2,LEFT($C$3,1)<>\"Y\"),OR(tSeed_Custom2[[#This Row],[Seed Name]]>0,tSeed_Custom2[[#This Row],[Lbs/Acre]]>0)),\"Check Answers about Custom Seed Mixes at Top of Page\",IF(AND(COUNTA(tSeed_Custom2[[#This Row],[Seed Name]:[Legume?]])>0,COUNTA(tSeed_Custom2[[#This Row],[Seed Name]:[Legume?]])<3),\"Please enter information for all 3 columns!\",\"\"))","v":""},null,null,null,{"$f":"IFERROR(tSeed_Custom2[[#This Row],[Lbs/Acre]]/$D$75,0)","v":0}]
[null,{"$f":"IF(AND(OR($C$4<2,LEFT($C$3,1)<>\"Y\"),OR(tSeed_Custom2[[#This Row],[Seed Name]]>0,tSeed_Custom2[[#This Row],[Lbs/Acre]]>0)),\"Check Answers about Custom Seed Mixes at Top of Page\",IF(AND(COUNTA(tSeed_Custom2[[#This Row],[Seed Name]:[Legume?]])>0,COUNTA(tSeed_Custom2[[#This Row],[Seed Name]:[Legume?]])<3),\"Please enter information for all 3 columns!\",\"\"))","v":""},null,null,null,{"$f":"IFERROR(tSeed_Custom2[[#This Row],[Lbs/Acre]]/$D$75,0)","v":0}]
[null,{"$f":"IF(AND(OR($C$4<2,LEFT($C$3,1)<>\"Y\"),OR(tSeed_Custom2[[#This Row],[Seed Name]]>0,tSeed_Custom2[[#This Row],[Lbs/Acre]]>0)),\"Check Answers about Custom Seed Mixes at Top of Page\",IF(AND(COUNTA(tSeed_Custom2[[#This Row],[Seed Name]:[Legume?]])>0,COUNTA(tSeed_Custom2[[#This Row],[Seed Name]:[Legume?]])<3),\"Please enter information for all 3 columns!\",\"\"))","v":""},null,null,null,{"$f":"IFERROR(tSeed_Custom2[[#This Row],[Lbs/Acre]]/$D$75,0)","v":0}]
[null,{"$f":"IF(AND(OR($C$4<2,LEFT($C$3,1)<>\"Y\"),OR(tSeed_Custom2[[#This Row],[Seed Name]]>0,tSeed_Custom2[[#This Row],[Lbs/Acre]]>0)),\"Check Answers about Custom Seed Mixes at Top of Page\",IF(AND(COUNTA(tSeed_Custom2[[#This Row],[Seed Name]:[Legume?]])>0,COUNTA(tSeed_Custom2[[#This Row],[Seed Name]:[Legume?]])<3),\"Please enter information for all 3 columns!\",\"\"))","v":""},null,null,null,{"$f":"IFERROR(tSeed_Custom2[[#This Row],[Lbs/Acre]]/$D$75,0)","v":0}]
[null,{"$f":"IF(AND(OR($C$4<2,LEFT($C$3,1)<>\"Y\"),OR(tSeed_Custom2[[#This Row],[Seed Name]]>0,tSeed_Custom2[[#This Row],[Lbs/Acre]]>0)),\"Check Answers about Custom Seed Mixes at Top of Page\",IF(AND(COUNTA(tSeed_Custom2[[#This Row],[Seed Name]:[Legume?]])>0,COUNTA(tSeed_Custom2[[#This Row],[Seed Name]:[Legume?]])<3),\"Please enter information for all 3 columns!\",\"\"))","v":""},null,null,null,{"$f":"IFERROR(tSeed_Custom2[[#This Row],[Lbs/Acre]]/$D$75,0)","v":0}]
[null,{"$f":"IF(AND(OR($C$4<2,LEFT($C$3,1)<>\"Y\"),OR(tSeed_Custom2[[#This Row],[Seed Name]]>0,tSeed_Custom2[[#This Row],[Lbs/Acre]]>0)),\"Check Answers about Custom Seed Mixes at Top of Page\",IF(AND(COUNTA(tSeed_Custom2[[#This Row],[Seed Name]:[Legume?]])>0,COUNTA(tSeed_Custom2[[#This Row],[Seed Name]:[Legume?]])<3),\"Please enter information for all 3 columns!\",\"\"))","v":""},null,null,null,{"$f":"IFERROR(tSeed_Custom2[[#This Row],[Lbs/Acre]]/$D$75,0)","v":0}]
[null,{"$f":"IF(AND(OR($C$4<2,LEFT($C$3,1)<>\"Y\"),OR(tSeed_Custom2[[#This Row],[Seed Name]]>0,tSeed_Custom2[[#This Row],[Lbs/Acre]]>0)),\"Check Answers about Custom Seed Mixes at Top of Page\",IF(AND(COUNTA(tSeed_Custom2[[#This Row],[Seed Name]:[Legume?]])>0,COUNTA(tSeed_Custom2[[#This Row],[Seed Name]:[Legume?]])<3),\"Please enter information for all 3 columns!\",\"\"))","v":""},null,null,null,{"$f":"IFERROR(tSeed_Custom2[[#This Row],[Lbs/Acre]]/$D$75,0)","v":0}]
[null,{"$f":"IF(AND(OR($C$4<2,LEFT($C$3,1)<>\"Y\"),OR(tSeed_Custom2[[#This Row],[Seed Name]]>0,tSeed_Custom2[[#This Row],[Lbs/Acre]]>0)),\"Check Answers about Custom Seed Mixes at Top of Page\",IF(AND(COUNTA(tSeed_Custom2[[#This Row],[Seed Name]:[Legume?]])>0,COUNTA(tSeed_Custom2[[#This Row],[Seed Name]:[Legume?]])<3),\"Please enter information for all 3 columns!\",\"\"))","v":""},null,null,null,{"$f":"IFERROR(tSeed_Custom2[[#This Row],[Lbs/Acre]]/$D$75,0)","v":0}]
[null,{"$f":"IF(AND(OR($C$4<2,LEFT($C$3,1)<>\"Y\"),OR(tSeed_Custom2[[#This Row],[Seed Name]]>0,tSeed_Custom2[[#This Row],[Lbs/Acre]]>0)),\"Check Answers about Custom Seed Mixes at Top of Page\",IF(AND(COUNTA(tSeed_Custom2[[#This Row],[Seed Name]:[Legume?]])>0,COUNTA(tSeed_Custom2[[#This Row],[Seed Name]:[Legume?]])<3),\"Please enter information for all 3 columns!\",\"\"))","v":""},null,null,null,{"$f":"IFERROR(tSeed_Custom2[[#This Row],[Lbs/Acre]]/$D$75,0)","v":0}]
[null,{"$f":"IF(AND(OR($C$4<2,LEFT($C$3,1)<>\"Y\"),OR(tSeed_Custom2[[#This Row],[Seed Name]]>0,tSeed_Custom2[[#This Row],[Lbs/Acre]]>0)),\"Check Answers about Custom Seed Mixes at Top of Page\",IF(AND(COUNTA(tSeed_Custom2[[#This Row],[Seed Name]:[Legume?]])>0,COUNTA(tSeed_Custom2[[#This Row],[Seed Name]:[Legume?]])<3),\"Please enter information for all 3 columns!\",\"\"))","v":""},null,null,null,{"$f":"IFERROR(tSeed_Custom2[[#This Row],[Lbs/Acre]]/$D$75,0)","v":0}]
[null,{"$f":"IF(AND(OR($C$4<2,LEFT($C$3,1)<>\"Y\"),OR(tSeed_Custom2[[#This Row],[Seed Name]]>0,tSeed_Custom2[[#This Row],[Lbs/Acre]]>0)),\"Check Answers about Custom Seed Mixes at Top of Page\",IF(AND(COUNTA(tSeed_Custom2[[#This Row],[Seed Name]:[Legume?]])>0,COUNTA(tSeed_Custom2[[#This Row],[Seed Name]:[Legume?]])<3),\"Please enter information for all 3 columns!\",\"\"))","v":""},null,null,null,{"$f":"IFERROR(tSeed_Custom2[[#This Row],[Lbs/Acre]]/$D$75,0)","v":0}]
[null,{"$f":"IF(AND(OR($C$4<2,LEFT($C$3,1)<>\"Y\"),OR(tSeed_Custom2[[#This Row],[Seed Name]]>0,tSeed_Custom2[[#This Row],[Lbs/Acre]]>0)),\"Check Answers about Custom Seed Mixes at Top of Page\",IF(AND(COUNTA(tSeed_Custom2[[#This Row],[Seed Name]:[Legume?]])>0,COUNTA(tSeed_Custom2[[#This Row],[Seed Name]:[Legume?]])<3),\"Please enter information for all 3 columns!\",\"\"))","v":""},null,null,null,{"$f":"IFERROR(tSeed_Custom2[[#This Row],[Lbs/Acre]]/$D$75,0)","v":0}]
[null,{"$f":"IF(AND(OR($C$4<2,LEFT($C$3,1)<>\"Y\"),OR(tSeed_Custom2[[#This Row],[Seed Name]]>0,tSeed_Custom2[[#This Row],[Lbs/Acre]]>0)),\"Check Answers about Custom Seed Mixes at Top of Page\",IF(AND(COUNTA(tSeed_Custom2[[#This Row],[Seed Name]:[Legume?]])>0,COUNTA(tSeed_Custom2[[#This Row],[Seed Name]:[Legume?]])<3),\"Please enter information for all 3 columns!\",\"\"))","v":""},null,null,null,{"$f":"IFERROR(tSeed_Custom2[[#This Row],[Lbs/Acre]]/$D$75,0)","v":0}]
[null,null,{"$f":"IF(AND(LEFT($C$3,1)=\"y\",$C$4>=3),IF(COUNTA(tSeed_Custom3[Seed Name])<1,\"Please Enter at least One (1) Seed Name for this Custom Seed Mix\",IF(COUNTIF(B96:B110,\"\")<15,\"Please ensure that all columns are filled out for each seed listed.\",\"\")),IF(COUNTIF(B96:B110,\"\")<15,\"Please Check Answers about Custom Seed Mixes at the Top of the Page or Delete Input in Table Below\",\"\"))","v":""}]
[null,null,"Custom Mix Code:","C3",{"$f":"SUM(tSeed_Custom3[Lbs/Acre])-E94","v":0},"lbs/ac Seed"]
[null,null,"Application Rate (lbs/ac):",{"$f":"SUM(tSeed_Custom3[Lbs/Acre])","v":0},{"$f":"SUMIF(tSeed_Custom3[Legume?],\"y*\",tSeed_Custom3[Lbs/Acre])","v":0},"lbs/ac Legumes"]
[null,null,"Seed Name","Lbs/Acre","Legume?","% Of Mix"]
[null,{"$f":"IF(AND(OR($C$4<3,LEFT($C$3,1)<>\"Y\"),OR(tSeed_Custom3[[#This Row],[Seed Name]]>0,tSeed_Custom3[[#This Row],[Lbs/Acre]]>0)),\"Check Answers about Custom Seed Mixes at Top of Page\",IF(AND(COUNTA(tSeed_Custom3[[#This Row],[Seed Name]:[Legume?]])>0,COUNTA(tSeed_Custom3[[#This Row],[Seed Name]:[Legume?]])<3),\"Please enter information for all 3 columns!\",\"\"))","v":""},null,null,null,{"$f":"IFERROR(tSeed_Custom3[[#This Row],[Lbs/Acre]]/$D$94,0)","v":0}]
[null,{"$f":"IF(AND(OR($C$4<3,LEFT($C$3,1)<>\"Y\"),OR(tSeed_Custom3[[#This Row],[Seed Name]]>0,tSeed_Custom3[[#This Row],[Lbs/Acre]]>0)),\"Check Answers about Custom Seed Mixes at Top of Page\",IF(AND(COUNTA(tSeed_Custom3[[#This Row],[Seed Name]:[Legume?]])>0,COUNTA(tSeed_Custom3[[#This Row],[Seed Name]:[Legume?]])<3),\"Please enter information for all 3 columns!\",\"\"))","v":""},null,null,null,{"$f":"IFERROR(tSeed_Custom3[[#This Row],[Lbs/Acre]]/$D$94,0)","v":0}]
[null,{"$f":"IF(AND(OR($C$4<3,LEFT($C$3,1)<>\"Y\"),OR(tSeed_Custom3[[#This Row],[Seed Name]]>0,tSeed_Custom3[[#This Row],[Lbs/Acre]]>0)),\"Check Answers about Custom Seed Mixes at Top of Page\",IF(AND(COUNTA(tSeed_Custom3[[#This Row],[Seed Name]:[Legume?]])>0,COUNTA(tSeed_Custom3[[#This Row],[Seed Name]:[Legume?]])<3),\"Please enter information for all 3 columns!\",\"\"))","v":""},null,null,null,{"$f":"IFERROR(tSeed_Custom3[[#This Row],[Lbs/Acre]]/$D$94,0)","v":0}]
[null,{"$f":"IF(AND(OR($C$4<3,LEFT($C$3,1)<>\"Y\"),OR(tSeed_Custom3[[#This Row],[Seed Name]]>0,tSeed_Custom3[[#This Row],[Lbs/Acre]]>0)),\"Check Answers about Custom Seed Mixes at Top of Page\",IF(AND(COUNTA(tSeed_Custom3[[#This Row],[Seed Name]:[Legume?]])>0,COUNTA(tSeed_Custom3[[#This Row],[Seed Name]:[Legume?]])<3),\"Please enter information for all 3 columns!\",\"\"))","v":""},null,null,null,{"$f":"IFERROR(tSeed_Custom3[[#This Row],[Lbs/Acre]]/$D$94,0)","v":0}]
[null,{"$f":"IF(AND(OR($C$4<3,LEFT($C$3,1)<>\"Y\"),OR(tSeed_Custom3[[#This Row],[Seed Name]]>0,tSeed_Custom3[[#This Row],[Lbs/Acre]]>0)),\"Check Answers about Custom Seed Mixes at Top of Page\",IF(AND(COUNTA(tSeed_Custom3[[#This Row],[Seed Name]:[Legume?]])>0,COUNTA(tSeed_Custom3[[#This Row],[Seed Name]:[Legume?]])<3),\"Please enter information for all 3 columns!\",\"\"))","v":""},null,null,null,{"$f":"IFERROR(tSeed_Custom3[[#This Row],[Lbs/Acre]]/$D$94,0)","v":0}]
[null,{"$f":"IF(AND(OR($C$4<3,LEFT($C$3,1)<>\"Y\"),OR(tSeed_Custom3[[#This Row],[Seed Name]]>0,tSeed_Custom3[[#This Row],[Lbs/Acre]]>0)),\"Check Answers about Custom Seed Mixes at Top of Page\",IF(AND(COUNTA(tSeed_Custom3[[#This Row],[Seed Name]:[Legume?]])>0,COUNTA(tSeed_Custom3[[#This Row],[Seed Name]:[Legume?]])<3),\"Please enter information for all 3 columns!\",\"\"))","v":""},null,null,null,{"$f":"IFERROR(tSeed_Custom3[[#This Row],[Lbs/Acre]]/$D$94,0)","v":0}]
[null,{"$f":"IF(AND(OR($C$4<3,LEFT($C$3,1)<>\"Y\"),OR(tSeed_Custom3[[#This Row],[Seed Name]]>0,tSeed_Custom3[[#This Row],[Lbs/Acre]]>0)),\"Check Answers about Custom Seed Mixes at Top of Page\",IF(AND(COUNTA(tSeed_Custom3[[#This Row],[Seed Name]:[Legume?]])>0,COUNTA(tSeed_Custom3[[#This Row],[Seed Name]:[Legume?]])<3),\"Please enter information for all 3 columns!\",\"\"))","v":""},null,null,null,{"$f":"IFERROR(tSeed_Custom3[[#This Row],[Lbs/Acre]]/$D$94,0)","v":0}]
[null,{"$f":"IF(AND(OR($C$4<3,LEFT($C$3,1)<>\"Y\"),OR(tSeed_Custom3[[#This Row],[Seed Name]]>0,tSeed_Custom3[[#This Row],[Lbs/Acre]]>0)),\"Check Answers about Custom Seed Mixes at Top of Page\",IF(AND(COUNTA(tSeed_Custom3[[#This Row],[Seed Name]:[Legume?]])>0,COUNTA(tSeed_Custom3[[#This Row],[Seed Name]:[Legume?]])<3),\"Please enter information for all 3 columns!\",\"\"))","v":""},null,null,null,{"$f":"IFERROR(tSeed_Custom3[[#This Row],[Lbs/Acre]]/$D$94,0)","v":0}]
[null,{"$f":"IF(AND(OR($C$4<3,LEFT($C$3,1)<>\"Y\"),OR(tSeed_Custom3[[#This Row],[Seed Name]]>0,tSeed_Custom3[[#This Row],[Lbs/Acre]]>0)),\"Check Answers about Custom Seed Mixes at Top of Page\",IF(AND(COUNTA(tSeed_Custom3[[#This Row],[Seed Name]:[Legume?]])>0,COUNTA(tSeed_Custom3[[#This Row],[Seed Name]:[Legume?]])<3),\"Please enter information for all 3 columns!\",\"\"))","v":""},null,null,null,{"$f":"IFERROR(tSeed_Custom3[[#This Row],[Lbs/Acre]]/$D$94,0)","v":0}]
[null,{"$f":"IF(AND(OR($C$4<3,LEFT($C$3,1)<>\"Y\"),OR(tSeed_Custom3[[#This Row],[Seed Name]]>0,tSeed_Custom3[[#This Row],[Lbs/Acre]]>0)),\"Check Answers about Custom Seed Mixes at Top of Page\",IF(AND(COUNTA(tSeed_Custom3[[#This Row],[Seed Name]:[Legume?]])>0,COUNTA(tSeed_Custom3[[#This Row],[Seed Name]:[Legume?]])<3),\"Please enter information for all 3 columns!\",\"\"))","v":""},null,null,null,{"$f":"IFERROR(tSeed_Custom3[[#This Row],[Lbs/Acre]]/$D$94,0)","v":0}]
[null,{"$f":"IF(AND(OR($C$4<3,LEFT($C$3,1)<>\"Y\"),OR(tSeed_Custom3[[#This Row],[Seed Name]]>0,tSeed_Custom3[[#This Row],[Lbs/Acre]]>0)),\"Check Answers about Custom Seed Mixes at Top of Page\",IF(AND(COUNTA(tSeed_Custom3[[#This Row],[Seed Name]:[Legume?]])>0,COUNTA(tSeed_Custom3[[#This Row],[Seed Name]:[Legume?]])<3),\"Please enter information for all 3 columns!\",\"\"))","v":""},null,null,null,{"$f":"IFERROR(tSeed_Custom3[[#This Row],[Lbs/Acre]]/$D$94,0)","v":0}]
[null,{"$f":"IF(AND(OR($C$4<3,LEFT($C$3,1)<>\"Y\"),OR(tSeed_Custom3[[#This Row],[Seed Name]]>0,tSeed_Custom3[[#This Row],[Lbs/Acre]]>0)),\"Check Answers about Custom Seed Mixes at Top of Page\",IF(AND(COUNTA(tSeed_Custom3[[#This Row],[Seed Name]:[Legume?]])>0,COUNTA(tSeed_Custom3[[#This Row],[Seed Name]:[Legume?]])<3),\"Please enter information for all 3 columns!\",\"\"))","v":""},null,null,null,{"$f":"IFERROR(tSeed_Custom3[[#This Row],[Lbs/Acre]]/$D$94,0)","v":0}]
[null,{"$f":"IF(AND(OR($C$4<3,LEFT($C$3,1)<>\"Y\"),OR(tSeed_Custom3[[#This Row],[Seed Name]]>0,tSeed_Custom3[[#This Row],[Lbs/Acre]]>0)),\"Check Answers about Custom Seed Mixes at Top of Page\",IF(AND(COUNTA(tSeed_Custom3[[#This Row],[Seed Name]:[Legume?]])>0,COUNTA(tSeed_Custom3[[#This Row],[Seed Name]:[Legume?]])<3),\"Please enter information for all 3 columns!\",\"\"))","v":""},null,null,null,{"$f":"IFERROR(tSeed_Custom3[[#This Row],[Lbs/Acre]]/$D$94,0)","v":0}]
[null,{"$f":"IF(AND(OR($C$4<3,LEFT($C$3,1)<>\"Y\"),OR(tSeed_Custom3[[#This Row],[Seed Name]]>0,tSeed_Custom3[[#This Row],[Lbs/Acre]]>0)),\"Check Answers about Custom Seed Mixes at Top of Page\",IF(AND(COUNTA(tSeed_Custom3[[#This Row],[Seed Name]:[Legume?]])>0,COUNTA(tSeed_Custom3[[#This Row],[Seed Name]:[Legume?]])<3),\"Please enter information for all 3 columns!\",\"\"))","v":""},null,null,null,{"$f":"IFERROR(tSeed_Custom3[[#This Row],[Lbs/Acre]]/$D$94,0)","v":0}]
[null,{"$f":"IF(AND(OR($C$4<3,LEFT($C$3,1)<>\"Y\"),OR(tSeed_Custom3[[#This Row],[Seed Name]]>0,tSeed_Custom3[[#This Row],[Lbs/Acre]]>0)),\"Check Answers about Custom Seed Mixes at Top of Page\",IF(AND(COUNTA(tSeed_Custom3[[#This Row],[Seed Name]:[Legume?]])>0,COUNTA(tSeed_Custom3[[#This Row],[Seed Name]:[Legume?]])<3),\"Please enter information for all 3 columns!\",\"\"))","v":""},null,null,null,{"$f":"IFERROR(tSeed_Custom3[[#This Row],[Lbs/Acre]]/$D$94,0)","v":0}]

{"sheet":"Example Lab Report","index":17,"n_rows":0,"n_cols":0,"rows_kept":0,"cut":false,"hidden":true,"merged":[]}

{"sheet":"References","index":18,"n_rows":234,"n_cols":18,"rows_kept":234,"cut":false,"hidden":true,"merged":[[41,9,41,17],[129,2,129,6]]}
[]
[]
[]
["Soil Sample Frequency"]
["Routine Fertilization of Ex. Veg."]
["Linear; non-interstate","One soil test per 5-mile section"]
["Linear; Interstate","One soil test per 5-mile section OR one soil sample in each direction between exits, whichever distance is greater"]
["Non-linear (incl. Interchanges)","One soil test per 20 acres"]
["Repair or Establish Vegetation"]
["Linear","One soil test per linear mile"]
["Non-linear (incl. Interchanges)","One soil test per 20 acres"]
["Problem Sites (failing vegetation)"]
["Linear & Non-linear","New soil test & site assessment by a qualified professional"]
[]
["Laboratory Conversion Factors",null,null,null,null,null,null,null,null,"Lime Test Key"]
["Laboratory","P-type\n(DCR 7-13)","Lime Test Type","Notes","Pg. in VT powerpoint","Units","Reference No.",null,null,"Abreviation","Full Name"]
["Virginia Tech Soil Testing Lab","Mehlich I","1A",null,"62, 63, 69","lbs/ac (P)",1,null,null,"1A","Mehlich Single Buffer Method"]
["Waters Agricultural Lab., Inc (GA)*","Mehlich I","1C","Contact lab for Lime Recommendation spreadsheet","60, 83","lbs/ac (P)",2,null,null,"1C","Adams-Evans Single Buffer Method"]
["Waypoint Analytical","Mehlich III","1B","Formerly A&L Eastern Labs","77, 78","ppm (P)",3,null,null,"1B","Shoemaker-McLean-Pratt (SMP) Single Buffer Method"]
["Agri-Analysis Testing Laboratory","Mehlich III","1A",null,79,"lbs/ac (P2O5)",4]
["AgroLab, Inc","Mehlich III","1B",null,81,"ppm (P)",5,null,null,"Units"]
["Brookside Laboratories, Inc","Mehlich III","1B",null,76,"ppm (P)",6,null,null,"ppm (P)"]
["Logan Labs, LLC","Mehlich III","1B",null,80,"lbs/ac (P2O5)",7,null,null,"lbs/ac (P2O5)"]
["Midwest Laboratories, Inc*","Mehlich III","1B","Lab report shows Bray I test - Must request Mehlich III to use for plan writing.","N/A","???",8,null,null,"lbs/ac (P)"]
["Spectrum Analytic, Inc","Mehlich III","1B",null,"74, 75","ppm (P)",9]
["Waters Agricultural Lab., Inc (NC)*","Mehlich III","1C","Contact lab for Lime Recommendation spreadsheet","N/A","lbs/ac (P)",10]
["Not Applicable (n/a)","n/a","n/a",null,null,null,0]
["Source: VDOT Nutrient Management Plan, dated July 1, 2013; Updated March 2016 (Paper copy from M. Walton)"]
[]
["Soil Types",null,null,null,null,null,null,null,null,null,"Fertilizer Types"]
["VA Tech Fertility Rating","Lower P (ppm)","Upper P (ppm)","P Break (ppm)","Lower K (ppm)","Upper K (ppm)","K Break (ppm)","Numeric Value",null,"Fertility Rating","P – lbs/ac","P - PPM","P2O5 – lbs/ac*",null,"Fertility Rating","K – lbs/ac","K - PPM","K2O – lbs/ac*"]
["L-",0,2,0,0,8,0,1,null,"L-","0-3","0-2","0-7",null,"L-","0-15","0-8","0-18"]
["L",2,4,{"$f":"AVERAGE(C32,B33)","v":2},8,28,{"$f":"AVERAGE(F32,E33)","v":8},2,null,"L","4-8","2-4","9-18",null,"L","16-55","8-28","19-66"]
["L+",5,6,{"$f":"AVERAGE(C33,B34)","v":4.5},28,38,{"$f":"AVERAGE(F33,E34)","v":28},3,null,"L+","9-11","5-6","21-25",null,"L+","56-75","28-38","68-90"]
["M-",6,10,6,38,50,38,4,null,"M-","12-20","6-10","28-46",null,"M-","76-100","38-50","92-121"]
["M",11,15,10.5,51,75,50.5,5,null,"M","21-30","11-15","48-69",null,"M","101-150","51-75","122-181"]
["M+",16,18,15.5,76,88,75.5,6,null,"M+","31-35","16-18","71-80",null,"M+","151-175","76-88","182-211"]
["H-",18,28,18,88,105,88,7,null,"H-","36-55","18-28","82-126",null,"H-","176-210","88-105","212-253"]
["H",28,43,28,106,140,105.5,8,null,"H","56-85","28-43","128-195",null,"H","211-280","106-140","254-337"]
["H+",43,55,43,141,155,140.5,9,null,"H+","86-110","43-55","197-252",null,"H+","281-310","141-155","339-373"]
["VH",55,"n/a",55,155,null,155,10,null,"VH","110+","55+","252+",null,"VH","310+","155+","373+"]
["Source: Table at right (Table 2-1, DCR Laboratory List 7-13 (VDOT Expanded_R2) (2).docx)",null,null,null,null,null,null,null,null,"Source: Table 2-1, DCR Laboratory List 7-13 (VDOT Expanded_R2) (2).docx"]
[]
["Phosphorus Conversion Formulas","Mehlich III","Mehlich I"]
["Mehlich III ≤ 205 ppm → Mehlich I",138,{"$f":"ROUND(B45*0.458-3.26,1)","v":59.9},"[Mehlich III (205 ppm P or less) X 0.458] - 3.26 = Mehlich I ppm"]
["Mehlich III > 205 ppm → Mehlich I",253,{"$f":"ROUND((B46*0.945)-103.5,1)","v":135.6},"[Mehlich III (206 ppm P or greater) X 0.945] - 103.5 = Mehlich I P ppm"]
["Unit Conversion Formulas","Example",null,"Converted"]
["Mehlich III P2O5 lbs/ac. → ppm",1164,"lbs/ac (P2O5)",{"$f":"B48*0.22","v":256.08},"P2O5 #/ac. (Mehlich III) X 0.22 = P ppm (Mehlich III) "]
["Mehlich I or III P lbs/ac. → ppm",506,"lbs/ac (P)",{"$f":"B49*0.5","v":253},"P #/ac. (Mehlich III) X 0.5 = P ppm ( Mehlich III)"]
[]
["Table 3.G: Fertilizer Ratios Recommended for ROADSIDE MAINTENANCE"]
["Fertilizer Analysis","Application Rate","Soil Rating","N Rate","P2O5 Rate","K2O Rate"]
["Nominal Analysis (N-P2O5-K2O) (a.k.a. Grade)","Lbs/Ac\n(lbs/1000 SF)","VA Tech \"P\"","Lbs/Ac  N\n(lbs/1000 SF)","Lbs/Ac  P\n(lbs/1000 SF)","Lbs/Ac  K\n(lbs/1000 SF)"]
["10-20-20 and 0-46-0","300 (6.9) and 85 (2.0)","L- to L+","30 (0.7)","100 (2.3)","60 (1.4)"]
["10-20-20","300 (6.9)","M- to M+","30 (0.7)","60 (1.4)","60 (1.4)"]
["10-10-10","300 (6.9)","H- to H+","30 (0.7)","30 (0.7)","30 (0.7)","Default (No Soil Test)"]
["46-0-0","65 (1.5)","VH & Overseeding","30 (0.7)",0,0,"All Overseeding"]
["5-10-10","900 (20)","*","45 (1.0)","90 (2.0)","90 (2.0)"]
["18-46-0","240 (5.5)","*","45 (1.0)","110 (2.5)",0]
["0-46-0","98 (2)","*",0,"45 (1.0)",0]
["10-10-10","150 (3.4)","All","15 (0.3)","15 (0.3)","15 (0.3)","ALL TEMPORARY SEEDING"]
["* These ratios can be specified for Roadside maintenance only when the soil tests are review by a qualified professional"]
["Source: VDOT Nutrient Management Plan for Roadside Management, dated July 1, 2013; Updated July 2016 (Paper copy from M. Walton)"]
[null,null,null,null,null,null,null,null,"Conversion"]
["Table 3.G: Fertilizer Ratios Recommended for CONSTRUCTION PROJECTS",null,null,null,null,null,null,null,"Calculator:",null,null,"lbs/",null,null,"lbs/",null,"lbs/"]
["Fertilizer Analysis","Application Rate","Soil Rating","N Rate","P2O5 Rate","K2O Rate",null,null,null,"Fertilizer 1","Lbs/Ac","1000 SF","Fertilizer 2","Lbs/Ac","1000 SF","Lbs/Ac","1000 SF"]
["Nominal Analysis (N-P2O5-K2O) (a.k.a. Grade)","Lbs/Ac\n(lbs/1000 SF)","VA Tech \"P\"","Lbs/Ac  N\n(lbs/1000 SF)","Lbs/Ac  P\n(lbs/1000 SF)","Lbs/Ac  K\n(lbs/1000 SF)",null,null,"Application Rate",150,{"$f":"J67","v":150},{"$f":"K67/43560*1000","v":3.443526170798898},175,{"$f":"M67","v":175},{"$f":"N67/43560*1000","v":4.0174471992653817},{"$f":"K67+N67","v":325},7.4609733700642797]
["10-20-20 and 0-46-0","400 (9.2) and\n175 (4.0)","L- and L","40 (0.9)","160.5 (3.7)","80 (1.8)",null,null,"N Rate",10,{"$f":"$K$67*J68/100","v":15},{"$f":"K68/43560*1000","v":0.34435261707988984},0,{"$f":"$M$67*M68/100","v":0},{"$f":"N68/43560*1000","v":0},15,0.34435261707988984]
["10-20-20 and 0-46-0","400 (9.2) and\n100 (2.3)","L+ and M-","40 (0.9)","126 (2.9)","80 (1.8)",null,null,"P2O5 Rate",10,{"$f":"$K$67*J69/100","v":15},{"$f":"K69/43560*1000","v":0.34435261707988984},46,{"$f":"$M$67*M69/100","v":80.5},{"$f":"N69/43560*1000","v":1.8480257116620753},95.5,2.1923783287419649]
["15-30-15","250 (5.7)","M thru H-","37.5 (0.9)","75 (1.7)","37.5 (0.9)","Default (No Soil Test)",null,"K2O Rate",10,{"$f":"$K$67*J70/100","v":15},{"$f":"K70/43560*1000","v":0.34435261707988984},0,{"$f":"$M$67*M70/100","v":0},{"$f":"N70/43560*1000","v":0},15,0.34435261707988984]
["10-10-10","400 (9.2)","H and H+","40 (0.9)","40 (0.9)","40 (0.9)"]
["46-0-0","65 (1.5)","VH","29.9 (0.7)","0 (0.0)","0 (0.0)","All Overseeding",null,null,null,65,{"$f":"K72/43560*1000","v":1.4921946740128558}]
["15-30-15","125 (2.9)","All","18.75 (0.4)","37.5 (0.9)","18.75 (0.4)","ALL TEMPORARY SEEDING"]
["Source: VDOT Nutrient Management Plan for Turf Establishment, dated Jan. 1, 2014; Updated July 2016 (Construction Shortcut 2016 NMP_R2.doc)"]
["Previous Updates: July 2014 (Construction Shortcut 2014 NMP.doc)"]
[]
[null,null,"Roadside Maintenance",null,null,"Construction (Establishment)"]
["VA Tech Soil Fertility Rating","RM Fertilizer Grade","RM App. Rate (lbs/ac)","RM App. Rate (lbs/1000 SF)","CE Fertilizer Grade","CE App. Rate (lbs/ac)","CE App. Rate (lbs/1000 SF)","VA Tech Soil Rating"]
["L-","10-20-20 and 0-46-0","(300 & 85 lbs/ac)","(6.9 & 2.0\nlbs/1,000 SF)","10-20-20\n& 0-46-0","(400 & 175\nlbs/ac)","(9.2 & 4.0\nlbs/1,000 SF)",{"$f":"tFertilizers[[#This Row],[VA Tech Soil Fertility Rating]]","v":"L-"}]
["L","10-20-20 and 0-46-0","(300 & 85 lbs/ac)","(6.9 & 2.0\nlbs/1,000 SF)","10-20-20\n& 0-46-0","(400 & 175\nlbs/ac)","(9.2 & 4.0\nlbs/1,000 SF)",{"$f":"tFertilizers[[#This Row],[VA Tech Soil Fertility Rating]]","v":"L"}]
["L+","10-20-20 and 0-46-0","(300 & 85 lbs/ac)","(6.9 & 2.0\nlbs/1,000 SF)","10-20-20\n& 0-46-0","(400 & 100\nlbs/ac)","(9.2 & 2.3\nlbs/1,000 SF)",{"$f":"tFertilizers[[#This Row],[VA Tech Soil Fertility Rating]]","v":"L+"}]
["M-","10-20-20",300,6.9,"10-20-20\n& 0-46-0","(400 & 100\nlbs/ac)","(9.2 & 2.3\nlbs/1,000 SF)",{"$f":"tFertilizers[[#This Row],[VA Tech Soil Fertility Rating]]","v":"M-"}]
["M","10-20-20",300,6.9,"15-30-15",250,5.7,{"$f":"tFertilizers[[#This Row],[VA Tech Soil Fertility Rating]]","v":"M"}]
["M+","10-20-20",300,6.9,"15-30-15",250,5.7,{"$f":"tFertilizers[[#This Row],[VA Tech Soil Fertility Rating]]","v":"M+"}]
["H-","10-10-10",300,6.9,"15-30-15",250,5.7,{"$f":"tFertilizers[[#This Row],[VA Tech Soil Fertility Rating]]","v":"H-"}]
["H","10-10-10",300,6.9,"10-10-10",400,9.1999999999999993,{"$f":"tFertilizers[[#This Row],[VA Tech Soil Fertility Rating]]","v":"H"}]
["H+","10-10-10",300,6.9,"10-10-10",400,9.1999999999999993,{"$f":"tFertilizers[[#This Row],[VA Tech Soil Fertility Rating]]","v":"H+"}]
["VH","46-0-0",65,1.5,"46-0-0",65,1.5,{"$f":"tFertilizers[[#This Row],[VA Tech Soil Fertility Rating]]","v":"VH"}]
["Overseeding","46-0-0",65,1.5,"46-0-0",65,1.5,{"$f":"tFertilizers[[#This Row],[VA Tech Soil Fertility Rating]]","v":"Overseeding"}]
["Temporary Seeding","10-10-10",150,3.4,"15-30-15",125,2.9,{"$f":"tFertilizers[[#This Row],[VA Tech Soil Fertility Rating]]","v":"Temporary Seeding"}]
["Default Fertilizer","10-10-10",300,6.9,"15-30-15",250,5.7,{"$f":"tFertilizers[[#This Row],[VA Tech Soil Fertility Rating]]","v":"Default Fertilizer"}]
["Source: Compilation of Table 3.g from VDOT NMPs (above two tables)"]
["Fertilizer Grade: % (N-P2O5-K2O) in Nominal Analysis"]
[]
[null,null,"Roadside Maintenance lbs/ac",null,null,"Construction (Establishment) lbs/ac"]
["VA Tech Soil Fertility Rating","RM N","RM P","RM K","CE N","CE P","CE K","VA Tech Soil Rating"]
["L-",30,100,60,40,160,80,{"$f":"tFertRatio_ac[[#This Row],[VA Tech Soil Fertility Rating]]","v":"L-"}]
["L",30,100,60,40,160,80,{"$f":"tFertRatio_ac[[#This Row],[VA Tech Soil Fertility Rating]]","v":"L"}]
["L+",30,100,60,40,126,80,{"$f":"tFertRatio_ac[[#This Row],[VA Tech Soil Fertility Rating]]","v":"L+"}]
["M-",30,60,60,40,126,80,{"$f":"tFertRatio_ac[[#This Row],[VA Tech Soil Fertility Rating]]","v":"M-"}]
["M",30,60,60,37.5,75,37.5,{"$f":"tFertRatio_ac[[#This Row],[VA Tech Soil Fertility Rating]]","v":"M"}]
["M+",30,60,60,37.5,75,37.5,{"$f":"tFertRatio_ac[[#This Row],[VA Tech Soil Fertility Rating]]","v":"M+"}]
["H-",30,30,30,37.5,75,37.5,{"$f":"tFertRatio_ac[[#This Row],[VA Tech Soil Fertility Rating]]","v":"H-"}]
["H",30,30,30,40,40,40,{"$f":"tFertRatio_ac[[#This Row],[VA Tech Soil Fertility Rating]]","v":"H"}]
["H+",30,30,30,40,40,40,{"$f":"tFertRatio_ac[[#This Row],[VA Tech Soil Fertility Rating]]","v":"H+"}]
["VH",30,0,0,30,0,0,{"$f":"tFertRatio_ac[[#This Row],[VA Tech Soil Fertility Rating]]","v":"VH"}]
["OS",30,0,0,30,0,0,{"$f":"tFertRatio_ac[[#This Row],[VA Tech Soil Fertility Rating]]","v":"OS"}]
["TS",15,15,15,18.75,37.5,18.75,{"$f":"tFertRatio_ac[[#This Row],[VA Tech Soil Fertility Rating]]","v":"TS"}]
["Default",30,30,30,37.5,75,37.5,{"$f":"tFertRatio_ac[[#This Row],[VA Tech Soil Fertility Rating]]","v":"Default"}]
["Source: Compilation of Table 3.g from VDOT NMPs (above two tables)"]
[]
[null,null,"Roadside Maintenance lbs/1000 sf",null,null,"Construction (Establishment) lbs/1000 sf"]
["VA Tech Soil Fertility Rating","RM N","RM P","RM K","CE N","CE P","CE K","VA Tech Soil Rating"]
["L-",{"$f":"ROUND(B97*1000/43560,1)","v":0.7},{"$f":"ROUND(C97*1000/43560,1)","v":2.2999999999999998},{"$f":"ROUND(D97*1000/43560,1)","v":1.4},{"$f":"ROUND(E97/43560*1000,1)","v":0.9},3.7,1.8,{"$f":"tFertRatio_sf[[#This Row],[VA Tech Soil Fertility Rating]]","v":"L-"}]
["L",0.7,2.2999999999999998,1.4,0.9,3.7,1.8,{"$f":"tFertRatio_sf[[#This Row],[VA Tech Soil Fertility Rating]]","v":"L"}]
["L+",0.7,2.2999999999999998,1.4,0.9,2.9,1.8,{"$f":"tFertRatio_sf[[#This Row],[VA Tech Soil Fertility Rating]]","v":"L+"}]
["M-",0.7,1.4,1.4,0.9,2.9,1.8,{"$f":"tFertRatio_sf[[#This Row],[VA Tech Soil Fertility Rating]]","v":"M-"}]
["M",0.7,1.4,1.4,0.9,1.7,0.9,{"$f":"tFertRatio_sf[[#This Row],[VA Tech Soil Fertility Rating]]","v":"M"}]
["M+",0.7,1.4,1.4,0.9,1.7,0.9,{"$f":"tFertRatio_sf[[#This Row],[VA Tech Soil Fertility Rating]]","v":"M+"}]
["H-",0.7,0.7,0.7,0.9,1.7,0.9,{"$f":"tFertRatio_sf[[#This Row],[VA Tech Soil Fertility Rating]]","v":"H-"}]
["H",0.7,0.7,0.7,0.9,0.9,0.9,{"$f":"tFertRatio_sf[[#This Row],[VA Tech Soil Fertility Rating]]","v":"H"}]
["H+",0.7,0.7,0.7,0.9,0.9,0.9,{"$f":"tFertRatio_sf[[#This Row],[VA Tech Soil Fertility Rating]]","v":"H+"}]
["VH",0.7,0,0,0.7,0,0,{"$f":"tFertRatio_sf[[#This Row],[VA Tech Soil Fertility Rating]]","v":"VH"}]
["OS",0.7,0,0,{"$f":"ROUND(E107/43560*1000,1)","v":0.7},0,0,{"$f":"tFertRatio_sf[[#This Row],[VA Tech Soil Fertility Rating]]","v":"OS"}]
["TS",{"$f":"ROUND(B108*1000/43560,1)","v":0.3},{"$f":"ROUND(C108*1000/43560,1)","v":0.3},{"$f":"ROUND(D108*1000/43560,1)","v":0.3},0.4,0.9,0.4,{"$f":"tFertRatio_sf[[#This Row],[VA Tech Soil Fertility Rating]]","v":"TS"}]
["Default",0.7,0.7,0.7,{"$f":"ROUND(E109/43560*1000,1)","v":0.9},{"$f":"ROUND(F109/43560*1000,1)","v":1.7},{"$f":"ROUND(G109/43560*1000,1)","v":0.9},{"$f":"tFertRatio_sf[[#This Row],[VA Tech Soil Fertility Rating]]","v":"Default"}]
["Source: Compilation of Table 3.g from VDOT NMPs (above two tables); Green Highlighting = Default"]
[]
["Lime Conversion Factors"]
["Lime Types (Groups)","VA TECH","Target Soil pH",null,null,null,null,"Acidity"]
["A). Agricultural Lime","Buffer pH","5.2","5.8","6.2","6.5","6.8","meq/100"]
["B). Hydrated Lime",0.01,4.25,5,5.75,6.25,6.75,6.52]
["C). Industrial Co-Product (Substandard Liming Materials)",5.3,4.25,5,5.75,6.25,6.75,6.52]
[null,5.4,3.75,4.5,5.25,5.75,6.25,5.93]
[null,5.5,3.25,4,4.75,5.25,5.5,5.34]
[null,5.55,3,3.75,4.5,4.75,5.25,5.04]
[null,5.6,2.75,3.5,4.25,4.5,5,4.74]
[null,5.65,2.5,3.25,4,4.25,4.75,4.45]
[null,5.7,2.25,3,3.75,4,4.5,4.1500000000000004]
[null,5.75,2,2.75,3.5,3.75,4.25,3.85]
[null,5.8,1.75,2.5,3.25,3.5,3.75,3.56]
[null,5.85,1.5,2.25,2.75,3.25,3.5,3.26]
[null,5.9,1.25,2,2.5,3,3.25,2.96]
[null,5.95,1,1.75,2.25,2.5,3,2.67]
[null,6,1,1.5,2,2.25,2.75,2.37]
[null,6.02,0.75,1.5,2,2.25,2.5,2.25]
[null,6.04,0.75,1.25,2,2,2.5,2.13]
[null,6.06,0.5,1.25,1.75,2,2.25,2.02]
[null,6.08,0.5,1.25,1.75,2,2.25,1.9]
[null,6.1,0.5,1,1.5,1.75,2.25,1.78]
[null,6.12,0.25,1,1.5,1.75,2,1.66]
[null,6.14,0.25,0.75,1.5,1.5,2,1.54]
[null,6.16,0,0.75,1.25,1.5,1.75,1.42]
[null,6.18,0,0.75,1.25,1.25,1.75,1.3]
[null,6.2,0,0.5,1,1.25,1.5,1.19]
[null,6.22,0,0.5,1,1,1.5,1.07]
[null,6.24,0,0.25,0.75,1,1.25,0.95]
[null,6.26,0,0.25,0.75,1,1.25,0.83]
[null,6.28,0,0.25,0.75,0.75,1,0.71]
[null,6.3,0,0,0.5,0.75,1,0.59]
[null,6.32,0,0,0.5,0.5,0.75,0.48]
[null,6.34,0,0,0.25,0.5,0.75,0.36]
[null,6.36,0,0,0.25,0.25,0.75,0.24]
[null,6.38,0,0,0.25,0.25,0.5,0.12]
[null,6.4,0,0,0,0,0.5,0.06]
[null,6.5,0,0,0,0,0,0.03]
[null,6.6,0,0,0,0,0,0]
[null,"Source: VA Nutr. Mgt. Std.'s & Criteria, Rev. Oct. 2005, Table 3-1"]
[]
[]
[null,"Soil-Buffer",null,null,"Target Soil pH"]
[null,"pH","5.2","5.8","6.2","6.5","6.8"]
[null,0.01,3.25,3.5,4,4.5,5]
[null,6.3,3.25,3.5,4,4.5,5]
[null,6.4,2.75,3,3.25,3.75,4]
[null,6.5,2,2.25,2.5,3,3.25]
[null,6.6,1.5,1.75,2,2.25,2.5]
[null,6.7,1,1.5,1.5,1.75,2]
[null,6.8,0.5,0.75,1,1,1.25]
[null,6.9,0,0.25,0.5,0.5,0.75]
[null,"Source: VA Nutr. Mgt. Std.'s & Criteria, Rev. Oct. 2005, Table 3-2"]
[]
[null,null,null,null,null,null,null,"% CCE of Your Liming Material",null,null,null,null,null,null,"%CCE"]
[null,"T/ac*","50","60","70","80","90","100","110","120","130","140","150",null,50]
[null,0,0,0,0,0,0,{"$f":"tPercentCCE[[#This Row],[T/ac*]]","v":0},0,0,0,0,0,null,60]
[null,0.25,0.5,0.5,0.25,0.25,0.25,{"$f":"tPercentCCE[[#This Row],[T/ac*]]","v":0.25},0.25,0.25,0.25,0.25,0.25,null,70]
[null,0.5,1,0.75,0.75,0.75,0.5,{"$f":"tPercentCCE[[#This Row],[T/ac*]]","v":0.5},0.5,0.5,0.5,0.25,0.25,null,80]
[null,0.75,1.5,1.25,1,1,0.75,{"$f":"tPercentCCE[[#This Row],[T/ac*]]","v":0.75},0.75,0.75,0.5,0.5,0.5,null,90]
[null,1,2,1.75,1.5,1.25,1,{"$f":"tPercentCCE[[#This Row],[T/ac*]]","v":1},1,0.75,0.75,0.75,0.75,null,100]
[null,1.25,2.5,2,1.75,1.5,1.5,{"$f":"tPercentCCE[[#This Row],[T/ac*]]","v":1.25},1.25,1,1,1,0.75,null,110]
[null,1.5,3,2.5,2.25,2,1.75,{"$f":"tPercentCCE[[#This Row],[T/ac*]]","v":1.5},1.25,1.25,1.25,1,1,null,120]
[null,1.75,3.5,3,2.5,2.25,2,{"$f":"tPercentCCE[[#This Row],[T/ac*]]","v":1.75},1.5,1.5,1.25,1.25,1.25,null,130]
[null,2,4,3.25,2.75,2.5,2.25,{"$f":"tPercentCCE[[#This Row],[T/ac*]]","v":2},1.75,1.75,1.5,1.5,1.25,null,140]
[null,2.25,4.5,3.75,3.25,2.75,2.5,{"$f":"tPercentCCE[[#This Row],[T/ac*]]","v":2.25},2,2,1.75,1.5,1.5,null,150]
[null,2.5,5,4.25,3.5,3.25,2.75,{"$f":"tPercentCCE[[#This Row],[T/ac*]]","v":2.5},2.25,2,2,1.75,1.75]
[null,2.75,5.5,4.5,4,3.5,3,{"$f":"tPercentCCE[[#This Row],[T/ac*]]","v":2.75},2.5,2.25,2,2,1.75]
[null,3,6,5,4.25,3.75,3.25,{"$f":"tPercentCCE[[#This Row],[T/ac*]]","v":3},2.75,2.5,2.25,2.25,2]
[null,3.25,6.5,5.5,4.75,4,3.5,{"$f":"tPercentCCE[[#This Row],[T/ac*]]","v":3.25},3,2.75,2.5,2.25,2.25]
[null,3.5,7,5.75,5,4.5,4,{"$f":"tPercentCCE[[#This Row],[T/ac*]]","v":3.5},3.25,3,2.75,2.5,2.25]
[null,3.75,7.5,6.25,5.25,4.75,4.25,{"$f":"tPercentCCE[[#This Row],[T/ac*]]","v":3.75},3.5,3.25,3,2.75,2.5]
[null,4,8,6.75,5.75,5,4.5,{"$f":"tPercentCCE[[#This Row],[T/ac*]]","v":4},3.75,3.25,3,2.75,2.75]
[null,4.25,8.5,7,6,5.25,4.75,{"$f":"tPercentCCE[[#This Row],[T/ac*]]","v":4.25},3.75,3.5,3.25,3,2.75]
[null,4.5,9,7.5,6.5,5.75,5,{"$f":"tPercentCCE[[#This Row],[T/ac*]]","v":4.5},4,3.75,3.5,3.25,3]
[null,4.75,9.5,8,6.75,6,5.25,{"$f":"tPercentCCE[[#This Row],[T/ac*]]","v":4.75},4.25,4,3.75,3.5,3.25]
[null,5,10,8.25,7.25,6.25,5.5,{"$f":"tPercentCCE[[#This Row],[T/ac*]]","v":5},4.5,4.25,3.75,3.5,3.25]
[null,5.25,10.5,8.75,7.5,6.5,5.75,{"$f":"tPercentCCE[[#This Row],[T/ac*]]","v":5.25},4.75,4.5,4,3.75,3.5]
[null,5.5,11,9.25,7.75,7,6,{"$f":"tPercentCCE[[#This Row],[T/ac*]]","v":5.5},5,4.5,4.25,4,3.75]
[null,5.75,11.5,9.5,8.25,7.25,6.5,{"$f":"tPercentCCE[[#This Row],[T/ac*]]","v":5.75},5.25,4.75,4.5,4,3.75]
[null,6,12,10,8.5,7.5,6.75,{"$f":"tPercentCCE[[#This Row],[T/ac*]]","v":6},5.5,5,4.5,4.25,4]
[null,"* Lime recommendation to adjust pH as determined from soil test analysis."]
[null,"Source: VA Nutr. Mgt. Std.'s & Criteria, Rev. Oct. 2005, Table 3-3; modified to include 0.25 T/ac increments & rates > 4 tons/ac, bold indicates value that is not avg. btwn. ex. increments"]
[]
[null,"CALCULATIONS: Test formula vs. table to calculate amt of lime necessary where DCR Table did not include increment"]
[null,"T/ac*","% CCE","Actual T/ac","Table 3-3","Act. Lime/ac","Table 3-3 Lime/ac","Rnd Down","error down","Rnd Up","error up","Rounded Value"]
[null,{"$f":"6","v":6},50,{"$f":"tLime_Formula_Test[[#This Row],[T/ac*]]/(tLime_Formula_Test[[#This Row],[% CCE]]/100)","v":12},{"$f":"VLOOKUP(tLime_Formula_Test[[#This Row],[T/ac*]],tPercentCCE[],MATCH(tLime_Formula_Test[[#This Row],[% CCE]],rCCE_RowNum))","v":12},{"$f":"tLime_Formula_Test[[#This Row],[% CCE]]/100*tLime_Formula_Test[[#This Row],[Actual T/ac]]","v":6},{"$f":"tLime_Formula_Test[[#This Row],[% CCE]]/100*tLime_Formula_Test[[#This Row],[Table 3-3]]","v":6},{"$f":"_xlfn.FLOOR.PRECISE(tLime_Formula_Test[[#This Row],[Actual T/ac]],0.25)","v":12},{"$f":"tLime_Formula_Test[[#This Row],[Actual T/ac]]-tLime_Formula_Test[[#This Row],[Rnd Down]]","v":0},{"$f":"_xlfn.CEILING.PRECISE(tLime_Formula_Test[[#This Row],[Actual T/ac]],0.25)","v":12},{"$f":"-tLime_Formula_Test[[#This Row],[Actual T/ac]]+tLime_Formula_Test[[#This Row],[Rnd Up]]","v":0},{"$f":"IF(tLime_Formula_Test[[#This Row],[error down]]<tLime_Formula_Test[[#This Row],[error up]],tLime_Formula_Test[[#This Row],[Rnd Down]],tLime_Formula_Test[[#This Row],[Rnd Up]])","v":12}]
[null,{"$f":"6","v":6},60,{"$f":"tLime_Formula_Test[[#This Row],[T/ac*]]/(tLime_Formula_Test[[#This Row],[% CCE]]/100)","v":10},{"$f":"VLOOKUP(tLime_Formula_Test[[#This Row],[T/ac*]],tPercentCCE[],MATCH(tLime_Formula_Test[[#This Row],[% CCE]],rCCE_RowNum))","v":10},{"$f":"tLime_Formula_Test[[#This Row],[% CCE]]/100*tLime_Formula_Test[[#This Row],[Actual T/ac]]","v":6},{"$f":"tLime_Formula_Test[[#This Row],[% CCE]]/100*tLime_Formula_Test[[#This Row],[Table 3-3]]","v":6},{"$f":"_xlfn.FLOOR.PRECISE(tLime_Formula_Test[[#This Row],[Actual T/ac]],0.25)","v":10},{"$f":"tLime_Formula_Test[[#This Row],[Actual T/ac]]-tLime_Formula_Test[[#This Row],[Rnd Down]]","v":0},{"$f":"_xlfn.CEILING.PRECISE(tLime_Formula_Test[[#This Row],[Actual T/ac]],0.25)","v":10},{"$f":"-tLime_Formula_Test[[#This Row],[Actual T/ac]]+tLime_Formula_Test[[#This Row],[Rnd Up]]","v":0},{"$f":"IF(tLime_Formula_Test[[#This Row],[error down]]<tLime_Formula_Test[[#This Row],[error up]],tLime_Formula_Test[[#This Row],[Rnd Down]],tLime_Formula_Test[[#This Row],[Rnd Up]])","v":10}]
[null,{"$f":"6","v":6},70,{"$f":"tLime_Formula_Test[[#This Row],[T/ac*]]/(tLime_Formula_Test[[#This Row],[% CCE]]/100)","v":8.5714285714285712},{"$f":"VLOOKUP(tLime_Formula_Test[[#This Row],[T/ac*]],tPercentCCE[],MATCH(tLime_Formula_Test[[#This Row],[% CCE]],rCCE_RowNum))","v":8.5},{"$f":"tLime_Formula_Test[[#This Row],[% CCE]]/100*tLime_Formula_Test[[#This Row],[Actual T/ac]]","v":5.9999999999999991},{"$f":"tLime_Formula_Test[[#This Row],[% CCE]]/100*tLime_Formula_Test[[#This Row],[Table 3-3]]","v":5.9499999999999993},{"$f":"_xlfn.FLOOR.PRECISE(tLime_Formula_Test[[#This Row],[Actual T/ac]],0.25)","v":8.5},{"$f":"tLime_Formula_Test[[#This Row],[Actual T/ac]]-tLime_Formula_Test[[#This Row],[Rnd Down]]","v":7.1428571428571175E-2},{"$f":"_xlfn.CEILING.PRECISE(tLime_Formula_Test[[#This Row],[Actual T/ac]],0.25)","v":8.75},{"$f":"-tLime_Formula_Test[[#This Row],[Actual T/ac]]+tLime_Formula_Test[[#This Row],[Rnd Up]]","v":0.17857142857142883},{"$f":"IF(tLime_Formula_Test[[#This Row],[error down]]<tLime_Formula_Test[[#This Row],[error up]],tLime_Formula_Test[[#This Row],[Rnd Down]],tLime_Formula_Test[[#This Row],[Rnd Up]])","v":8.5}]
[null,{"$f":"6","v":6},80,{"$f":"tLime_Formula_Test[[#This Row],[T/ac*]]/(tLime_Formula_Test[[#This Row],[% CCE]]/100)","v":7.5},{"$f":"VLOOKUP(tLime_Formula_Test[[#This Row],[T/ac*]],tPercentCCE[],MATCH(tLime_Formula_Test[[#This Row],[% CCE]],rCCE_RowNum))","v":7.5},{"$f":"tLime_Formula_Test[[#This Row],[% CCE]]/100*tLime_Formula_Test[[#This Row],[Actual T/ac]]","v":6},{"$f":"tLime_Formula_Test[[#This Row],[% CCE]]/100*tLime_Formula_Test[[#This Row],[Table 3-3]]","v":6},{"$f":"_xlfn.FLOOR.PRECISE(tLime_Formula_Test[[#This Row],[Actual T/ac]],0.25)","v":7.5},{"$f":"tLime_Formula_Test[[#This Row],[Actual T/ac]]-tLime_Formula_Test[[#This Row],[Rnd Down]]","v":0},{"$f":"_xlfn.CEILING.PRECISE(tLime_Formula_Test[[#This Row],[Actual T/ac]],0.25)","v":7.5},{"$f":"-tLime_Formula_Test[[#This Row],[Actual T/ac]]+tLime_Formula_Test[[#This Row],[Rnd Up]]","v":0},{"$f":"IF(tLime_Formula_Test[[#This Row],[error down]]<tLime_Formula_Test[[#This Row],[error up]],tLime_Formula_Test[[#This Row],[Rnd Down]],tLime_Formula_Test[[#This Row],[Rnd Up]])","v":7.5}]
[null,{"$f":"6","v":6},90,{"$f":"tLime_Formula_Test[[#This Row],[T/ac*]]/(tLime_Formula_Test[[#This Row],[% CCE]]/100)","v":6.6666666666666661},{"$f":"VLOOKUP(tLime_Formula_Test[[#This Row],[T/ac*]],tPercentCCE[],MATCH(tLime_Formula_Test[[#This Row],[% CCE]],rCCE_RowNum))","v":6.75},{"$f":"tLime_Formula_Test[[#This Row],[% CCE]]/100*tLime_Formula_Test[[#This Row],[Actual T/ac]]","v":6},{"$f":"tLime_Formula_Test[[#This Row],[% CCE]]/100*tLime_Formula_Test[[#This Row],[Table 3-3]]","v":6.0750000000000002},{"$f":"_xlfn.FLOOR.PRECISE(tLime_Formula_Test[[#This Row],[Actual T/ac]],0.25)","v":6.5},{"$f":"tLime_Formula_Test[[#This Row],[Actual T/ac]]-tLime_Formula_Test[[#This Row],[Rnd Down]]","v":0.16666666666666607},{"$f":"_xlfn.CEILING.PRECISE(tLime_Formula_Test[[#This Row],[Actual T/ac]],0.25)","v":6.75},{"$f":"-tLime_Formula_Test[[#This Row],[Actual T/ac]]+tLime_Formula_Test[[#This Row],[Rnd Up]]","v":8.3333333333333925E-2},{"$f":"IF(tLime_Formula_Test[[#This Row],[error down]]<tLime_Formula_Test[[#This Row],[error up]],tLime_Formula_Test[[#This Row],[Rnd Down]],tLime_Formula_Test[[#This Row],[Rnd Up]])","v":6.75}]
[null,{"$f":"6","v":6},100,{"$f":"tLime_Formula_Test[[#This Row],[T/ac*]]/(tLime_Formula_Test[[#This Row],[% CCE]]/100)","v":6},{"$f":"VLOOKUP(tLime_Formula_Test[[#This Row],[T/ac*]],tPercentCCE[],MATCH(tLime_Formula_Test[[#This Row],[% CCE]],rCCE_RowNum))","v":6},{"$f":"tLime_Formula_Test[[#This Row],[% CCE]]/100*tLime_Formula_Test[[#This Row],[Actual T/ac]]","v":6},{"$f":"tLime_Formula_Test[[#This Row],[% CCE]]/100*tLime_Formula_Test[[#This Row],[Table 3-3]]","v":6},{"$f":"_xlfn.FLOOR.PRECISE(tLime_Formula_Test[[#This Row],[Actual T/ac]],0.25)","v":6},{"$f":"tLime_Formula_Test[[#This Row],[Actual T/ac]]-tLime_Formula_Test[[#This Row],[Rnd Down]]","v":0},{"$f":"_xlfn.CEILING.PRECISE(tLime_Formula_Test[[#This Row],[Actual T/ac]],0.25)","v":6},{"$f":"-tLime_Formula_Test[[#This Row],[Actual T/ac]]+tLime_Formula_Test[[#This Row],[Rnd Up]]","v":0},{"$f":"IF(tLime_Formula_Test[[#This Row],[error down]]<tLime_Formula_Test[[#This Row],[error up]],tLime_Formula_Test[[#This Row],[Rnd Down]],tLime_Formula_Test[[#This Row],[Rnd Up]])","v":6}]
[null,{"$f":"6","v":6},110,{"$f":"tLime_Formula_Test[[#This Row],[T/ac*]]/(tLime_Formula_Test[[#This Row],[% CCE]]/100)","v":5.4545454545454541},{"$f":"VLOOKUP(tLime_Formula_Test[[#This Row],[T/ac*]],tPercentCCE[],MATCH(tLime_Formula_Test[[#This Row],[% CCE]],rCCE_RowNum))","v":5.5},{"$f":"tLime_Formula_Test[[#This Row],[% CCE]]/100*tLime_Formula_Test[[#This Row],[Actual T/ac]]","v":6},{"$f":"tLime_Formula_Test[[#This Row],[% CCE]]/100*tLime_Formula_Test[[#This Row],[Table 3-3]]","v":6.0500000000000007},{"$f":"_xlfn.FLOOR.PRECISE(tLime_Formula_Test[[#This Row],[Actual T/ac]],0.25)","v":5.25},{"$f":"tLime_Formula_Test[[#This Row],[Actual T/ac]]-tLime_Formula_Test[[#This Row],[Rnd Down]]","v":0.20454545454545414},{"$f":"_xlfn.CEILING.PRECISE(tLime_Formula_Test[[#This Row],[Actual T/ac]],0.25)","v":5.5},{"$f":"-tLime_Formula_Test[[#This Row],[Actual T/ac]]+tLime_Formula_Test[[#This Row],[Rnd Up]]","v":4.5454545454545858E-2},{"$f":"IF(tLime_Formula_Test[[#This Row],[error down]]<tLime_Formula_Test[[#This Row],[error up]],tLime_Formula_Test[[#This Row],[Rnd Down]],tLime_Formula_Test[[#This Row],[Rnd Up]])","v":5.5}]
[null,{"$f":"6","v":6},120,{"$f":"tLime_Formula_Test[[#This Row],[T/ac*]]/(tLime_Formula_Test[[#This Row],[% CCE]]/100)","v":5},{"$f":"VLOOKUP(tLime_Formula_Test[[#This Row],[T/ac*]],tPercentCCE[],MATCH(tLime_Formula_Test[[#This Row],[% CCE]],rCCE_RowNum))","v":5},{"$f":"tLime_Formula_Test[[#This Row],[% CCE]]/100*tLime_Formula_Test[[#This Row],[Actual T/ac]]","v":6},{"$f":"tLime_Formula_Test[[#This Row],[% CCE]]/100*tLime_Formula_Test[[#This Row],[Table 3-3]]","v":6},{"$f":"_xlfn.FLOOR.PRECISE(tLime_Formula_Test[[#This Row],[Actual T/ac]],0.25)","v":5},{"$f":"tLime_Formula_Test[[#This Row],[Actual T/ac]]-tLime_Formula_Test[[#This Row],[Rnd Down]]","v":0},{"$f":"_xlfn.CEILING.PRECISE(tLime_Formula_Test[[#This Row],[Actual T/ac]],0.25)","v":5},{"$f":"-tLime_Formula_Test[[#This Row],[Actual T/ac]]+tLime_Formula_Test[[#This Row],[Rnd Up]]","v":0},{"$f":"IF(tLime_Formula_Test[[#This Row],[error down]]<tLime_Formula_Test[[#This Row],[error up]],tLime_Formula_Test[[#This Row],[Rnd Down]],tLime_Formula_Test[[#This Row],[Rnd Up]])","v":5}]
[null,{"$f":"6","v":6},130,{"$f":"tLime_Formula_Test[[#This Row],[T/ac*]]/(tLime_Formula_Test[[#This Row],[% CCE]]/100)","v":4.615384615384615},{"$f":"VLOOKUP(tLime_Formula_Test[[#This Row],[T/ac*]],tPercentCCE[],MATCH(tLime_Formula_Test[[#This Row],[% CCE]],rCCE_RowNum))","v":4.5},{"$f":"tLime_Formula_Test[[#This Row],[% CCE]]/100*tLime_Formula_Test[[#This Row],[Actual T/ac]]","v":6},{"$f":"tLime_Formula_Test[[#This Row],[% CCE]]/100*tLime_Formula_Test[[#This Row],[Table 3-3]]","v":5.8500000000000005},{"$f":"_xlfn.FLOOR.PRECISE(tLime_Formula_Test[[#This Row],[Actual T/ac]],0.25)","v":4.5},{"$f":"tLime_Formula_Test[[#This Row],[Actual T/ac]]-tLime_Formula_Test[[#This Row],[Rnd Down]]","v":0.11538461538461497},{"$f":"_xlfn.CEILING.PRECISE(tLime_Formula_Test[[#This Row],[Actual T/ac]],0.25)","v":4.75},{"$f":"-tLime_Formula_Test[[#This Row],[Actual T/ac]]+tLime_Formula_Test[[#This Row],[Rnd Up]]","v":0.13461538461538503},{"$f":"IF(tLime_Formula_Test[[#This Row],[error down]]<tLime_Formula_Test[[#This Row],[error up]],tLime_Formula_Test[[#This Row],[Rnd Down]],tLime_Formula_Test[[#This Row],[Rnd Up]])","v":4.5}]
[null,{"$f":"6","v":6},140,{"$f":"tLime_Formula_Test[[#This Row],[T/ac*]]/(tLime_Formula_Test[[#This Row],[% CCE]]/100)","v":4.2857142857142856},{"$f":"VLOOKUP(tLime_Formula_Test[[#This Row],[T/ac*]],tPercentCCE[],MATCH(tLime_Formula_Test[[#This Row],[% CCE]],rCCE_RowNum))","v":4.25},{"$f":"tLime_Formula_Test[[#This Row],[% CCE]]/100*tLime_Formula_Test[[#This Row],[Actual T/ac]]","v":5.9999999999999991},{"$f":"tLime_Formula_Test[[#This Row],[% CCE]]/100*tLime_Formula_Test[[#This Row],[Table 3-3]]","v":5.9499999999999993},{"$f":"_xlfn.FLOOR.PRECISE(tLime_Formula_Test[[#This Row],[Actual T/ac]],0.25)","v":4.25},{"$f":"tLime_Formula_Test[[#This Row],[Actual T/ac]]-tLime_Formula_Test[[#This Row],[Rnd Down]]","v":3.5714285714285587E-2},{"$f":"_xlfn.CEILING.PRECISE(tLime_Formula_Test[[#This Row],[Actual T/ac]],0.25)","v":4.5},{"$f":"-tLime_Formula_Test[[#This Row],[Actual T/ac]]+tLime_Formula_Test[[#This Row],[Rnd Up]]","v":0.21428571428571441},{"$f":"IF(tLime_Formula_Test[[#This Row],[error down]]<tLime_Formula_Test[[#This Row],[error up]],tLime_Formula_Test[[#This Row],[Rnd Down]],tLime_Formula_Test[[#This Row],[Rnd Up]])","v":4.25}]
[null,{"$f":"6","v":6},150,{"$f":"tLime_Formula_Test[[#This Row],[T/ac*]]/(tLime_Formula_Test[[#This Row],[% CCE]]/100)","v":4},{"$f":"VLOOKUP(tLime_Formula_Test[[#This Row],[T/ac*]],tPercentCCE[],MATCH(tLime_Formula_Test[[#This Row],[% CCE]],rCCE_RowNum))","v":4},{"$f":"tLime_Formula_Test[[#This Row],[% CCE]]/100*tLime_Formula_Test[[#This Row],[Actual T/ac]]","v":6},{"$f":"tLime_Formula_Test[[#This Row],[% CCE]]/100*tLime_Formula_Test[[#This Row],[Table 3-3]]","v":6},{"$f":"_xlfn.FLOOR.PRECISE(tLime_Formula_Test[[#This Row],[Actual T/ac]],0.25)","v":4},{"$f":"tLime_Formula_Test[[#This Row],[Actual T/ac]]-tLime_Formula_Test[[#This Row],[Rnd Down]]","v":0},{"$f":"_xlfn.CEILING.PRECISE(tLime_Formula_Test[[#This Row],[Actual T/ac]],0.25)","v":4},{"$f":"-tLime_Formula_Test[[#This Row],[Actual T/ac]]+tLime_Formula_Test[[#This Row],[Rnd Up]]","v":0},{"$f":"IF(tLime_Formula_Test[[#This Row],[error down]]<tLime_Formula_Test[[#This Row],[error up]],tLime_Formula_Test[[#This Row],[Rnd Down]],tLime_Formula_Test[[#This Row],[Rnd Up]])","v":4}]
[null,"* Lime recommendation to adjust pH as determined from soil test analysis."]
[]
[]
[null,"Slope (max.)","Slope (min.)","Mulch"]
[null,0,1,"n/a"]
[null,1,2,"HECP Type 4"]
[null,2,3,"HECP Type 3"]
[null,3,4,"HECP Type 2"]
[null,4,"or Flatter","HECP Type 1"]

{"sheet":"00_Blank","index":19,"n_rows":0,"n_cols":0,"rows_kept":0,"cut":false,"hidden":true,"merged":[]}

{"sheet":"01_VA Tech","index":20,"n_rows":13,"n_cols":29,"rows_kept":13,"cut":false,"hidden":true,"merged":[[1,1,1,10],[0,1,0,10]]}
[null,{"$f":"IF(nLabUsed<>B2,\"Please delete this tab and refer to the Example Lab Report from:\"&CHAR(10)&nLabUsed,\"\")","v":"Please delete this tab and refer to the Example Lab Report from:\n"},null,null,null,null,null,null,null,null,null,null,null,null,null,null,null,null,null,null,null,null,null,null,null,null,null,null,{"$f":"B1","v":"Please delete this tab and refer to the Example Lab Report from:\n"}]
[null,"Virginia Tech Soil Testing Lab",null,null,null,null,null,null,null,null,null,null,null,null,null,null,null,null,null,null,null,null,null,null,null,null,"A",null,{"$f":"SUM(AB3:AB12)","v":82.429999999999993}]
[null,null,"Phosphorus Test:","Mehlich I",null,null,null,null,null,null,null,null,null,null,null,null,null,null,null,null,null,null,null,null,null,null,"B",9.44]
[null,null,"Lime Test:","Mehlich Single Buffer Method",null,null,null,null,null,null,null,null,null,null,null,null,null,null,null,null,null,null,null,null,null,null,"C",8.11]
[null,null,null,null,null,null,null,null,null,null,null,null,null,null,null,null,null,null,null,null,null,null,null,null,null,null,"D",8.11]
[null,null,null,null,null,null,null,null,null,null,null,null,null,null,null,null,null,null,null,null,null,null,null,null,null,null,"E",8.11]
[null,null,null,null,null,null,null,null,null,null,null,null,null,null,null,null,null,null,null,null,null,null,null,null,null,null,"F",8.11]
[null,null,null,null,null,null,null,null,null,null,null,null,null,null,null,null,null,null,null,null,null,null,null,null,null,null,"G",8.11]
[null,null,null,null,null,null,null,null,null,null,null,null,null,null,null,null,null,null,null,null,null,null,null,null,null,null,"H",8.11]
[null,null,null,null,null,null,null,null,null,null,null,null,null,null,null,null,null,null,null,null,null,null,null,null,null,null,"I",8.11]
[null,null,null,null,null,null,null,null,null,null,null,null,null,null,null,null,null,null,null,null,null,null,null,null,null,null,"J",8.11]
[null,null,null,null,null,null,null,null,null,null,null,null,null,null,null,null,null,null,null,null,null,null,null,null,null,null,"K",8.11]
[null,null,null,null,null,null,null,null,null,null,null,null,null,null,null,null,null,null,null,null,null,null,null,null,null,null,"L"]

{"sheet":"02_Waters(GA)","index":21,"n_rows":47,"n_cols":29,"rows_kept":47,"cut":false,"hidden":true,"merged":[[1,1,1,10],[0,1,0,10]]}
[null,{"$f":"IF(nLabUsed<>B2,\"Please delete this tab and refer to the Example Lab Report from:\"&CHAR(10)&nLabUsed,\"\")","v":"Please delete this tab and refer to the Example Lab Report from:\n"},null,null,null,null,null,null,null,null,null,null,null,null,null,null,null,null,null,null,null,null,null,null,null,null,null,null,{"$f":"B1","v":"Please delete this tab and refer to the Example Lab Report from:\n"}]
[null,"Waters Agricultural Lab., Inc (GA)*"]
[null,null,"P-type:","Mehlich I"]
[null,null,"Lime Test:","Adams-Evans Single Buffer Method"]
[null,null,"Notes:","Contact lab for Lime Recommendation spreadsheet"]
[]
[]
[]
[]
[]
[]
[]
[]
[]
[]
[]
[]
[]
[]
[]
[]
[]
[]
[]
[]
[]
[]
[]
[]
[]
[]
[]
[]
[]
[]
[]
[]
[]
[]
[]
[]
[]
[]
[]
[]
[]
[null,"Older Example Report with Multiple Samples shown on one page:"]

{"sheet":"03_Waypoint","index":22,"n_rows":4,"n_cols":29,"rows_kept":4,"cut":false,"hidden":true,"merged":[[0,1,0,12],[1,1,1,12]]}
[null,{"$f":"IF(nLabUsed<>B2,\"Please delete this tab and refer to the Example Lab Report from:\"&CHAR(10)&nLabUsed,\"\")","v":"Please delete this tab and refer to the Example Lab Report from:\n"},null,null,null,null,null,null,null,null,null,null,null,null,null,null,null,null,null,null,null,null,null,null,null,null,null,null,{"$f":"B1","v":"Please delete this tab and refer to the Example Lab Report from:\n"}]
[null,"Waypoint Analytical"]
[null,null,"Phosphorus Test:","Mehlich III"]
[null,null,"Lime Test:","Adams-Evans Single Buffer Method"]

{"sheet":"04_Agri-Analysis","index":23,"n_rows":4,"n_cols":29,"rows_kept":4,"cut":false,"hidden":true,"merged":[[0,1,0,15],[1,1,1,15]]}
[null,{"$f":"IF(nLabUsed<>B2,\"Please delete this tab and refer to the Example Lab Report from:\"&CHAR(10)&nLabUsed,\"\")","v":"Please delete this tab and refer to the Example Lab Report from:\n"},null,null,null,null,null,null,null,null,null,null,null,null,null,null,null,null,null,null,null,null,null,null,null,null,null,null,{"$f":"B1","v":"Please delete this tab and refer to the Example Lab Report from:\n"}]
[null,"Agri-Analysis Testing Laboratory"]
[null,null,"Phosphorus Test:","Mehlich III"]
[null,null,"Lime Test:","Mehlich Single Buffer Method"]

{"sheet":"05_AgroLab","index":24,"n_rows":4,"n_cols":27,"rows_kept":4,"cut":false,"hidden":true,"merged":[[0,1,0,14],[1,1,1,14]]}
[null,{"$f":"IF(nLabUsed<>B2,\"Please delete this tab and refer to the Example Lab Report from:\"&CHAR(10)&nLabUsed,\"\")","v":"Please delete this tab and refer to the Example Lab Report from:\n"},null,null,null,null,null,null,null,null,null,null,null,null,null,null,null,null,null,null,null,null,null,null,null,null,{"$f":"B1","v":"Please delete this tab and refer to the Example Lab Report from:\n"}]
[null,"AgroLab, Inc"]
[null,null,"Phosphorus Test:","Mehlich III"]
[null,null,"Lime Test:","Shoemaker-McLean-Pratt (SMP) Single Buffer Method"]

{"sheet":"06_Brookside","index":25,"n_rows":21,"n_cols":29,"rows_kept":21,"cut":false,"hidden":true,"merged":[[0,1,0,10],[1,1,1,10]]}
[null,{"$f":"IF(nLabUsed<>B2,\"Please delete this tab and refer to the Example Lab Report from:\"&CHAR(10)&nLabUsed,\"\")","v":"Please delete this tab and refer to the Example Lab Report from:\n"},null,null,null,null,null,null,null,null,null,null,null,null,null,null,null,null,null,null,null,null,null,null,null,null,null,null,{"$f":"B1","v":"Please delete this tab and refer to the Example Lab Report from:\n"}]
[null,"Brookside Laboratories, Inc",null,null,null,null,null,null,null,null,null,null,null,null,null,null,null,null,null,null,null,null,null,null,null,null,"A",null,{"$f":"SUM(AB3:AB12)","v":82.429999999999993}]
[null,null,"Phosphorus Test:","Mehlich III",null,null,null,null,null,null,null,null,null,null,null,null,null,null,null,null,null,null,null,null,null,null,"B",9.44]
[null,null,"Lime Test:","Shoemaker-McLean-Pratt (SMP) Single Buffer Method",null,null,null,null,null,null,null,null,null,null,null,null,null,null,null,null,null,null,null,null,null,null,"C",8.11]
[null,null,null,null,null,null,null,null,null,null,null,null,null,null,null,null,null,null,null,null,null,null,null,null,null,null,"D",8.11]
[null,null,null,null,null,null,null,null,null,null,null,null,null,null,null,null,null,null,null,null,null,null,null,null,null,null,"E",8.11]
[null,null,null,null,null,null,null,null,null,null,null,null,null,null,null,null,null,null,null,null,null,null,null,null,null,null,"F",8.11]
[null,null,null,null,null,null,null,null,null,null,null,null,null,null,null,null,null,null,null,null,null,null,null,null,null,null,"G",8.11]
[null,null,null,null,null,null,null,null,null,null,null,null,null,null,null,null,null,null,null,null,null,null,null,null,null,null,"H",8.11]
[null,null,null,null,null,null,null,null,null,null,null,null,null,null,null,null,null,null,null,null,null,null,null,null,null,null,"I",8.11]
[null,null,null,null,null,null,null,null,null,null,null,null,null,null,null,null,null,null,null,null,null,null,null,null,null,null,"J",8.11]
[null,null,null,null,null,null,null,null,null,null,null,null,null,null,null,null,null,null,null,null,null,null,null,null,null,null,"K",8.11]
[null,null,null,null,null,null,null,null,null,null,null,null,null,null,null,null,null,null,null,null,null,null,null,null,null,null,"L"]
[]
[]
[]
[]
[]
[]
[]
[null,null,null,null,null,null,null,null,null,null,"Could also use P as P2O5 (lb/A)"]

{"sheet":"07_Logan","index":26,"n_rows":13,"n_cols":29,"rows_kept":13,"cut":false,"hidden":true,"merged":[[0,1,0,10],[1,1,1,10]]}
[null,{"$f":"IF(nLabUsed<>B2,\"Please delete this tab and refer to the Example Lab Report from:\"&CHAR(10)&nLabUsed,\"\")","v":"Please delete this tab and refer to the Example Lab Report from:\n"},null,null,null,null,null,null,null,null,null,null,null,null,null,null,null,null,null,null,null,null,null,null,null,null,null,null,{"$f":"B1","v":"Please delete this tab and refer to the Example Lab Report from:\n"}]
[null,"Logan Labs, LLC",null,null,null,null,null,null,null,null,null,null,null,null,null,null,null,null,null,null,null,null,null,null,null,null,"A",null,{"$f":"SUM(AB3:AB12)","v":82.429999999999993}]
[null,null,"Phosphorus Test:","Mehlich III",null,null,null,null,null,null,null,null,null,null,null,null,null,null,null,null,null,null,null,null,null,null,"B",9.44]
[null,null,"Lime Test:","Shoemaker-McLean-Pratt (SMP) Single Buffer Method",null,null,null,null,null,null,null,null,null,null,null,null,null,null,null,null,null,null,null,null,null,null,"C",8.11]
[null,null,null,null,null,null,null,null,null,null,null,null,null,null,null,null,null,null,null,null,null,null,null,null,null,null,"D",8.11]
[null,null,null,null,null,null,null,null,null,null,null,null,null,null,null,null,null,null,null,null,null,null,null,null,null,null,"E",8.11]
[null,null,null,null,null,null,null,null,null,null,null,null,null,null,null,null,null,null,null,null,null,null,null,null,null,null,"F",8.11]
[null,null,null,null,null,null,null,null,null,null,null,null,null,null,null,null,null,null,null,null,null,null,null,null,null,null,"G",8.11]
[null,null,null,null,null,null,null,null,null,null,null,null,null,null,null,null,null,null,null,null,null,null,null,null,null,null,"H",8.11]
[null,null,null,null,null,null,null,null,null,null,null,null,null,null,null,null,null,null,null,null,null,null,null,null,null,null,"I",8.11]
[null,null,null,null,null,null,null,null,null,null,null,null,null,null,null,null,null,null,null,null,null,null,null,null,null,null,"J",8.11]
[null,null,null,null,null,null,null,null,null,null,null,null,null,null,null,null,null,null,null,null,null,null,null,null,null,null,"K",8.11]
[null,null,null,null,null,null,null,null,null,null,null,null,null,null,null,null,null,null,null,null,null,null,null,null,null,null,"L"]

{"sheet":"08_Midwest","index":27,"n_rows":10,"n_cols":27,"rows_kept":10,"cut":false,"hidden":true,"merged":[[0,1,0,10],[1,1,1,10]]}
[null,{"$f":"IF(nLabUsed<>B2,\"Please delete this tab and refer to the Example Lab Report from:\"&CHAR(10)&nLabUsed,\"\")","v":"Please delete this tab and refer to the Example Lab Report from:\n"},null,null,null,null,null,null,null,null,null,null,null,null,null,null,null,null,null,null,null,null,null,null,null,null,{"$f":"B1","v":"Please delete this tab and refer to the Example Lab Report from:\n"}]
[null,"Midwest Laboratories, Inc*",null,null,null,null,null,null,null,null,null,null,null,null,null,null,null,null,null,null,null,null,null,null,null,null,{"$f":"SUM(#REF!)","v":{"$error":"#REF!"}}]
[null,null,"Phosphorus Test:","Mehlich III"]
[null,null,"Lime Test:","Shoemaker-McLean-Pratt (SMP) Single Buffer Method"]
[null,null,"Notes:","Lab report shows Bray I test - Must request Mehlich III to use for plan writing."]
[]
[]
[]
[]
[null,null,null,null,null,"NEED EXAMPLE LAB REPORT"]

{"sheet":"09_Spectrum","index":28,"n_rows":13,"n_cols":29,"rows_kept":13,"cut":false,"hidden":true,"merged":[[0,1,0,10],[1,1,1,10]]}
[null,{"$f":"IF(nLabUsed<>B2,\"Please delete this tab and refer to the Example Lab Report from:\"&CHAR(10)&nLabUsed,\"\")","v":"Please delete this tab and refer to the Example Lab Report from:\n"},null,null,null,null,null,null,null,null,null,null,null,null,null,null,null,null,null,null,null,null,null,null,null,null,null,null,{"$f":"B1","v":"Please delete this tab and refer to the Example Lab Report from:\n"}]
[null,"Spectrum Analytic, Inc",null,null,null,null,null,null,null,null,null,null,null,null,null,null,null,null,null,null,null,null,null,null,null,null,"A",null,{"$f":"SUM(AB3:AB12)","v":82.429999999999993}]
[null,null,"Phosphorus Test:","Mehlich III",null,null,null,null,null,null,null,null,null,null,null,null,null,null,null,null,null,null,null,null,null,null,"B",9.44]
[null,null,"Lime Test:","Shoemaker-McLean-Pratt (SMP) Single Buffer Method",null,null,null,null,null,null,null,null,null,null,null,null,null,null,null,null,null,null,null,null,null,null,"C",8.11]
[null,null,null,null,null,null,null,null,null,null,null,null,null,null,null,null,null,null,null,null,null,null,null,null,null,null,"D",8.11]
[null,null,null,null,null,null,null,null,null,null,null,null,null,null,null,null,null,null,null,null,null,null,null,null,null,null,"E",8.11]
[null,null,null,null,null,null,null,null,null,null,null,null,null,null,null,null,null,null,null,null,null,null,null,null,null,null,"F",8.11]
[null,null,null,null,null,null,null,null,null,null,null,null,null,null,null,null,null,null,null,null,null,null,null,null,null,null,"G",8.11]
[null,null,null,null,null,null,null,null,null,null,null,null,null,null,null,null,null,null,null,null,null,null,null,null,null,null,"H",8.11]
[null,null,null,null,null,null,null,null,null,null,null,null,null,null,null,null,null,null,null,null,null,null,null,null,null,null,"I",8.11]
[null,null,null,null,null,null,null,null,null,null,null,null,null,null,null,null,null,null,null,null,null,null,null,null,null,null,"J",8.11]
[null,null,null,null,null,null,null,null,null,null,null,null,null,null,null,null,null,null,null,null,null,null,null,null,null,null,"K",8.11]
[null,null,null,null,null,null,null,null,null,null,null,null,null,null,null,null,null,null,null,null,null,null,null,null,null,null,"L"]

{"sheet":"10_Waters(NC)","index":29,"n_rows":47,"n_cols":29,"rows_kept":47,"cut":false,"hidden":true,"merged":[[0,1,0,10],[1,1,1,10]]}
[null,{"$f":"IF(nLabUsed<>B2,\"Please delete this tab and refer to the Example Lab Report from:\"&CHAR(10)&nLabUsed,\"\")","v":"Please delete this tab and refer to the Example Lab Report from:\n"},null,null,null,null,null,null,null,null,null,null,null,null,null,null,null,null,null,null,null,null,null,null,null,null,null,null,{"$f":"B1","v":"Please delete this tab and refer to the Example Lab Report from:\n"}]
[null,"Waters Agricultural Lab., Inc (NC)*"]
[null,null,"P-type:","Mehlich III"]
[null,null,"Lime Test:","Adams-Evans Single Buffer Method"]
[null,null,"Notes:","Contact lab for Lime Recommendation spreadsheet"]
[]
[]
[]
[]
[]
[]
[]
[]
[]
[]
[]
[]
[]
[]
[]
[]
[]
[]
[]
[]
[]
[]
[]
[]
[]
[]
[]
[]
[]
[]
[]
[]
[]
[]
[]
[]
[]
[]
[]
[]
[]
[null,"Older Example Report with Multiple Samples shown on one page:"]